Workbook

Sheet Chauffeur
A1: Chauffeur | B1: J Max | C1: J Travail | D1: Alerte | E1: 1 | F1: 2 | G1: 3 | H1: 4 | I1: 5 | J1: 6 | K1: 7 | L1: 8 | M1: 9 | N1: 10 | O1: 11 | P1: 12 | Q1: 13 | R1: 14 | S1: 15 | T1: 16 | U1: 17 | V1: 18 | W1: 19 | X1: 20 | Y1: 21 | Z1: 22 | AA1: 23 | AB1: 24 | AC1: 25 | AD1: 26 | AE1: 27 | AF1: 28 | AG1: 29 | AH1: 30 | AI1: 31 | AK1: Jours Feriers | AL1: 0 | AP1: Weekend
A2: =CONCATENATE((C2-B2)+AL1," ",AJ2) -> -11 chauffeur 1 | B2: 21 | C2: =SUM(E2:AI2) -> 10 | D2: =IF(C2>B2,"Heure trop","Bon") -> Bon | E2: 1 | F2: 1 | G2: 1 | H2: 1 | L2: 1 | M2: 1 | N2: 1 | O2: 1 | P2: 1 | S2: 1 | AJ2: chauffeur 1 | AL2: 0 | AP2: Congé demander
A3: =CONCATENATE((C3-B3)+AL2," ",AJ3) -> -19 chauffeur 2 | B3: 19 | C3: =SUM(E3:AI3) -> 0 | D3: =IF(C3>B3,"Heure trop","Bon") -> Bon | AJ3: chauffeur 2 | AL3: 0 | AN3: 1 | AP3: Congé accepter
A4: -21 chauffeur 3 | B4: 21 | C4: =SUM(E4:AI4) -> 0 | D4: Bon | AJ4: chauffeur 3 | AL4: 0 | AN4: 1 | AP4: Formation
A5: -21 chauffeur 4 | B5: 21 | C5: 0 | D5: Bon | AJ5: chauffeur 4 | AL5: 0 | AN5: 1 | AP5: Maladie
A6: -20 chauffeur 5 | B6: 20 | C6: 0 | D6: Bon | AJ6: chauffeur 5 | AL6: 0 | AN6: 1 | AP6: Repos
A7: -21 chauffeur 6 | B7: 21 | C7: 0 | D7: Bon | AJ7: chauffeur 6 | AL7: 0
A8: -17 chauffeur 7 | B8: 17 | C8: 0 | D8: Bon | AJ8: chauffeur 7 | AL8: 0
A9: -21 chauffeur 8 | B9: 21 | C9: 0 | D9: Bon | AJ9: chauffeur 8 | AL9: 0
A10: -21 chauffeur 9 | B10: 21 | C10: 0 | D10: Bon | AJ10: chauffeur 9 | AL10: 0
A11: -21 chauffeur 10 | B11: 21 | C11: 0 | D11: Bon | AJ11: chauffeur 10 | AL11: 0
A12: -21 chauffeur 11 | B12: 21 | C12: 0 | D12: Bon | AJ12: chauffeur 11 | AL12: 0
A13: -21 chauffeur 12 | B13: 21 | C13: 0 | D13: Bon | AJ13: chauffeur 12 | AL13: 0
A14: -19 chauffeur 13 | B14: 19 | C14: 0 | D14: Bon | AJ14: chauffeur 13 | AL14: 0
A15: -17 chauffeur 14 | B15: 17 | C15: 0 | D15: Bon | AJ15: chauffeur 14 | AL15: 0
A16: -20 chauffeur 15 | B16: 20 | C16: 0 | D16: Bon | AJ16: chauffeur 15 | AL16: 0
A17: -17 chauffeur 16 | B17: 17 | C17: 0 | D17: Bon | AJ17: chauffeur 16 | AL17: 0
A18: -17 chauffeur 17 | B18: 17 | C18: 0 | D18: Bon | AJ18: chauffeur 17 | AL18: 0
A19: -21 chauffeur 18 | B19: 21 | C19: 0 | D19: Bon | AJ19: chauffeur 18 | AL19: 0
A20: -21 chauffeur 19 | B20: 21 | C20: 0 | D20: Bon | AJ20: chauffeur 19 | AL20: 0
A21: -20 chauffeur 20 | B21: 20 | C21: 0 | D21: Bon | AJ21: chauffeur 20 | AL21: 0
A22: -17 chauffeur 21 | B22: 17 | C22: 0 | D22: Bon | AJ22: chauffeur 21 | AL22: 0
A23: -20 chauffeur 22 | B23: 20 | C23: 0 | D23: Bon | AJ23: chauffeur 22 | AL23: 0
A24: -17 chauffeur 23 | B24: 17 | C24: 0 | D24: Bon | AJ24: chauffeur 23 | AL24: 0
A25: -17 chauffeur 24 | B25: 17 | C25: 0 | D25: Bon | AJ25: chauffeur 24 | AL25: 0
A26: -17 chauffeur 25 | B26: 17 | C26: 0 | D26: Bon | AJ26: chauffeur 25 | AL26: 0
A27: -17 chauffeur 26 | B27: 17 | C27: 0 | D27: Bon | AJ27: chauffeur 26 | AL27: 0
A28: -21 chauffeur 27 | B28: 21 | C28: 0 | D28: Bon | AJ28: chauffeur 27 | AL28: 0
A29: -20 chauffeur 28 | B29: 20 | C29: 0 | D29: Bon | AJ29: chauffeur 28 | AL29: 0
A30: -21 chauffeur 29 | B30: 21 | C30: 0 | D30: Bon | AJ30: chauffeur 29 | AL30: 0
A31: -21 chauffeur 30 | B31: 21 | C31: 0 | D31: Bon | AJ31: chauffeur 30 | AL31: 0
A32: -20 chauffeur 31 | B32: 20 | C32: 0 | D32: Bon | AJ32: chauffeur 31 | AL32: 0
A33: -21 chauffeur 32 | B33: 21 | C33: 0 | D33: Bon | AJ33: chauffeur 32 | AL33: 0
A34: -21 chauffeur 33 | B34: 21 | C34: 0 | D34: Bon | AJ34: chauffeur 33 | AL34: 0
A35: -21 chauffeur 34 | B35: 21 | C35: 0 | D35: Bon | AJ35: chauffeur 34 | AL35: 0
A36: -19 chauffeur 35 | B36: 19 | C36: 0 | D36: Bon | AJ36: chauffeur 35 | AL36: 0
A37: -21 chauffeur 36 | B37: 21 | C37: 0 | D37: Bon | AJ37: chauffeur 36 | AL37: 0
A38: -19 chauffeur 37 | B38: 19 | C38: 0 | D38: Bon | AJ38: chauffeur 37 | AL38: 0
A39: -19 chauffeur 38 | B39: 19 | C39: 0 | D39: Bon | AJ39: chauffeur 38 | AL39: 0
A40: -19 chauffeur 39 | B40: 19 | C40: 0 | D40: Bon | AJ40: chauffeur 39 | AL40: 0
A41: -21 chauffeur 40 | B41: 21 | C41: 0 | D41: Bon | AJ41: chauffeur 40 | AL41: 0
A42: -17 chauffeur 41 | B42: 17 | C42: 0 | D42: Bon | AJ42: chauffeur 41 | AL42: 0
A43: -21 chauffeur 42 | B43: 21 | C43: 0 | D43: Bon | AJ43: chauffeur 42 | AL43: 0
A44: -20 chauffeur 43 | B44: 20 | C44: =SUM(E44:AI44) -> 0 | D44: Bon | AJ44: chauffeur 43 | AL44: 0
A45: -21 chauffeur 44 | B45: 21 | C45: 0 | D45: Bon | AJ45: chauffeur 44 | AL45: 0
A46: -17 chauffeur 45 | B46: 17 | C46: 0 | D46: Bon | AJ46: chauffeur 45 | AL46: 0
A47: -21 chauffeur 46 | B47: 21 | C47: 0 | D47: Bon | AJ47: chauffeur 46 | AL47: 0
A48: -21 chauffeur 47 | B48: 21 | C48: 0 | D48: Bon | AJ48: chauffeur 47 | AL48: 0
A49: -19 chauffeur 48 | B49: 19 | C49: 0 | D49: Bon | AJ49: chauffeur 48 | AL49: 0
A50: -20 chauffeur 49 | B50: 20 | C50: 0 | D50: Bon | AJ50: chauffeur 49 | AL50: 0
A51: -21 chauffeur 50 | B51: 21 | C51: 0 | D51: Bon | AJ51: chauffeur 50 | AL51: 0
A53: -20 chauffeur 1A | B53: 21 | C53: =SUM(E53:AI53) -> 1 | D53: =IF(C53>B53,"Heure trop","Bon") -> Bon | E53: 1 | AJ53: chauffeur 1A | AL53: 0
A54: -21 chauffeur 2A | B54: 21 | C54: 0 | D54: Bon | AJ54: chauffeur 2A | AL54: 0
A55: -21 chauffeur 3A | B55: 21 | C55: 0 | D55: Bon | AJ55: chauffeur 3A | AL55: 0
A56: -21 chauffeur 4A | B56: 21 | C56: 0 | D56: Bon | AJ56: chauffeur 4A | AL56: 0
A57: -21 chauffeur 5A | B57: 21 | C57: 0 | D57: Bon | AJ57: chauffeur 5A | AL57: 0
A58: -21 chauffeur 6A | B58: 21 | C58: =SUM(E58:AI58) -> 0 | D58: =IF(C58>B58,"Heure trop","Bon") -> Bon | AJ58: chauffeur 6A | AL58: 0
A59: -21 chauffeur 7A | B59: 21 | C59: 0 | D59: Bon | AJ59: chauffeur 7A | AL59: 0
A60: -21 chauffeur 8A | B60: 21 | C60: 0 | D60: Bon | AJ60: chauffeur 8A | AL60: 0
A61: -21 chauffeur 9A | B61: 21 | C61: 0 | D61: Bon | AJ61: chauffeur 9A | AL61: 0
A62: -21 chauffeur 10A | B62: 21 | C62: =SUM(E62:AI62) -> 0 | D62: =IF(C62>B62,"Heure trop","Bon") -> Bon | AJ62: chauffeur 10A | AL62: 0
A63: -21 chauffeur 11A | B63: 21 | C63: 0 | D63: Bon | AJ63: chauffeur 11A | AL63: 0
A64: -21 chauffeur 12A | B64: 21 | C64: 0 | D64: Bon | AJ64: chauffeur 12A | AL64: 0
A65: -21 chauffeur 13A | B65: 21 | C65: 0 | D65: Bon | AJ65: chauffeur 13A | AL65: 0
A66: -21 chauffeur 14A | B66: 21 | C66: 0 | D66: Bon | AJ66: chauffeur 14A | AL66: 0

Sheet Planning S1
A1: Planning Drivers week: | G1: Shift Amounts (without spare truck): | K1: 0 | O1: http://forum.excel-pratique.com/excel/probleme-entre-deux-tableau-bouton-msgbox-t72663.html
F2: S/01 | G2: garde effectuée par
A3: Truck | B3: License | C3: COULEUR | D3: AM | E3: Lundi | F3: Mardi | G3: Mercredi | H3: Jeudi | I3: Vendredi | J3: Samedi | K3: Dimanche
B4: plate | D4: PM | E4: 2016-02-01 | F4: 2016-02-02 | G4: 2016-02-03 | H4: 2016-02-04 | I4: 2016-02-05 | J4: 2016-02-06 | K4: 2016-02-07
A5: Camion | B5: Citerne
A7: WINDHOFF
A8: 1 | B8: JB6815 | C8: TOTAL | D8: am | E8: chauffeur 1A | G8: chauffeur 1
A9: SCELLEMENT | B9: LD6454 | D9: pm
A11: 2 | B11: JB6816 | C11: TOTAL | D11: am
A12: COMPTEUR | B12: EW6499 | D12: pm
A14: 3 | B14: JB6815 | C14: TOTAL | D14: am
A15: COMPTEUR | B15: LD6454 | D15: pm
A17: 4 | B17: JB6817 | C17: TOTAL | D17: am
A18: COMPTEUR | B18: LD6454 | D18: pm
A19: Client 1
A20: 5 | B20: JB6815 | C20: TOTAL | D20: am
A21: COMPTEUR | B21: LD6454 | D21: pm
A23: 6 | B23: QH7484 | C23: TOTAL | D23: am
A24: SCELLEMENT | D24: pm
A26: 7 | B26: JB6815 | C26: TOTAL | D26: am
A27: SCELLEMENT | B27: LD6454 | D27: pm
A29: 8 | B29: JB6815 | C29: TOTAL | D29: am
A30: BARTECH | B30: LD6454 | D30: pm
C31: Client 1
A32: 9 | B32: JB6815 | C32: TOTAL | D32: am
A33: BARTECH | B33: LD6454 | D33: pm
A35: 10 | B35: JB6815 | C35: TOTAL | D35: am
A36: SCELLEMENT | B36: LD6454 | D36: pm
A38: 11 | B38: JB6815 | C38: TOTAL | D38: am
A39: BARTECH | B39: LD6454 | D39: pm
A41: RESERVE | C41: TOTAL | D41: am
A42: COMPTEUR | D42: pm
A44: WANDRE
A45: 12 | B45: TS9967 | C45: TOTAL | D45: am
A46: BICUVE | B46: LD6454 | D46: pm
A47: SAUERTAL | D47: nuit
A49: 13 | B49: JB6815 | C49: TOTAL | D49: am
A50: BICUVE | B50: LD6454 | D50: pm
A51: SAUERTAL | D51: nuit
A52: BASTOGNE
A53: 14 | B53: JB6815 | C53: TOTAL | D53: am
A54: BARTECH | B54: LD6454 | D54: pm
A56: Windhoff
D57: RESERVE AM
D58: RESERVE PM
A60: Wandre
D61: RESERVE AM
D62: RESERVE PM

Sheet Planning S2
A1: Planning Drivers week: | G1: Shift Amounts (without spare truck): | K1: 0
F2: S/01 | G2: garde effectuée par
A3: Truck | B3: License | C3: COULEUR | D3: AM | E3: Lundi | F3: Mardi | G3: Mercredi | H3: Jeudi | I3: Vendredi | J3: Samedi | K3: Dimanche
B4: plate | D4: PM | E4: 2016-02-08 | F4: 2016-02-09 | G4: 2016-02-10 | H4: 2016-02-11 | I4: 2016-02-12 | J4: 2016-02-13 | K4: 2016-02-14
A5: Camion | B5: Citerne
A7: WINDHOFF
A8: 1 | B8: JB6815 | C8: TOTAL | D8: am
A9: SCELLEMENT | B9: LD6454 | D9: pm
A11: 2 | B11: JB6815 | C11: TOTAL | D11: am
A12: COMPTEUR | B12: LD6454 | D12: pm
A14: 3 | B14: JB6815 | C14: TOTAL | D14: am
A15: COMPTEUR | B15: LD6454 | D15: pm
A17: 4 | B17: JB6817 | C17: TOTAL | D17: am
A18: COMPTEUR | B18: LD6454 | D18: pm
A20: 5 | B20: JB6815 | C20: TOTAL | D20: am
A21: COMPTEUR | B21: LD6454 | D21: pm
A23: 6 | B23: JB6815 | C23: TOTAL | D23: am
A24: SCELLEMENT | B24: LD6454 | D24: pm
A26: 7 | B26: JB6815 | C26: TOTAL | D26: am
A27: SCELLEMENT | B27: LD6454 | D27: pm
A29: 8 | B29: JB6815 | C29: TOTAL | D29: am
A30: BARTECH | B30: LD6454 | D30: pm
C31: Client 1
A32: 9 | B32: JB6815 | C32: TOTAL | D32: am
A33: BARTECH | B33: LD6454 | D33: pm
A35: 10 | B35: JB6815 | C35: TOTAL | D35: am
A36: SCELLEMENT | B36: LD6454 | D36: pm
A38: 11 | B38: JB6815 | C38: TOTAL | D38: am
A39: BARTECH | B39: LD6454 | D39: pm
A41: RESERVE | C41: TOTAL | D41: am
A42: COMPTEUR | D42: pm
A44: WANDRE
A45: 12 | B45: JB6815 | C45: TOTAL | D45: am
A46: BICUVE | B46: LD6454 | D46: pm
A47: SAUERTAL | D47: nuit
A49: 13 | B49: JB6815 | C49: TOTAL | D49: am
A50: BICUVE | B50: LD6454 | D50: pm
A51: SAUERTAL | D51: nuit
A52: BASTOGNE
A53: 14 | B53: JB6815 | C53: TOTAL | D53: am
A54: BARTECH | B54: LD6454 | D54: pm
A56: Windhoff
D57: RESERVE AM
D58: RESERVE PM
A60: Wandre
D61: RESERVE AM
D62: RESERVE PM

Sheet Planning S3
A1: Planning Drivers week: | G1: Shift Amounts (without spare truck): | K1: 0
F2: S/01 | G2: garde effectuée par
A3: Truck | B3: License | C3: COULEUR | D3: AM | E3: Lundi | F3: Mardi | G3: Mercredi | H3: Jeudi | I3: Vendredi | J3: Samedi | K3: Dimanche
B4: plate | D4: PM | E4: 2016-02-15 | F4: 2016-02-16 | G4: 2016-02-17 | H4: 2016-02-18 | I4: 2016-02-19 | J4: 2016-02-20 | K4: 2016-02-21
A5: Camion | B5: Citerne
A7: WINDHOFF
A8: 1 | B8: JB6815 | C8: TOTAL | D8: am
A9: SCELLEMENT | B9: LD6454 | D9: pm
A11: 2 | B11: JB6815 | C11: TOTAL | D11: am
A12: COMPTEUR | B12: LD6454 | D12: pm
A14: 3 | B14: JB6815 | C14: TOTAL | D14: am
A15: COMPTEUR | B15: LD6454 | D15: pm
A17: 4 | B17: JB6817 | C17: TOTAL | D17: am
A18: COMPTEUR | B18: LD6454 | D18: pm
A20: 5 | B20: JB6815 | C20: TOTAL | D20: am
A21: COMPTEUR | B21: LD6454 | D21: pm
A23: 6 | B23: JB6815 | C23: TOTAL | D23: am
A24: SCELLEMENT | B24: LD6454 | D24: pm
A26: 7 | B26: JB6815 | C26: TOTAL | D26: am
A27: SCELLEMENT | B27: LD6454 | D27: pm
A29: 8 | B29: JB6815 | C29: TOTAL | D29: am
A30: BARTECH | B30: LD6454 | D30: pm
C31: Client 1
A32: 9 | B32: JB6815 | C32: TOTAL | D32: am
A33: BARTECH | B33: LD6454 | D33: pm
A35: 10 | B35: JB6815 | C35: TOTAL | D35: am
A36: SCELLEMENT | B36: LD6454 | D36: pm
A38: 11 | B38: JB6815 | C38: TOTAL | D38: am
A39: BARTECH | B39: LD6454 | D39: pm
A41: RESERVE | C41: TOTAL | D41: am
A42: COMPTEUR | D42: pm
A44: WANDRE
A45: 12 | B45: JB6815 | C45: TOTAL | D45: am
A46: BICUVE | B46: LD6454 | D46: pm
A47: SAUERTAL | D47: nuit
A49: 13 | B49: JB6815 | C49: TOTAL | D49: am
A50: BICUVE | B50: LD6454 | D50: pm
A51: SAUERTAL | D51: nuit
A52: BASTOGNE
A53: 14 | B53: JB6815 | C53: TOTAL | D53: am
A54: BARTECH | B54: LD6454 | D54: pm
A56: Windhoff
D57: RESERVE AM
D58: RESERVE PM
A60: Wandre
D61: RESERVE AM
D62: RESERVE PM

Sheet Planning S4
A1: Planning Drivers week: | G1: Shift Amounts (without spare truck): | K1: 0
F2: S/01 | G2: garde effectuée par
A3: Truck | B3: License | C3: COULEUR | D3: AM | E3: Lundi | F3: Mardi | G3: Mercredi | H3: Jeudi | I3: Vendredi | J3: Samedi | K3: Dimanche
B4: plate | D4: PM | E4: 2016-02-22 | F4: 2016-02-23 | G4: 2016-02-24 | H4: 2016-02-25 | I4: 2016-02-26 | J4: 2016-02-27 | K4: 2016-02-28
A5: Camion | B5: Citerne
A7: WINDHOFF
A8: 1 | B8: JB6815 | C8: TOTAL | D8: am
A9: SCELLEMENT | B9: LD6454 | D9: pm
A11: 2 | B11: JB6815 | C11: TOTAL | D11: am
A12: COMPTEUR | B12: LD6454 | D12: pm
A14: 3 | B14: JB6815 | C14: TOTAL | D14: am
A15: COMPTEUR | B15: LD6454 | D15: pm
A17: 4 | B17: JB6817 | C17: TOTAL | D17: am
A18: COMPTEUR | B18: LD6454 | D18: pm
A20: 5 | B20: JB6815 | C20: TOTAL | D20: am
A21: COMPTEUR | B21: LD6454 | D21: pm
A23: 6 | B23: JB6815 | C23: TOTAL | D23: am
A24: SCELLEMENT | B24: LD6454 | D24: pm
A26: 7 | B26: JB6815 | C26: TOTAL | D26: am
A27: SCELLEMENT | B27: LD6454 | D27: pm
A29: 8 | B29: JB6815 | C29: TOTAL | D29: am
A30: BARTECH | B30: LD6454 | D30: pm
C31: Client 1
A32: 9 | B32: JB6815 | C32: TOTAL | D32: am
A33: BARTECH | B33: LD6454 | D33: pm
A35: 10 | B35: JB6815 | C35: TOTAL | D35: am
A36: SCELLEMENT | B36: LD6454 | D36: pm
A38: 11 | B38: JB6815 | C38: TOTAL | D38: am
A39: BARTECH | B39: LD6454 | D39: pm
A41: RESERVE | C41: TOTAL | D41: am
A42: COMPTEUR | D42: pm
A44: WANDRE
A45: 12 | B45: JB6815 | C45: TOTAL | D45: am
A46: BICUVE | B46: LD6454 | D46: pm
A47: SAUERTAL | D47: nuit
A49: 13 | B49: JB6815 | C49: TOTAL | D49: am
A50: BICUVE | B50: LD6454 | D50: pm
A51: SAUERTAL | D51: nuit
A52: BASTOGNE
A53: 14 | B53: JB6815 | C53: TOTAL | D53: am
A54: BARTECH | B54: LD6454 | D54: pm
A56: Windhoff
D57: RESERVE AM
D58: RESERVE PM
A60: Wandre
D61: RESERVE AM
D62: RESERVE PM

Sheet Planning S5
A1: Planning Drivers week: | G1: Shift Amounts (without spare truck): | K1: 0
F2: S/01 | G2: garde effectuée par
A3: Truck | B3: License | C3: COULEUR | D3: AM | E3: Lundi | F3: Mardi | G3: Mercredi | H3: Jeudi | I3: Vendredi | J3: Samedi | K3: Dimanche
B4: plate | D4: PM | E4: 2016-02-29
A5: Camion | B5: Citerne
A7: WINDHOFF
A8: 1 | B8: JB6815 | C8: TOTAL | D8: am
A9: SCELLEMENT | B9: LD6454 | D9: pm
A11: 2 | B11: JB6815 | C11: TOTAL | D11: am
A12: COMPTEUR | B12: LD6454 | D12: pm
A14: 3 | B14: JB6815 | C14: TOTAL | D14: am
A15: COMPTEUR | B15: LD6454 | D15: pm
A17: 4 | B17: JB6817 | C17: TOTAL | D17: am
A18: COMPTEUR | B18: LD6454 | D18: pm
A20: 5 | B20: JB6815 | C20: TOTAL | D20: am
A21: COMPTEUR | B21: LD6454 | D21: pm
A23: 6 | B23: JB6815 | C23: TOTAL | D23: am
A24: SCELLEMENT | B24: LD6454 | D24: pm
A26: 7 | B26: JB6815 | C26: TOTAL | D26: am
A27: SCELLEMENT | B27: LD6454 | D27: pm
A29: 8 | B29: JB6815 | C29: TOTAL | D29: am
A30: BARTECH | B30: LD6454 | D30: pm
C31: Client 1
A32: 9 | B32: JB6815 | C32: TOTAL | D32: am
A33: BARTECH | B33: LD6454 | D33: pm
A35: 10 | B35: JB6815 | C35: TOTAL | D35: am
A36: SCELLEMENT | B36: LD6454 | D36: pm
A38: 11 | B38: JB6815 | C38: TOTAL | D38: am
A39: BARTECH | B39: LD6454 | D39: pm
A41: RESERVE | C41: TOTAL | D41: am
A42: COMPTEUR | D42: pm
A44: WANDRE
A45: 12 | B45: JB6815 | C45: TOTAL | D45: am
A46: BICUVE | B46: LD6454 | D46: pm
A47: SAUERTAL | D47: nuit
A49: 13 | B49: JB6815 | C49: TOTAL | D49: am
A50: BICUVE | B50: LD6454 | D50: pm
A51: SAUERTAL | D51: nuit
A52: BASTOGNE
A53: 14 | B53: JB6815 | C53: TOTAL | D53: am
A54: BARTECH | B54: LD6454 | D54: pm
A56: Windhoff
D57: RESERVE AM
D58: RESERVE PM
A60: Wandre
D61: RESERVE AM
D62: RESERVE PM

Sheet Pla J
B1: Client 1 | E1: 5 | F1: DATE : | G1: =TODAY( ) -> 2016-01-21
B2: Camion | C2: CHAUFFEURS | D2: CLIENT | E2: DEPÔTS | F2: PRODUITS | K2: LIVRAISONS
B3: Citerne | F3: EXCELLIUM | G3: EURO 95 | H3: S+ 98 EXC | I3: DIESEL | J3: CHAUF. | K3: STATION 1 | N3: STATION 2 | Q3: STATION 3
A4: Windhoff | B4: 1 - SCELLEMENT | D4: ROUGE | F4: SANS POMPE | H4: Poids : | J4: Poids total : | K4: Station | L4: Jours | M4: Heure | N4: Station | O4: Jours | P4: Heure | Q4: Station | R4: Jours | S4: Heure
A5: MATIN | B5: ='Planning S1'!B8&" / " &'Planning S1'!B9 -> JB6815 / LD6454 | C5: ='Planning S1'!E8 -> chauffeur 1A | D5: client 1 | E5: Wandre
E6: Mertert
E7: Mertert
E8: Feluy
A9: A-MIDI | C9: ='Planning S1'!E9 -> 0 | D9: client 1 | E9: Mertert
E10: Mertert
E11: Mertert
E12: Mertert
B13: 2 - COMPTEUR | D13: ROUGE | F13: SANS POMPE | H13: Poids : | J13: Poids total : | K13: Station | L13: Jours | M13: Heure | N13: Station | O13: Jours | P13: Heure | Q13: Station | R13: Jours | S13: Heure
A14: MATIN | B14: ='Planning S1'!$B11&"/ " &'Planning S1'!$B12 -> JB6816 / EW6499 | C14: ='Planning S1'!E11 -> 0 | D14: client 1 | E14: Mertert
E15: Mertert
E16: Mertert
E17: Mertert
A18: A-MIDI | C18: ='Planning S1'!E12 -> 0 | D18: client 1 | E18: Mertert
E19: Mertert
E20: Mertert
E21: Mertert
B22: 3 - COMPTEUR | D22: ROUGE | F22: SANS POMPE | H22: Poids : | J22: Poids total : | K22: Station | L22: Jours | M22: Heure | N22: Station | O22: Jours | P22: Heure | Q22: Station | R22: Jours | S22: Heure
A23: MATIN | B23: ='Planning S1'!$B14&"/ " &'Planning S1'!$B15 -> JB6815/ LD6454 | C23: ='Planning S1'!E14 -> 0 | D23: client 1 | E23: Mertert
E24: Mertert
E25: Mertert
E26: Mertert
A27: A-MIDI | C27: ='Planning S1'!E15 -> 0 | D27: client 1 | E27: Mertert
E28: Mertert
E29: Mertert
E30: Mertert
B31: 4 - COMPTEUR | D31: ROUGE | F31: SANS POMPE | H31: Poids : | J31: Poids total : | K31: Station | L31: Jours | M31: Heure | N31: Station | O31: Jours | P31: Heure | Q31: Station | R31: Jours | S31: Heure
A32: MATIN | B32: ='Planning S1'!$B17&"/ " &'Planning S1'!$B18 -> JB6817 / LD6454 | C32: ='Planning S1'!E17 -> 0 | D32: client 1 | E32: Mertert
E33: Mertert
E34: Mertert
E35: Mertert
A36: A-MIDI | C36: ='Planning S1'!E18 -> 0 | D36: client 1 | E36: Mertert
E37: Wandre
E38: Feluy
E39: Mertert
B40: 5 - COMPTEUR | D40: ROUGE | F40: SANS POMPE | H40: Poids : | J40: Poids total : | K40: Station | L40: Jours | M40: Heure | N40: Station | O40: Jours | P40: Heure | Q40: Station | R40: Jours | S40: Heure
A41: MATIN | B41: ='Planning S1'!$B20&"/ " &'Planning S1'!$B21 -> JB6815/ LD6454 | C41: ='Planning S1'!E20 -> 0 | D41: client 1 | E41: Mertert
E42: Mertert
E43: Mertert
E44: Mertert
A45: A-MIDI | C45: ='Planning S1'!E21 -> 0 | D45: client 1 | E45: Mertert
E46: Wandre
E47: Feluy
E48: Wandre
B49: 6 - SCELLEMENT | D49: ROUGE | F49: SANS POMPE | H49: Poids : | J49: Poids total : | K49: Station | L49: Jours | M49: Heure | N49: Station | O49: Jours | P49: Heure | Q49: Station | R49: Jours | S49: Heure
A50: MATIN | B50: ='Planning S1'!$B23&"/ " &'Planning S1'!$B24 -> QH7484/ | C50: ='Planning S1'!E23 -> 0 | D50: client 1 | E50: Mertert
E51: Mertert
E52: Mertert
E53: Wandre
A54: A-MIDI | C54: ='Planning S1'!E24 -> 0 | D54: client 1 | E54: Mertert
E55: Wandre
E56: Feluy
E57: Wandre
B58: 7 - SCELLEMENT | D58: ROUGE | F58: SANS POMPE | H58: Poids : | J58: Poids total : | K58: Station | L58: Jours | M58: Heure | N58: Station | O58: Jours | P58: Heure | Q58: Station | R58: Jours | S58: Heure
A59: MATIN | B59: ='Planning S1'!$B26&"/ " &'Planning S1'!$B27 -> JB6815/ LD6454 | C59: ='Planning S1'!E26 -> 0 | D59: client 1 | E59: Mertert
E60: Mertert
E61: Mertert
E62: Wandre
A63: A-MIDI | C63: ='Planning S1'!E30 -> 0 | D63: client 1 | E63: Mertert
E64: Wandre
E65: Feluy
E66: Wandre
B67: 8 - BARTECH | D67: ROUGE | F67: SANS POMPE | H67: Poids : | J67: Poids total : | K67: Station | L67: Jours | M67: Heure | N67: Station | O67: Jours | P67: Heure | Q67: Station | R67: Jours | S67: Heure
A68: MATIN | B68: ='Planning S1'!$B29&"/ " &'Planning S1'!$B30 -> JB6815/ LD6454 | C68: ='Planning S1'!E29 -> 0 | D68: client 1 | E68: Mertert
E69: Mertert
E70: Mertert
E71: Wandre
A72: A-MIDI | C72: ='Planning S1'!E30 -> 0 | D72: client 1 | E72: Mertert
E73: Wandre
E74: Feluy
E75: Wandre
B76: 9 - BARTECH | D76: ROUGE | F76: SANS POMPE | H76: Poids : | J76: Poids total : | K76: Station | L76: Jours | M76: Heure | N76: Station | O76: Jours | P76: Heure | Q76: Station | R76: Jours | S76: Heure
A77: MATIN | B77: ='Planning S1'!$B32&"/ " &'Planning S1'!$B33 -> JB6815/ LD6454 | C77: ='Planning S1'!E32 -> 0 | D77: client 1 | E77: Mertert
E78: Mertert
E79: Mertert
E80: Wandre
A81: A-MIDI | C81: ='Planning S1'!E33 -> 0 | D81: client 1 | E81: Mertert
E82: Wandre
E83: Feluy
E84: Wandre
B85: 10 - SCELLEMENT | D85: ROUGE | F85: SANS POMPE | H85: Poids : | J85: Poids total : | K85: Station | L85: Jours | M85: Heure | N85: Station | O85: Jours | P85: Heure | Q85: Station | R85: Jours | S85: Heure
A86: MATIN | B86: ='Planning S1'!$B35&"/ " &'Planning S1'!$B36 -> JB6815/ LD6454 | C86: ='Planning S1'!E35 -> 0 | D86: client 1 | E86: Mertert
E87: Mertert
E88: Wandre
E89: Wandre
A90: A-MIDI | C90: ='Planning S1'!E36 -> 0 | D90: client 1 | E90: Mertert
E91: Wandre
E92: Feluy
E93: Wandre
B94: 11 - SCELLEMENT | D94: ROUGE | F94: SANS POMPE | H94: Poids : | J94: Poids total : | K94: Station | L94: Jours | M94: Heure | N94: Station | O94: Jours | P94: Heure | Q94: Station | R94: Jours | S94: Heure
A95: MATIN | B95: ='Planning S1'!$B38&"/ " &'Planning S1'!$B39 -> JB6815/ LD6454 | C95: ='Planning S1'!E38 -> 0 | D95: client 1 | E95: Mertert
E96: Mertert
E97: Wandre
E98: Wandre
A99: A-MIDI | C99: ='Planning S1'!E39 -> 0 | D99: client 1 | E99: Mertert
E100: Wandre
E101: Feluy
E102: Wandre
B103: Reserve | D103: ROUGE | F103: SANS POMPE | H103: Poids : | J103: Poids total : | K103: Station | L103: Jours | M103: Heure | N103: Station | O103: Jours | P103: Heure | Q103: Station | R103: Jours | S103: Heure
A104: MATIN | B104: ='Planning S1'!$B41&"/ " &'Planning S1'!$B42 -> / | C104: ='Planning S1'!E41 -> 0 | D104: client 1 | E104: Mertert
E105: Mertert
E106: Wandre
E107: Wandre
A108: A-MIDI | C108: ='Planning S1'!E42 -> 0 | D108: client 1 | E108: Mertert
E109: Feluy
E110: Wandre
E111: Wandre
A112: Wandre | B112: 12 - BICUVE | D112: ROUGE | F112: SANS POMPE | H112: Poids : | J112: Poids total : | K112: Station | L112: Jours | M112: Heure | N112: Station | O112: Jours | P112: Heure | Q112: Station | R112: Jours | S112: Heure
A113: MATIN | B113: ='Planning S1'!$B45&"/ " &'Planning S1'!$B46 -> TS9967/ LD6454 | C113: ='Planning S1'!E45 -> 0 | D113: client 1 | E113: Mertert | I113: 38000 | K113: SAUERTAL | N113: SAUERTAL | Q113: SAUERTAL
E114: Wandre | I114: 38000 | K114: SAUERTAL | N114: SAUERTAL | Q114: SAUERTAL
A115: A-MIDI | C115: ='Planning S1'!E46 -> 0 | D115: client 1 | E115: Mertert | I115: 38000 | K115: SAUERTAL | N115: SAUERTAL | Q115: SAUERTAL
E116: Wandre | I116: 38000 | K116: SAUERTAL | N116: SAUERTAL | Q116: SAUERTAL
A117: SOIR | C117: ='Planning S1'!E47 -> 0 | D117: client 1 | E117: Mertert | I117: 38000 | K117: SAUERTAL | N117: SAUERTAL | Q117: SAUERTAL
E118: Wandre | I118: 38000 | K118: SAUERTAL | N118: SAUERTAL | Q118: SAUERTAL
B119: 13 - BICUVE | D119: ROUGE | F119: SANS POMPE | H119: Poids : | J119: Poids total : | K119: Station | L119: Jours | M119: Heure | N119: Station | O119: Jours | P119: Heure | Q119: Station | R119: Jours | S119: Heure
A120: MATIN | B120: ='Planning S1'!$B49&"/ " &'Planning S1'!$B50 -> JB6815/ LD6454 | C120: ='Planning S1'!E49 -> 0 | D120: client 1 | E120: Mertert | I120: 38000 | K120: SAUERTAL | N120: SAUERTAL | Q120: SAUERTAL
E121: Wandre | I121: 38000 | K121: SAUERTAL | N121: SAUERTAL | Q121: SAUERTAL
A122: A-MIDI | C122: ='Planning S1'!E50 -> 0 | D122: client 1 | E122: Mertert | I122: 38000 | K122: SAUERTAL | N122: SAUERTAL | Q122: SAUERTAL
E123: Wandre | I123: 38000 | K123: SAUERTAL | N123: SAUERTAL | Q123: SAUERTAL
A124: SOIR | C124: ='Planning S1'!E51 -> 0 | D124: client 1 | E124: Mertert | I124: 38000 | K124: SAUERTAL | N124: SAUERTAL | Q124: SAUERTAL
E125: Wandre | I125: 38000 | K125: SAUERTAL | N125: SAUERTAL | Q125: SAUERTAL
A126: Bastogne | B126: 14 - BARTECH | D126: ROUGE | F126: SANS POMPE | H126: Poids : | J126: Poids total : | K126: Station | L126: Jours | M126: Heure | N126: Station | O126: Jours | P126: Heure | Q126: Station | R126: Jours | S126: Heure
A127: MATIN | B127: ='Planning S1'!$B53&"/ " &'Planning S1'!$B54 -> JB6815/ LD6454 | C127: ='Planning S1'!E53 -> 0 | D127: client 1 | E127: Mertert
E128: Mertert
E129: Wandre
E130: Wandre
A131: A-MIDI | C131: ='Planning S1'!E54 -> 0 | D131: client 1 | E131: Mertert
E132: Wandre
E133: Feluy
E134: Wandre

Sheet Pla J+1
B1: Client 1 | E1: 5 | F1: DATE : | G1: =Q1+1 -> 2016-01-22 | Q1: =TODAY( ) -> 2016-01-21
B2: Camion | C2: CHAUFFEURS | D2: CLIENT | E2: DEPÔTS | F2: PRODUITS | K2: LIVRAISONS
B3: Citerne | F3: EXCELLIUM | G3: EURO 95 | H3: S+ 98 EXC | I3: DIESEL | J3: CHAUF. | K3: STATION 1 | N3: STATION 2 | Q3: STATION 3
A4: Windhoff | B4: 1 - SCELLEMENT | D4: ROUGE | F4: SANS POMPE | H4: Poids : | J4: Poids total : | K4: Station | L4: Jours | M4: Heure | N4: Station | O4: Jours | P4: Heure | Q4: Station | R4: Jours | S4: Heure
A5: MATIN | B5: ='Planning S1'!B8&" / " &'Planning S1'!B9 -> JB6815 / LD6454 | D5: client 1 | E5: Wandre
E6: Mertert
E7: Mertert
E8: Feluy
A9: A-MIDI | D9: client 1 | E9: Mertert
E10: Mertert
E11: Mertert
E12: Mertert
B13: 2 - COMPTEUR | D13: ROUGE | F13: SANS POMPE | H13: Poids : | J13: Poids total : | K13: Station | L13: Jours | M13: Heure | N13: Station | O13: Jours | P13: Heure | Q13: Station | R13: Jours | S13: Heure
A14: MATIN | B14: ='Planning S1'!$B11&"/ " &'Planning S1'!$B12 -> JB6816 / EW6499 | D14: client 1 | E14: Mertert
E15: Mertert
E16: Mertert
E17: Mertert
A18: A-MIDI | D18: client 1 | E18: Mertert
E19: Mertert
E20: Mertert
E21: Mertert
B22: 3 - COMPTEUR | D22: ROUGE | F22: SANS POMPE | H22: Poids : | J22: Poids total : | K22: Station | L22: Jours | M22: Heure | N22: Station | O22: Jours | P22: Heure | Q22: Station | R22: Jours | S22: Heure
A23: MATIN | B23: ='Planning S1'!$B14&"/ " &'Planning S1'!$B15 -> JB6815/ LD6454 | D23: client 1 | E23: Mertert
E24: Mertert
E25: Mertert
E26: Mertert
A27: A-MIDI | D27: client 1 | E27: Mertert
E28: Mertert
E29: Mertert
E30: Mertert
B31: 4 - COMPTEUR | D31: ROUGE | F31: SANS POMPE | H31: Poids : | J31: Poids total : | K31: Station | L31: Jours | M31: Heure | N31: Station | O31: Jours | P31: Heure | Q31: Station | R31: Jours | S31: Heure
A32: MATIN | B32: ='Planning S1'!$B17&"/ " &'Planning S1'!$B18 -> JB6817 / LD6454 | D32: client 1 | E32: Mertert
E33: Mertert
E34: Mertert
E35: Mertert
A36: A-MIDI | D36: client 1 | E36: Mertert
E37: Wandre
E38: Feluy
E39: Mertert
B40: 5 - COMPTEUR | D40: ROUGE | F40: SANS POMPE | H40: Poids : | J40: Poids total : | K40: Station | L40: Jours | M40: Heure | N40: Station | O40: Jours | P40: Heure | Q40: Station | R40: Jours | S40: Heure
A41: MATIN | B41: ='Planning S1'!$B20&"/ " &'Planning S1'!$B21 -> JB6815/ LD6454 | D41: client 1 | E41: Mertert
E42: Mertert
E43: Mertert
E44: Mertert
A45: A-MIDI | D45: client 1 | E45: Mertert
E46: Wandre
E47: Feluy
E48: Wandre
B49: 6 - SCELLEMENT | D49: ROUGE | F49: SANS POMPE | H49: Poids : | J49: Poids total : | K49: Station | L49: Jours | M49: Heure | N49: Station | O49: Jours | P49: Heure | Q49: Station | R49: Jours | S49: Heure
A50: MATIN | B50: ='Planning S1'!$B23&"/ " &'Planning S1'!$B24 -> QH7484/ | D50: client 1 | E50: Mertert
E51: Mertert
E52: Mertert
E53: Wandre
A54: A-MIDI | D54: client 1 | E54: Mertert
E55: Wandre
E56: Feluy
E57: Wandre
B58: 7 - SCELLEMENT | D58: ROUGE | F58: SANS POMPE | H58: Poids : | J58: Poids total : | K58: Station | L58: Jours | M58: Heure | N58: Station | O58: Jours | P58: Heure | Q58: Station | R58: Jours | S58: Heure
A59: MATIN | B59: ='Planning S1'!$B26&"/ " &'Planning S1'!$B27 -> JB6815/ LD6454 | D59: client 1 | E59: Mertert
E60: Mertert
E61: Mertert
E62: Wandre
A63: A-MIDI | D63: client 1 | E63: Mertert
E64: Wandre
E65: Feluy
E66: Wandre
B67: 8 - BARTECH | D67: ROUGE | F67: SANS POMPE | H67: Poids : | J67: Poids total : | K67: Station | L67: Jours | M67: Heure | N67: Station | O67: Jours | P67: Heure | Q67: Station | R67: Jours | S67: Heure
A68: MATIN | B68: ='Planning S1'!$B29&"/ " &'Planning S1'!$B30 -> JB6815/ LD6454 | D68: client 1 | E68: Mertert
E69: Mertert
E70: Mertert
E71: Wandre
A72: A-MIDI | D72: client 1 | E72: Mertert
E73: Wandre
E74: Feluy
E75: Wandre
B76: 9 - BARTECH | D76: ROUGE | F76: SANS POMPE | H76: Poids : | J76: Poids total : | K76: Station | L76: Jours | M76: Heure | N76: Station | O76: Jours | P76: Heure | Q76: Station | R76: Jours | S76: Heure
A77: MATIN | B77: ='Planning S1'!$B32&"/ " &'Planning S1'!$B33 -> JB6815/ LD6454 | D77: client 1 | E77: Mertert
E78: Mertert
E79: Mertert
E80: Wandre
A81: A-MIDI | D81: client 1 | E81: Mertert
E82: Wandre
E83: Feluy
E84: Wandre
B85: 10 - SCELLEMENT | D85: ROUGE | F85: SANS POMPE | H85: Poids : | J85: Poids total : | K85: Station | L85: Jours | M85: Heure | N85: Station | O85: Jours | P85: Heure | Q85: Station | R85: Jours | S85: Heure
A86: MATIN | B86: ='Planning S1'!$B35&"/ " &'Planning S1'!$B36 -> JB6815/ LD6454 | D86: client 1 | E86: Mertert
E87: Mertert
E88: Wandre
E89: Wandre
A90: A-MIDI | D90: client 1 | E90: Mertert
E91: Wandre
E92: Feluy
E93: Wandre
B94: 11 - SCELLEMENT | D94: ROUGE | F94: SANS POMPE | H94: Poids : | J94: Poids total : | K94: Station | L94: Jours | M94: Heure | N94: Station | O94: Jours | P94: Heure | Q94: Station | R94: Jours | S94: Heure
A95: MATIN | B95: ='Planning S1'!$B38&"/ " &'Planning S1'!$B39 -> JB6815/ LD6454 | D95: client 1 | E95: Mertert
E96: Mertert
E97: Wandre
E98: Wandre
A99: A-MIDI | D99: client 1 | E99: Mertert
E100: Wandre
E101: Feluy
E102: Wandre
B103: Reserve | D103: ROUGE | F103: SANS POMPE | H103: Poids : | J103: Poids total : | K103: Station | L103: Jours | M103: Heure | N103: Station | O103: Jours | P103: Heure | Q103: Station | R103: Jours | S103: Heure
A104: MATIN | B104: ='Planning S1'!$B41&"/ " &'Planning S1'!$B42 -> / | D104: client 1 | E104: Mertert
E105: Mertert
E106: Wandre
E107: Wandre
A108: A-MIDI | D108: client 1 | E108: Mertert
E109: Feluy
E110: Wandre
E111: Wandre
A112: Wandre | B112: 12 - BICUVE | D112: ROUGE | F112: SANS POMPE | H112: Poids : | J112: Poids total : | K112: Station | L112: Jours | M112: Heure | N112: Station | O112: Jours | P112: Heure | Q112: Station | R112: Jours | S112: Heure
A113: MATIN | B113: ='Planning S1'!$B45&"/ " &'Planning S1'!$B46 -> TS9967/ LD6454 | D113: client 1 | E113: Mertert | I113: 38000 | K113: SAUERTAL | N113: SAUERTAL | Q113: SAUERTAL
E114: Wandre | I114: 38000 | K114: SAUERTAL | N114: SAUERTAL | Q114: SAUERTAL
A115: A-MIDI | D115: client 1 | E115: Mertert | I115: 38000 | K115: SAUERTAL | N115: SAUERTAL | Q115: SAUERTAL
E116: Wandre | I116: 38000 | K116: SAUERTAL | N116: SAUERTAL | Q116: SAUERTAL
A117: SOIR | D117: client 1 | E117: Mertert | I117: 38000 | K117: SAUERTAL | N117: SAUERTAL | Q117: SAUERTAL
E118: Wandre | I118: 38000 | K118: SAUERTAL | N118: SAUERTAL | Q118: SAUERTAL
B119: 13 - BICUVE | D119: ROUGE | F119: SANS POMPE | H119: Poids : | J119: Poids total : | K119: Station | L119: Jours | M119: Heure | N119: Station | O119: Jours | P119: Heure | Q119: Station | R119: Jours | S119: Heure
A120: MATIN | B120: ='Planning S1'!$B49&"/ " &'Planning S1'!$B50 -> JB6815/ LD6454 | D120: client 1 | E120: Mertert | I120: 38000 | K120: SAUERTAL | N120: SAUERTAL | Q120: SAUERTAL
E121: Wandre | I121: 38000 | K121: SAUERTAL | N121: SAUERTAL | Q121: SAUERTAL
A122: A-MIDI | D122: client 1 | E122: Mertert | I122: 38000 | K122: SAUERTAL | N122: SAUERTAL | Q122: SAUERTAL
E123: Wandre | I123: 38000 | K123: SAUERTAL | N123: SAUERTAL | Q123: SAUERTAL
A124: SOIR | D124: client 1 | E124: Mertert | I124: 38000 | K124: SAUERTAL | N124: SAUERTAL | Q124: SAUERTAL
E125: Wandre | I125: 38000 | K125: SAUERTAL | N125: SAUERTAL | Q125: SAUERTAL
A126: Bastogne | B126: 14 - BARTECH | D126: ROUGE | F126: SANS POMPE | H126: Poids : | J126: Poids total : | K126: Station | L126: Jours | M126: Heure | N126: Station | O126: Jours | P126: Heure | Q126: Station | R126: Jours | S126: Heure
A127: MATIN | B127: ='Planning S1'!$B53&"/ " &'Planning S1'!$B54 -> JB6815/ LD6454 | D127: client 1 | E127: Mertert
E128: Mertert
E129: Wandre
E130: Wandre
A131: A-MIDI | D131: client 1 | E131: Mertert
E132: Wandre
E133: Feluy
E134: Wandre

Sheet INFO
A1: Camion | B1: Citerne | D1: Depot
A2: JB6815 | B2: LD6454 | D2: Wandre
A3: JB6816 | B3: EW6499 | D3: Mertert
A4: JB6817 | B4: DK5816 | D4: Feluy
A5: QH7484 | B5: GG5834 | D5: Q8-Bertr.
A6: TS9964 | B6: CT9330 | D6: Shell-Bert.
A7: TS9965 | B7: LD6454
A8: TS9967 | B8: CT9929
A9: QH7483 | B9: DK5815
A10: QH7485 | B10: CT9328
A11: JG8885 | B11: LD6453
A12: JB6822 | B12: GG5835
A13: TS9968 | B13: GG5838
A14: TS9963 | B14: GG5837
A15: JB6818 | B15: CT9331
A16: LM6627 | B16: R9950
B17: GG5836
B18: Q6213
B19: S5688
B20: CT9327

Sheet HESPERANGE
B1: Hesperange | E1: ok
D2: Diesiel | H2: 95 | L2: Diesiel excellium | P2: 98 excellium
B3: Citerne | C3: 14500 | D3: LUNDI | F3: Citerne | G3: 10000 | J3: Citerne | K3: 10000 | N3: Citerne | O3: 10000
B4: Vente / H | C4: 350 | F4: Vente / H | G4: 150 | J4: Vente / H | K4: 15 | N4: Vente / H | O4: 15
C5: Stock | D5: Commande | E5: Livraison | G5: Stock | H5: Commande | I5: Livraison | K5: Stock | L5: Commande | M5: Livraison | O5: Stock | P5: Commande | Q5: Livraison
B6: 6h | C6: 14500 | F6: 6h | G6: 20000 | J6: 6h | K6: 8000 | N6: 6h | O6: 8000
B7: 7h | C7: =SUM(C6,-C4)+E6 -> 14150 | D7: =SUM(C3-C7) -> 350 | F7: 7h | G7: =SUM(G6,-G4)+I6 -> 19850 | H7: =SUM(G3-G7) -> -9850 | J7: 7h | K7: =SUM(K6,-K4)+M6 -> 7985 | L7: =SUM(K3-K7) -> 2015 | N7: 7h | O7: =SUM(O6,-O4)+Q6 -> 7985 | P7: =SUM(O3-O7) -> 2015
B8: 8h | C8: =SUM(C7,-C4)+E7 -> 13800 | D8: =SUM(C3-C8) -> 700 | F8: 8h | G8: =SUM(G7,-G4)+I7 -> 19700 | H8: =SUM(G3-G8) -> -9700 | J8: 8h | K8: =SUM(K7,-K4)+M7 -> 7970 | L8: =SUM(K3-K8) -> 2030 | N8: 8h | O8: =SUM(O7,-O4)+Q7 -> 7970 | P8: =SUM(O3-O8) -> 2030
B9: 9h | C9: =SUM(C8,-C4)+E8 -> 13450 | D9: =SUM(C3-C9) -> 1050 | F9: 9h | G9: =SUM(G8,-G4)+I8 -> 19550 | H9: =SUM(G3-G9) -> -9550 | J9: 9h | K9: =SUM(K8,-K4)+M8 -> 7955 | L9: =SUM(K3-K9) -> 2045 | N9: 9h | O9: =SUM(O8,-O4)+Q8 -> 7955 | P9: =SUM(O3-O9) -> 2045
B10: 10h | C10: =SUM(C9-C4+E9) -> 13100 | D10: =SUM(C3-C10) -> 1400 | F10: 10h | G10: =SUM(G9-G4+I9) -> 19400 | H10: =SUM(G3-G10) -> -9400 | J10: 10h | K10: =SUM(K9-K4+M9) -> 7940 | L10: =SUM(K3-K10) -> 2060 | N10: 10h | O10: =SUM(O9-O4+Q9) -> 7940 | P10: =SUM(O3-O10) -> 2060
B11: 11h | C11: =SUM(C10-C4+E10) -> 12750 | D11: =SUM(C3-C11) -> 1750 | F11: 11h | G11: =SUM(G10-G4+I10) -> 19250 | H11: =SUM(G3-G11) -> -9250 | J11: 11h | K11: =SUM(K10-K4+M10) -> 7925 | L11: =SUM(K3-K11) -> 2075 | N11: 11h | O11: =SUM(O10-O4+Q10) -> 7925 | P11: =SUM(O3-O11) -> 2075
B12: 12h | C12: =SUM(C11,-C4)+E11 -> 12400 | D12: =SUM(C3-C12) -> 2100 | F12: 12h | G12: =SUM(G11,-G4)+I11 -> 19100 | H12: =SUM(G3-G12) -> -9100 | J12: 12h | K12: =SUM(K11,-K4)+M11 -> 7910 | L12: =SUM(K3-K12) -> 2090 | N12: 12h | O12: =SUM(O11,-O4)+Q11 -> 7910 | P12: =SUM(O3-O12) -> 2090
B13: 13h | C13: =SUM(C12,-C4)+E12 -> 12050 | D13: =SUM(C3-C13) -> 2450 | F13: 13h | G13: =SUM(G12,-G4)+I12 -> 18950 | H13: =SUM(G3-G13) -> -8950 | J13: 13h | K13: =SUM(K12,-K4)+M12 -> 7895 | L13: =SUM(K3-K13) -> 2105 | N13: 13h | O13: =SUM(O12,-O4)+Q12 -> 7895 | P13: =SUM(O3-O13) -> 2105
B14: 14h | C14: =SUM(C13,-C4)+E13 -> 11700 | D14: =SUM(C3-C14) -> 2800 | F14: 14h | G14: =SUM(G13,-G4)+I13 -> 18800 | H14: =SUM(G3-G14) -> -8800 | J14: 14h | K14: =SUM(K13,-K4)+M13 -> 7880 | L14: =SUM(K3-K14) -> 2120 | N14: 14h | O14: =SUM(O13,-O4)+Q13 -> 7880 | P14: =SUM(O3-O14) -> 2120
B15: 15h | C15: =SUM(C14-C4+E14) -> 11350 | D15: =SUM(C3-C15) -> 3150 | F15: 15h | G15: =SUM(G14,-G4)+I14 -> 18650 | H15: =SUM(G3-G15) -> -8650 | J15: 15h | K15: =SUM(K14,-K4)+M14 -> 7865 | L15: =SUM(K3-K15) -> 2135 | N15: 15h | O15: =SUM(O14,-O4)+Q14 -> 7865 | P15: =SUM(O3-O15) -> 2135
B16: 16h | C16: =SUM(C15,-C4)+E15 -> 11000 | D16: =SUM(C3-C16) -> 3500 | F16: 16h | G16: =SUM(G15,-G4)+I15 -> 18500 | H16: =SUM(G3-G16) -> -8500 | J16: 16h | K16: =SUM(K15,-K4)+M15 -> 7850 | L16: =SUM(K3-K16) -> 2150 | N16: 16h | O16: =SUM(O15,-O4)+Q15 -> 7850 | P16: =SUM(O3-O16) -> 2150
B17: 17h | C17: =SUM(C16-C4)+E16 -> 10650 | D17: =SUM(C3-C17) -> 3850 | F17: 17h | G17: =SUM(G16-G4)+I16 -> 18350 | H17: =SUM(G3-G17) -> -8350 | J17: 17h | K17: =SUM(K16-K4)+M16 -> 7835 | L17: =SUM(K3-K17) -> 2165 | N17: 17h | O17: =SUM(O16-O4)+Q16 -> 7835 | P17: =SUM(O3-O17) -> 2165
B18: 18h | C18: =SUM(C17-C4)+E17 -> 10300 | D18: =SUM(C3-C18) -> 4200 | F18: 18h | G18: =SUM(G17-G4)+I17 -> 18200 | H18: =SUM(G3-G18) -> -8200 | J18: 18h | K18: =SUM(K17-K4)+M17 -> 7820 | L18: =SUM(K3-K18) -> 2180 | N18: 18h | O18: =SUM(O17-O4)+Q17 -> 7820 | P18: =SUM(O3-O18) -> 2180
B19: 19h | C19: =SUM(C18-C4)+E18 -> 9950 | D19: =SUM(C3-C19) -> 4550 | F19: 19h | G19: =SUM(G18-G4)+I18 -> 18050 | H19: =SUM(G3-G19) -> -8050 | J19: 19h | K19: =SUM(K18-K4)+M18 -> 7805 | L19: =SUM(K3-K19) -> 2195 | N19: 19h | O19: =SUM(O18-O4)+Q18 -> 7805 | P19: =SUM(O3-O19) -> 2195
B20: 20h | C20: =SUM(C19-C4)+E19 -> 9600 | D20: =SUM(C3-C20) -> 4900 | F20: 20h | G20: =SUM(G19-G4)+I19 -> 17900 | H20: =SUM(G3-G20) -> -7900 | J20: 20h | K20: =SUM(K19-K4)+M19 -> 7790 | L20: =SUM(K3-K20) -> 2210 | N20: 20h | O20: =SUM(O19-O4)+Q19 -> 7790 | P20: =SUM(O3-O20) -> 2210
B21: 21h | C21: =SUM(C20,-C4)+E20 -> 9250 | D21: =SUM(C3-C21) -> 5250 | F21: 21h | G21: =SUM(G20,-G4)+I20 -> 17750 | H21: =SUM(G3-G21) -> -7750 | J21: 21h | K21: =SUM(K20,-K4)+M20 -> 7775 | L21: =SUM(K3-K21) -> 2225 | N21: 21h | O21: =SUM(O20,-O4)+Q20 -> 7775 | P21: =SUM(O3-O21) -> 2225
B22: 22h | C22: =SUM(C21-C4)+E21 -> 8900 | D22: =SUM(C3-C22) -> 5600 | F22: 22h | G22: =SUM(G21-G4)+I21 -> 17600 | H22: =SUM(G3-G22) -> -7600 | J22: 22h | K22: =SUM(K21-K4)+M21 -> 7760 | L22: =SUM(K3-K22) -> 2240 | N22: 22h | O22: =SUM(O21-O4)+Q21 -> 7760 | P22: =SUM(O3-O22) -> 2240
D23: Diesiel | H23: 95 | L23: Diesiel excellium | P23: 98 excellium
B24: Citerne | C24: =SUM(C3) -> 14500 | D24: MARDI | F24: Citerne | G24: =SUM(G3) -> 10000 | J24: Citerne | K24: =SUM(K3) -> 10000 | N24: Citerne | O24: =SUM(O3) -> 10000
B25: Vente / H | C25: =SUM(C4) -> 350 | F25: Vente / H | G25: =SUM(G4) -> 150 | J25: Vente / H | K25: =SUM(K4) -> 15 | N25: Vente / H | O25: =SUM(O4) -> 15
C26: Stock | D26: Commande | E26: Livraison | G26: Stock | H26: Commande | I26: Livraison | K26: Stock | L26: Commande | M26: Livraison | O26: Stock | P26: Commande | Q26: Livraison
B27: 6h | C27: =SUM(C22) -> 8900 | F27: 6h | G27: =SUM(G22) -> 17600 | J27: 6h | K27: =SUM(K22) -> 7760 | N27: 6h | O27: =SUM(O22) -> 7760
B28: 7h | C28: =SUM(C27,-C25)+E27 -> 8550 | D28: =SUM(C24-C28) -> 5950 | F28: 7h | G28: =SUM(G27,-G25)+I27 -> 17450 | H28: =SUM(G24-G28) -> -7450 | J28: 7h | K28: =SUM(K27,-K25)+M27 -> 7745 | L28: =SUM(K24-K28) -> 2255 | N28: 7h | O28: =SUM(O27,-O25)+Q27 -> 7745 | P28: =SUM(O24-O28) -> 2255
B29: 8h | C29: =SUM(C28,-C25)+E28 -> 8200 | D29: =SUM(C24-C29) -> 6300 | F29: 8h | G29: =SUM(G28,-G25)+I28 -> 17300 | H29: =SUM(G24-G29) -> -7300 | J29: 8h | K29: =SUM(K28,-K25)+M28 -> 7730 | L29: =SUM(K24-K29) -> 2270 | N29: 8h | O29: =SUM(O28,-O25)+Q28 -> 7730 | P29: =SUM(O24-O29) -> 2270
B30: 9h | C30: =SUM(C29,-C25)+E29 -> 7850 | D30: =SUM(C24-C30) -> 6650 | F30: 9h | G30: =SUM(G29,-G25)+I29 -> 17150 | H30: =SUM(G24-G30) -> -7150 | J30: 9h | K30: =SUM(K29,-K25)+M29 -> 7715 | L30: =SUM(K24-K30) -> 2285 | N30: 9h | O30: =SUM(O29,-O25)+Q29 -> 7715 | P30: =SUM(O24-O30) -> 2285
B31: 10h | C31: =SUM(C30-C25+E30) -> 7500 | D31: =SUM(C24-C31) -> 7000 | F31: 10h | G31: =SUM(G30-G25+I30) -> 17000 | H31: =SUM(G24-G31) -> -7000 | J31: 10h | K31: =SUM(K30-K25+M30) -> 7700 | L31: =SUM(K24-K31) -> 2300 | N31: 10h | O31: =SUM(O30-O25+Q30) -> 7700 | P31: =SUM(O24-O31) -> 2300
B32: 11h | C32: =SUM(C31-C25+E31) -> 7150 | D32: =SUM(C24-C32) -> 7350 | F32: 11h | G32: =SUM(G31-G25+I31) -> 16850 | H32: =SUM(G24-G32) -> -6850 | J32: 11h | K32: =SUM(K31-K25+M31) -> 7685 | L32: =SUM(K24-K32) -> 2315 | N32: 11h | O32: =SUM(O31-O25+Q31) -> 7685 | P32: =SUM(O24-O32) -> 2315
B33: 12h | C33: =SUM(C32,-C25)+E32 -> 6800 | D33: =SUM(C24-C33) -> 7700 | F33: 12h | G33: =SUM(G32,-G25)+I32 -> 16700 | H33: =SUM(G24-G33) -> -6700 | J33: 12h | K33: =SUM(K32,-K25)+M32 -> 7670 | L33: =SUM(K24-K33) -> 2330 | N33: 12h | O33: =SUM(O32,-O25)+Q32 -> 7670 | P33: =SUM(O24-O33) -> 2330
B34: 13h | C34: =SUM(C33,-C25)+E33 -> 6450 | D34: =SUM(C24-C34) -> 8050 | F34: 13h | G34: =SUM(G33,-G25)+I33 -> 16550 | H34: =SUM(G24-G34) -> -6550 | J34: 13h | K34: =SUM(K33,-K25)+M33 -> 7655 | L34: =SUM(K24-K34) -> 2345 | N34: 13h | O34: =SUM(O33,-O25)+Q33 -> 7655 | P34: =SUM(O24-O34) -> 2345
B35: 14h | C35: =SUM(C34,-C25)+E34 -> 6100 | D35: =SUM(C24-C35) -> 8400 | F35: 14h | G35: =SUM(G34,-G25)+I34 -> 16400 | H35: =SUM(G24-G35) -> -6400 | J35: 14h | K35: =SUM(K34,-K25)+M34 -> 7640 | L35: =SUM(K24-K35) -> 2360 | N35: 14h | O35: =SUM(O34,-O25)+Q34 -> 7640 | P35: =SUM(O24-O35) -> 2360
B36: 15h | C36: =SUM(C35,-C25)+E35 -> 5750 | D36: =SUM(C24-C36) -> 8750 | F36: 15h | G36: =SUM(G35,-G25)+I35 -> 16250 | H36: =SUM(G24-G36) -> -6250 | J36: 15h | K36: =SUM(K35,-K25)+M35 -> 7625 | L36: =SUM(K24-K36) -> 2375 | N36: 15h | O36: =SUM(O35,-O25)+Q35 -> 7625 | P36: =SUM(O24-O36) -> 2375
B37: 16h | C37: =SUM(C36,-C25)+E36 -> 5400 | D37: =SUM(C24-C37) -> 9100 | F37: 16h | G37: =SUM(G36,-G25)+I36 -> 16100 | H37: =SUM(G24-G37) -> -6100 | J37: 16h | K37: =SUM(K36,-K25)+M36 -> 7610 | L37: =SUM(K24-K37) -> 2390 | N37: 16h | O37: =SUM(O36,-O25)+Q36 -> 7610 | P37: =SUM(O24-O37) -> 2390
B38: 17h | C38: =SUM(C37-C25)+E37 -> 5050 | D38: =SUM(C24-C38) -> 9450 | F38: 17h | G38: =SUM(G37-G25)+I37 -> 15950 | H38: =SUM(G24-G38) -> -5950 | J38: 17h | K38: =SUM(K37-K25)+M37 -> 7595 | L38: =SUM(K24-K38) -> 2405 | N38: 17h | O38: =SUM(O37-O25)+Q37 -> 7595 | P38: =SUM(O24-O38) -> 2405
B39: 18h | C39: =SUM(C38-C25)+E38 -> 4700 | D39: =SUM(C24-C39) -> 9800 | F39: 18h | G39: =SUM(G38-G25)+I38 -> 15800 | H39: =SUM(G24-G39) -> -5800 | J39: 18h | K39: =SUM(K38-K25)+M38 -> 7580 | L39: =SUM(K24-K39) -> 2420 | N39: 18h | O39: =SUM(O38-O25)+Q38 -> 7580 | P39: =SUM(O24-O39) -> 2420
B40: 19h | C40: =SUM(C39-C25)+E39 -> 4350 | D40: =SUM(C24-C40) -> 10150 | F40: 19h | G40: =SUM(G39-G25)+I39 -> 15650 | H40: =SUM(G24-G40) -> -5650 | J40: 19h | K40: =SUM(K39-K25)+M39 -> 7565 | L40: =SUM(K24-K40) -> 2435 | N40: 19h | O40: =SUM(O39-O25)+Q39 -> 7565 | P40: =SUM(O24-O40) -> 2435
B41: 20h | C41: =SUM(C40-C25)+E40 -> 4000 | D41: =SUM(C24-C41) -> 10500 | F41: 20h | G41: =SUM(G40-G25)+I40 -> 15500 | H41: =SUM(G24-G41) -> -5500 | J41: 20h | K41: =SUM(K40-K25)+M40 -> 7550 | L41: =SUM(K24-K41) -> 2450 | N41: 20h | O41: =SUM(O40-O25)+Q40 -> 7550 | P41: =SUM(O24-O41) -> 2450
B42: 21h | C42: =SUM(C41,-C25)+E41 -> 3650 | D42: =SUM(C24-C42) -> 10850 | F42: 21h | G42: =SUM(G41,-G25)+I41 -> 15350 | H42: =SUM(G24-G42) -> -5350 | J42: 21h | K42: =SUM(K41,-K25)+M41 -> 7535 | L42: =SUM(K24-K42) -> 2465 | N42: 21h | O42: =SUM(O41,-O25)+Q41 -> 7535 | P42: =SUM(O24-O42) -> 2465
B43: 22h | C43: =SUM(C42-C25)+E42 -> 3300 | D43: =SUM(C24-C43) -> 11200 | F43: 22h | G43: =SUM(G42-G25)+I42 -> 15200 | H43: =SUM(G24-G43) -> -5200 | J43: 22h | K43: =SUM(K42-K25)+M42 -> 7520 | L43: =SUM(K24-K43) -> 2480 | N43: 22h | O43: =SUM(O42-O25)+Q42 -> 7520 | P43: =SUM(O24-O43) -> 2480
D44: Diesiel | H44: 95 | L44: Diesiel excellium | P44: 98 excellium
B45: Citerne | C45: =SUM(C24) -> 14500 | D45: MERCREDI | F45: Citerne | G45: =SUM(G24) -> 10000 | J45: Citerne | K45: =SUM(K24) -> 10000 | N45: Citerne | O45: =SUM(O24) -> 10000
B46: Vente / H | C46: =SUM(C25) -> 350 | F46: Vente / H | G46: =SUM(G25) -> 150 | J46: Vente / H | K46: =SUM(K25) -> 15 | N46: Vente / H | O46: =SUM(O25) -> 15
C47: Stock | D47: Commande | E47: Livraison | G47: Stock | H47: Commande | I47: Livraison | K47: Stock | L47: Commande | M47: Livraison | O47: Stock | P47: Commande | Q47: Livraison
B48: 6h | C48: =SUM(C43) -> 3300 | F48: 6h | G48: =SUM(G43) -> 15200 | J48: 6h | K48: =SUM(K43) -> 7520 | N48: 6h | O48: =SUM(O43) -> 7520
B49: 7h | C49: =SUM(C48,-C46)+E48 -> 2950 | D49: =SUM(C45-C49) -> 11550 | F49: 7h | G49: =SUM(G48,-G46)+I48 -> 15050 | H49: =SUM(G45-G49) -> -5050 | J49: 7h | K49: =SUM(K48,-K46)+M48 -> 7505 | L49: =SUM(K45-K49) -> 2495 | N49: 7h | O49: =SUM(O48,-O46)+Q48 -> 7505 | P49: =SUM(O45-O49) -> 2495
B50: 8h | C50: =SUM(C49,-C46)+E49 -> 2600 | D50: =SUM(C45-C50) -> 11900 | F50: 8h | G50: =SUM(G49,-G46)+I49 -> 14900 | H50: =SUM(G45-G50) -> -4900 | J50: 8h | K50: =SUM(K49,-K46)+M49 -> 7490 | L50: =SUM(K45-K50) -> 2510 | N50: 8h | O50: =SUM(O49,-O46)+Q49 -> 7490 | P50: =SUM(O45-O50) -> 2510
B51: 9h | C51: =SUM(C50,-C46)+E50 -> 2250 | D51: =SUM(C45-C51) -> 12250 | F51: 9h | G51: =SUM(G50,-G46)+I50 -> 14750 | H51: =SUM(G45-G51) -> -4750 | J51: 9h | K51: =SUM(K50,-K46)+M50 -> 7475 | L51: =SUM(K45-K51) -> 2525 | N51: 9h | O51: =SUM(O50,-O46)+Q50 -> 7475 | P51: =SUM(O45-O51) -> 2525
B52: 10h | C52: =SUM(C51-C46+E51) -> 1900 | D52: =SUM(C45-C52) -> 12600 | F52: 10h | G52: =SUM(G51-G46+I51) -> 14600 | H52: =SUM(G45-G52) -> -4600 | J52: 10h | K52: =SUM(K51-K46+M51) -> 7460 | L52: =SUM(K45-K52) -> 2540 | N52: 10h | O52: =SUM(O51-O46+Q51) -> 7460 | P52: =SUM(O45-O52) -> 2540
B53: 11h | C53: =SUM(C52-C46+E52) -> 1550 | D53: =SUM(C45-C53) -> 12950 | F53: 11h | G53: =SUM(G52-G46+I52) -> 14450 | H53: =SUM(G45-G53) -> -4450 | J53: 11h | K53: =SUM(K52-K46+M52) -> 7445 | L53: =SUM(K45-K53) -> 2555 | N53: 11h | O53: =SUM(O52-O46+Q52) -> 7445 | P53: =SUM(O45-O53) -> 2555
B54: 12h | C54: =SUM(C53,-C46)+E53 -> 1200 | D54: =SUM(C45-C54) -> 13300 | F54: 12h | G54: =SUM(G53,-G46)+I53 -> 14300 | H54: =SUM(G45-G54) -> -4300 | J54: 12h | K54: =SUM(K53,-K46)+M53 -> 7430 | L54: =SUM(K45-K54) -> 2570 | N54: 12h | O54: =SUM(O53,-O46)+Q53 -> 7430 | P54: =SUM(O45-O54) -> 2570
B55: 13h | C55: =SUM(C54,-C46)+E54 -> 850 | D55: =SUM(C45-C55) -> 13650 | F55: 13h | G55: =SUM(G54,-G46)+I54 -> 14150 | H55: =SUM(G45-G55) -> -4150 | J55: 13h | K55: =SUM(K54,-K46)+M54 -> 7415 | L55: =SUM(K45-K55) -> 2585 | N55: 13h | O55: =SUM(O54,-O46)+Q54 -> 7415 | P55: =SUM(O45-O55) -> 2585
B56: 14h | C56: =SUM(C55,-C46)+E55 -> 500 | D56: =SUM(C45-C56) -> 14000 | F56: 14h | G56: =SUM(G55,-G46)+I55 -> 14000 | H56: =SUM(G45-G56) -> -4000 | J56: 14h | K56: =SUM(K55,-K46)+M55 -> 7400 | L56: =SUM(K45-K56) -> 2600 | N56: 14h | O56: =SUM(O55,-O46)+Q55 -> 7400 | P56: =SUM(O45-O56) -> 2600
B57: 15h | C57: =SUM(C56,-C46)+E56 -> 150 | D57: =SUM(C45-C57) -> 14350 | F57: 15h | G57: =SUM(G56,-G46)+I56 -> 13850 | H57: =SUM(G45-G57) -> -3850 | J57: 15h | K57: =SUM(K56,-K46)+M56 -> 7385 | L57: =SUM(K45-K57) -> 2615 | N57: 15h | O57: =SUM(O56,-O46)+Q56 -> 7385 | P57: =SUM(O45-O57) -> 2615
B58: 16h | C58: =SUM(C57,-C46)+E57 -> -200 | D58: =SUM(C45-C58) -> 14700 | F58: 16h | G58: =SUM(G57,-G46)+I57 -> 13700 | H58: =SUM(G45-G58) -> -3700 | J58: 16h | K58: =SUM(K57,-K46)+M57 -> 7370 | L58: =SUM(K45-K58) -> 2630 | N58: 16h | O58: =SUM(O57,-O46)+Q57 -> 7370 | P58: =SUM(O45-O58) -> 2630
B59: 17h | C59: =SUM(C58-C46)+E58 -> -550 | D59: =SUM(C45-C59) -> 15050 | F59: 17h | G59: =SUM(G58-G46)+I58 -> 13550 | H59: =SUM(G45-G59) -> -3550 | J59: 17h | K59: =SUM(K58-K46)+M58 -> 7355 | L59: =SUM(K45-K59) -> 2645 | N59: 17h | O59: =SUM(O58-O46)+Q58 -> 7355 | P59: =SUM(O45-O59) -> 2645
B60: 18h | C60: =SUM(C59-C46)+E59 -> -900 | D60: =SUM(C45-C60) -> 15400 | F60: 18h | G60: =SUM(G59-G46)+I59 -> 13400 | H60: =SUM(G45-G60) -> -3400 | J60: 18h | K60: =SUM(K59-K46)+M59 -> 7340 | L60: =SUM(K45-K60) -> 2660 | N60: 18h | O60: =SUM(O59-O46)+Q59 -> 7340 | P60: =SUM(O45-O60) -> 2660
B61: 19h | C61: =SUM(C60-C46)+E60 -> -1250 | D61: =SUM(C45-C61) -> 15750 | F61: 19h | G61: =SUM(G60-G46)+I60 -> 13250 | H61: =SUM(G45-G61) -> -3250 | J61: 19h | K61: =SUM(K60-K46)+M60 -> 7325 | L61: =SUM(K45-K61) -> 2675 | N61: 19h | O61: =SUM(O60-O46)+Q60 -> 7325 | P61: =SUM(O45-O61) -> 2675
B62: 20h | C62: =SUM(C61-C46)+E61 -> -1600 | D62: =SUM(C45-C62) -> 16100 | F62: 20h | G62: =SUM(G61-G46)+I61 -> 13100 | H62: =SUM(G45-G62) -> -3100 | J62: 20h | K62: =SUM(K61-K46)+M61 -> 7310 | L62: =SUM(K45-K62) -> 2690 | N62: 20h | O62: =SUM(O61-O46)+Q61 -> 7310 | P62: =SUM(O45-O62) -> 2690
B63: 21h | C63: =SUM(C62,-C46)+E62 -> -1950 | D63: =SUM(C45-C63) -> 16450 | F63: 21h | G63: =SUM(G62,-G46)+I62 -> 12950 | H63: =SUM(G45-G63) -> -2950 | J63: 21h | K63: =SUM(K62,-K46)+M62 -> 7295 | L63: =SUM(K45-K63) -> 2705 | N63: 21h | O63: =SUM(O62,-O46)+Q62 -> 7295 | P63: =SUM(O45-O63) -> 2705
B64: 22h | C64: =SUM(C63-C46)+E63 -> -2300 | D64: =SUM(C45-C64) -> 16800 | F64: 22h | G64: =SUM(G63-G46)+I63 -> 12800 | H64: =SUM(G45-G64) -> -2800 | J64: 22h | K64: =SUM(K63-K46)+M63 -> 7280 | L64: =SUM(K45-K64) -> 2720 | N64: 22h | O64: =SUM(O63-O46)+Q63 -> 7280 | P64: =SUM(O45-O64) -> 2720
D65: Diesiel | H65: 95 | L65: Diesiel excellium | P65: 98 excellium
B66: Citerne | C66: =SUM(C45) -> 14500 | D66: JEUDI | F66: Citerne | G66: =SUM(G45) -> 10000 | J66: Citerne | K66: =SUM(K45) -> 10000 | N66: Citerne | O66: =SUM(O45) -> 10000
B67: Vente / H | C67: =SUM(C46) -> 350 | F67: Vente / H | G67: =SUM(G46) -> 150 | J67: Vente / H | K67: =SUM(K46) -> 15 | N67: Vente / H | O67: =SUM(O46) -> 15
C68: Stock | D68: Commande | E68: Livraison | G68: Stock | H68: Commande | I68: Livraison | K68: Stock | L68: Commande | M68: Livraison | O68: Stock | P68: Commande | Q68: Livraison
B69: 6h | C69: =SUM(C64) -> -2300 | F69: 6h | G69: =SUM(G64) -> 12800 | J69: 6h | K69: =SUM(K64) -> 7280 | N69: 6h | O69: =SUM(O64) -> 7280
B70: 7h | C70: =SUM(C69,-C67)+E69 -> -2650 | D70: =SUM(C66-C70) -> 17150 | F70: 7h | G70: =SUM(G69,-G67)+I69 -> 12650 | H70: =SUM(G66-G70) -> -2650 | J70: 7h | K70: =SUM(K69,-K67)+M69 -> 7265 | L70: =SUM(K66-K70) -> 2735 | N70: 7h | O70: =SUM(O69,-O67)+Q69 -> 7265 | P70: =SUM(O66-O70) -> 2735
B71: 8h | C71: =SUM(C70,-C67)+E70 -> -3000 | D71: =SUM(C66-C71) -> 17500 | F71: 8h | G71: =SUM(G70,-G67)+I70 -> 12500 | H71: =SUM(G66-G71) -> -2500 | J71: 8h | K71: =SUM(K70,-K67)+M70 -> 7250 | L71: =SUM(K66-K71) -> 2750 | N71: 8h | O71: =SUM(O70,-O67)+Q70 -> 7250 | P71: =SUM(O66-O71) -> 2750
B72: 9h | C72: =SUM(C71,-C67)+E71 -> -3350 | D72: =SUM(C66-C72) -> 17850 | F72: 9h | G72: =SUM(G71,-G67)+I71 -> 12350 | H72: =SUM(G66-G72) -> -2350 | J72: 9h | K72: =SUM(K71,-K67)+M71 -> 7235 | L72: =SUM(K66-K72) -> 2765 | N72: 9h | O72: =SUM(O71,-O67)+Q71 -> 7235 | P72: =SUM(O66-O72) -> 2765
B73: 10h | C73: =SUM(C72-C67+E72) -> -3700 | D73: =SUM(C66-C73) -> 18200 | F73: 10h | G73: =SUM(G72-G67+I72) -> 12200 | H73: =SUM(G66-G73) -> -2200 | J73: 10h | K73: =SUM(K72-K67+M72) -> 7220 | L73: =SUM(K66-K73) -> 2780 | N73: 10h | O73: =SUM(O72-O67+Q72) -> 7220 | P73: =SUM(O66-O73) -> 2780
B74: 11h | C74: =SUM(C73-C67+E73) -> -4050 | D74: =SUM(C66-C74) -> 18550 | F74: 11h | G74: =SUM(G73-G67+I73) -> 12050 | H74: =SUM(G66-G74) -> -2050 | J74: 11h | K74: =SUM(K73-K67+M73) -> 7205 | L74: =SUM(K66-K74) -> 2795 | N74: 11h | O74: =SUM(O73-O67+Q73) -> 7205 | P74: =SUM(O66-O74) -> 2795
B75: 12h | C75: =SUM(C74,-C67)+E74 -> -4400 | D75: =SUM(C66-C75) -> 18900 | F75: 12h | G75: =SUM(G74,-G67)+I74 -> 11900 | H75: =SUM(G66-G75) -> -1900 | J75: 12h | K75: =SUM(K74,-K67)+M74 -> 7190 | L75: =SUM(K66-K75) -> 2810 | N75: 12h | O75: =SUM(O74,-O67)+Q74 -> 7190 | P75: =SUM(O66-O75) -> 2810
B76: 13h | C76: =SUM(C75,-C67)+E75 -> -4750 | D76: =SUM(C66-C76) -> 19250 | F76: 13h | G76: =SUM(G75,-G67)+I75 -> 11750 | H76: =SUM(G66-G76) -> -1750 | J76: 13h | K76: =SUM(K75,-K67)+M75 -> 7175 | L76: =SUM(K66-K76) -> 2825 | N76: 13h | O76: =SUM(O75,-O67)+Q75 -> 7175 | P76: =SUM(O66-O76) -> 2825
B77: 14h | C77: =SUM(C76,-C67)+E76 -> -5100 | D77: =SUM(C66-C77) -> 19600 | F77: 14h | G77: =SUM(G76,-G67)+I76 -> 11600 | H77: =SUM(G66-G77) -> -1600 | J77: 14h | K77: =SUM(K76,-K67)+M76 -> 7160 | L77: =SUM(K66-K77) -> 2840 | N77: 14h | O77: =SUM(O76,-O67)+Q76 -> 7160 | P77: =SUM(O66-O77) -> 2840
B78: 15h | C78: =SUM(C77,-C67)+E77 -> -5450 | D78: =SUM(C66-C78) -> 19950 | F78: 15h | G78: =SUM(G77,-G67)+I77 -> 11450 | H78: =SUM(G66-G78) -> -1450 | J78: 15h | K78: =SUM(K77,-K67)+M77 -> 7145 | L78: =SUM(K66-K78) -> 2855 | N78: 15h | O78: =SUM(O77,-O67)+Q77 -> 7145 | P78: =SUM(O66-O78) -> 2855
B79: 16h | C79: =SUM(C78,-C67)+E78 -> -5800 | D79: =SUM(C66-C79) -> 20300 | F79: 16h | G79: =SUM(G78,-G67)+I78 -> 11300 | H79: =SUM(G66-G79) -> -1300 | J79: 16h | K79: =SUM(K78,-K67)+M78 -> 7130 | L79: =SUM(K66-K79) -> 2870 | N79: 16h | O79: =SUM(O78,-O67)+Q78 -> 7130 | P79: =SUM(O66-O79) -> 2870
B80: 17h | C80: =SUM(C79-C67)+E79 -> -6150 | D80: =SUM(C66-C80) -> 20650 | F80: 17h | G80: =SUM(G79-G67)+I79 -> 11150 | H80: =SUM(G66-G80) -> -1150 | J80: 17h | K80: =SUM(K79-K67)+M79 -> 7115 | L80: =SUM(K66-K80) -> 2885 | N80: 17h | O80: =SUM(O79-O67)+Q79 -> 7115 | P80: =SUM(O66-O80) -> 2885
B81: 18h | C81: =SUM(C80-C67)+E80 -> -6500 | D81: =SUM(C66-C81) -> 21000 | F81: 18h | G81: =SUM(G80-G67)+I80 -> 11000 | H81: =SUM(G66-G81) -> -1000 | J81: 18h | K81: =SUM(K80-K67)+M80 -> 7100 | L81: =SUM(K66-K81) -> 2900 | N81: 18h | O81: =SUM(O80-O67)+Q80 -> 7100 | P81: =SUM(O66-O81) -> 2900
B82: 19h | C82: =SUM(C81-C67)+E81 -> -6850 | D82: =SUM(C66-C82) -> 21350 | F82: 19h | G82: =SUM(G81-G67)+I81 -> 10850 | H82: =SUM(G66-G82) -> -850 | J82: 19h | K82: =SUM(K81-K67)+M81 -> 7085 | L82: =SUM(K66-K82) -> 2915 | N82: 19h | O82: =SUM(O81-O67)+Q81 -> 7085 | P82: =SUM(O66-O82) -> 2915
B83: 20h | C83: =SUM(C82-C67)+E82 -> -7200 | D83: =SUM(C66-C83) -> 21700 | F83: 20h | G83: =SUM(G82-G67)+I82 -> 10700 | H83: =SUM(G66-G83) -> -700 | J83: 20h | K83: =SUM(K82-K67)+M82 -> 7070 | L83: =SUM(K66-K83) -> 2930 | N83: 20h | O83: =SUM(O82-O67)+Q82 -> 7070 | P83: =SUM(O66-O83) -> 2930
B84: 21h | C84: =SUM(C83,-C67)+E83 -> -7550 | D84: =SUM(C66-C84) -> 22050 | F84: 21h | G84: =SUM(G83,-G67)+I83 -> 10550 | H84: =SUM(G66-G84) -> -550 | J84: 21h | K84: =SUM(K83,-K67)+M83 -> 7055 | L84: =SUM(K66-K84) -> 2945 | N84: 21h | O84: =SUM(O83,-O67)+Q83 -> 7055 | P84: =SUM(O66-O84) -> 2945
B85: 22h | C85: =SUM(C84-C67)+E84 -> -7900 | D85: =SUM(C66-C85) -> 22400 | F85: 22h | G85: =SUM(G84-G67)+I84 -> 10400 | H85: =SUM(G66-G85) -> -400 | J85: 22h | K85: =SUM(K84-K67)+M84 -> 7040 | L85: =SUM(K66-K85) -> 2960 | N85: 22h | O85: =SUM(O84-O67)+Q84 -> 7040 | P85: =SUM(O66-O85) -> 2960
D86: Diesiel | H86: 95 | L86: Diesiel excellium | P86: 98 excellium
B87: Citerne | C87: =SUM(C66) -> 14500 | D87: VENDREDI | F87: Citerne | G87: =SUM(G66) -> 10000 | J87: Citerne | K87: =SUM(K66) -> 10000 | N87: Citerne | O87: =SUM(O66) -> 10000
B88: Vente / H | C88: 350 | F88: Vente / H | G88: 150 | J88: Vente / H | K88: =SUM(K67) -> 15 | N88: Vente / H | O88: =SUM(O67) -> 15
C89: Stock | D89: Commande | E89: Livraison | G89: Stock | H89: Commande | I89: Livraison | K89: Stock | L89: Commande | M89: Livraison | O89: Stock | P89: Commande | Q89: Livraison
B90: 6h | C90: =SUM(C85) -> -7900 | F90: 6h | G90: =SUM(G85) -> 10400 | J90: 6h | K90: =SUM(K85) -> 7040 | N90: 6h | O90: =SUM(O85) -> 7040
B91: 7h | C91: =SUM(C90,-C88)+E90 -> -8250 | D91: =SUM(C87-C91) -> 22750 | F91: 7h | G91: =SUM(G90,-G88)+I90 -> 10250 | H91: =SUM(G87-G91) -> -250 | J91: 7h | K91: =SUM(K90,-K88)+M90 -> 7025 | L91: =SUM(K87-K91) -> 2975 | N91: 7h | O91: =SUM(O90,-O88)+Q90 -> 7025 | P91: =SUM(O87-O91) -> 2975
B92: 8h | C92: =SUM(C91,-C88)+E91 -> -8600 | D92: =SUM(C87-C92) -> 23100 | F92: 8h | G92: =SUM(G91,-G88)+I91 -> 10100 | H92: =SUM(G87-G92) -> -100 | J92: 8h | K92: =SUM(K91,-K88)+M91 -> 7010 | L92: =SUM(K87-K92) -> 2990 | N92: 8h | O92: =SUM(O91,-O88)+Q91 -> 7010 | P92: =SUM(O87-O92) -> 2990
B93: 9h | C93: =SUM(C92,-C88)+E92 -> -8950 | D93: =SUM(C87-C93) -> 23450 | F93: 9h | G93: =SUM(G92,-G88)+I92 -> 9950 | H93: =SUM(G87-G93) -> 50 | J93: 9h | K93: =SUM(K92,-K88)+M92 -> 6995 | L93: =SUM(K87-K93) -> 3005 | N93: 9h | O93: =SUM(O92,-O88)+Q92 -> 6995 | P93: =SUM(O87-O93) -> 3005
B94: 10h | C94: =SUM(C93-C88+E93) -> -9300 | D94: =SUM(C87-C94) -> 23800 | F94: 10h | G94: =SUM(G93-G88+I93) -> 9800 | H94: =SUM(G87-G94) -> 200 | J94: 10h | K94: =SUM(K93-K88+M93) -> 6980 | L94: =SUM(K87-K94) -> 3020 | N94: 10h | O94: =SUM(O93-O88+Q93) -> 6980 | P94: =SUM(O87-O94) -> 3020
B95: 11h | C95: =SUM(C94-C88+E94) -> -9650 | D95: =SUM(C87-C95) -> 24150 | F95: 11h | G95: =SUM(G94-G88+I94) -> 9650 | H95: =SUM(G87-G95) -> 350 | J95: 11h | K95: =SUM(K94-K88+M94) -> 6965 | L95: =SUM(K87-K95) -> 3035 | N95: 11h | O95: =SUM(O94-O88+Q94) -> 6965 | P95: =SUM(O87-O95) -> 3035
B96: 12h | C96: =SUM(C95,-C88)+E95 -> -10000 | D96: =SUM(C87-C96) -> 24500 | F96: 12h | G96: =SUM(G95,-G88)+I95 -> 9500 | H96: =SUM(G87-G96) -> 500 | J96: 12h | K96: =SUM(K95,-K88)+M95 -> 6950 | L96: =SUM(K87-K96) -> 3050 | N96: 12h | O96: =SUM(O95,-O88)+Q95 -> 6950 | P96: =SUM(O87-O96) -> 3050
B97: 13h | C97: =SUM(C96,-C88)+E96 -> -10350 | D97: =SUM(C87-C97) -> 24850 | F97: 13h | G97: =SUM(G96,-G88)+I96 -> 9350 | H97: =SUM(G87-G97) -> 650 | J97: 13h | K97: =SUM(K96,-K88)+M96 -> 6935 | L97: =SUM(K87-K97) -> 3065 | N97: 13h | O97: =SUM(O96,-O88)+Q96 -> 6935 | P97: =SUM(O87-O97) -> 3065
B98: 14h | C98: =SUM(C97,-C88)+E97 -> -10700 | D98: =SUM(C87-C98) -> 25200 | F98: 14h | G98: =SUM(G97,-G88)+I97 -> 9200 | H98: =SUM(G87-G98) -> 800 | J98: 14h | K98: =SUM(K97,-K88)+M97 -> 6920 | L98: =SUM(K87-K98) -> 3080 | N98: 14h | O98: =SUM(O97,-O88)+Q97 -> 6920 | P98: =SUM(O87-O98) -> 3080
B99: 15h | C99: =SUM(C98,-C88)+E98 -> -11050 | D99: =SUM(C87-C99) -> 25550 | F99: 15h | G99: =SUM(G98,-G88)+I98 -> 9050 | H99: =SUM(G87-G99) -> 950 | J99: 15h | K99: =SUM(K98,-K88)+M98 -> 6905 | L99: =SUM(K87-K99) -> 3095 | N99: 15h | O99: =SUM(O98,-O88)+Q98 -> 6905 | P99: =SUM(O87-O99) -> 3095
B100: 16h | C100: =SUM(C99,-C88)+E99 -> -11400 | D100: =SUM(C87-C100) -> 25900 | F100: 16h | G100: =SUM(G99,-G88)+I99 -> 8900 | H100: =SUM(G87-G100) -> 1100 | J100: 16h | K100: =SUM(K99,-K88)+M99 -> 6890 | L100: =SUM(K87-K100) -> 3110 | N100: 16h | O100: =SUM(O99,-O88)+Q99 -> 6890 | P100: =SUM(O87-O100) -> 3110
B101: 17h | C101: =SUM(C100-C88)+E100 -> -11750 | D101: =SUM(C87-C101) -> 26250 | F101: 17h | G101: =SUM(G100-G88)+I100 -> 8750 | H101: =SUM(G87-G101) -> 1250 | J101: 17h | K101: =SUM(K100-K88)+M100 -> 6875 | L101: =SUM(K87-K101) -> 3125 | N101: 17h | O101: =SUM(O100-O88)+Q100 -> 6875 | P101: =SUM(O87-O101) -> 3125
B102: 18h | C102: =SUM(C101-C88)+E101 -> -12100 | D102: =SUM(C87-C102) -> 26600 | F102: 18h | G102: =SUM(G101-G88)+I101 -> 8600 | H102: =SUM(G87-G102) -> 1400 | J102: 18h | K102: =SUM(K101-K88)+M101 -> 6860 | L102: =SUM(K87-K102) -> 3140 | N102: 18h | O102: =SUM(O101-O88)+Q101 -> 6860 | P102: =SUM(O87-O102) -> 3140
B103: 19h | C103: =SUM(C102-C88)+E102 -> -12450 | D103: =SUM(C87-C103) -> 26950 | F103: 19h | G103: =SUM(G102-G88)+I102 -> 8450 | H103: =SUM(G87-G103) -> 1550 | J103: 19h | K103: =SUM(K102-K88)+M102 -> 6845 | L103: =SUM(K87-K103) -> 3155 | N103: 19h | O103: =SUM(O102-O88)+Q102 -> 6845 | P103: =SUM(O87-O103) -> 3155
B104: 20h | C104: =SUM(C103-C88)+E103 -> -12800 | D104: =SUM(C87-C104) -> 27300 | F104: 20h | G104: =SUM(G103-G88)+I103 -> 8300 | H104: =SUM(G87-G104) -> 1700 | J104: 20h | K104: =SUM(K103-K88)+M103 -> 6830 | L104: =SUM(K87-K104) -> 3170 | N104: 20h | O104: =SUM(O103-O88)+Q103 -> 6830 | P104: =SUM(O87-O104) -> 3170
B105: 21h | C105: =SUM(C104,-C88)+E104 -> -13150 | D105: =SUM(C87-C105) -> 27650 | F105: 21h | G105: =SUM(G104,-G88)+I104 -> 8150 | H105: =SUM(G87-G105) -> 1850 | J105: 21h | K105: =SUM(K104,-K88)+M104 -> 6815 | L105: =SUM(K87-K105) -> 3185 | N105: 21h | O105: =SUM(O104,-O88)+Q104 -> 6815 | P105: =SUM(O87-O105) -> 3185
B106: 22h | C106: =SUM(C105-C88)+E105 -> -13500 | D106: =SUM(C87-C106) -> 28000 | F106: 22h | G106: =SUM(G105-G88)+I105 -> 8000 | H106: =SUM(G87-G106) -> 2000 | J106: 22h | K106: =SUM(K105-K88)+M105 -> 6800 | L106: =SUM(K87-K106) -> 3200 | N106: 22h | O106: =SUM(O105-O88)+Q105 -> 6800 | P106: =SUM(O87-O106) -> 3200
D107: Diesiel | H107: 95 | L107: Diesiel excellium | P107: 98 excellium
B108: Citerne | C108: =SUM(C87) -> 14500 | D108: SAMEDI | F108: Citerne | G108: =SUM(G87) -> 10000 | J108: Citerne | K108: =SUM(K87) -> 10000 | N108: Citerne | O108: =SUM(O87) -> 10000
B109: Vente / H | C109: =SUM(C88) -> 350 | F109: Vente / H | G109: 150 | J109: Vente / H | K109: 15 | N109: Vente / H | O109: 50
C110: Stock | D110: Commande | E110: Livraison | G110: Stock | H110: Commande | I110: Livraison | K110: Stock | L110: Commande | M110: Livraison | O110: Stock | P110: Commande | Q110: Livraison
B111: 6h | C111: =SUM(C106) -> -13500 | F111: 6h | G111: =SUM(G106) -> 8000 | J111: 6h | K111: =SUM(K106) -> 6800 | N111: 6h | O111: =SUM(O106) -> 6800
B112: 7h | C112: =SUM(C111,-C109)+E111 -> -13850 | D112: =SUM(C108-C112) -> 28350 | F112: 7h | G112: =SUM(G111,-G109)+I111 -> 7850 | H112: =SUM(G108-G112) -> 2150 | J112: 7h | K112: =SUM(K111,-K109)+M111 -> 6785 | L112: =SUM(K108-K112) -> 3215 | N112: 7h | O112: =SUM(O111,-O109)+Q111 -> 6750 | P112: =SUM(O108-O112) -> 3250
B113: 8h | C113: =SUM(C112,-C109)+E112 -> -14200 | D113: =SUM(C108-C113) -> 28700 | F113: 8h | G113: =SUM(G112,-G109)+I112 -> 7700 | H113: =SUM(G108-G113) -> 2300 | J113: 8h | K113: =SUM(K112,-K109)+M112 -> 6770 | L113: =SUM(K108-K113) -> 3230 | N113: 8h | O113: =SUM(O112,-O109)+Q112 -> 6700 | P113: =SUM(O108-O113) -> 3300
B114: 9h | C114: =SUM(C113,-C109)+E113 -> -14550 | D114: =SUM(C108-C114) -> 29050 | F114: 9h | G114: =SUM(G113,-G109)+I113 -> 7550 | H114: =SUM(G108-G114) -> 2450 | J114: 9h | K114: =SUM(K113,-K109)+M113 -> 6755 | L114: =SUM(K108-K114) -> 3245 | N114: 9h | O114: =SUM(O113,-O109)+Q113 -> 6650 | P114: =SUM(O108-O114) -> 3350
B115: 10h | C115: =SUM(C114-C109+E114) -> -14900 | D115: =SUM(C108-C115) -> 29400 | F115: 10h | G115: =SUM(G114-G109+I114) -> 7400 | H115: =SUM(G108-G115) -> 2600 | J115: 10h | K115: =SUM(K114-K109+M114) -> 6740 | L115: =SUM(K108-K115) -> 3260 | N115: 10h | O115: =SUM(O114-O109+Q114) -> 6600 | P115: =SUM(O108-O115) -> 3400
B116: 11h | C116: =SUM(C115-C109+E115) -> -15250 | D116: =SUM(C108-C116) -> 29750 | F116: 11h | G116: =SUM(G115-G109+I115) -> 7250 | H116: =SUM(G108-G116) -> 2750 | J116: 11h | K116: =SUM(K115-K109+M115) -> 6725 | L116: =SUM(K108-K116) -> 3275 | N116: 11h | O116: =SUM(O115-O109+Q115) -> 6550 | P116: =SUM(O108-O116) -> 3450
B117: 12h | C117: =SUM(C116,-C109)+E116 -> -15600 | D117: =SUM(C108-C117) -> 30100 | F117: 12h | G117: =SUM(G116,-G109)+I116 -> 7100 | H117: =SUM(G108-G117) -> 2900 | J117: 12h | K117: =SUM(K116,-K109)+M116 -> 6710 | L117: =SUM(K108-K117) -> 3290 | N117: 12h | O117: =SUM(O116,-O109)+Q116 -> 6500 | P117: =SUM(O108-O117) -> 3500
B118: 13h | C118: =SUM(C117,-C109)+E117 -> -15950 | D118: =SUM(C108-C118) -> 30450 | F118: 13h | G118: =SUM(G117,-G109)+I117 -> 6950 | H118: =SUM(G108-G118) -> 3050 | J118: 13h | K118: =SUM(K117,-K109)+M117 -> 6695 | L118: =SUM(K108-K118) -> 3305 | N118: 13h | O118: =SUM(O117,-O109)+Q117 -> 6450 | P118: =SUM(O108-O118) -> 3550
B119: 14h | C119: =SUM(C118,-C109)+E118 -> -16300 | D119: =SUM(C108-C119) -> 30800 | F119: 14h | G119: =SUM(G118,-G109)+I118 -> 6800 | H119: =SUM(G108-G119) -> 3200 | J119: 14h | K119: =SUM(K118,-K109)+M118 -> 6680 | L119: =SUM(K108-K119) -> 3320 | N119: 14h | O119: =SUM(O118,-O109)+Q118 -> 6400 | P119: =SUM(O108-O119) -> 3600
B120: 15h | C120: =SUM(C119,-C109)+E119 -> -16650 | D120: =SUM(C108-C120) -> 31150 | F120: 15h | G120: =SUM(G119,-G109)+I119 -> 6650 | H120: =SUM(G108-G120) -> 3350 | J120: 15h | K120: =SUM(K119,-K109)+M119 -> 6665 | L120: =SUM(K108-K120) -> 3335 | N120: 15h | O120: =SUM(O119,-O109)+Q119 -> 6350 | P120: =SUM(O108-O120) -> 3650
B121: 16h | C121: =SUM(C120,-C109)+E120 -> -17000 | D121: =SUM(C108-C121) -> 31500 | F121: 16h | G121: =SUM(G120,-G109)+I120 -> 6500 | H121: =SUM(G108-G121) -> 3500 | J121: 16h | K121: =SUM(K120,-K109)+M120 -> 6650 | L121: =SUM(K108-K121) -> 3350 | N121: 16h | O121: =SUM(O120,-O109)+Q120 -> 6300 | P121: =SUM(O108-O121) -> 3700
B122: 17h | C122: =SUM(C121-C109)+E121 -> -17350 | D122: =SUM(C108-C122) -> 31850 | F122: 17h | G122: =SUM(G121-G109)+I121 -> 6350 | H122: =SUM(G108-G122) -> 3650 | J122: 17h | K122: =SUM(K121-K109)+M121 -> 6635 | L122: =SUM(K108-K122) -> 3365 | N122: 17h | O122: =SUM(O121-O109)+Q121 -> 6250 | P122: =SUM(O108-O122) -> 3750
B123: 18h | C123: =SUM(C122-C109)+E122 -> -17700 | D123: =SUM(C108-C123) -> 32200 | F123: 18h | G123: =SUM(G122-G109)+I122 -> 6200 | H123: =SUM(G108-G123) -> 3800 | J123: 18h | K123: =SUM(K122-K109)+M122 -> 6620 | L123: =SUM(K108-K123) -> 3380 | N123: 18h | O123: =SUM(O122-O109)+Q122 -> 6200 | P123: =SUM(O108-O123) -> 3800
B124: 19h | C124: =SUM(C123-C109)+E123 -> -18050 | D124: =SUM(C108-C124) -> 32550 | F124: 19h | G124: =SUM(G123-G109)+I123 -> 6050 | H124: =SUM(G108-G124) -> 3950 | J124: 19h | K124: =SUM(K123-K109)+M123 -> 6605 | L124: =SUM(K108-K124) -> 3395 | N124: 19h | O124: =SUM(O123-O109)+Q123 -> 6150 | P124: =SUM(O108-O124) -> 3850
B125: 20h | C125: =SUM(C124-C109)+E124 -> -18400 | D125: =SUM(C108-C125) -> 32900 | F125: 20h | G125: =SUM(G124-G109)+I124 -> 5900 | H125: =SUM(G108-G125) -> 4100 | J125: 20h | K125: =SUM(K124-K109)+M124 -> 6590 | L125: =SUM(K108-K125) -> 3410 | N125: 20h | O125: =SUM(O124-O109)+Q124 -> 6100 | P125: =SUM(O108-O125) -> 3900
B126: 21h | C126: =SUM(C125,-C109)+E125 -> -18750 | D126: =SUM(C108-C126) -> 33250 | F126: 21h | G126: =SUM(G125,-G109)+I125 -> 5750 | H126: =SUM(G108-G126) -> 4250 | J126: 21h | K126: =SUM(K125,-K109)+M125 -> 6575 | L126: =SUM(K108-K126) -> 3425 | N126: 21h | O126: =SUM(O125,-O109)+Q125 -> 6050 | P126: =SUM(O108-O126) -> 3950
B127: 22h | C127: =SUM(C126-C109)+E126 -> -19100 | D127: =SUM(C108-C127) -> 33600 | F127: 22h | G127: =SUM(G126-G109)+I126 -> 5600 | H127: =SUM(G108-G127) -> 4400 | J127: 22h | K127: =SUM(K126-K109)+M126 -> 6560 | L127: =SUM(K108-K127) -> 3440 | N127: 22h | O127: =SUM(O126-O109)+Q126 -> 6000 | P127: =SUM(O108-O127) -> 4000
D128: Diesiel | H128: 95 | L128: Diesiel excellium | P128: 98 excellium
B129: Citerne | C129: =SUM(C108) -> 14500 | D129: DIMANCHE | F129: Citerne | G129: =SUM(G108) -> 10000 | J129: Citerne | K129: =SUM(K108) -> 10000 | N129: Citerne | O129: =SUM(O108) -> 10000
B130: Vente / H | C130: =SUM(C109) -> 350 | F130: Vente / H | G130: 150 | J130: Vente / H | K130: =SUM(K109) -> 15 | N130: Vente / H | O130: =SUM(O109) -> 50
C131: Stock | D131: Commande | E131: Livraison | G131: Stock | H131: Commande | I131: Livraison | K131: Stock | L131: Commande | M131: Livraison | O131: Stock | P131: Commande | Q131: Livraison
B132: 6h | C132: =SUM(C127) -> -19100 | F132: 6h | G132: =SUM(G127) -> 5600 | J132: 6h | K132: =SUM(K127) -> 6560 | N132: 6h | O132: =SUM(O127) -> 6000
B133: 7h | C133: =SUM(C132,-C130)+E132 -> -19450 | D133: =SUM(C129-C133) -> 33950 | F133: 7h | G133: =SUM(G132,-G130)+I132 -> 5450 | H133: =SUM(G129-G133) -> 4550 | J133: 7h | K133: =SUM(K132,-K130)+M132 -> 6545 | L133: =SUM(K129-K133) -> 3455 | N133: 7h | O133: =SUM(O132,-O130)+Q132 -> 5950 | P133: =SUM(O129-O133) -> 4050
B134: 8h | C134: =SUM(C133,-C130)+E133 -> -19800 | D134: =SUM(C129-C134) -> 34300 | F134: 8h | G134: =SUM(G133,-G130)+I133 -> 5300 | H134: =SUM(G129-G134) -> 4700 | J134: 8h | K134: =SUM(K133,-K130)+M133 -> 6530 | L134: =SUM(K129-K134) -> 3470 | N134: 8h | O134: =SUM(O133,-O130)+Q133 -> 5900 | P134: =SUM(O129-O134) -> 4100
B135: 9h | C135: =SUM(C134,-C130)+E134 -> -20150 | D135: =SUM(C129-C135) -> 34650 | F135: 9h | G135: =SUM(G134,-G130)+I134 -> 5150 | H135: =SUM(G129-G135) -> 4850 | J135: 9h | K135: =SUM(K134,-K130)+M134 -> 6515 | L135: =SUM(K129-K135) -> 3485 | N135: 9h | O135: =SUM(O134,-O130)+Q134 -> 5850 | P135: =SUM(O129-O135) -> 4150
B136: 10h | C136: =SUM(C135-C130+E135) -> -20500 | D136: =SUM(C129-C136) -> 35000 | F136: 10h | G136: =SUM(G135-G130+I135) -> 5000 | H136: =SUM(G129-G136) -> 5000 | J136: 10h | K136: =SUM(K135-K130+M135) -> 6500 | L136: =SUM(K129-K136) -> 3500 | N136: 10h | O136: =SUM(O135-O130+Q135) -> 5800 | P136: =SUM(O129-O136) -> 4200
B137: 11h | C137: =SUM(C136-C130+E136) -> -20850 | D137: =SUM(C129-C137) -> 35350 | F137: 11h | G137: =SUM(G136-G130+I136) -> 4850 | H137: =SUM(G129-G137) -> 5150 | J137: 11h | K137: =SUM(K136-K130+M136) -> 6485 | L137: =SUM(K129-K137) -> 3515 | N137: 11h | O137: =SUM(O136-O130+Q136) -> 5750 | P137: =SUM(O129-O137) -> 4250
B138: 12h | C138: =SUM(C137,-C130)+E137 -> -21200 | D138: =SUM(C129-C138) -> 35700 | F138: 12h | G138: =SUM(G137,-G130)+I137 -> 4700 | H138: =SUM(G129-G138) -> 5300 | J138: 12h | K138: =SUM(K137,-K130)+M137 -> 6470 | L138: =SUM(K129-K138) -> 3530 | N138: 12h | O138: =SUM(O137,-O130)+Q137 -> 5700 | P138: =SUM(O129-O138) -> 4300
B139: 13h | C139: =SUM(C138,-C130)+E138 -> -21550 | D139: =SUM(C129-C139) -> 36050 | F139: 13h | G139: =SUM(G138,-G130)+I138 -> 4550 | H139: =SUM(G129-G139) -> 5450 | J139: 13h | K139: =SUM(K138,-K130)+M138 -> 6455 | L139: =SUM(K129-K139) -> 3545 | N139: 13h | O139: =SUM(O138,-O130)+Q138 -> 5650 | P139: =SUM(O129-O139) -> 4350
B140: 14h | C140: =SUM(C139,-C130)+E139 -> -21900 | D140: =SUM(C129-C140) -> 36400 | F140: 14h | G140: =SUM(G139,-G130)+I139 -> 4400 | H140: =SUM(G129-G140) -> 5600 | J140: 14h | K140: =SUM(K139,-K130)+M139 -> 6440 | L140: =SUM(K129-K140) -> 3560 | N140: 14h | O140: =SUM(O139,-O130)+Q139 -> 5600 | P140: =SUM(O129-O140) -> 4400
B141: 15h | C141: =SUM(C140,-C130)+E140 -> -22250 | D141: =SUM(C129-C141) -> 36750 | F141: 15h | G141: =SUM(G140,-G130)+I140 -> 4250 | H141: =SUM(G129-G141) -> 5750 | J141: 15h | K141: =SUM(K140,-K130)+M140 -> 6425 | L141: =SUM(K129-K141) -> 3575 | N141: 15h | O141: =SUM(O140,-O130)+Q140 -> 5550 | P141: =SUM(O129-O141) -> 4450
B142: 16h | C142: =SUM(C141,-C130)+E141 -> -22600 | D142: =SUM(C129-C142) -> 37100 | F142: 16h | G142: =SUM(G141,-G130)+I141 -> 4100 | H142: =SUM(G129-G142) -> 5900 | J142: 16h | K142: =SUM(K141,-K130)+M141 -> 6410 | L142: =SUM(K129-K142) -> 3590 | N142: 16h | O142: =SUM(O141,-O130)+Q141 -> 5500 | P142: =SUM(O129-O142) -> 4500
B143: 17h | C143: =SUM(C142-C130)+E142 -> -22950 | D143: =SUM(C129-C143) -> 37450 | F143: 17h | G143: =SUM(G142-G130)+I142 -> 3950 | H143: =SUM(G129-G143) -> 6050 | J143: 17h | K143: =SUM(K142-K130)+M142 -> 6395 | L143: =SUM(K129-K143) -> 3605 | N143: 17h | O143: =SUM(O142-O130)+Q142 -> 5450 | P143: =SUM(O129-O143) -> 4550
B144: 18h | C144: =SUM(C143-C130)+E143 -> -23300 | D144: =SUM(C129-C144) -> 37800 | F144: 18h | G144: =SUM(G143-G130)+I143 -> 3800 | H144: =SUM(G129-G144) -> 6200 | J144: 18h | K144: =SUM(K143-K130)+M143 -> 6380 | L144: =SUM(K129-K144) -> 3620 | N144: 18h | O144: =SUM(O143-O130)+Q143 -> 5400 | P144: =SUM(O129-O144) -> 4600
B145: 19h | C145: =SUM(C144-C130)+E144 -> -23650 | D145: =SUM(C129-C145) -> 38150 | F145: 19h | G145: =SUM(G144-G130)+I144 -> 3650 | H145: =SUM(G129-G145) -> 6350 | J145: 19h | K145: =SUM(K144-K130)+M144 -> 6365 | L145: =SUM(K129-K145) -> 3635 | N145: 19h | O145: =SUM(O144-O130)+Q144 -> 5350 | P145: =SUM(O129-O145) -> 4650
B146: 20h | C146: =SUM(C145-C130)+E145 -> -24000 | D146: =SUM(C129-C146) -> 38500 | F146: 20h | G146: =SUM(G145-G130)+I145 -> 3500 | H146: =SUM(G129-G146) -> 6500 | J146: 20h | K146: =SUM(K145-K130)+M145 -> 6350 | L146: =SUM(K129-K146) -> 3650 | N146: 20h | O146: =SUM(O145-O130)+Q145 -> 5300 | P146: =SUM(O129-O146) -> 4700
B147: 21h | C147: =SUM(C146,-C130)+E146 -> -24350 | D147: =SUM(C129-C147) -> 38850 | F147: 21h | G147: =SUM(G146,-G130)+I146 -> 3350 | H147: =SUM(G129-G147) -> 6650 | J147: 21h | K147: =SUM(K146,-K130)+M146 -> 6335 | L147: =SUM(K129-K147) -> 3665 | N147: 21h | O147: =SUM(O146,-O130)+Q146 -> 5250 | P147: =SUM(O129-O147) -> 4750
B148: 22h | C148: =SUM(C147-C130)+E147 -> -24700 | D148: =SUM(C129-C148) -> 39200 | F148: 22h | G148: =SUM(G147-G130)+I147 -> 3200 | H148: =SUM(G129-G148) -> 6800 | J148: 22h | K148: =SUM(K147-K130)+M147 -> 6320 | L148: =SUM(K129-K148) -> 3680 | N148: 22h | O148: =SUM(O147-O130)+Q147 -> 5200 | P148: =SUM(O129-O148) -> 4800
D149: Diesiel | H149: 95 | L149: Diesiel excellium | P149: 98 excellium
B150: Citerne | C150: =SUM(C129) -> 14500 | D150: LUNDI | F150: Citerne | G150: =SUM(G129) -> 10000 | J150: Citerne | K150: =SUM(K129) -> 10000 | N150: Citerne | O150: =SUM(O129) -> 10000
B151: Vente / H | C151: =SUM(C130) -> 350 | F151: Vente / H | G151: =SUM(G130) -> 150 | J151: Vente / H | K151: =SUM(K130) -> 15 | N151: Vente / H | O151: =SUM(O130) -> 50
C152: Stock | D152: Commande | E152: Livraison | G152: Stock | H152: Commande | I152: Livraison | K152: Stock | L152: Commande | M152: Livraison | O152: Stock | P152: Commande | Q152: Livraison
B153: 6h | C153: =SUM(C148) -> -24700 | F153: 6h | G153: =SUM(G148) -> 3200 | J153: 6h | K153: =SUM(K148) -> 6320 | N153: 6h | O153: =SUM(O148) -> 5200
B154: 7h | C154: =SUM(C153,-C151)+E153 -> -25050 | D154: =SUM(C150-C154) -> 39550 | F154: 7h | G154: =SUM(G153,-G151)+I153 -> 3050 | H154: =SUM(G150-G154) -> 6950 | J154: 7h | K154: =SUM(K153,-K151)+M153 -> 6305 | L154: =SUM(K150-K154) -> 3695 | N154: 7h | O154: =SUM(O153,-O151)+Q153 -> 5150 | P154: =SUM(O150-O154) -> 4850
B155: 8h | C155: =SUM(C154,-C151)+E154 -> -25400 | D155: =SUM(C150-C155) -> 39900 | F155: 8h | G155: =SUM(G154,-G151)+I154 -> 2900 | H155: =SUM(G150-G155) -> 7100 | J155: 8h | K155: =SUM(K154,-K151)+M154 -> 6290 | L155: =SUM(K150-K155) -> 3710 | N155: 8h | O155: =SUM(O154,-O151)+Q154 -> 5100 | P155: =SUM(O150-O155) -> 4900
B156: 9h | C156: =SUM(C155,-C151)+E155 -> -25750 | D156: =SUM(C150-C156) -> 40250 | F156: 9h | G156: =SUM(G155,-G151)+I155 -> 2750 | H156: =SUM(G150-G156) -> 7250 | J156: 9h | K156: =SUM(K155,-K151)+M155 -> 6275 | L156: =SUM(K150-K156) -> 3725 | N156: 9h | O156: =SUM(O155,-O151)+Q155 -> 5050 | P156: =SUM(O150-O156) -> 4950
B157: 10h | C157: =SUM(C156-C151+E156) -> -26100 | D157: =SUM(C150-C157) -> 40600 | F157: 10h | G157: =SUM(G156-G151+I156) -> 2600 | H157: =SUM(G150-G157) -> 7400 | J157: 10h | K157: =SUM(K156-K151+M156) -> 6260 | L157: =SUM(K150-K157) -> 3740 | N157: 10h | O157: =SUM(O156-O151+Q156) -> 5000 | P157: =SUM(O150-O157) -> 5000
B158: 11h | C158: =SUM(C157-C151+E157) -> -26450 | D158: =SUM(C150-C158) -> 40950 | F158: 11h | G158: =SUM(G157-G151+I157) -> 2450 | H158: =SUM(G150-G158) -> 7550 | J158: 11h | K158: =SUM(K157-K151+M157) -> 6245 | L158: =SUM(K150-K158) -> 3755 | N158: 11h | O158: =SUM(O157-O151+Q157) -> 4950 | P158: =SUM(O150-O158) -> 5050
B159: 12h | C159: =SUM(C158,-C151)+E158 -> -26800 | D159: =SUM(C150-C159) -> 41300 | F159: 12h | G159: =SUM(G158,-G151)+I158 -> 2300 | H159: =SUM(G150-G159) -> 7700 | J159: 12h | K159: =SUM(K158,-K151)+M158 -> 6230 | L159: =SUM(K150-K159) -> 3770 | N159: 12h | O159: =SUM(O158,-O151)+Q158 -> 4900 | P159: =SUM(O150-O159) -> 5100
B160: 13h | C160: =SUM(C159,-C151)+E159 -> -27150 | D160: =SUM(C150-C160) -> 41650 | F160: 13h | G160: =SUM(G159,-G151)+I159 -> 2150 | H160: =SUM(G150-G160) -> 7850 | J160: 13h | K160: =SUM(K159,-K151)+M159 -> 6215 | L160: =SUM(K150-K160) -> 3785 | N160: 13h | O160: =SUM(O159,-O151)+Q159 -> 4850 | P160: =SUM(O150-O160) -> 5150
B161: 14h | C161: =SUM(C160,-C151)+E160 -> -27500 | D161: =SUM(C150-C161) -> 42000 | F161: 14h | G161: =SUM(G160,-G151)+I160 -> 2000 | H161: =SUM(G150-G161) -> 8000 | J161: 14h | K161: =SUM(K160,-K151)+M160 -> 6200 | L161: =SUM(K150-K161) -> 3800 | N161: 14h | O161: =SUM(O160,-O151)+Q160 -> 4800 | P161: =SUM(O150-O161) -> 5200
B162: 15h | C162: =SUM(C161,-C151)+E161 -> -27850 | D162: =SUM(C150-C162) -> 42350 | F162: 15h | G162: =SUM(G161,-G151)+I161 -> 1850 | H162: =SUM(G150-G162) -> 8150 | J162: 15h | K162: =SUM(K161,-K151)+M161 -> 6185 | L162: =SUM(K150-K162) -> 3815 | N162: 15h | O162: =SUM(O161,-O151)+Q161 -> 4750 | P162: =SUM(O150-O162) -> 5250
B163: 16h | C163: =SUM(C162,-C151)+E162 -> -28200 | D163: =SUM(C150-C163) -> 42700 | F163: 16h | G163: =SUM(G162,-G151)+I162 -> 1700 | H163: =SUM(G150-G163) -> 8300 | J163: 16h | K163: =SUM(K162,-K151)+M162 -> 6170 | L163: =SUM(K150-K163) -> 3830 | N163: 16h | O163: =SUM(O162,-O151)+Q162 -> 4700 | P163: =SUM(O150-O163) -> 5300
B164: 17h | C164: =SUM(C163-C151)+E163 -> -28550 | D164: =SUM(C150-C164) -> 43050 | F164: 17h | G164: =SUM(G163-G151)+I163 -> 1550 | H164: =SUM(G150-G164) -> 8450 | J164: 17h | K164: =SUM(K163-K151)+M163 -> 6155 | L164: =SUM(K150-K164) -> 3845 | N164: 17h | O164: =SUM(O163-O151)+Q163 -> 4650 | P164: =SUM(O150-O164) -> 5350
B165: 18h | C165: =SUM(C164-C151)+E164 -> -28900 | D165: =SUM(C150-C165) -> 43400 | F165: 18h | G165: =SUM(G164-G151)+I164 -> 1400 | H165: =SUM(G150-G165) -> 8600 | J165: 18h | K165: =SUM(K164-K151)+M164 -> 6140 | L165: =SUM(K150-K165) -> 3860 | N165: 18h | O165: =SUM(O164-O151)+Q164 -> 4600 | P165: =SUM(O150-O165) -> 5400
B166: 19h | C166: =SUM(C165-C151)+E165 -> -29250 | D166: =SUM(C150-C166) -> 43750 | F166: 19h | G166: =SUM(G165-G151)+I165 -> 1250 | H166: =SUM(G150-G166) -> 8750 | J166: 19h | K166: =SUM(K165-K151)+M165 -> 6125 | L166: =SUM(K150-K166) -> 3875 | N166: 19h | O166: =SUM(O165-O151)+Q165 -> 4550 | P166: =SUM(O150-O166) -> 5450
B167: 20h | C167: =SUM(C166-C151)+E166 -> -29600 | D167: =SUM(C150-C167) -> 44100 | F167: 20h | G167: =SUM(G166-G151)+I166 -> 1100 | H167: =SUM(G150-G167) -> 8900 | J167: 20h | K167: =SUM(K166-K151)+M166 -> 6110 | L167: =SUM(K150-K167) -> 3890 | N167: 20h | O167: =SUM(O166-O151)+Q166 -> 4500 | P167: =SUM(O150-O167) -> 5500
B168: 21h | C168: =SUM(C167,-C151)+E167 -> -29950 | D168: =SUM(C150-C168) -> 44450 | F168: 21h | G168: =SUM(G167,-G151)+I167 -> 950 | H168: =SUM(G150-G168) -> 9050 | J168: 21h | K168: =SUM(K167,-K151)+M167 -> 6095 | L168: =SUM(K150-K168) -> 3905 | N168: 21h | O168: =SUM(O167,-O151)+Q167 -> 4450 | P168: =SUM(O150-O168) -> 5550
B169: 22h | C169: =SUM(C168-C151)+E168 -> -30300 | D169: =SUM(C150-C169) -> 44800 | F169: 22h | G169: =SUM(G168-G151)+I168 -> 800 | H169: =SUM(G150-G169) -> 9200 | J169: 22h | K169: =SUM(K168-K151)+M168 -> 6080 | L169: =SUM(K150-K169) -> 3920 | N169: 22h | O169: =SUM(O168-O151)+Q168 -> 4400 | P169: =SUM(O150-O169) -> 5600
D170: Diesiel | H170: 95 | L170: Diesiel excellium | P170: 98 excellium
B171: Citerne | C171: =SUM(C150) -> 14500 | F171: Citerne | G171: =SUM(G150) -> 10000 | J171: Citerne | K171: =SUM(K150) -> 10000 | N171: Citerne | O171: =SUM(O150) -> 10000
B172: Vente / H | C172: =SUM(C151) -> 350 | F172: Vente / H | G172: =SUM(G151) -> 150 | J172: Vente / H | K172: =SUM(K151) -> 15 | N172: Vente / H | O172: =SUM(O151) -> 50
C173: Stock | D173: Commande | E173: Livraison | G173: Stock | H173: Commande | I173: Livraison | K173: Stock | L173: Commande | M173: Livraison | O173: Stock | P173: Commande | Q173: Livraison
B174: 6h | C174: =SUM(C169) -> -30300 | F174: 6h | G174: =SUM(G169) -> 800 | J174: 6h | K174: =SUM(K169) -> 6080 | N174: 6h | O174: =SUM(O169) -> 4400
B175: 7h | C175: =SUM(C174,-C172)+E174 -> -30650 | D175: =SUM(C171-C175) -> 45150 | F175: 7h | G175: =SUM(G174,-G172)+I174 -> 650 | H175: =SUM(G171-G175) -> 9350 | J175: 7h | K175: =SUM(K174,-K172)+M174 -> 6065 | L175: =SUM(K171-K175) -> 3935 | N175: 7h | O175: =SUM(O174,-O172)+Q174 -> 4350 | P175: =SUM(O171-O175) -> 5650
B176: 8h | C176: =SUM(C175,-C172)+E175 -> -31000 | D176: =SUM(C171-C176) -> 45500 | F176: 8h | G176: =SUM(G175,-G172)+I175 -> 500 | H176: =SUM(G171-G176) -> 9500 | J176: 8h | K176: =SUM(K175,-K172)+M175 -> 6050 | L176: =SUM(K171-K176) -> 3950 | N176: 8h | O176: =SUM(O175,-O172)+Q175 -> 4300 | P176: =SUM(O171-O176) -> 5700
B177: 9h | C177: =SUM(C176,-C172)+E176 -> -31350 | D177: =SUM(C171-C177) -> 45850 | F177: 9h | G177: =SUM(G176,-G172)+I176 -> 350 | H177: =SUM(G171-G177) -> 9650 | J177: 9h | K177: =SUM(K176,-K172)+M176 -> 6035 | L177: =SUM(K171-K177) -> 3965 | N177: 9h | O177: =SUM(O176,-O172)+Q176 -> 4250 | P177: =SUM(O171-O177) -> 5750
B178: 10h | C178: =SUM(C177-C172+E177) -> -31700 | D178: =SUM(C171-C178) -> 46200 | F178: 10h | G178: =SUM(G177-G172+I177) -> 200 | H178: =SUM(G171-G178) -> 9800 | J178: 10h | K178: =SUM(K177-K172+M177) -> 6020 | L178: =SUM(K171-K178) -> 3980 | N178: 10h | O178: =SUM(O177-O172+Q177) -> 4200 | P178: =SUM(O171-O178) -> 5800
B179: 11h | C179: =SUM(C178-C172+E178) -> -32050 | D179: =SUM(C171-C179) -> 46550 | F179: 11h | G179: =SUM(G178-G172+I178) -> 50 | H179: =SUM(G171-G179) -> 9950 | J179: 11h | K179: =SUM(K178-K172+M178) -> 6005 | L179: =SUM(K171-K179) -> 3995 | N179: 11h | O179: =SUM(O178-O172+Q178) -> 4150 | P179: =SUM(O171-O179) -> 5850
B180: 12h | C180: =SUM(C179,-C172)+E179 -> -32400 | D180: =SUM(C171-C180) -> 46900 | F180: 12h | G180: =SUM(G179,-G172)+I179 -> -100 | H180: =SUM(G171-G180) -> 10100 | J180: 12h | K180: =SUM(K179,-K172)+M179 -> 5990 | L180: =SUM(K171-K180) -> 4010 | N180: 12h | O180: =SUM(O179,-O172)+Q179 -> 4100 | P180: =SUM(O171-O180) -> 5900
B181: 13h | C181: =SUM(C180,-C172)+E180 -> -32750 | D181: =SUM(C171-C181) -> 47250 | F181: 13h | G181: =SUM(G180,-G172)+I180 -> -250 | H181: =SUM(G171-G181) -> 10250 | J181: 13h | K181: =SUM(K180,-K172)+M180 -> 5975 | L181: =SUM(K171-K181) -> 4025 | N181: 13h | O181: =SUM(O180,-O172)+Q180 -> 4050 | P181: =SUM(O171-O181) -> 5950
B182: 14h | C182: =SUM(C181,-C172)+E181 -> -33100 | D182: =SUM(C171-C182) -> 47600 | F182: 14h | G182: =SUM(G181,-G172)+I181 -> -400 | H182: =SUM(G171-G182) -> 10400 | J182: 14h | K182: =SUM(K181,-K172)+M181 -> 5960 | L182: =SUM(K171-K182) -> 4040 | N182: 14h | O182: =SUM(O181,-O172)+Q181 -> 4000 | P182: =SUM(O171-O182) -> 6000
B183: 15h | C183: =SUM(C182,-C172)+E182 -> -33450 | D183: =SUM(C171-C183) -> 47950 | F183: 15h | G183: =SUM(G182,-G172)+I182 -> -550 | H183: =SUM(G171-G183) -> 10550 | J183: 15h | K183: =SUM(K182,-K172)+M182 -> 5945 | L183: =SUM(K171-K183) -> 4055 | N183: 15h | O183: =SUM(O182,-O172)+Q182 -> 3950 | P183: =SUM(O171-O183) -> 6050
B184: 16h | C184: =SUM(C183,-C172)+E183 -> -33800 | D184: =SUM(C171-C184) -> 48300 | F184: 16h | G184: =SUM(G183,-G172)+I183 -> -700 | H184: =SUM(G171-G184) -> 10700 | J184: 16h | K184: =SUM(K183,-K172)+M183 -> 5930 | L184: =SUM(K171-K184) -> 4070 | N184: 16h | O184: =SUM(O183,-O172)+Q183 -> 3900 | P184: =SUM(O171-O184) -> 6100
B185: 17h | C185: =SUM(C184-C172)+E184 -> -34150 | D185: =SUM(C171-C185) -> 48650 | F185: 17h | G185: =SUM(G184-G172)+I184 -> -850 | H185: =SUM(G171-G185) -> 10850 | J185: 17h | K185: =SUM(K184-K172)+M184 -> 5915 | L185: =SUM(K171-K185) -> 4085 | N185: 17h | O185: =SUM(O184-O172)+Q184 -> 3850 | P185: =SUM(O171-O185) -> 6150
B186: 18h | C186: =SUM(C185-C172)+E185 -> -34500 | D186: =SUM(C171-C186) -> 49000 | F186: 18h | G186: =SUM(G185-G172)+I185 -> -1000 | H186: =SUM(G171-G186) -> 11000 | J186: 18h | K186: =SUM(K185-K172)+M185 -> 5900 | L186: =SUM(K171-K186) -> 4100 | N186: 18h | O186: =SUM(O185-O172)+Q185 -> 3800 | P186: =SUM(O171-O186) -> 6200
B187: 19h | C187: =SUM(C186-C172)+E186 -> -34850 | D187: =SUM(C171-C187) -> 49350 | F187: 19h | G187: =SUM(G186-G172)+I186 -> -1150 | H187: =SUM(G171-G187) -> 11150 | J187: 19h | K187: =SUM(K186-K172)+M186 -> 5885 | L187: =SUM(K171-K187) -> 4115 | N187: 19h | O187: =SUM(O186-O172)+Q186 -> 3750 | P187: =SUM(O171-O187) -> 6250
B188: 20h | C188: =SUM(C187-C172)+E187 -> -35200 | D188: =SUM(C171-C188) -> 49700 | F188: 20h | G188: =SUM(G187-G172)+I187 -> -1300 | H188: =SUM(G171-G188) -> 11300 | J188: 20h | K188: =SUM(K187-K172)+M187 -> 5870 | L188: =SUM(K171-K188) -> 4130 | N188: 20h | O188: =SUM(O187-O172)+Q187 -> 3700 | P188: =SUM(O171-O188) -> 6300
B189: 21h | C189: =SUM(C188,-C172)+E188 -> -35550 | D189: =SUM(C171-C189) -> 50050 | F189: 21h | G189: =SUM(G188,-G172)+I188 -> -1450 | H189: =SUM(G171-G189) -> 11450 | J189: 21h | K189: =SUM(K188,-K172)+M188 -> 5855 | L189: =SUM(K171-K189) -> 4145 | N189: 21h | O189: =SUM(O188,-O172)+Q188 -> 3650 | P189: =SUM(O171-O189) -> 6350
B190: 22h | C190: =SUM(C189-C172)+E189 -> -35900 | D190: =SUM(C171-C190) -> 50400 | F190: 22h | G190: =SUM(G189-G172)+I189 -> -1600 | H190: =SUM(G171-G190) -> 11600 | J190: 22h | K190: =SUM(K189-K172)+M189 -> 5840 | L190: =SUM(K171-K190) -> 4160 | N190: 22h | O190: =SUM(O189-O172)+Q189 -> 3600 | P190: =SUM(O171-O190) -> 6400

Sheet Huldange
B1: Huldange
D2: Diesiel | H2: 95 | L2: Diesiel excellium | P2: 98 excellium
B3: Citerne | C3: 47500 | D3: LUNDI | F3: Citerne | G3: 28500 | J3: Citerne | K3: 19000 | N3: Citerne | O3: 19000
B4: Vente / H | C4: 750 | F4: Vente / H | G4: 100 | J4: Vente / H | K4: 30 | N4: Vente / H | O4: 30
C5: Stock | D5: Commande | E5: Livraison | G5: Stock | H5: Commande | I5: Livraison | K5: Stock | L5: Commande | M5: Livraison | O5: Stock | P5: Commande | Q5: Livraison
B6: 6h | C6: 47500 | F6: 6h | G6: 28500 | J6: 6h | K6: 19000 | N6: 6h | O6: 19000
B7: 7h | C7: =SUM(C6,-C4)+E6 -> 46750 | D7: =SUM(C3-C7) -> 750 | F7: 7h | G7: =SUM(G6,-G4)+I6 -> 28400 | H7: =SUM(G3-G7) -> 100 | J7: 7h | K7: =SUM(K6,-K4)+M6 -> 18970 | L7: =SUM(K3-K7) -> 30 | N7: 7h | O7: =SUM(O6,-O4)+Q6 -> 18970 | P7: =SUM(O3-O7) -> 30
B8: 8h | C8: =SUM(C7,-C4)+E7 -> 46000 | D8: =SUM(C3-C8) -> 1500 | F8: 8h | G8: =SUM(G7,-G4)+I7 -> 28300 | H8: =SUM(G3-G8) -> 200 | J8: 8h | K8: =SUM(K7,-K4)+M7 -> 18940 | L8: =SUM(K3-K8) -> 60 | N8: 8h | O8: =SUM(O7,-O4)+Q7 -> 18940 | P8: =SUM(O3-O8) -> 60
B9: 9h | C9: =SUM(C8,-C4)+E8 -> 45250 | D9: =SUM(C3-C9) -> 2250 | F9: 9h | G9: =SUM(G8,-G4)+I8 -> 28200 | H9: =SUM(G3-G9) -> 300 | J9: 9h | K9: =SUM(K8,-K4)+M8 -> 18910 | L9: =SUM(K3-K9) -> 90 | N9: 9h | O9: =SUM(O8,-O4)+Q8 -> 18910 | P9: =SUM(O3-O9) -> 90
B10: 10h | C10: =SUM(C9-C4+E9) -> 44500 | D10: =SUM(C3-C10) -> 3000 | F10: 10h | G10: =SUM(G9-G4+I9) -> 28100 | H10: =SUM(G3-G10) -> 400 | J10: 10h | K10: =SUM(K9-K4+M9) -> 18880 | L10: =SUM(K3-K10) -> 120 | N10: 10h | O10: =SUM(O9-O4+Q9) -> 18880 | P10: =SUM(O3-O10) -> 120
B11: 11h | C11: =SUM(C10-C4+E10) -> 43750 | D11: =SUM(C3-C11) -> 3750 | F11: 11h | G11: =SUM(G10-G4+I10) -> 28000 | H11: =SUM(G3-G11) -> 500 | J11: 11h | K11: =SUM(K10-K4+M10) -> 18850 | L11: =SUM(K3-K11) -> 150 | N11: 11h | O11: =SUM(O10-O4+Q10) -> 18850 | P11: =SUM(O3-O11) -> 150
B12: 12h | C12: =SUM(C11,-C4)+E11 -> 43000 | D12: =SUM(C3-C12) -> 4500 | F12: 12h | G12: =SUM(G11,-G4)+I11 -> 27900 | H12: =SUM(G3-G12) -> 600 | J12: 12h | K12: =SUM(K11,-K4)+M11 -> 18820 | L12: =SUM(K3-K12) -> 180 | N12: 12h | O12: =SUM(O11,-O4)+Q11 -> 18820 | P12: =SUM(O3-O12) -> 180
B13: 13h | C13: =SUM(C12,-C4)+E12 -> 42250 | D13: =SUM(C3-C13) -> 5250 | F13: 13h | G13: =SUM(G12,-G4)+I12 -> 27800 | H13: =SUM(G3-G13) -> 700 | J13: 13h | K13: =SUM(K12,-K4)+M12 -> 18790 | L13: =SUM(K3-K13) -> 210 | N13: 13h | O13: =SUM(O12,-O4)+Q12 -> 18790 | P13: =SUM(O3-O13) -> 210
B14: 14h | C14: =SUM(C13,-C4)+E13 -> 41500 | D14: =SUM(C3-C14) -> 6000 | F14: 14h | G14: =SUM(G13,-G4)+I13 -> 27700 | H14: =SUM(G3-G14) -> 800 | J14: 14h | K14: =SUM(K13,-K4)+M13 -> 18760 | L14: =SUM(K3-K14) -> 240 | N14: 14h | O14: =SUM(O13,-O4)+Q13 -> 18760 | P14: =SUM(O3-O14) -> 240
B15: 15h | C15: =SUM(C14,-C4)+E14 -> 40750 | D15: =SUM(C3-C15) -> 6750 | F15: 15h | G15: =SUM(G14,-G4)+I14 -> 27600 | H15: =SUM(G3-G15) -> 900 | J15: 15h | K15: =SUM(K14,-K4)+M14 -> 18730 | L15: =SUM(K3-K15) -> 270 | N15: 15h | O15: =SUM(O14,-O4)+Q14 -> 18730 | P15: =SUM(O3-O15) -> 270
B16: 16h | C16: =SUM(C15,-C4)+E15 -> 40000 | D16: =SUM(C3-C16) -> 7500 | F16: 16h | G16: =SUM(G15,-G4)+I15 -> 27500 | H16: =SUM(G3-G16) -> 1000 | J16: 16h | K16: =SUM(K15,-K4)+M15 -> 18700 | L16: =SUM(K3-K16) -> 300 | N16: 16h | O16: =SUM(O15,-O4)+Q15 -> 18700 | P16: =SUM(O3-O16) -> 300
B17: 17h | C17: =SUM(C16-C4)+E16 -> 39250 | D17: =SUM(C3-C17) -> 8250 | F17: 17h | G17: =SUM(G16-G4)+I16 -> 27400 | H17: =SUM(G3-G17) -> 1100 | J17: 17h | K17: =SUM(K16-K4)+M16 -> 18670 | L17: =SUM(K3-K17) -> 330 | N17: 17h | O17: =SUM(O16-O4)+Q16 -> 18670 | P17: =SUM(O3-O17) -> 330
B18: 18h | C18: =SUM(C17-C4)+E17 -> 38500 | D18: =SUM(C3-C18) -> 9000 | F18: 18h | G18: =SUM(G17-G4)+I17 -> 27300 | H18: =SUM(G3-G18) -> 1200 | J18: 18h | K18: =SUM(K17-K4)+M17 -> 18640 | L18: =SUM(K3-K18) -> 360 | N18: 18h | O18: =SUM(O17-O4)+Q17 -> 18640 | P18: =SUM(O3-O18) -> 360
B19: 19h | C19: =SUM(C18-C4)+E18 -> 37750 | D19: =SUM(C3-C19) -> 9750 | F19: 19h | G19: =SUM(G18-G4)+I18 -> 27200 | H19: =SUM(G3-G19) -> 1300 | J19: 19h | K19: =SUM(K18-K4)+M18 -> 18610 | L19: =SUM(K3-K19) -> 390 | N19: 19h | O19: =SUM(O18-O4)+Q18 -> 18610 | P19: =SUM(O3-O19) -> 390
B20: 20h | C20: =SUM(C19-C4)+E19 -> 37000 | D20: =SUM(C3-C20) -> 10500 | F20: 20h | G20: =SUM(G19-G4)+I19 -> 27100 | H20: =SUM(G3-G20) -> 1400 | J20: 20h | K20: =SUM(K19-K4)+M19 -> 18580 | L20: =SUM(K3-K20) -> 420 | N20: 20h | O20: =SUM(O19-O4)+Q19 -> 18580 | P20: =SUM(O3-O20) -> 420
B21: 21h | C21: =SUM(C20,-C4)+E20 -> 36250 | D21: =SUM(C3-C21) -> 11250 | F21: 21h | G21: =SUM(G20,-G4)+I20 -> 27000 | H21: =SUM(G3-G21) -> 1500 | J21: 21h | K21: =SUM(K20,-K4)+M20 -> 18550 | L21: =SUM(K3-K21) -> 450 | N21: 21h | O21: =SUM(O20,-O4)+Q20 -> 18550 | P21: =SUM(O3-O21) -> 450
B22: 22h | C22: =SUM(C21-C4)+E21 -> 35500 | D22: =SUM(C3-C22) -> 12000 | F22: 22h | G22: =SUM(G21-G4)+I21 -> 26900 | H22: =SUM(G3-G22) -> 1600 | J22: 22h | K22: =SUM(K21-K4)+M21 -> 18520 | L22: =SUM(K3-K22) -> 480 | N22: 22h | O22: =SUM(O21-O4)+Q21 -> 18520 | P22: =SUM(O3-O22) -> 480
D25: Diesiel | H25: 95 | L25: Diesiel excellium | P25: 98 excellium
B26: Citerne | C26: =SUM(C3) -> 47500 | D26: MARDI | F26: Citerne | G26: =SUM(G3) -> 28500 | J26: Citerne | K26: =SUM(K3) -> 19000 | N26: Citerne | O26: =SUM(O3) -> 19000
B27: Vente / H | C27: =SUM(C4) -> 750 | F27: Vente / H | G27: =SUM(G4) -> 100 | J27: Vente / H | K27: =SUM(K4) -> 30 | N27: Vente / H | O27: =SUM(O4) -> 30
C28: Stock | D28: Commande | E28: Livraison | G28: Stock | H28: Commande | I28: Livraison | K28: Stock | L28: Commande | M28: Livraison | O28: Stock | P28: Commande | Q28: Livraison
B29: 6h | C29: =SUM(C22) -> 35500 | F29: 6h | G29: =SUM(G22) -> 26900 | J29: 6h | K29: =SUM(K22) -> 18520 | N29: 6h | O29: =SUM(O22) -> 18520
B30: 7h | C30: =SUM(C29,-C27)+E29 -> 34750 | D30: =SUM(C26-C30) -> 12750 | F30: 7h | G30: =SUM(G29,-G27)+I29 -> 26800 | H30: =SUM(G26-G30) -> 1700 | J30: 7h | K30: =SUM(K29,-K27)+M29 -> 18490 | L30: =SUM(K26-K30) -> 510 | N30: 7h | O30: =SUM(O29,-O27)+Q29 -> 18490 | P30: =SUM(O26-O30) -> 510
B31: 8h | C31: =SUM(C30,-C27)+E30 -> 34000 | D31: =SUM(C26-C31) -> 13500 | F31: 8h | G31: =SUM(G30,-G27)+I30 -> 26700 | H31: =SUM(G26-G31) -> 1800 | J31: 8h | K31: =SUM(K30,-K27)+M30 -> 18460 | L31: =SUM(K26-K31) -> 540 | N31: 8h | O31: =SUM(O30,-O27)+Q30 -> 18460 | P31: =SUM(O26-O31) -> 540
B32: 9h | C32: =SUM(C31,-C27)+E31 -> 33250 | D32: =SUM(C26-C32) -> 14250 | F32: 9h | G32: =SUM(G31,-G27)+I31 -> 26600 | H32: =SUM(G26-G32) -> 1900 | J32: 9h | K32: =SUM(K31,-K27)+M31 -> 18430 | L32: =SUM(K26-K32) -> 570 | N32: 9h | O32: =SUM(O31,-O27)+Q31 -> 18430 | P32: =SUM(O26-O32) -> 570
B33: 10h | C33: =SUM(C32-C27+E32) -> 32500 | D33: =SUM(C26-C33) -> 15000 | F33: 10h | G33: =SUM(G32-G27+I32) -> 26500 | H33: =SUM(G26-G33) -> 2000 | J33: 10h | K33: =SUM(K32-K27+M32) -> 18400 | L33: =SUM(K26-K33) -> 600 | N33: 10h | O33: =SUM(O32-O27+Q32) -> 18400 | P33: =SUM(O26-O33) -> 600
B34: 11h | C34: =SUM(C33-C27+E33) -> 31750 | D34: =SUM(C26-C34) -> 15750 | F34: 11h | G34: =SUM(G33-G27+I33) -> 26400 | H34: =SUM(G26-G34) -> 2100 | J34: 11h | K34: =SUM(K33-K27+M33) -> 18370 | L34: =SUM(K26-K34) -> 630 | N34: 11h | O34: =SUM(O33-O27+Q33) -> 18370 | P34: =SUM(O26-O34) -> 630
B35: 12h | C35: =SUM(C34,-C27)+E34 -> 31000 | D35: =SUM(C26-C35) -> 16500 | F35: 12h | G35: =SUM(G34,-G27)+I34 -> 26300 | H35: =SUM(G26-G35) -> 2200 | J35: 12h | K35: =SUM(K34,-K27)+M34 -> 18340 | L35: =SUM(K26-K35) -> 660 | N35: 12h | O35: =SUM(O34,-O27)+Q34 -> 18340 | P35: =SUM(O26-O35) -> 660
B36: 13h | C36: =SUM(C35,-C27)+E35 -> 30250 | D36: =SUM(C26-C36) -> 17250 | F36: 13h | G36: =SUM(G35,-G27)+I35 -> 26200 | H36: =SUM(G26-G36) -> 2300 | J36: 13h | K36: =SUM(K35,-K27)+M35 -> 18310 | L36: =SUM(K26-K36) -> 690 | N36: 13h | O36: =SUM(O35,-O27)+Q35 -> 18310 | P36: =SUM(O26-O36) -> 690
B37: 14h | C37: =SUM(C36,-C27)+E36 -> 29500 | D37: =SUM(C26-C37) -> 18000 | F37: 14h | G37: =SUM(G36,-G27)+I36 -> 26100 | H37: =SUM(G26-G37) -> 2400 | J37: 14h | K37: =SUM(K36,-K27)+M36 -> 18280 | L37: =SUM(K26-K37) -> 720 | N37: 14h | O37: =SUM(O36,-O27)+Q36 -> 18280 | P37: =SUM(O26-O37) -> 720
B38: 15h | C38: =SUM(C37,-C27)+E37 -> 28750 | D38: =SUM(C26-C38) -> 18750 | F38: 15h | G38: =SUM(G37,-G27)+I37 -> 26000 | H38: =SUM(G26-G38) -> 2500 | J38: 15h | K38: =SUM(K37,-K27)+M37 -> 18250 | L38: =SUM(K26-K38) -> 750 | N38: 15h | O38: =SUM(O37,-O27)+Q37 -> 18250 | P38: =SUM(O26-O38) -> 750
B39: 16h | C39: =SUM(C38,-C27)+E38 -> 28000 | D39: =SUM(C26-C39) -> 19500 | F39: 16h | G39: =SUM(G38,-G27)+I38 -> 25900 | H39: =SUM(G26-G39) -> 2600 | J39: 16h | K39: =SUM(K38,-K27)+M38 -> 18220 | L39: =SUM(K26-K39) -> 780 | N39: 16h | O39: =SUM(O38,-O27)+Q38 -> 18220 | P39: =SUM(O26-O39) -> 780
B40: 17h | C40: =SUM(C39-C27)+E39 -> 27250 | D40: =SUM(C26-C40) -> 20250 | F40: 17h | G40: =SUM(G39-G27)+I39 -> 25800 | H40: =SUM(G26-G40) -> 2700 | J40: 17h | K40: =SUM(K39-K27)+M39 -> 18190 | L40: =SUM(K26-K40) -> 810 | N40: 17h | O40: =SUM(O39-O27)+Q39 -> 18190 | P40: =SUM(O26-O40) -> 810
B41: 18h | C41: =SUM(C40-C27)+E40 -> 26500 | D41: =SUM(C26-C41) -> 21000 | F41: 18h | G41: =SUM(G40-G27)+I40 -> 25700 | H41: =SUM(G26-G41) -> 2800 | J41: 18h | K41: =SUM(K40-K27)+M40 -> 18160 | L41: =SUM(K26-K41) -> 840 | N41: 18h | O41: =SUM(O40-O27)+Q40 -> 18160 | P41: =SUM(O26-O41) -> 840
B42: 19h | C42: =SUM(C41-C27)+E41 -> 25750 | D42: =SUM(C26-C42) -> 21750 | F42: 19h | G42: =SUM(G41-G27)+I41 -> 25600 | H42: =SUM(G26-G42) -> 2900 | J42: 19h | K42: =SUM(K41-K27)+M41 -> 18130 | L42: =SUM(K26-K42) -> 870 | N42: 19h | O42: =SUM(O41-O27)+Q41 -> 18130 | P42: =SUM(O26-O42) -> 870
B43: 20h | C43: =SUM(C42-C27)+E42 -> 25000 | D43: =SUM(C26-C43) -> 22500 | F43: 20h | G43: =SUM(G42-G27)+I42 -> 25500 | H43: =SUM(G26-G43) -> 3000 | J43: 20h | K43: =SUM(K42-K27)+M42 -> 18100 | L43: =SUM(K26-K43) -> 900 | N43: 20h | O43: =SUM(O42-O27)+Q42 -> 18100 | P43: =SUM(O26-O43) -> 900
B44: 21h | C44: =SUM(C43,-C27)+E43 -> 24250 | D44: =SUM(C26-C44) -> 23250 | F44: 21h | G44: =SUM(G43,-G27)+I43 -> 25400 | H44: =SUM(G26-G44) -> 3100 | J44: 21h | K44: =SUM(K43,-K27)+M43 -> 18070 | L44: =SUM(K26-K44) -> 930 | N44: 21h | O44: =SUM(O43,-O27)+Q43 -> 18070 | P44: =SUM(O26-O44) -> 930
B45: 22h | C45: =SUM(C44-C27)+E44 -> 23500 | D45: =SUM(C26-C45) -> 24000 | F45: 22h | G45: =SUM(G44-G27)+I44 -> 25300 | H45: =SUM(G26-G45) -> 3200 | J45: 22h | K45: =SUM(K44-K27)+M44 -> 18040 | L45: =SUM(K26-K45) -> 960 | N45: 22h | O45: =SUM(O44-O27)+Q44 -> 18040 | P45: =SUM(O26-O45) -> 960
D48: Diesiel | H48: 95 | L48: Diesiel excellium | P48: 98 excellium
B49: Citerne | C49: =SUM(C26) -> 47500 | D49: MERCREDI | F49: Citerne | G49: =SUM(G26) -> 28500 | J49: Citerne | K49: =SUM(K26) -> 19000 | N49: Citerne | O49: =SUM(O26) -> 19000
B50: Vente / H | C50: =SUM(C27) -> 750 | F50: Vente / H | G50: =SUM(G27) -> 100 | J50: Vente / H | K50: =SUM(K27) -> 30 | N50: Vente / H | O50: =SUM(O27) -> 30
C51: Stock | D51: Commande | E51: Livraison | G51: Stock | H51: Commande | I51: Livraison | K51: Stock | L51: Commande | M51: Livraison | O51: Stock | P51: Commande | Q51: Livraison
B52: 6h | C52: =SUM(C45) -> 23500 | F52: 6h | G52: =SUM(G45) -> 25300 | J52: 6h | K52: =SUM(K45) -> 18040 | N52: 6h | O52: =SUM(O45) -> 18040
B53: 7h | C53: =SUM(C52,-C50)+E52 -> 22750 | D53: =SUM(C49-C53) -> 24750 | F53: 7h | G53: =SUM(G52,-G50)+I52 -> 25200 | H53: =SUM(G49-G53) -> 3300 | J53: 7h | K53: =SUM(K52,-K50)+M52 -> 18010 | L53: =SUM(K49-K53) -> 990 | N53: 7h | O53: =SUM(O52,-O50)+Q52 -> 18010 | P53: =SUM(O49-O53) -> 990
B54: 8h | C54: =SUM(C53,-C50)+E53 -> 22000 | D54: =SUM(C49-C54) -> 25500 | F54: 8h | G54: =SUM(G53,-G50)+I53 -> 25100 | H54: =SUM(G49-G54) -> 3400 | J54: 8h | K54: =SUM(K53,-K50)+M53 -> 17980 | L54: =SUM(K49-K54) -> 1020 | N54: 8h | O54: =SUM(O53,-O50)+Q53 -> 17980 | P54: =SUM(O49-O54) -> 1020
B55: 9h | C55: =SUM(C54,-C50)+E54 -> 21250 | D55: =SUM(C49-C55) -> 26250 | F55: 9h | G55: =SUM(G54,-G50)+I54 -> 25000 | H55: =SUM(G49-G55) -> 3500 | J55: 9h | K55: =SUM(K54,-K50)+M54 -> 17950 | L55: =SUM(K49-K55) -> 1050 | N55: 9h | O55: =SUM(O54,-O50)+Q54 -> 17950 | P55: =SUM(O49-O55) -> 1050
B56: 10h | C56: =SUM(C55-C50+E55) -> 20500 | D56: =SUM(C49-C56) -> 27000 | F56: 10h | G56: =SUM(G55-G50+I55) -> 24900 | H56: =SUM(G49-G56) -> 3600 | J56: 10h | K56: =SUM(K55-K50+M55) -> 17920 | L56: =SUM(K49-K56) -> 1080 | N56: 10h | O56: =SUM(O55-O50+Q55) -> 17920 | P56: =SUM(O49-O56) -> 1080
B57: 11h | C57: =SUM(C56-C50+E56) -> 19750 | D57: =SUM(C49-C57) -> 27750 | F57: 11h | G57: =SUM(G56-G50+I56) -> 24800 | H57: =SUM(G49-G57) -> 3700 | J57: 11h | K57: =SUM(K56-K50+M56) -> 17890 | L57: =SUM(K49-K57) -> 1110 | N57: 11h | O57: =SUM(O56-O50+Q56) -> 17890 | P57: =SUM(O49-O57) -> 1110
B58: 12h | C58: =SUM(C57,-C50)+E57 -> 19000 | D58: =SUM(C49-C58) -> 28500 | F58: 12h | G58: =SUM(G57,-G50)+I57 -> 24700 | H58: =SUM(G49-G58) -> 3800 | J58: 12h | K58: =SUM(K57,-K50)+M57 -> 17860 | L58: =SUM(K49-K58) -> 1140 | N58: 12h | O58: =SUM(O57,-O50)+Q57 -> 17860 | P58: =SUM(O49-O58) -> 1140
B59: 13h | C59: =SUM(C58,-C50)+E58 -> 18250 | D59: =SUM(C49-C59) -> 29250 | F59: 13h | G59: =SUM(G58,-G50)+I58 -> 24600 | H59: =SUM(G49-G59) -> 3900 | J59: 13h | K59: =SUM(K58,-K50)+M58 -> 17830 | L59: =SUM(K49-K59) -> 1170 | N59: 13h | O59: =SUM(O58,-O50)+Q58 -> 17830 | P59: =SUM(O49-O59) -> 1170
B60: 14h | C60: =SUM(C59,-C50)+E59 -> 17500 | D60: =SUM(C49-C60) -> 30000 | F60: 14h | G60: =SUM(G59,-G50)+I59 -> 24500 | H60: =SUM(G49-G60) -> 4000 | J60: 14h | K60: =SUM(K59,-K50)+M59 -> 17800 | L60: =SUM(K49-K60) -> 1200 | N60: 14h | O60: =SUM(O59,-O50)+Q59 -> 17800 | P60: =SUM(O49-O60) -> 1200
B61: 15h | C61: =SUM(C60,-C50)+E60 -> 16750 | D61: =SUM(C49-C61) -> 30750 | F61: 15h | G61: =SUM(G60,-G50)+I60 -> 24400 | H61: =SUM(G49-G61) -> 4100 | J61: 15h | K61: =SUM(K60,-K50)+M60 -> 17770 | L61: =SUM(K49-K61) -> 1230 | N61: 15h | O61: =SUM(O60,-O50)+Q60 -> 17770 | P61: =SUM(O49-O61) -> 1230
B62: 16h | C62: =SUM(C61,-C50)+E61 -> 16000 | D62: =SUM(C49-C62) -> 31500 | F62: 16h | G62: =SUM(G61,-G50)+I61 -> 24300 | H62: =SUM(G49-G62) -> 4200 | J62: 16h | K62: =SUM(K61,-K50)+M61 -> 17740 | L62: =SUM(K49-K62) -> 1260 | N62: 16h | O62: =SUM(O61,-O50)+Q61 -> 17740 | P62: =SUM(O49-O62) -> 1260
B63: 17h | C63: =SUM(C62-C50)+E62 -> 15250 | D63: =SUM(C49-C63) -> 32250 | F63: 17h | G63: =SUM(G62-G50)+I62 -> 24200 | H63: =SUM(G49-G63) -> 4300 | J63: 17h | K63: =SUM(K62-K50)+M62 -> 17710 | L63: =SUM(K49-K63) -> 1290 | N63: 17h | O63: =SUM(O62-O50)+Q62 -> 17710 | P63: =SUM(O49-O63) -> 1290
B64: 18h | C64: =SUM(C63-C50)+E63 -> 14500 | D64: =SUM(C49-C64) -> 33000 | F64: 18h | G64: =SUM(G63-G50)+I63 -> 24100 | H64: =SUM(G49-G64) -> 4400 | J64: 18h | K64: =SUM(K63-K50)+M63 -> 17680 | L64: =SUM(K49-K64) -> 1320 | N64: 18h | O64: =SUM(O63-O50)+Q63 -> 17680 | P64: =SUM(O49-O64) -> 1320
B65: 19h | C65: =SUM(C64-C50)+E64 -> 13750 | D65: =SUM(C49-C65) -> 33750 | F65: 19h | G65: =SUM(G64-G50)+I64 -> 24000 | H65: =SUM(G49-G65) -> 4500 | J65: 19h | K65: =SUM(K64-K50)+M64 -> 17650 | L65: =SUM(K49-K65) -> 1350 | N65: 19h | O65: =SUM(O64-O50)+Q64 -> 17650 | P65: =SUM(O49-O65) -> 1350
B66: 20h | C66: =SUM(C65-C50)+E65 -> 13000 | D66: =SUM(C49-C66) -> 34500 | F66: 20h | G66: =SUM(G65-G50)+I65 -> 23900 | H66: =SUM(G49-G66) -> 4600 | J66: 20h | K66: =SUM(K65-K50)+M65 -> 17620 | L66: =SUM(K49-K66) -> 1380 | N66: 20h | O66: =SUM(O65-O50)+Q65 -> 17620 | P66: =SUM(O49-O66) -> 1380
B67: 21h | C67: =SUM(C66,-C50)+E66 -> 12250 | D67: =SUM(C49-C67) -> 35250 | F67: 21h | G67: =SUM(G66,-G50)+I66 -> 23800 | H67: =SUM(G49-G67) -> 4700 | J67: 21h | K67: =SUM(K66,-K50)+M66 -> 17590 | L67: =SUM(K49-K67) -> 1410 | N67: 21h | O67: =SUM(O66,-O50)+Q66 -> 17590 | P67: =SUM(O49-O67) -> 1410
B68: 22h | C68: =SUM(C67-C50)+E67 -> 11500 | D68: =SUM(C49-C68) -> 36000 | F68: 22h | G68: =SUM(G67-G50)+I67 -> 23700 | H68: =SUM(G49-G68) -> 4800 | J68: 22h | K68: =SUM(K67-K50)+M67 -> 17560 | L68: =SUM(K49-K68) -> 1440 | N68: 22h | O68: =SUM(O67-O50)+Q67 -> 17560 | P68: =SUM(O49-O68) -> 1440
D69: Diesiel | H69: 95 | L69: Diesiel excellium | P69: 98 excellium
B70: Citerne | C70: =SUM(C49) -> 47500 | D70: JEUDI | F70: Citerne | G70: =SUM(G49) -> 28500 | J70: Citerne | K70: =SUM(K49) -> 19000 | N70: Citerne | O70: =SUM(O49) -> 19000
B71: Vente / H | C71: =SUM(C50) -> 750 | F71: Vente / H | G71: =SUM(G50) -> 100 | J71: Vente / H | K71: =SUM(K50) -> 30 | N71: Vente / H | O71: =SUM(O50) -> 30
C72: Stock | D72: Commande | E72: Livraison | G72: Stock | H72: Commande | I72: Livraison | K72: Stock | L72: Commande | M72: Livraison | O72: Stock | P72: Commande | Q72: Livraison
B73: 6h | C73: =SUM(C68) -> 11500 | F73: 6h | G73: =SUM(G68) -> 23700 | J73: 6h | K73: =SUM(K68) -> 17560 | N73: 6h | O73: =SUM(O68) -> 17560
B74: 7h | C74: =SUM(C73,-C71)+E73 -> 10750 | D74: =SUM(C70-C74) -> 36750 | F74: 7h | G74: =SUM(G73,-G71)+I73 -> 23600 | H74: =SUM(G70-G74) -> 4900 | J74: 7h | K74: =SUM(K73,-K71)+M73 -> 17530 | L74: =SUM(K70-K74) -> 1470 | N74: 7h | O74: =SUM(O73,-O71)+Q73 -> 17530 | P74: =SUM(O70-O74) -> 1470
B75: 8h | C75: =SUM(C74,-C71)+E74 -> 10000 | D75: =SUM(C70-C75) -> 37500 | F75: 8h | G75: =SUM(G74,-G71)+I74 -> 23500 | H75: =SUM(G70-G75) -> 5000 | J75: 8h | K75: =SUM(K74,-K71)+M74 -> 17500 | L75: =SUM(K70-K75) -> 1500 | N75: 8h | O75: =SUM(O74,-O71)+Q74 -> 17500 | P75: =SUM(O70-O75) -> 1500
B76: 9h | C76: =SUM(C75,-C71)+E75 -> 9250 | D76: =SUM(C70-C76) -> 38250 | F76: 9h | G76: =SUM(G75,-G71)+I75 -> 23400 | H76: =SUM(G70-G76) -> 5100 | J76: 9h | K76: =SUM(K75,-K71)+M75 -> 17470 | L76: =SUM(K70-K76) -> 1530 | N76: 9h | O76: =SUM(O75,-O71)+Q75 -> 17470 | P76: =SUM(O70-O76) -> 1530
B77: 10h | C77: =SUM(C76-C71+E76) -> 8500 | D77: =SUM(C70-C77) -> 39000 | F77: 10h | G77: =SUM(G76-G71+I76) -> 23300 | H77: =SUM(G70-G77) -> 5200 | J77: 10h | K77: =SUM(K76-K71+M76) -> 17440 | L77: =SUM(K70-K77) -> 1560 | N77: 10h | O77: =SUM(O76-O71+Q76) -> 17440 | P77: =SUM(O70-O77) -> 1560
B78: 11h | C78: =SUM(C77-C71+E77) -> 7750 | D78: =SUM(C70-C78) -> 39750 | F78: 11h | G78: =SUM(G77-G71+I77) -> 23200 | H78: =SUM(G70-G78) -> 5300 | J78: 11h | K78: =SUM(K77-K71+M77) -> 17410 | L78: =SUM(K70-K78) -> 1590 | N78: 11h | O78: =SUM(O77-O71+Q77) -> 17410 | P78: =SUM(O70-O78) -> 1590
B79: 12h | C79: =SUM(C78,-C71)+E78 -> 7000 | D79: =SUM(C70-C79) -> 40500 | F79: 12h | G79: =SUM(G78,-G71)+I78 -> 23100 | H79: =SUM(G70-G79) -> 5400 | J79: 12h | K79: =SUM(K78,-K71)+M78 -> 17380 | L79: =SUM(K70-K79) -> 1620 | N79: 12h | O79: =SUM(O78,-O71)+Q78 -> 17380 | P79: =SUM(O70-O79) -> 1620
B80: 13h | C80: =SUM(C79,-C71)+E79 -> 6250 | D80: =SUM(C70-C80) -> 41250 | F80: 13h | G80: =SUM(G79,-G71)+I79 -> 23000 | H80: =SUM(G70-G80) -> 5500 | J80: 13h | K80: =SUM(K79,-K71)+M79 -> 17350 | L80: =SUM(K70-K80) -> 1650 | N80: 13h | O80: =SUM(O79,-O71)+Q79 -> 17350 | P80: =SUM(O70-O80) -> 1650
B81: 14h | C81: =SUM(C80,-C71)+E80 -> 5500 | D81: =SUM(C70-C81) -> 42000 | F81: 14h | G81: =SUM(G80,-G71)+I80 -> 22900 | H81: =SUM(G70-G81) -> 5600 | J81: 14h | K81: =SUM(K80,-K71)+M80 -> 17320 | L81: =SUM(K70-K81) -> 1680 | N81: 14h | O81: =SUM(O80,-O71)+Q80 -> 17320 | P81: =SUM(O70-O81) -> 1680
B82: 15h | C82: =SUM(C81,-C71)+E81 -> 4750 | D82: =SUM(C70-C82) -> 42750 | F82: 15h | G82: =SUM(G81,-G71)+I81 -> 22800 | H82: =SUM(G70-G82) -> 5700 | J82: 15h | K82: =SUM(K81,-K71)+M81 -> 17290 | L82: =SUM(K70-K82) -> 1710 | N82: 15h | O82: =SUM(O81,-O71)+Q81 -> 17290 | P82: =SUM(O70-O82) -> 1710
B83: 16h | C83: =SUM(C82,-C71)+E82 -> 4000 | D83: =SUM(C70-C83) -> 43500 | F83: 16h | G83: =SUM(G82,-G71)+I82 -> 22700 | H83: =SUM(G70-G83) -> 5800 | J83: 16h | K83: =SUM(K82,-K71)+M82 -> 17260 | L83: =SUM(K70-K83) -> 1740 | N83: 16h | O83: =SUM(O82,-O71)+Q82 -> 17260 | P83: =SUM(O70-O83) -> 1740
B84: 17h | C84: =SUM(C83-C71)+E83 -> 3250 | D84: =SUM(C70-C84) -> 44250 | F84: 17h | G84: =SUM(G83-G71)+I83 -> 22600 | H84: =SUM(G70-G84) -> 5900 | J84: 17h | K84: =SUM(K83-K71)+M83 -> 17230 | L84: =SUM(K70-K84) -> 1770 | N84: 17h | O84: =SUM(O83-O71)+Q83 -> 17230 | P84: =SUM(O70-O84) -> 1770
B85: 18h | C85: =SUM(C84-C71)+E84 -> 2500 | D85: =SUM(C70-C85) -> 45000 | F85: 18h | G85: =SUM(G84-G71)+I84 -> 22500 | H85: =SUM(G70-G85) -> 6000 | J85: 18h | K85: =SUM(K84-K71)+M84 -> 17200 | L85: =SUM(K70-K85) -> 1800 | N85: 18h | O85: =SUM(O84-O71)+Q84 -> 17200 | P85: =SUM(O70-O85) -> 1800
B86: 19h | C86: =SUM(C85-C71)+E85 -> 1750 | D86: =SUM(C70-C86) -> 45750 | F86: 19h | G86: =SUM(G85-G71)+I85 -> 22400 | H86: =SUM(G70-G86) -> 6100 | J86: 19h | K86: =SUM(K85-K71)+M85 -> 17170 | L86: =SUM(K70-K86) -> 1830 | N86: 19h | O86: =SUM(O85-O71)+Q85 -> 17170 | P86: =SUM(O70-O86) -> 1830
B87: 20h | C87: =SUM(C86-C71)+E86 -> 1000 | D87: =SUM(C70-C87) -> 46500 | F87: 20h | G87: =SUM(G86-G71)+I86 -> 22300 | H87: =SUM(G70-G87) -> 6200 | J87: 20h | K87: =SUM(K86-K71)+M86 -> 17140 | L87: =SUM(K70-K87) -> 1860 | N87: 20h | O87: =SUM(O86-O71)+Q86 -> 17140 | P87: =SUM(O70-O87) -> 1860
B88: 21h | C88: =SUM(C87,-C71)+E87 -> 250 | D88: =SUM(C70-C88) -> 47250 | F88: 21h | G88: =SUM(G87,-G71)+I87 -> 22200 | H88: =SUM(G70-G88) -> 6300 | J88: 21h | K88: =SUM(K87,-K71)+M87 -> 17110 | L88: =SUM(K70-K88) -> 1890 | N88: 21h | O88: =SUM(O87,-O71)+Q87 -> 17110 | P88: =SUM(O70-O88) -> 1890
B89: 22h | C89: =SUM(C88-C71)+E88 -> -500 | D89: =SUM(C70-C89) -> 48000 | F89: 22h | G89: =SUM(G88-G71)+I88 -> 22100 | H89: =SUM(G70-G89) -> 6400 | J89: 22h | K89: =SUM(K88-K71)+M88 -> 17080 | L89: =SUM(K70-K89) -> 1920 | N89: 22h | O89: =SUM(O88-O71)+Q88 -> 17080 | P89: =SUM(O70-O89) -> 1920
D90: Diesiel | H90: 95 | L90: Diesiel excellium | P90: 98 excellium
B91: Citerne | C91: =SUM(C70) -> 47500 | D91: VENDREDI | F91: Citerne | G91: =SUM(G70) -> 28500 | J91: Citerne | K91: =SUM(K70) -> 19000 | N91: Citerne | O91: =SUM(O70) -> 19000
B92: Vente / H | C92: =SUM(C71) -> 750 | F92: Vente / H | G92: =SUM(G71) -> 100 | J92: Vente / H | K92: =SUM(K71) -> 30 | N92: Vente / H | O92: =SUM(O71) -> 30
C93: Stock | D93: Commande | E93: Livraison | G93: Stock | H93: Commande | I93: Livraison | K93: Stock | L93: Commande | M93: Livraison | O93: Stock | P93: Commande | Q93: Livraison
B94: 6h | C94: =SUM(C89) -> -500 | F94: 6h | G94: =SUM(G89) -> 22100 | J94: 6h | K94: =SUM(K89) -> 17080 | N94: 6h | O94: =SUM(O89) -> 17080
B95: 7h | C95: =SUM(C94,-C92)+E94 -> -1250 | D95: =SUM(C91-C95) -> 48750 | F95: 7h | G95: =SUM(G94,-G92)+I94 -> 22000 | H95: =SUM(G91-G95) -> 6500 | J95: 7h | K95: =SUM(K94,-K92)+M94 -> 17050 | L95: =SUM(K91-K95) -> 1950 | N95: 7h | O95: =SUM(O94,-O92)+Q94 -> 17050 | P95: =SUM(O91-O95) -> 1950
B96: 8h | C96: =SUM(C95,-C92)+E95 -> -2000 | D96: =SUM(C91-C96) -> 49500 | F96: 8h | G96: =SUM(G95,-G92)+I95 -> 21900 | H96: =SUM(G91-G96) -> 6600 | J96: 8h | K96: =SUM(K95,-K92)+M95 -> 17020 | L96: =SUM(K91-K96) -> 1980 | N96: 8h | O96: =SUM(O95,-O92)+Q95 -> 17020 | P96: =SUM(O91-O96) -> 1980
B97: 9h | C97: =SUM(C96,-C92)+E96 -> -2750 | D97: =SUM(C91-C97) -> 50250 | F97: 9h | G97: =SUM(G96,-G92)+I96 -> 21800 | H97: =SUM(G91-G97) -> 6700 | J97: 9h | K97: =SUM(K96,-K92)+M96 -> 16990 | L97: =SUM(K91-K97) -> 2010 | N97: 9h | O97: =SUM(O96,-O92)+Q96 -> 16990 | P97: =SUM(O91-O97) -> 2010
B98: 10h | C98: =SUM(C97-C92+E97) -> -3500 | D98: =SUM(C91-C98) -> 51000 | F98: 10h | G98: =SUM(G97-G92+I97) -> 21700 | H98: =SUM(G91-G98) -> 6800 | J98: 10h | K98: =SUM(K97-K92+M97) -> 16960 | L98: =SUM(K91-K98) -> 2040 | N98: 10h | O98: =SUM(O97-O92+Q97) -> 16960 | P98: =SUM(O91-O98) -> 2040
B99: 11h | C99: =SUM(C98-C92+E98) -> -4250 | D99: =SUM(C91-C99) -> 51750 | F99: 11h | G99: =SUM(G98-G92+I98) -> 21600 | H99: =SUM(G91-G99) -> 6900 | J99: 11h | K99: =SUM(K98-K92+M98) -> 16930 | L99: =SUM(K91-K99) -> 2070 | N99: 11h | O99: =SUM(O98-O92+Q98) -> 16930 | P99: =SUM(O91-O99) -> 2070
B100: 12h | C100: =SUM(C99,-C92)+E99 -> -5000 | D100: =SUM(C91-C100) -> 52500 | F100: 12h | G100: =SUM(G99,-G92)+I99 -> 21500 | H100: =SUM(G91-G100) -> 7000 | J100: 12h | K100: =SUM(K99,-K92)+M99 -> 16900 | L100: =SUM(K91-K100) -> 2100 | N100: 12h | O100: =SUM(O99,-O92)+Q99 -> 16900 | P100: =SUM(O91-O100) -> 2100
B101: 13h | C101: =SUM(C100,-C92)+E100 -> -5750 | D101: =SUM(C91-C101) -> 53250 | F101: 13h | G101: =SUM(G100,-G92)+I100 -> 21400 | H101: =SUM(G91-G101) -> 7100 | J101: 13h | K101: =SUM(K100,-K92)+M100 -> 16870 | L101: =SUM(K91-K101) -> 2130 | N101: 13h | O101: =SUM(O100,-O92)+Q100 -> 16870 | P101: =SUM(O91-O101) -> 2130
B102: 14h | C102: =SUM(C101,-C92)+E101 -> -6500 | D102: =SUM(C91-C102) -> 54000 | F102: 14h | G102: =SUM(G101,-G92)+I101 -> 21300 | H102: =SUM(G91-G102) -> 7200 | J102: 14h | K102: =SUM(K101,-K92)+M101 -> 16840 | L102: =SUM(K91-K102) -> 2160 | N102: 14h | O102: =SUM(O101,-O92)+Q101 -> 16840 | P102: =SUM(O91-O102) -> 2160
B103: 15h | C103: =SUM(C102,-C92)+E102 -> -7250 | D103: =SUM(C91-C103) -> 54750 | F103: 15h | G103: =SUM(G102,-G92)+I102 -> 21200 | H103: =SUM(G91-G103) -> 7300 | J103: 15h | K103: =SUM(K102,-K92)+M102 -> 16810 | L103: =SUM(K91-K103) -> 2190 | N103: 15h | O103: =SUM(O102,-O92)+Q102 -> 16810 | P103: =SUM(O91-O103) -> 2190
B104: 16h | C104: =SUM(C103,-C92)+E103 -> -8000 | D104: =SUM(C91-C104) -> 55500 | F104: 16h | G104: =SUM(G103,-G92)+I103 -> 21100 | H104: =SUM(G91-G104) -> 7400 | J104: 16h | K104: =SUM(K103,-K92)+M103 -> 16780 | L104: =SUM(K91-K104) -> 2220 | N104: 16h | O104: =SUM(O103,-O92)+Q103 -> 16780 | P104: =SUM(O91-O104) -> 2220
B105: 17h | C105: =SUM(C104-C92)+E104 -> -8750 | D105: =SUM(C91-C105) -> 56250 | F105: 17h | G105: =SUM(G104-G92)+I104 -> 21000 | H105: =SUM(G91-G105) -> 7500 | J105: 17h | K105: =SUM(K104-K92)+M104 -> 16750 | L105: =SUM(K91-K105) -> 2250 | N105: 17h | O105: =SUM(O104-O92)+Q104 -> 16750 | P105: =SUM(O91-O105) -> 2250
B106: 18h | C106: =SUM(C105-C92)+E105 -> -9500 | D106: =SUM(C91-C106) -> 57000 | F106: 18h | G106: =SUM(G105-G92)+I105 -> 20900 | H106: =SUM(G91-G106) -> 7600 | J106: 18h | K106: =SUM(K105-K92)+M105 -> 16720 | L106: =SUM(K91-K106) -> 2280 | N106: 18h | O106: =SUM(O105-O92)+Q105 -> 16720 | P106: =SUM(O91-O106) -> 2280
B107: 19h | C107: =SUM(C106-C92)+E106 -> -10250 | D107: =SUM(C91-C107) -> 57750 | F107: 19h | G107: =SUM(G106-G92)+I106 -> 20800 | H107: =SUM(G91-G107) -> 7700 | J107: 19h | K107: =SUM(K106-K92)+M106 -> 16690 | L107: =SUM(K91-K107) -> 2310 | N107: 19h | O107: =SUM(O106-O92)+Q106 -> 16690 | P107: =SUM(O91-O107) -> 2310
B108: 20h | C108: =SUM(C107-C92)+E107 -> -11000 | D108: =SUM(C91-C108) -> 58500 | F108: 20h | G108: =SUM(G107-G92)+I107 -> 20700 | H108: =SUM(G91-G108) -> 7800 | J108: 20h | K108: =SUM(K107-K92)+M107 -> 16660 | L108: =SUM(K91-K108) -> 2340 | N108: 20h | O108: =SUM(O107-O92)+Q107 -> 16660 | P108: =SUM(O91-O108) -> 2340
B109: 21h | C109: =SUM(C108,-C92)+E108 -> -11750 | D109: =SUM(C91-C109) -> 59250 | F109: 21h | G109: =SUM(G108,-G92)+I108 -> 20600 | H109: =SUM(G91-G109) -> 7900 | J109: 21h | K109: =SUM(K108,-K92)+M108 -> 16630 | L109: =SUM(K91-K109) -> 2370 | N109: 21h | O109: =SUM(O108,-O92)+Q108 -> 16630 | P109: =SUM(O91-O109) -> 2370
B110: 22h | C110: =SUM(C109-C92)+E109 -> -12500 | D110: =SUM(C91-C110) -> 60000 | F110: 22h | G110: =SUM(G109-G92)+I109 -> 20500 | H110: =SUM(G91-G110) -> 8000 | J110: 22h | K110: =SUM(K109-K92)+M109 -> 16600 | L110: =SUM(K91-K110) -> 2400 | N110: 22h | O110: =SUM(O109-O92)+Q109 -> 16600 | P110: =SUM(O91-O110) -> 2400
D111: Diesiel | H111: 95 | L111: Diesiel excellium | P111: 98 excellium
B112: Citerne | C112: =SUM(C91) -> 47500 | D112: SAMEDI | F112: Citerne | G112: =SUM(G91) -> 28500 | J112: Citerne | K112: =SUM(K91) -> 19000 | N112: Citerne | O112: =SUM(O91) -> 19000
B113: Vente / H | C113: =SUM(C92) -> 750 | F113: Vente / H | G113: =SUM(G92) -> 100 | J113: Vente / H | K113: =SUM(K92) -> 30 | N113: Vente / H | O113: =SUM(O92) -> 30
C114: Stock | D114: Commande | E114: Livraison | G114: Stock | H114: Commande | I114: Livraison | K114: Stock | L114: Commande | M114: Livraison | O114: Stock | P114: Commande | Q114: Livraison
B115: 6h | C115: =SUM(C110) -> -12500 | F115: 6h | G115: =SUM(G110) -> 20500 | J115: 6h | K115: =SUM(K110) -> 16600 | N115: 6h | O115: =SUM(O110) -> 16600
B116: 7h | C116: =SUM(C115,-C113)+E115 -> -13250 | D116: =SUM(C112-C116) -> 60750 | F116: 7h | G116: =SUM(G115,-G113)+I115 -> 20400 | H116: =SUM(G112-G116) -> 8100 | J116: 7h | K116: =SUM(K115,-K113)+M115 -> 16570 | L116: =SUM(K112-K116) -> 2430 | N116: 7h | O116: =SUM(O115,-O113)+Q115 -> 16570 | P116: =SUM(O112-O116) -> 2430
B117: 8h | C117: =SUM(C116,-C113)+E116 -> -14000 | D117: =SUM(C112-C117) -> 61500 | F117: 8h | G117: =SUM(G116,-G113)+I116 -> 20300 | H117: =SUM(G112-G117) -> 8200 | J117: 8h | K117: =SUM(K116,-K113)+M116 -> 16540 | L117: =SUM(K112-K117) -> 2460 | N117: 8h | O117: =SUM(O116,-O113)+Q116 -> 16540 | P117: =SUM(O112-O117) -> 2460
B118: 9h | C118: =SUM(C117,-C113)+E117 -> -14750 | D118: =SUM(C112-C118) -> 62250 | F118: 9h | G118: =SUM(G117,-G113)+I117 -> 20200 | H118: =SUM(G112-G118) -> 8300 | J118: 9h | K118: =SUM(K117,-K113)+M117 -> 16510 | L118: =SUM(K112-K118) -> 2490 | N118: 9h | O118: =SUM(O117,-O113)+Q117 -> 16510 | P118: =SUM(O112-O118) -> 2490
B119: 10h | C119: =SUM(C118-C113+E118) -> -15500 | D119: =SUM(C112-C119) -> 63000 | F119: 10h | G119: =SUM(G118-G113+I118) -> 20100 | H119: =SUM(G112-G119) -> 8400 | J119: 10h | K119: =SUM(K118-K113+M118) -> 16480 | L119: =SUM(K112-K119) -> 2520 | N119: 10h | O119: =SUM(O118-O113+Q118) -> 16480 | P119: =SUM(O112-O119) -> 2520
B120: 11h | C120: =SUM(C119-C113+E119) -> -16250 | D120: =SUM(C112-C120) -> 63750 | F120: 11h | G120: =SUM(G119-G113+I119) -> 20000 | H120: =SUM(G112-G120) -> 8500 | J120: 11h | K120: =SUM(K119-K113+M119) -> 16450 | L120: =SUM(K112-K120) -> 2550 | N120: 11h | O120: =SUM(O119-O113+Q119) -> 16450 | P120: =SUM(O112-O120) -> 2550
B121: 12h | C121: =SUM(C120,-C113)+E120 -> -17000 | D121: =SUM(C112-C121) -> 64500 | F121: 12h | G121: =SUM(G120,-G113)+I120 -> 19900 | H121: =SUM(G112-G121) -> 8600 | J121: 12h | K121: =SUM(K120,-K113)+M120 -> 16420 | L121: =SUM(K112-K121) -> 2580 | N121: 12h | O121: =SUM(O120,-O113)+Q120 -> 16420 | P121: =SUM(O112-O121) -> 2580
B122: 13h | C122: =SUM(C121,-C113)+E121 -> -17750 | D122: =SUM(C112-C122) -> 65250 | F122: 13h | G122: =SUM(G121,-G113)+I121 -> 19800 | H122: =SUM(G112-G122) -> 8700 | J122: 13h | K122: =SUM(K121,-K113)+M121 -> 16390 | L122: =SUM(K112-K122) -> 2610 | N122: 13h | O122: =SUM(O121,-O113)+Q121 -> 16390 | P122: =SUM(O112-O122) -> 2610
B123: 14h | C123: =SUM(C122,-C113)+E122 -> -18500 | D123: =SUM(C112-C123) -> 66000 | F123: 14h | G123: =SUM(G122,-G113)+I122 -> 19700 | H123: =SUM(G112-G123) -> 8800 | J123: 14h | K123: =SUM(K122,-K113)+M122 -> 16360 | L123: =SUM(K112-K123) -> 2640 | N123: 14h | O123: =SUM(O122,-O113)+Q122 -> 16360 | P123: =SUM(O112-O123) -> 2640
B124: 15h | C124: =SUM(C123,-C113)+E123 -> -19250 | D124: =SUM(C112-C124) -> 66750 | F124: 15h | G124: =SUM(G123,-G113)+I123 -> 19600 | H124: =SUM(G112-G124) -> 8900 | J124: 15h | K124: =SUM(K123,-K113)+M123 -> 16330 | L124: =SUM(K112-K124) -> 2670 | N124: 15h | O124: =SUM(O123,-O113)+Q123 -> 16330 | P124: =SUM(O112-O124) -> 2670
B125: 16h | C125: =SUM(C124,-C113)+E124 -> -20000 | D125: =SUM(C112-C125) -> 67500 | F125: 16h | G125: =SUM(G124,-G113)+I124 -> 19500 | H125: =SUM(G112-G125) -> 9000 | J125: 16h | K125: =SUM(K124,-K113)+M124 -> 16300 | L125: =SUM(K112-K125) -> 2700 | N125: 16h | O125: =SUM(O124,-O113)+Q124 -> 16300 | P125: =SUM(O112-O125) -> 2700
B126: 17h | C126: =SUM(C125-C113)+E125 -> -20750 | D126: =SUM(C112-C126) -> 68250 | F126: 17h | G126: =SUM(G125-G113)+I125 -> 19400 | H126: =SUM(G112-G126) -> 9100 | J126: 17h | K126: =SUM(K125-K113)+M125 -> 16270 | L126: =SUM(K112-K126) -> 2730 | N126: 17h | O126: =SUM(O125-O113)+Q125 -> 16270 | P126: =SUM(O112-O126) -> 2730
B127: 18h | C127: =SUM(C126-C113)+E126 -> -21500 | D127: =SUM(C112-C127) -> 69000 | F127: 18h | G127: =SUM(G126-G113)+I126 -> 19300 | H127: =SUM(G112-G127) -> 9200 | J127: 18h | K127: =SUM(K126-K113)+M126 -> 16240 | L127: =SUM(K112-K127) -> 2760 | N127: 18h | O127: =SUM(O126-O113)+Q126 -> 16240 | P127: =SUM(O112-O127) -> 2760
B128: 19h | C128: =SUM(C127-C113)+E127 -> -22250 | D128: =SUM(C112-C128) -> 69750 | F128: 19h | G128: =SUM(G127-G113)+I127 -> 19200 | H128: =SUM(G112-G128) -> 9300 | J128: 19h | K128: =SUM(K127-K113)+M127 -> 16210 | L128: =SUM(K112-K128) -> 2790 | N128: 19h | O128: =SUM(O127-O113)+Q127 -> 16210 | P128: =SUM(O112-O128) -> 2790
B129: 20h | C129: =SUM(C128-C113)+E128 -> -23000 | D129: =SUM(C112-C129) -> 70500 | F129: 20h | G129: =SUM(G128-G113)+I128 -> 19100 | H129: =SUM(G112-G129) -> 9400 | J129: 20h | K129: =SUM(K128-K113)+M128 -> 16180 | L129: =SUM(K112-K129) -> 2820 | N129: 20h | O129: =SUM(O128-O113)+Q128 -> 16180 | P129: =SUM(O112-O129) -> 2820
B130: 21h | C130: =SUM(C129,-C113)+E129 -> -23750 | D130: =SUM(C112-C130) -> 71250 | F130: 21h | G130: =SUM(G129,-G113)+I129 -> 19000 | H130: =SUM(G112-G130) -> 9500 | J130: 21h | K130: =SUM(K129,-K113)+M129 -> 16150 | L130: =SUM(K112-K130) -> 2850 | N130: 21h | O130: =SUM(O129,-O113)+Q129 -> 16150 | P130: =SUM(O112-O130) -> 2850
B131: 22h | C131: =SUM(C130-C113)+E130 -> -24500 | D131: =SUM(C112-C131) -> 72000 | F131: 22h | G131: =SUM(G130-G113)+I130 -> 18900 | H131: =SUM(G112-G131) -> 9600 | J131: 22h | K131: =SUM(K130-K113)+M130 -> 16120 | L131: =SUM(K112-K131) -> 2880 | N131: 22h | O131: =SUM(O130-O113)+Q130 -> 16120 | P131: =SUM(O112-O131) -> 2880
D132: Diesiel | H132: 95 | L132: Diesiel excellium | P132: 98 excellium
B133: Citerne | C133: =SUM(C112) -> 47500 | D133: DIMANCHE | F133: Citerne | G133: =SUM(G112) -> 28500 | J133: Citerne | K133: =SUM(K112) -> 19000 | N133: Citerne | O133: =SUM(O112) -> 19000
B134: Vente / H | C134: =SUM(C113) -> 750 | F134: Vente / H | G134: =SUM(G113) -> 100 | J134: Vente / H | K134: =SUM(K113) -> 30 | N134: Vente / H | O134: =SUM(O113) -> 30
C135: Stock | D135: Commande | E135: Livraison | G135: Stock | H135: Commande | I135: Livraison | K135: Stock | L135: Commande | M135: Livraison | O135: Stock | P135: Commande | Q135: Livraison
B136: 6h | C136: =SUM(C131) -> -24500 | F136: 6h | G136: =SUM(G131) -> 18900 | J136: 6h | K136: =SUM(K131) -> 16120 | N136: 6h | O136: =SUM(O131) -> 16120
B137: 7h | C137: =SUM(C136,-C134)+E136 -> -25250 | D137: =SUM(C133-C137) -> 72750 | F137: 7h | G137: =SUM(G136,-G134)+I136 -> 18800 | H137: =SUM(G133-G137) -> 9700 | J137: 7h | K137: =SUM(K136,-K134)+M136 -> 16090 | L137: =SUM(K133-K137) -> 2910 | N137: 7h | O137: =SUM(O136,-O134)+Q136 -> 16090 | P137: =SUM(O133-O137) -> 2910
B138: 8h | C138: =SUM(C137,-C134)+E137 -> -26000 | D138: =SUM(C133-C138) -> 73500 | F138: 8h | G138: =SUM(G137,-G134)+I137 -> 18700 | H138: =SUM(G133-G138) -> 9800 | J138: 8h | K138: =SUM(K137,-K134)+M137 -> 16060 | L138: =SUM(K133-K138) -> 2940 | N138: 8h | O138: =SUM(O137,-O134)+Q137 -> 16060 | P138: =SUM(O133-O138) -> 2940
B139: 9h | C139: =SUM(C138,-C134)+E138 -> -26750 | D139: =SUM(C133-C139) -> 74250 | F139: 9h | G139: =SUM(G138,-G134)+I138 -> 18600 | H139: =SUM(G133-G139) -> 9900 | J139: 9h | K139: =SUM(K138,-K134)+M138 -> 16030 | L139: =SUM(K133-K139) -> 2970 | N139: 9h | O139: =SUM(O138,-O134)+Q138 -> 16030 | P139: =SUM(O133-O139) -> 2970
B140: 10h | C140: =SUM(C139-C134+E139) -> -27500 | D140: =SUM(C133-C140) -> 75000 | F140: 10h | G140: =SUM(G139-G134+I139) -> 18500 | H140: =SUM(G133-G140) -> 10000 | J140: 10h | K140: =SUM(K139-K134+M139) -> 16000 | L140: =SUM(K133-K140) -> 3000 | N140: 10h | O140: =SUM(O139-O134+Q139) -> 16000 | P140: =SUM(O133-O140) -> 3000
B141: 11h | C141: =SUM(C140-C134+E140) -> -28250 | D141: =SUM(C133-C141) -> 75750 | F141: 11h | G141: =SUM(G140-G134+I140) -> 18400 | H141: =SUM(G133-G141) -> 10100 | J141: 11h | K141: =SUM(K140-K134+M140) -> 15970 | L141: =SUM(K133-K141) -> 3030 | N141: 11h | O141: =SUM(O140-O134+Q140) -> 15970 | P141: =SUM(O133-O141) -> 3030
B142: 12h | C142: =SUM(C141,-C134)+E141 -> -29000 | D142: =SUM(C133-C142) -> 76500 | F142: 12h | G142: =SUM(G141,-G134)+I141 -> 18300 | H142: =SUM(G133-G142) -> 10200 | J142: 12h | K142: =SUM(K141,-K134)+M141 -> 15940 | L142: =SUM(K133-K142) -> 3060 | N142: 12h | O142: =SUM(O141,-O134)+Q141 -> 15940 | P142: =SUM(O133-O142) -> 3060
B143: 13h | C143: =SUM(C142,-C134)+E142 -> -29750 | D143: =SUM(C133-C143) -> 77250 | F143: 13h | G143: =SUM(G142,-G134)+I142 -> 18200 | H143: =SUM(G133-G143) -> 10300 | J143: 13h | K143: =SUM(K142,-K134)+M142 -> 15910 | L143: =SUM(K133-K143) -> 3090 | N143: 13h | O143: =SUM(O142,-O134)+Q142 -> 15910 | P143: =SUM(O133-O143) -> 3090
B144: 14h | C144: =SUM(C143,-C134)+E143 -> -30500 | D144: =SUM(C133-C144) -> 78000 | F144: 14h | G144: =SUM(G143,-G134)+I143 -> 18100 | H144: =SUM(G133-G144) -> 10400 | J144: 14h | K144: =SUM(K143,-K134)+M143 -> 15880 | L144: =SUM(K133-K144) -> 3120 | N144: 14h | O144: =SUM(O143,-O134)+Q143 -> 15880 | P144: =SUM(O133-O144) -> 3120
B145: 15h | C145: =SUM(C144,-C134)+E144 -> -31250 | D145: =SUM(C133-C145) -> 78750 | F145: 15h | G145: =SUM(G144,-G134)+I144 -> 18000 | H145: =SUM(G133-G145) -> 10500 | J145: 15h | K145: =SUM(K144,-K134)+M144 -> 15850 | L145: =SUM(K133-K145) -> 3150 | N145: 15h | O145: =SUM(O144,-O134)+Q144 -> 15850 | P145: =SUM(O133-O145) -> 3150
B146: 16h | C146: =SUM(C145,-C134)+E145 -> -32000 | D146: =SUM(C133-C146) -> 79500 | F146: 16h | G146: =SUM(G145,-G134)+I145 -> 17900 | H146: =SUM(G133-G146) -> 10600 | J146: 16h | K146: =SUM(K145,-K134)+M145 -> 15820 | L146: =SUM(K133-K146) -> 3180 | N146: 16h | O146: =SUM(O145,-O134)+Q145 -> 15820 | P146: =SUM(O133-O146) -> 3180
B147: 17h | C147: =SUM(C146-C134)+E146 -> -32750 | D147: =SUM(C133-C147) -> 80250 | F147: 17h | G147: =SUM(G146-G134)+I146 -> 17800 | H147: =SUM(G133-G147) -> 10700 | J147: 17h | K147: =SUM(K146-K134)+M146 -> 15790 | L147: =SUM(K133-K147) -> 3210 | N147: 17h | O147: =SUM(O146-O134)+Q146 -> 15790 | P147: =SUM(O133-O147) -> 3210
B148: 18h | C148: =SUM(C147-C134)+E147 -> -33500 | D148: =SUM(C133-C148) -> 81000 | F148: 18h | G148: =SUM(G147-G134)+I147 -> 17700 | H148: =SUM(G133-G148) -> 10800 | J148: 18h | K148: =SUM(K147-K134)+M147 -> 15760 | L148: =SUM(K133-K148) -> 3240 | N148: 18h | O148: =SUM(O147-O134)+Q147 -> 15760 | P148: =SUM(O133-O148) -> 3240
B149: 19h | C149: =SUM(C148-C134)+E148 -> -34250 | D149: =SUM(C133-C149) -> 81750 | F149: 19h | G149: =SUM(G148-G134)+I148 -> 17600 | H149: =SUM(G133-G149) -> 10900 | J149: 19h | K149: =SUM(K148-K134)+M148 -> 15730 | L149: =SUM(K133-K149) -> 3270 | N149: 19h | O149: =SUM(O148-O134)+Q148 -> 15730 | P149: =SUM(O133-O149) -> 3270
B150: 20h | C150: =SUM(C149-C134)+E149 -> -35000 | D150: =SUM(C133-C150) -> 82500 | F150: 20h | G150: =SUM(G149-G134)+I149 -> 17500 | H150: =SUM(G133-G150) -> 11000 | J150: 20h | K150: =SUM(K149-K134)+M149 -> 15700 | L150: =SUM(K133-K150) -> 3300 | N150: 20h | O150: =SUM(O149-O134)+Q149 -> 15700 | P150: =SUM(O133-O150) -> 3300
B151: 21h | C151: =SUM(C150,-C134)+E150 -> -35750 | D151: =SUM(C133-C151) -> 83250 | F151: 21h | G151: =SUM(G150,-G134)+I150 -> 17400 | H151: =SUM(G133-G151) -> 11100 | J151: 21h | K151: =SUM(K150,-K134)+M150 -> 15670 | L151: =SUM(K133-K151) -> 3330 | N151: 21h | O151: =SUM(O150,-O134)+Q150 -> 15670 | P151: =SUM(O133-O151) -> 3330
B152: 22h | C152: =SUM(C151-C134)+E151 -> -36500 | D152: =SUM(C133-C152) -> 84000 | F152: 22h | G152: =SUM(G151-G134)+I151 -> 17300 | H152: =SUM(G133-G152) -> 11200 | J152: 22h | K152: =SUM(K151-K134)+M151 -> 15640 | L152: =SUM(K133-K152) -> 3360 | N152: 22h | O152: =SUM(O151-O134)+Q151 -> 15640 | P152: =SUM(O133-O152) -> 3360
D153: Diesiel | H153: 95 | L153: Diesiel excellium | P153: 98 excellium
B154: Citerne | C154: =SUM(C133) -> 47500 | D154: LUNDI | F154: Citerne | G154: =SUM(G133) -> 28500 | J154: Citerne | K154: =SUM(K133) -> 19000 | N154: Citerne | O154: =SUM(O133) -> 19000
B155: Vente / H | C155: =SUM(C134) -> 750 | F155: Vente / H | G155: =SUM(G134) -> 100 | J155: Vente / H | K155: =SUM(K134) -> 30 | N155: Vente / H | O155: =SUM(O134) -> 30
C156: Stock | D156: Commande | E156: Livraison | G156: Stock | H156: Commande | I156: Livraison | K156: Stock | L156: Commande | M156: Livraison | O156: Stock | P156: Commande | Q156: Livraison
B157: 6h | C157: =SUM(C152) -> -36500 | F157: 6h | G157: =SUM(G152) -> 17300 | J157: 6h | K157: =SUM(K152) -> 15640 | N157: 6h | O157: =SUM(O152) -> 15640
B158: 7h | C158: =SUM(C157,-C155)+E157 -> -37250 | D158: =SUM(C154-C158) -> 84750 | F158: 7h | G158: =SUM(G157,-G155)+I157 -> 17200 | H158: =SUM(G154-G158) -> 11300 | J158: 7h | K158: =SUM(K157,-K155)+M157 -> 15610 | L158: =SUM(K154-K158) -> 3390 | N158: 7h | O158: =SUM(O157,-O155)+Q157 -> 15610 | P158: =SUM(O154-O158) -> 3390
B159: 8h | C159: =SUM(C158,-C155)+E158 -> -38000 | D159: =SUM(C154-C159) -> 85500 | F159: 8h | G159: =SUM(G158,-G155)+I158 -> 17100 | H159: =SUM(G154-G159) -> 11400 | J159: 8h | K159: =SUM(K158,-K155)+M158 -> 15580 | L159: =SUM(K154-K159) -> 3420 | N159: 8h | O159: =SUM(O158,-O155)+Q158 -> 15580 | P159: =SUM(O154-O159) -> 3420
B160: 9h | C160: =SUM(C159,-C155)+E159 -> -38750 | D160: =SUM(C154-C160) -> 86250 | F160: 9h | G160: =SUM(G159,-G155)+I159 -> 17000 | H160: =SUM(G154-G160) -> 11500 | J160: 9h | K160: =SUM(K159,-K155)+M159 -> 15550 | L160: =SUM(K154-K160) -> 3450 | N160: 9h | O160: =SUM(O159,-O155)+Q159 -> 15550 | P160: =SUM(O154-O160) -> 3450
B161: 10h | C161: =SUM(C160-C155+E160) -> -39500 | D161: =SUM(C154-C161) -> 87000 | F161: 10h | G161: =SUM(G160-G155+I160) -> 16900 | H161: =SUM(G154-G161) -> 11600 | J161: 10h | K161: =SUM(K160-K155+M160) -> 15520 | L161: =SUM(K154-K161) -> 3480 | N161: 10h | O161: =SUM(O160-O155+Q160) -> 15520 | P161: =SUM(O154-O161) -> 3480
B162: 11h | C162: =SUM(C161-C155+E161) -> -40250 | D162: =SUM(C154-C162) -> 87750 | F162: 11h | G162: =SUM(G161-G155+I161) -> 16800 | H162: =SUM(G154-G162) -> 11700 | J162: 11h | K162: =SUM(K161-K155+M161) -> 15490 | L162: =SUM(K154-K162) -> 3510 | N162: 11h | O162: =SUM(O161-O155+Q161) -> 15490 | P162: =SUM(O154-O162) -> 3510
B163: 12h | C163: =SUM(C162,-C155)+E162 -> -41000 | D163: =SUM(C154-C163) -> 88500 | F163: 12h | G163: =SUM(G162,-G155)+I162 -> 16700 | H163: =SUM(G154-G163) -> 11800 | J163: 12h | K163: =SUM(K162,-K155)+M162 -> 15460 | L163: =SUM(K154-K163) -> 3540 | N163: 12h | O163: =SUM(O162,-O155)+Q162 -> 15460 | P163: =SUM(O154-O163) -> 3540
B164: 13h | C164: =SUM(C163,-C155)+E163 -> -41750 | D164: =SUM(C154-C164) -> 89250 | F164: 13h | G164: =SUM(G163,-G155)+I163 -> 16600 | H164: =SUM(G154-G164) -> 11900 | J164: 13h | K164: =SUM(K163,-K155)+M163 -> 15430 | L164: =SUM(K154-K164) -> 3570 | N164: 13h | O164: =SUM(O163,-O155)+Q163 -> 15430 | P164: =SUM(O154-O164) -> 3570
B165: 14h | C165: =SUM(C164,-C155)+E164 -> -42500 | D165: =SUM(C154-C165) -> 90000 | F165: 14h | G165: =SUM(G164,-G155)+I164 -> 16500 | H165: =SUM(G154-G165) -> 12000 | J165: 14h | K165: =SUM(K164,-K155)+M164 -> 15400 | L165: =SUM(K154-K165) -> 3600 | N165: 14h | O165: =SUM(O164,-O155)+Q164 -> 15400 | P165: =SUM(O154-O165) -> 3600
B166: 15h | C166: =SUM(C165,-C155)+E165 -> -43250 | D166: =SUM(C154-C166) -> 90750 | F166: 15h | G166: =SUM(G165,-G155)+I165 -> 16400 | H166: =SUM(G154-G166) -> 12100 | J166: 15h | K166: =SUM(K165,-K155)+M165 -> 15370 | L166: =SUM(K154-K166) -> 3630 | N166: 15h | O166: =SUM(O165,-O155)+Q165 -> 15370 | P166: =SUM(O154-O166) -> 3630
B167: 16h | C167: =SUM(C166,-C155)+E166 -> -44000 | D167: =SUM(C154-C167) -> 91500 | F167: 16h | G167: =SUM(G166,-G155)+I166 -> 16300 | H167: =SUM(G154-G167) -> 12200 | J167: 16h | K167: =SUM(K166,-K155)+M166 -> 15340 | L167: =SUM(K154-K167) -> 3660 | N167: 16h | O167: =SUM(O166,-O155)+Q166 -> 15340 | P167: =SUM(O154-O167) -> 3660
B168: 17h | C168: =SUM(C167-C155)+E167 -> -44750 | D168: =SUM(C154-C168) -> 92250 | F168: 17h | G168: =SUM(G167-G155)+I167 -> 16200 | H168: =SUM(G154-G168) -> 12300 | J168: 17h | K168: =SUM(K167-K155)+M167 -> 15310 | L168: =SUM(K154-K168) -> 3690 | N168: 17h | O168: =SUM(O167-O155)+Q167 -> 15310 | P168: =SUM(O154-O168) -> 3690
B169: 18h | C169: =SUM(C168-C155)+E168 -> -45500 | D169: =SUM(C154-C169) -> 93000 | F169: 18h | G169: =SUM(G168-G155)+I168 -> 16100 | H169: =SUM(G154-G169) -> 12400 | J169: 18h | K169: =SUM(K168-K155)+M168 -> 15280 | L169: =SUM(K154-K169) -> 3720 | N169: 18h | O169: =SUM(O168-O155)+Q168 -> 15280 | P169: =SUM(O154-O169) -> 3720
B170: 19h | C170: =SUM(C169-C155)+E169 -> -46250 | D170: =SUM(C154-C170) -> 93750 | F170: 19h | G170: =SUM(G169-G155)+I169 -> 16000 | H170: =SUM(G154-G170) -> 12500 | J170: 19h | K170: =SUM(K169-K155)+M169 -> 15250 | L170: =SUM(K154-K170) -> 3750 | N170: 19h | O170: =SUM(O169-O155)+Q169 -> 15250 | P170: =SUM(O154-O170) -> 3750
B171: 20h | C171: =SUM(C170-C155)+E170 -> -47000 | D171: =SUM(C154-C171) -> 94500 | F171: 20h | G171: =SUM(G170-G155)+I170 -> 15900 | H171: =SUM(G154-G171) -> 12600 | J171: 20h | K171: =SUM(K170-K155)+M170 -> 15220 | L171: =SUM(K154-K171) -> 3780 | N171: 20h | O171: =SUM(O170-O155)+Q170 -> 15220 | P171: =SUM(O154-O171) -> 3780
B172: 21h | C172: =SUM(C171,-C155)+E171 -> -47750 | D172: =SUM(C154-C172) -> 95250 | F172: 21h | G172: =SUM(G171,-G155)+I171 -> 15800 | H172: =SUM(G154-G172) -> 12700 | J172: 21h | K172: =SUM(K171,-K155)+M171 -> 15190 | L172: =SUM(K154-K172) -> 3810 | N172: 21h | O172: =SUM(O171,-O155)+Q171 -> 15190 | P172: =SUM(O154-O172) -> 3810
B173: 22h | C173: =SUM(C172-C155)+E172 -> -48500 | D173: =SUM(C154-C173) -> 96000 | F173: 22h | G173: =SUM(G172-G155)+I172 -> 15700 | H173: =SUM(G154-G173) -> 12800 | J173: 22h | K173: =SUM(K172-K155)+M172 -> 15160 | L173: =SUM(K154-K173) -> 3840 | N173: 22h | O173: =SUM(O172-O155)+Q172 -> 15160 | P173: =SUM(O154-O173) -> 3840

Sheet Bacharage
B1: Bacharage
D2: Diesiel | H2: 95 | L2: Diesiel excellium | P2: 98 excellium
B3: Citerne | C3: 57000 | D3: LUNDI | F3: Citerne | G3: 28000 | J3: Citerne | K3: 28000 | N3: Citerne | O3: 28000
B4: Vente / H | C4: 1200 | F4: Vente / H | G4: 115 | J4: Vente / H | K4: 80 | N4: Vente / H | O4: 80
C5: Stock | D5: Commande | E5: Livraison | G5: Stock | H5: Commande | I5: Livraison | K5: Stock | L5: Commande | M5: Livraison | O5: Stock | P5: Commande | Q5: Livraison
B6: 5h | C6: 57000 | F6: 5h | G6: 28000 | J6: 5h | K6: 28000 | N6: 5h | O6: 28000
B7: 6h | C7: =SUM(C6,-C4)+E6 -> 55800 | D7: =SUM(C3-C7) -> 1200 | F7: 6h | G7: =SUM(G6,-G4)+I6 -> 27885 | H7: =SUM(G3-G7) -> 115 | J7: 6h | K7: =SUM(K6,-K4)+M6 -> 27920 | L7: =SUM(K3-K7) -> 80 | N7: 6h | O7: =SUM(O6,-O4)+Q6 -> 27920 | P7: =SUM(O3-O7) -> 80
B8: 7h | C8: =SUM(C7,-C4)+E7 -> 54600 | D8: =SUM(C3-C8) -> 2400 | F8: 7h | G8: =SUM(G7,-G4)+I7 -> 27770 | H8: =SUM(G3-G8) -> 230 | J8: 7h | K8: =SUM(K7,-K4)+M7 -> 27840 | L8: =SUM(K3-K8) -> 160 | N8: 7h | O8: =SUM(O7,-O4)+Q7 -> 27840 | P8: =SUM(O3-O8) -> 160
B9: 8h | C9: =SUM(C8,-C4)+E8 -> 53400 | D9: =SUM(C3-C9) -> 3600 | F9: 8h | G9: =SUM(G8,-G4)+I8 -> 27655 | H9: =SUM(G3-G9) -> 345 | J9: 8h | K9: =SUM(K8,-K4)+M8 -> 27760 | L9: =SUM(K3-K9) -> 240 | N9: 8h | O9: =SUM(O8,-O4)+Q8 -> 27760 | P9: =SUM(O3-O9) -> 240
B10: 9h | C10: =SUM(C9-C4+E9) -> 52200 | D10: =SUM(C3-C10) -> 4800 | F10: 9h | G10: =SUM(G9-G4+I9) -> 27540 | H10: =SUM(G3-G10) -> 460 | J10: 9h | K10: =SUM(K9,-K4)+M9 -> 27680 | L10: =SUM(K3-K10) -> 320 | N10: 9h | O10: =SUM(O9-O4+Q9) -> 27680 | P10: =SUM(O3-O10) -> 320
B11: 10h | C11: =SUM(C10,-C4)+E10 -> 51000 | D11: =SUM(C3-C11) -> 6000 | F11: 10h | G11: =SUM(G10-G4+I10) -> 27425 | H11: =SUM(G3-G11) -> 575 | J11: 10h | K11: =SUM(K10,-K4)+M10 -> 27600 | L11: =SUM(K3-K11) -> 400 | N11: 10h | O11: =SUM(O10-O4+Q10) -> 27600 | P11: =SUM(O3-O11) -> 400
B12: 11h | C12: =SUM(C11,-C4)+E11 -> 49800 | D12: =SUM(C3-C12) -> 7200 | F12: 11h | G12: =SUM(G11,-G4)+I11 -> 27310 | H12: =SUM(G3-G12) -> 690 | J12: 11h | K12: =SUM(K11,-K4)+M11 -> 27520 | L12: =SUM(K3-K12) -> 480 | N12: 11h | O12: =SUM(O11,-O4)+Q11 -> 27520 | P12: =SUM(O3-O12) -> 480
B13: 12h | C13: =SUM(C12,-C4)+E12 -> 48600 | D13: =SUM(C3-C13) -> 8400 | F13: 12h | G13: =SUM(G12,-G4)+I12 -> 27195 | H13: =SUM(G3-G13) -> 805 | J13: 12h | K13: =SUM(K12,-K4)+M12 -> 27440 | L13: =SUM(K3-K13) -> 560 | N13: 12h | O13: =SUM(O12,-O4)+Q12 -> 27440 | P13: =SUM(O3-O13) -> 560
B14: 13h | C14: =SUM(C13,-C4)+E13 -> 47400 | D14: =SUM(C3-C14) -> 9600 | F14: 13h | G14: =SUM(G13,-G4)+I13 -> 27080 | H14: =SUM(G3-G14) -> 920 | J14: 13h | K14: =SUM(K13,-K4)+M13 -> 27360 | L14: =SUM(K3-K14) -> 640 | N14: 13h | O14: =SUM(O13,-O4)+Q13 -> 27360 | P14: =SUM(O3-O14) -> 640
B15: 14h | C15: =SUM(C14,-C4)+E14 -> 46200 | D15: =SUM(C3-C15) -> 10800 | F15: 14h | G15: =SUM(G14,-G4)+I14 -> 26965 | H15: =SUM(G3-G15) -> 1035 | J15: 14h | K15: =SUM(K14,-K4)+M14 -> 27280 | L15: =SUM(K3-K15) -> 720 | N15: 14h | O15: =SUM(O14,-O4)+Q14 -> 27280 | P15: =SUM(O3-O15) -> 720
B16: 15h | C16: =SUM(C15,-C4)+E15 -> 45000 | D16: =SUM(C3-C16) -> 12000 | F16: 15h | G16: =SUM(G15,-G4)+I15 -> 26850 | H16: =SUM(G3-G16) -> 1150 | J16: 15h | K16: =SUM(K15,-K4)+M15 -> 27200 | L16: =SUM(K3-K16) -> 800 | N16: 15h | O16: =SUM(O15,-O4)+Q15 -> 27200 | P16: =SUM(O3-O16) -> 800
B17: 16h | C17: =SUM(C16-C4)+E16 -> 43800 | D17: =SUM(C3-C17) -> 13200 | F17: 16h | G17: =SUM(G16-G4)+I16 -> 26735 | H17: =SUM(G3-G17) -> 1265 | J17: 16h | K17: =SUM(K16-K4)+M16 -> 27120 | L17: =SUM(K3-K17) -> 880 | N17: 16h | O17: =SUM(O16-O4)+Q16 -> 27120 | P17: =SUM(O3-O17) -> 880
B18: 17h | C18: =SUM(C17-C4)+E17 -> 42600 | D18: =SUM(C3-C18) -> 14400 | F18: 17h | G18: =SUM(G17-G4)+I17 -> 26620 | H18: =SUM(G3-G18) -> 1380 | J18: 17h | K18: =SUM(K17-K4)+M17 -> 27040 | L18: =SUM(K3-K18) -> 960 | N18: 17h | O18: =SUM(O17-O4)+Q17 -> 27040 | P18: =SUM(O3-O18) -> 960
B19: 18h | C19: =SUM(C18-C4)+E18 -> 41400 | D19: =SUM(C3-C19) -> 15600 | F19: 18h | G19: =SUM(G18-G4)+I18 -> 26505 | H19: =SUM(G3-G19) -> 1495 | J19: 18h | K19: =SUM(K18-K4)+M18 -> 26960 | L19: =SUM(K3-K19) -> 1040 | N19: 18h | O19: =SUM(O18-O4)+Q18 -> 26960 | P19: =SUM(O3-O19) -> 1040
B20: 19h | C20: =SUM(C19-C4)+E19 -> 40200 | D20: =SUM(C3-C20) -> 16800 | F20: 19h | G20: =SUM(G19-G4)+I19 -> 26390 | H20: =SUM(G3-G20) -> 1610 | J20: 19h | K20: =SUM(K19-K4)+M19 -> 26880 | L20: =SUM(K3-K20) -> 1120 | N20: 19h | O20: =SUM(O19-O4)+Q19 -> 26880 | P20: =SUM(O3-O20) -> 1120
B21: 20h | C21: =SUM(C20,-C4)+E20 -> 39000 | D21: =SUM(C3-C21) -> 18000 | F21: 20h | G21: =SUM(G20,-G4)+I20 -> 26275 | H21: =SUM(G3-G21) -> 1725 | J21: 20h | K21: =SUM(K20,-K4)+M20 -> 26800 | L21: =SUM(K3-K21) -> 1200 | N21: 20h | O21: =SUM(O20,-O4)+Q20 -> 26800 | P21: =SUM(O3-O21) -> 1200
B22: 21h | C22: =SUM(C21-C4)+E21 -> 37800 | D22: =SUM(C3-C22) -> 19200 | F22: 21h | G22: =SUM(G21-G4)+I21 -> 26160 | H22: =SUM(G3-G22) -> 1840 | J22: 21h | K22: =SUM(K21-K4)+M21 -> 26720 | L22: =SUM(K3-K22) -> 1280 | N22: 21h | O22: =SUM(O21-O4)+Q21 -> 26720 | P22: =SUM(O3-O22) -> 1280
B23: 22h | C23: =SUM(C22-C4)+E22 -> 36600 | D23: =SUM(C3-C23) -> 20400 | F23: 22h | G23: =SUM(G22-G4)+I22 -> 26045 | H23: =SUM(G3-G23) -> 1955 | J23: 22h | K23: =SUM(K22-K4)+M22 -> 26640 | L23: =SUM(K3-K23) -> 1360 | N23: 22h | O23: =SUM(O22-O4)+Q22 -> 26640 | P23: =SUM(O3-O23) -> 1360
B24: 23h | C24: =SUM(C23-C4)+E23 -> 35400 | D24: =SUM(C3-C24) -> 21600 | F24: 23h | G24: =SUM(G23-G4)+I23 -> 25930 | H24: =SUM(G3-G24) -> 2070 | J24: 23h | K24: =SUM(K23-K4)+M23 -> 26560 | L24: =SUM(K3-K24) -> 1440 | N24: 23h | O24: =SUM(O23-O4)+Q23 -> 26560 | P24: =SUM(O3-O24) -> 1440
D25: Diesiel | H25: 95 | L25: Diesiel excellium | P25: 98 excellium
B26: Citerne | C26: =SUM(C3) -> 57000 | D26: MARDI | F26: Citerne | G26: =SUM(G3) -> 28000 | J26: Citerne | K26: =SUM(K3) -> 28000 | N26: Citerne | O26: =SUM(O3) -> 28000
B27: Vente / H | C27: =SUM(C4) -> 1200 | F27: Vente / H | G27: =SUM(G4) -> 115 | J27: Vente / H | K27: =SUM(K4) -> 80 | N27: Vente / H | O27: =SUM(O4) -> 80
C28: Stock | D28: Commande | E28: Livraison | G28: Stock | H28: Commande | I28: Livraison | K28: Stock | L28: Commande | M28: Livraison | O28: Stock | P28: Commande | Q28: Livraison
B29: 5h | C29: =SUM(C24) -> 35400 | F29: 5h | G29: =SUM(G24) -> 25930 | J29: 5h | K29: =SUM(K24) -> 26560 | N29: 5h | O29: =SUM(O24) -> 26560
B30: 6h | C30: =SUM(C29,-C27)+E29 -> 34200 | D30: =SUM(C26-C30) -> 22800 | F30: 6h | G30: =SUM(G29,-G27)+I29 -> 25815 | H30: =SUM(G26-G30) -> 2185 | J30: 6h | K30: =SUM(K29,-K27)+M29 -> 26480 | L30: =SUM(K26-K30) -> 1520 | N30: 6h | O30: =SUM(O29,-O27)+Q29 -> 26480 | P30: =SUM(O26-O30) -> 1520
B31: 7h | C31: =SUM(C30,-C27)+E30 -> 33000 | D31: =SUM(C26-C31) -> 24000 | F31: 7h | G31: =SUM(G30,-G27)+I30 -> 25700 | H31: =SUM(G26-G31) -> 2300 | J31: 7h | K31: =SUM(K30,-K27)+M30 -> 26400 | L31: =SUM(K26-K31) -> 1600 | N31: 7h | O31: =SUM(O30,-O27)+Q30 -> 26400 | P31: =SUM(O26-O31) -> 1600
B32: 8h | C32: =SUM(C31,-C27)+E31 -> 31800 | D32: =SUM(C26-C32) -> 25200 | F32: 8h | G32: =SUM(G31,-G27)+I31 -> 25585 | H32: =SUM(G26-G32) -> 2415 | J32: 8h | K32: =SUM(K31,-K27)+M31 -> 26320 | L32: =SUM(K26-K32) -> 1680 | N32: 8h | O32: =SUM(O31,-O27)+Q31 -> 26320 | P32: =SUM(O26-O32) -> 1680
B33: 9h | C33: =SUM(C32-C27+E32) -> 30600 | D33: =SUM(C26-C33) -> 26400 | F33: 9h | G33: =SUM(G32-G27+I32) -> 25470 | H33: =SUM(G26-G33) -> 2530 | J33: 9h | K33: =SUM(K32-K27+M32) -> 26240 | L33: =SUM(K26-K33) -> 1760 | N33: 9h | O33: =SUM(O32-O27+Q32) -> 26240 | P33: =SUM(O26-O33) -> 1760
B34: 10h | C34: =SUM(C33-C27+E33) -> 29400 | D34: =SUM(C26-C34) -> 27600 | F34: 10h | G34: =SUM(G33-G27+I33) -> 25355 | H34: =SUM(G26-G34) -> 2645 | J34: 10h | K34: =SUM(K33-K27+M33) -> 26160 | L34: =SUM(K26-K34) -> 1840 | N34: 10h | O34: =SUM(O33-O27+Q33) -> 26160 | P34: =SUM(O26-O34) -> 1840
B35: 11h | C35: =SUM(C34,-C27)+E34 -> 28200 | D35: =SUM(C26-C35) -> 28800 | F35: 11h | G35: =SUM(G34,-G27)+I34 -> 25240 | H35: =SUM(G26-G35) -> 2760 | J35: 11h | K35: =SUM(K34,-K27)+M34 -> 26080 | L35: =SUM(K26-K35) -> 1920 | N35: 11h | O35: =SUM(O34,-O27)+Q34 -> 26080 | P35: =SUM(O26-O35) -> 1920
B36: 12h | C36: =SUM(C35,-C27)+E35 -> 27000 | D36: =SUM(C26-C36) -> 30000 | F36: 12h | G36: =SUM(G35,-G27)+I35 -> 25125 | H36: =SUM(G26-G36) -> 2875 | J36: 12h | K36: =SUM(K35,-K27)+M35 -> 26000 | L36: =SUM(K26-K36) -> 2000 | N36: 12h | O36: =SUM(O35,-O27)+Q35 -> 26000 | P36: =SUM(O26-O36) -> 2000
B37: 13h | C37: =SUM(C36,-C27)+E36 -> 25800 | D37: =SUM(C26-C37) -> 31200 | F37: 13h | G37: =SUM(G36,-G27)+I36 -> 25010 | H37: =SUM(G26-G37) -> 2990 | J37: 13h | K37: =SUM(K36,-K27)+M36 -> 25920 | L37: =SUM(K26-K37) -> 2080 | N37: 13h | O37: =SUM(O36,-O27)+Q36 -> 25920 | P37: =SUM(O26-O37) -> 2080
B38: 14h | C38: =SUM(C37,-C27)+E37 -> 24600 | D38: =SUM(C26-C38) -> 32400 | F38: 14h | G38: =SUM(G37,-G27)+I37 -> 24895 | H38: =SUM(G26-G38) -> 3105 | J38: 14h | K38: =SUM(K37,-K27)+M37 -> 25840 | L38: =SUM(K26-K38) -> 2160 | N38: 14h | O38: =SUM(O37,-O27)+Q37 -> 25840 | P38: =SUM(O26-O38) -> 2160
B39: 15h | C39: =SUM(C38,-C27)+E38 -> 23400 | D39: =SUM(C26-C39) -> 33600 | F39: 15h | G39: =SUM(G38,-G27)+I38 -> 24780 | H39: =SUM(G26-G39) -> 3220 | J39: 15h | K39: =SUM(K38,-K27)+M38 -> 25760 | L39: =SUM(K26-K39) -> 2240 | N39: 15h | O39: =SUM(O38,-O27)+Q38 -> 25760 | P39: =SUM(O26-O39) -> 2240
B40: 16h | C40: =SUM(C39-C27)+E39 -> 22200 | D40: =SUM(C26-C40) -> 34800 | F40: 16h | G40: =SUM(G39-G27)+I39 -> 24665 | H40: =SUM(G26-G40) -> 3335 | J40: 16h | K40: =SUM(K39-K27)+M39 -> 25680 | L40: =SUM(K26-K40) -> 2320 | N40: 16h | O40: =SUM(O39-O27)+Q39 -> 25680 | P40: =SUM(O26-O40) -> 2320
B41: 17h | C41: =SUM(C40-C27)+E40 -> 21000 | D41: =SUM(C26-C41) -> 36000 | F41: 17h | G41: =SUM(G40-G27)+I40 -> 24550 | H41: =SUM(G26-G41) -> 3450 | J41: 17h | K41: =SUM(K40-K27)+M40 -> 25600 | L41: =SUM(K26-K41) -> 2400 | N41: 17h | O41: =SUM(O40-O27)+Q40 -> 25600 | P41: =SUM(O26-O41) -> 2400
B42: 18h | C42: =SUM(C41-C27)+E41 -> 19800 | D42: =SUM(C26-C42) -> 37200 | F42: 18h | G42: =SUM(G41-G27)+I41 -> 24435 | H42: =SUM(G26-G42) -> 3565 | J42: 18h | K42: =SUM(K41-K27)+M41 -> 25520 | L42: =SUM(K26-K42) -> 2480 | N42: 18h | O42: =SUM(O41-O27)+Q41 -> 25520 | P42: =SUM(O26-O42) -> 2480
B43: 19h | C43: =SUM(C42-C27)+E42 -> 18600 | D43: =SUM(C26-C43) -> 38400 | F43: 19h | G43: =SUM(G42-G27)+I42 -> 24320 | H43: =SUM(G26-G43) -> 3680 | J43: 19h | K43: =SUM(K42-K27)+M42 -> 25440 | L43: =SUM(K26-K43) -> 2560 | N43: 19h | O43: =SUM(O42-O27)+Q42 -> 25440 | P43: =SUM(O26-O43) -> 2560
B44: 20h | C44: =SUM(C43,-C27)+E43 -> 17400 | D44: =SUM(C26-C44) -> 39600 | F44: 20h | G44: =SUM(G43,-G27)+I43 -> 24205 | H44: =SUM(G26-G44) -> 3795 | J44: 20h | K44: =SUM(K43,-K27)+M43 -> 25360 | L44: =SUM(K26-K44) -> 2640 | N44: 20h | O44: =SUM(O43,-O27)+Q43 -> 25360 | P44: =SUM(O26-O44) -> 2640
B45: 21h | C45: =SUM(C44-C27)+E44 -> 16200 | D45: =SUM(C26-C45) -> 40800 | F45: 21h | G45: =SUM(G44-G27)+I44 -> 24090 | H45: =SUM(G26-G45) -> 3910 | J45: 21h | K45: =SUM(K44-K27)+M44 -> 25280 | L45: =SUM(K26-K45) -> 2720 | N45: 21h | O45: =SUM(O44-O27)+Q44 -> 25280 | P45: =SUM(O26-O45) -> 2720
B46: 22h | C46: =SUM(C45-C27)+E45 -> 15000 | D46: =SUM(C26-C46) -> 42000 | F46: 22h | G46: =SUM(G45-G27)+I45 -> 23975 | H46: =SUM(G26-G46) -> 4025 | J46: 22h | K46: =SUM(K45-K27)+M45 -> 25200 | L46: =SUM(K26-K46) -> 2800 | N46: 22h | O46: =SUM(O45-O27)+Q45 -> 25200 | P46: =SUM(O26-O46) -> 2800
B47: 23h | C47: =SUM(C46-C27)+E46 -> 13800 | D47: =SUM(C26-C47) -> 43200 | F47: 23h | G47: =SUM(G46-G27)+I46 -> 23860 | H47: =SUM(G26-G47) -> 4140 | J47: 23h | K47: =SUM(K46-K27)+M46 -> 25120 | L47: =SUM(K26-K47) -> 2880 | N47: 23h | O47: =SUM(O46-O27)+Q46 -> 25120 | P47: =SUM(O26-O47) -> 2880
D48: Diesiel | H48: 95 | L48: Diesiel excellium | P48: 98 excellium
B49: Citerne | C49: =SUM(C26) -> 57000 | D49: MERCREDI | F49: Citerne | G49: =SUM(G26) -> 28000 | J49: Citerne | K49: =SUM(K26) -> 28000 | N49: Citerne | O49: =SUM(O26) -> 28000
B50: Vente / H | C50: =SUM(C27) -> 1200 | F50: Vente / H | G50: =SUM(G27) -> 115 | J50: Vente / H | K50: =SUM(K27) -> 80 | N50: Vente / H | O50: =SUM(O27) -> 80
C51: Stock | D51: Commande | E51: Livraison | G51: Stock | H51: Commande | I51: Livraison | K51: Stock | L51: Commande | M51: Livraison | O51: Stock | P51: Commande | Q51: Livraison
B52: 5h | C52: =SUM(C47) -> 13800 | F52: 5h | G52: =SUM(G47) -> 23860 | J52: 5h | K52: =SUM(K47) -> 25120 | N52: 5h | O52: =SUM(O47) -> 25120
B53: 6h | C53: =SUM(C52,-C50)+E52 -> 12600 | D53: =SUM(C49-C53) -> 44400 | F53: 6h | G53: =SUM(G52,-G50)+I52 -> 23745 | H53: =SUM(G49-G53) -> 4255 | J53: 6h | K53: =SUM(K52,-K50)+M52 -> 25040 | L53: =SUM(K49-K53) -> 2960 | N53: 6h | O53: =SUM(O52,-O50)+Q52 -> 25040 | P53: =SUM(O49-O53) -> 2960
B54: 7h | C54: =SUM(C53,-C50)+E53 -> 11400 | D54: =SUM(C49-C54) -> 45600 | F54: 7h | G54: =SUM(G53,-G50)+I53 -> 23630 | H54: =SUM(G49-G54) -> 4370 | J54: 7h | K54: =SUM(K53,-K50)+M53 -> 24960 | L54: =SUM(K49-K54) -> 3040 | N54: 7h | O54: =SUM(O53,-O50)+Q53 -> 24960 | P54: =SUM(O49-O54) -> 3040
B55: 8h | C55: =SUM(C54,-C50)+E54 -> 10200 | D55: =SUM(C49-C55) -> 46800 | F55: 8h | G55: =SUM(G54,-G50)+I54 -> 23515 | H55: =SUM(G49-G55) -> 4485 | J55: 8h | K55: =SUM(K54,-K50)+M54 -> 24880 | L55: =SUM(K49-K55) -> 3120 | N55: 8h | O55: =SUM(O54,-O50)+Q54 -> 24880 | P55: =SUM(O49-O55) -> 3120
B56: 9h | C56: =SUM(C55-C50+E55) -> 9000 | D56: =SUM(C49-C56) -> 48000 | F56: 9h | G56: =SUM(G55-G50+I55) -> 23400 | H56: =SUM(G49-G56) -> 4600 | J56: 9h | K56: =SUM(K55-K50+M55) -> 24800 | L56: =SUM(K49-K56) -> 3200 | N56: 9h | O56: =SUM(O55-O50+Q55) -> 24800 | P56: =SUM(O49-O56) -> 3200
B57: 10h | C57: =SUM(C56-C50+E56) -> 7800 | D57: =SUM(C49-C57) -> 49200 | F57: 10h | G57: =SUM(G56-G50+I56) -> 23285 | H57: =SUM(G49-G57) -> 4715 | J57: 10h | K57: =SUM(K56-K50+M56) -> 24720 | L57: =SUM(K49-K57) -> 3280 | N57: 10h | O57: =SUM(O56-O50+Q56) -> 24720 | P57: =SUM(O49-O57) -> 3280
B58: 11h | C58: =SUM(C57,-C50)+E57 -> 6600 | D58: =SUM(C49-C58) -> 50400 | F58: 11h | G58: =SUM(G57,-G50)+I57 -> 23170 | H58: =SUM(G49-G58) -> 4830 | J58: 11h | K58: =SUM(K57,-K50)+M57 -> 24640 | L58: =SUM(K49-K58) -> 3360 | N58: 11h | O58: =SUM(O57,-O50)+Q57 -> 24640 | P58: =SUM(O49-O58) -> 3360
B59: 12h | C59: =SUM(C58,-C50)+E58 -> 5400 | D59: =SUM(C49-C59) -> 51600 | F59: 12h | G59: =SUM(G58,-G50)+I58 -> 23055 | H59: =SUM(G49-G59) -> 4945 | J59: 12h | K59: =SUM(K58,-K50)+M58 -> 24560 | L59: =SUM(K49-K59) -> 3440 | N59: 12h | O59: =SUM(O58,-O50)+Q58 -> 24560 | P59: =SUM(O49-O59) -> 3440
B60: 13h | C60: =SUM(C59,-C50)+E59 -> 4200 | D60: =SUM(C49-C60) -> 52800 | F60: 13h | G60: =SUM(G59,-G50)+I59 -> 22940 | H60: =SUM(G49-G60) -> 5060 | J60: 13h | K60: =SUM(K59,-K50)+M59 -> 24480 | L60: =SUM(K49-K60) -> 3520 | N60: 13h | O60: =SUM(O59,-O50)+Q59 -> 24480 | P60: =SUM(O49-O60) -> 3520
B61: 14h | C61: =SUM(C60,-C50)+E60 -> 3000 | D61: =SUM(C49-C61) -> 54000 | F61: 14h | G61: =SUM(G60,-G50)+I60 -> 22825 | H61: =SUM(G49-G61) -> 5175 | J61: 14h | K61: =SUM(K60,-K50)+M60 -> 24400 | L61: =SUM(K49-K61) -> 3600 | N61: 14h | O61: =SUM(O60,-O50)+Q60 -> 24400 | P61: =SUM(O49-O61) -> 3600
B62: 15h | C62: =SUM(C61,-C50)+E61 -> 1800 | D62: =SUM(C49-C62) -> 55200 | F62: 15h | G62: =SUM(G61,-G50)+I61 -> 22710 | H62: =SUM(G49-G62) -> 5290 | J62: 15h | K62: =SUM(K61,-K50)+M61 -> 24320 | L62: =SUM(K49-K62) -> 3680 | N62: 15h | O62: =SUM(O61,-O50)+Q61 -> 24320 | P62: =SUM(O49-O62) -> 3680
B63: 16h | C63: =SUM(C62-C50)+E62 -> 600 | D63: =SUM(C49-C63) -> 56400 | F63: 16h | G63: =SUM(G62-G50)+I62 -> 22595 | H63: =SUM(G49-G63) -> 5405 | J63: 16h | K63: =SUM(K62-K50)+M62 -> 24240 | L63: =SUM(K49-K63) -> 3760 | N63: 16h | O63: =SUM(O62-O50)+Q62 -> 24240 | P63: =SUM(O49-O63) -> 3760
B64: 17h | C64: =SUM(C63-C50)+E63 -> -600 | D64: =SUM(C49-C64) -> 57600 | F64: 17h | G64: =SUM(G63-G50)+I63 -> 22480 | H64: =SUM(G49-G64) -> 5520 | J64: 17h | K64: =SUM(K63-K50)+M63 -> 24160 | L64: =SUM(K49-K64) -> 3840 | N64: 17h | O64: =SUM(O63-O50)+Q63 -> 24160 | P64: =SUM(O49-O64) -> 3840
B65: 18h | C65: =SUM(C64-C50)+E64 -> -1800 | D65: =SUM(C49-C65) -> 58800 | F65: 18h | G65: =SUM(G64-G50)+I64 -> 22365 | H65: =SUM(G49-G65) -> 5635 | J65: 18h | K65: =SUM(K64-K50)+M64 -> 24080 | L65: =SUM(K49-K65) -> 3920 | N65: 18h | O65: =SUM(O64-O50)+Q64 -> 24080 | P65: =SUM(O49-O65) -> 3920
B66: 19h | C66: =SUM(C65-C50)+E65 -> -3000 | D66: =SUM(C49-C66) -> 60000 | F66: 19h | G66: =SUM(G65-G50)+I65 -> 22250 | H66: =SUM(G49-G66) -> 5750 | J66: 19h | K66: =SUM(K65-K50)+M65 -> 24000 | L66: =SUM(K49-K66) -> 4000 | N66: 19h | O66: =SUM(O65-O50)+Q65 -> 24000 | P66: =SUM(O49-O66) -> 4000
B67: 20h | C67: =SUM(C66,-C50)+E66 -> -4200 | D67: =SUM(C49-C67) -> 61200 | F67: 20h | G67: =SUM(G66,-G50)+I66 -> 22135 | H67: =SUM(G49-G67) -> 5865 | J67: 20h | K67: =SUM(K66,-K50)+M66 -> 23920 | L67: =SUM(K49-K67) -> 4080 | N67: 20h | O67: =SUM(O66,-O50)+Q66 -> 23920 | P67: =SUM(O49-O67) -> 4080
B68: 21h | C68: =SUM(C67-C50)+E67 -> -5400 | D68: =SUM(C49-C68) -> 62400 | F68: 21h | G68: =SUM(G67-G50)+I67 -> 22020 | H68: =SUM(G49-G68) -> 5980 | J68: 21h | K68: =SUM(K67-K50)+M67 -> 23840 | L68: =SUM(K49-K68) -> 4160 | N68: 21h | O68: =SUM(O67-O50)+Q67 -> 23840 | P68: =SUM(O49-O68) -> 4160
B69: 22h | C69: =SUM(C68-C50)+E68 -> -6600 | D69: =SUM(C49-C69) -> 63600 | F69: 22h | G69: =SUM(G68-G50)+I68 -> 21905 | H69: =SUM(G49-G69) -> 6095 | J69: 22h | K69: =SUM(K68-K50)+M68 -> 23760 | L69: =SUM(K49-K69) -> 4240 | N69: 22h | O69: =SUM(O68-O50)+Q68 -> 23760 | P69: =SUM(O49-O69) -> 4240
B70: 23h | C70: =SUM(C69-C50)+E69 -> -7800 | D70: =SUM(C49-C70) -> 64800 | F70: 23h | G70: =SUM(G69-G50)+I69 -> 21790 | H70: =SUM(G49-G70) -> 6210 | J70: 23h | K70: =SUM(K69-K50)+M69 -> 23680 | L70: =SUM(K49-K70) -> 4320 | N70: 23h | O70: =SUM(O69-O50)+Q69 -> 23680 | P70: =SUM(O49-O70) -> 4320
D71: Diesiel | H71: 95 | L71: Diesiel excellium | P71: 98 excellium
B72: Citerne | C72: =SUM(C49) -> 57000 | D72: JEUDI | F72: Citerne | G72: =SUM(G49) -> 28000 | J72: Citerne | K72: =SUM(K49) -> 28000 | N72: Citerne | O72: =SUM(O49) -> 28000
B73: Vente / H | C73: =SUM(C50) -> 1200 | F73: Vente / H | G73: =SUM(G50) -> 115 | J73: Vente / H | K73: =SUM(K50) -> 80 | N73: Vente / H | O73: =SUM(O50) -> 80
C74: Stock | D74: Commande | E74: Livraison | G74: Stock | H74: Commande | I74: Livraison | K74: Stock | L74: Commande | M74: Livraison | O74: Stock | P74: Commande | Q74: Livraison
B75: 5h | C75: =SUM(C70) -> -7800 | F75: 5h | G75: =SUM(G70) -> 21790 | J75: 5h | K75: =SUM(K70) -> 23680 | N75: 5h | O75: =SUM(O70) -> 23680
B76: 6h | C76: =SUM(C75,-C73)+E75 -> -9000 | D76: =SUM(C72-C76) -> 66000 | F76: 6h | G76: =SUM(G75,-G73)+I75 -> 21675 | H76: =SUM(G72-G76) -> 6325 | J76: 6h | K76: =SUM(K75,-K73)+M75 -> 23600 | L76: =SUM(K72-K76) -> 4400 | N76: 6h | O76: =SUM(O75,-O73)+Q75 -> 23600 | P76: =SUM(O72-O76) -> 4400
B77: 7h | C77: =SUM(C76,-C73)+E76 -> -10200 | D77: =SUM(C72-C77) -> 67200 | F77: 7h | G77: =SUM(G76,-G73)+I76 -> 21560 | H77: =SUM(G72-G77) -> 6440 | J77: 7h | K77: =SUM(K76,-K73)+M76 -> 23520 | L77: =SUM(K72-K77) -> 4480 | N77: 7h | O77: =SUM(O76,-O73)+Q76 -> 23520 | P77: =SUM(O72-O77) -> 4480
B78: 8h | C78: =SUM(C77,-C73)+E77 -> -11400 | D78: =SUM(C72-C78) -> 68400 | F78: 8h | G78: =SUM(G77,-G73)+I77 -> 21445 | H78: =SUM(G72-G78) -> 6555 | J78: 8h | K78: =SUM(K77,-K73)+M77 -> 23440 | L78: =SUM(K72-K78) -> 4560 | N78: 8h | O78: =SUM(O77,-O73)+Q77 -> 23440 | P78: =SUM(O72-O78) -> 4560
B79: 9h | C79: =SUM(C78-C73+E78) -> -12600 | D79: =SUM(C72-C79) -> 69600 | F79: 9h | G79: =SUM(G78-G73+I78) -> 21330 | H79: =SUM(G72-G79) -> 6670 | J79: 9h | K79: =SUM(K78-K73+M78) -> 23360 | L79: =SUM(K72-K79) -> 4640 | N79: 9h | O79: =SUM(O78-O73+Q78) -> 23360 | P79: =SUM(O72-O79) -> 4640
B80: 10h | C80: =SUM(C79-C73+E79) -> -13800 | D80: =SUM(C72-C80) -> 70800 | F80: 10h | G80: =SUM(G79-G73+I79) -> 21215 | H80: =SUM(G72-G80) -> 6785 | J80: 10h | K80: =SUM(K79-K73+M79) -> 23280 | L80: =SUM(K72-K80) -> 4720 | N80: 10h | O80: =SUM(O79-O73+Q79) -> 23280 | P80: =SUM(O72-O80) -> 4720
B81: 11h | C81: =SUM(C80,-C73)+E80 -> -15000 | D81: =SUM(C72-C81) -> 72000 | F81: 11h | G81: =SUM(G80,-G73)+I80 -> 21100 | H81: =SUM(G72-G81) -> 6900 | J81: 11h | K81: =SUM(K80,-K73)+M80 -> 23200 | L81: =SUM(K72-K81) -> 4800 | N81: 11h | O81: =SUM(O80,-O73)+Q80 -> 23200 | P81: =SUM(O72-O81) -> 4800
B82: 12h | C82: =SUM(C81,-C73)+E81 -> -16200 | D82: =SUM(C72-C82) -> 73200 | F82: 12h | G82: =SUM(G81,-G73)+I81 -> 20985 | H82: =SUM(G72-G82) -> 7015 | J82: 12h | K82: =SUM(K81,-K73)+M81 -> 23120 | L82: =SUM(K72-K82) -> 4880 | N82: 12h | O82: =SUM(O81,-O73)+Q81 -> 23120 | P82: =SUM(O72-O82) -> 4880
B83: 13h | C83: =SUM(C82,-C73)+E82 -> -17400 | D83: =SUM(C72-C83) -> 74400 | F83: 13h | G83: =SUM(G82,-G73)+I82 -> 20870 | H83: =SUM(G72-G83) -> 7130 | J83: 13h | K83: =SUM(K82,-K73)+M82 -> 23040 | L83: =SUM(K72-K83) -> 4960 | N83: 13h | O83: =SUM(O82,-O73)+Q82 -> 23040 | P83: =SUM(O72-O83) -> 4960
B84: 14h | C84: =SUM(C83,-C73)+E83 -> -18600 | D84: =SUM(C72-C84) -> 75600 | F84: 14h | G84: =SUM(G83,-G73)+I83 -> 20755 | H84: =SUM(G72-G84) -> 7245 | J84: 14h | K84: =SUM(K83,-K73)+M83 -> 22960 | L84: =SUM(K72-K84) -> 5040 | N84: 14h | O84: =SUM(O83,-O73)+Q83 -> 22960 | P84: =SUM(O72-O84) -> 5040
B85: 15h | C85: =SUM(C84,-C73)+E84 -> -19800 | D85: =SUM(C72-C85) -> 76800 | F85: 15h | G85: =SUM(G84,-G73)+I84 -> 20640 | H85: =SUM(G72-G85) -> 7360 | J85: 15h | K85: =SUM(K84,-K73)+M84 -> 22880 | L85: =SUM(K72-K85) -> 5120 | N85: 15h | O85: =SUM(O84,-O73)+Q84 -> 22880 | P85: =SUM(O72-O85) -> 5120
B86: 16h | C86: =SUM(C85-C73)+E85 -> -21000 | D86: =SUM(C72-C86) -> 78000 | F86: 16h | G86: =SUM(G85-G73)+I85 -> 20525 | H86: =SUM(G72-G86) -> 7475 | J86: 16h | K86: =SUM(K85-K73)+M85 -> 22800 | L86: =SUM(K72-K86) -> 5200 | N86: 16h | O86: =SUM(O85-O73)+Q85 -> 22800 | P86: =SUM(O72-O86) -> 5200
B87: 17h | C87: =SUM(C86-C73)+E86 -> -22200 | D87: =SUM(C72-C87) -> 79200 | F87: 17h | G87: =SUM(G86-G73)+I86 -> 20410 | H87: =SUM(G72-G87) -> 7590 | J87: 17h | K87: =SUM(K86-K73)+M86 -> 22720 | L87: =SUM(K72-K87) -> 5280 | N87: 17h | O87: =SUM(O86-O73)+Q86 -> 22720 | P87: =SUM(O72-O87) -> 5280
B88: 18h | C88: =SUM(C87-C73)+E87 -> -23400 | D88: =SUM(C72-C88) -> 80400 | F88: 18h | G88: =SUM(G87-G73)+I87 -> 20295 | H88: =SUM(G72-G88) -> 7705 | J88: 18h | K88: =SUM(K87-K73)+M87 -> 22640 | L88: =SUM(K72-K88) -> 5360 | N88: 18h | O88: =SUM(O87-O73)+Q87 -> 22640 | P88: =SUM(O72-O88) -> 5360
B89: 19h | C89: =SUM(C88-C73)+E88 -> -24600 | D89: =SUM(C72-C89) -> 81600 | F89: 19h | G89: =SUM(G88-G73)+I88 -> 20180 | H89: =SUM(G72-G89) -> 7820 | J89: 19h | K89: =SUM(K88-K73)+M88 -> 22560 | L89: =SUM(K72-K89) -> 5440 | N89: 19h | O89: =SUM(O88-O73)+Q88 -> 22560 | P89: =SUM(O72-O89) -> 5440
B90: 20h | C90: =SUM(C89,-C73)+E89 -> -25800 | D90: =SUM(C72-C90) -> 82800 | F90: 20h | G90: =SUM(G89,-G73)+I89 -> 20065 | H90: =SUM(G72-G90) -> 7935 | J90: 20h | K90: =SUM(K89,-K73)+M89 -> 22480 | L90: =SUM(K72-K90) -> 5520 | N90: 20h | O90: =SUM(O89,-O73)+Q89 -> 22480 | P90: =SUM(O72-O90) -> 5520
B91: 21h | C91: =SUM(C90-C73)+E90 -> -27000 | D91: =SUM(C72-C91) -> 84000 | F91: 21h | G91: =SUM(G90-G73)+I90 -> 19950 | H91: =SUM(G72-G91) -> 8050 | J91: 21h | K91: =SUM(K90-K73)+M90 -> 22400 | L91: =SUM(K72-K91) -> 5600 | N91: 21h | O91: =SUM(O90-O73)+Q90 -> 22400 | P91: =SUM(O72-O91) -> 5600
B92: 22h | C92: =SUM(C91-C73)+E91 -> -28200 | D92: =SUM(C72-C92) -> 85200 | F92: 22h | G92: =SUM(G91-G73)+I91 -> 19835 | H92: =SUM(G72-G92) -> 8165 | J92: 22h | K92: =SUM(K91-K73)+M91 -> 22320 | L92: =SUM(K72-K92) -> 5680 | N92: 22h | O92: =SUM(O91-O73)+Q91 -> 22320 | P92: =SUM(O72-O92) -> 5680
B93: 23h | C93: =SUM(C92-C73)+E92 -> -29400 | D93: =SUM(C72-C93) -> 86400 | F93: 23h | G93: =SUM(G92-G73)+I92 -> 19720 | H93: =SUM(G72-G93) -> 8280 | J93: 23h | K93: =SUM(K92-K73)+M92 -> 22240 | L93: =SUM(K72-K93) -> 5760 | N93: 23h | O93: =SUM(O92-O73)+Q92 -> 22240 | P93: =SUM(O72-O93) -> 5760
D94: Diesiel | H94: 95 | L94: Diesiel excellium | P94: 98 excellium
B95: Citerne | C95: =SUM(C72) -> 57000 | D95: VENDREDI | F95: Citerne | G95: =SUM(G72) -> 28000 | J95: Citerne | K95: =SUM(K72) -> 28000 | N95: Citerne | O95: =SUM(O72) -> 28000
B96: Vente / H | C96: 1250 | F96: Vente / H | G96: =SUM(G73) -> 115 | J96: Vente / H | K96: =SUM(K73) -> 80 | N96: Vente / H | O96: =SUM(O73) -> 80
C97: Stock | D97: Commande | E97: Livraison | G97: Stock | H97: Commande | I97: Livraison | K97: Stock | L97: Commande | M97: Livraison | O97: Stock | P97: Commande | Q97: Livraison
B98: 5h | C98: =SUM(C93) -> -29400 | F98: 5h | G98: =SUM(G93) -> 19720 | J98: 5h | K98: =SUM(K93) -> 22240 | N98: 5h | O98: =SUM(O93) -> 22240
B99: 6h | C99: =SUM(C98,-C96)+E98 -> -30650 | D99: =SUM(C95-C99) -> 87650 | F99: 6h | G99: =SUM(G98,-G96)+I98 -> 19605 | H99: =SUM(G95-G99) -> 8395 | J99: 6h | K99: =SUM(K98,-K96)+M98 -> 22160 | L99: =SUM(K95-K99) -> 5840 | N99: 6h | O99: =SUM(O98,-O96)+Q98 -> 22160 | P99: =SUM(O95-O99) -> 5840
B100: 7h | C100: =SUM(C99,-C96)+E99 -> -31900 | D100: =SUM(C95-C100) -> 88900 | F100: 7h | G100: =SUM(G99,-G96)+I99 -> 19490 | H100: =SUM(G95-G100) -> 8510 | J100: 7h | K100: =SUM(K99,-K96)+M99 -> 22080 | L100: =SUM(K95-K100) -> 5920 | N100: 7h | O100: =SUM(O99,-O96)+Q99 -> 22080 | P100: =SUM(O95-O100) -> 5920
B101: 8h | C101: =SUM(C100,-C96)+E100 -> -33150 | D101: =SUM(C95-C101) -> 90150 | F101: 8h | G101: =SUM(G100,-G96)+I100 -> 19375 | H101: =SUM(G95-G101) -> 8625 | J101: 8h | K101: =SUM(K100,-K96)+M100 -> 22000 | L101: =SUM(K95-K101) -> 6000 | N101: 8h | O101: =SUM(O100,-O96)+Q100 -> 22000 | P101: =SUM(O95-O101) -> 6000
B102: 9h | C102: =SUM(C101-C96+E101) -> -34400 | D102: =SUM(C95-C102) -> 91400 | F102: 9h | G102: =SUM(G101-G96+I101) -> 19260 | H102: =SUM(G95-G102) -> 8740 | J102: 9h | K102: =SUM(K101-K96+M101) -> 21920 | L102: =SUM(K95-K102) -> 6080 | N102: 9h | O102: =SUM(O101-O96+Q101) -> 21920 | P102: =SUM(O95-O102) -> 6080
B103: 10h | C103: =SUM(C102-C96+E102) -> -35650 | D103: =SUM(C95-C103) -> 92650 | F103: 10h | G103: =SUM(G102-G96+I102) -> 19145 | H103: =SUM(G95-G103) -> 8855 | J103: 10h | K103: =SUM(K102-K96+M102) -> 21840 | L103: =SUM(K95-K103) -> 6160 | N103: 10h | O103: =SUM(O102-O96+Q102) -> 21840 | P103: =SUM(O95-O103) -> 6160
B104: 11h | C104: =SUM(C103,-C96)+E103 -> -36900 | D104: =SUM(C95-C104) -> 93900 | F104: 11h | G104: =SUM(G103,-G96)+I103 -> 19030 | H104: =SUM(G95-G104) -> 8970 | J104: 11h | K104: =SUM(K103,-K96)+M103 -> 21760 | L104: =SUM(K95-K104) -> 6240 | N104: 11h | O104: =SUM(O103,-O96)+Q103 -> 21760 | P104: =SUM(O95-O104) -> 6240
B105: 12h | C105: =SUM(C104,-C96)+E104 -> -38150 | D105: =SUM(C95-C105) -> 95150 | F105: 12h | G105: =SUM(G104,-G96)+I104 -> 18915 | H105: =SUM(G95-G105) -> 9085 | J105: 12h | K105: =SUM(K104,-K96)+M104 -> 21680 | L105: =SUM(K95-K105) -> 6320 | N105: 12h | O105: =SUM(O104,-O96)+Q104 -> 21680 | P105: =SUM(O95-O105) -> 6320
B106: 13h | C106: =SUM(C105,-C96)+E105 -> -39400 | D106: =SUM(C95-C106) -> 96400 | F106: 13h | G106: =SUM(G105,-G96)+I105 -> 18800 | H106: =SUM(G95-G106) -> 9200 | J106: 13h | K106: =SUM(K105,-K96)+M105 -> 21600 | L106: =SUM(K95-K106) -> 6400 | N106: 13h | O106: =SUM(O105,-O96)+Q105 -> 21600 | P106: =SUM(O95-O106) -> 6400
B107: 14h | C107: =SUM(C106,-C96)+E106 -> -40650 | D107: =SUM(C95-C107) -> 97650 | F107: 14h | G107: =SUM(G106,-G96)+I106 -> 18685 | H107: =SUM(G95-G107) -> 9315 | J107: 14h | K107: =SUM(K106,-K96)+M106 -> 21520 | L107: =SUM(K95-K107) -> 6480 | N107: 14h | O107: =SUM(O106,-O96)+Q106 -> 21520 | P107: =SUM(O95-O107) -> 6480
B108: 15h | C108: =SUM(C107,-C96)+E107 -> -41900 | D108: =SUM(C95-C108) -> 98900 | F108: 15h | G108: =SUM(G107,-G96)+I107 -> 18570 | H108: =SUM(G95-G108) -> 9430 | J108: 15h | K108: =SUM(K107,-K96)+M107 -> 21440 | L108: =SUM(K95-K108) -> 6560 | N108: 15h | O108: =SUM(O107,-O96)+Q107 -> 21440 | P108: =SUM(O95-O108) -> 6560
B109: 16h | C109: =SUM(C108-C96)+E108 -> -43150 | D109: =SUM(C95-C109) -> 100150 | F109: 16h | G109: =SUM(G108-G96)+I108 -> 18455 | H109: =SUM(G95-G109) -> 9545 | J109: 16h | K109: =SUM(K108-K96)+M108 -> 21360 | L109: =SUM(K95-K109) -> 6640 | N109: 16h | O109: =SUM(O108-O96)+Q108 -> 21360 | P109: =SUM(O95-O109) -> 6640
B110: 17h | C110: =SUM(C109-C96)+E109 -> -44400 | D110: =SUM(C95-C110) -> 101400 | F110: 17h | G110: =SUM(G109-G96)+I109 -> 18340 | H110: =SUM(G95-G110) -> 9660 | J110: 17h | K110: =SUM(K109-K96)+M109 -> 21280 | L110: =SUM(K95-K110) -> 6720 | N110: 17h | O110: =SUM(O109-O96)+Q109 -> 21280 | P110: =SUM(O95-O110) -> 6720
B111: 18h | C111: =SUM(C110-C96)+E110 -> -45650 | D111: =SUM(C95-C111) -> 102650 | F111: 18h | G111: =SUM(G110-G96)+I110 -> 18225 | H111: =SUM(G95-G111) -> 9775 | J111: 18h | K111: =SUM(K110-K96)+M110 -> 21200 | L111: =SUM(K95-K111) -> 6800 | N111: 18h | O111: =SUM(O110-O96)+Q110 -> 21200 | P111: =SUM(O95-O111) -> 6800
B112: 19h | C112: =SUM(C111-C96)+E111 -> -46900 | D112: =SUM(C95-C112) -> 103900 | F112: 19h | G112: =SUM(G111-G96)+I111 -> 18110 | H112: =SUM(G95-G112) -> 9890 | J112: 19h | K112: =SUM(K111-K96)+M111 -> 21120 | L112: =SUM(K95-K112) -> 6880 | N112: 19h | O112: =SUM(O111-O96)+Q111 -> 21120 | P112: =SUM(O95-O112) -> 6880
B113: 20h | C113: =SUM(C112,-C96)+E112 -> -48150 | D113: =SUM(C95-C113) -> 105150 | F113: 20h | G113: =SUM(G112,-G96)+I112 -> 17995 | H113: =SUM(G95-G113) -> 10005 | J113: 20h | K113: =SUM(K112,-K96)+M112 -> 21040 | L113: =SUM(K95-K113) -> 6960 | N113: 20h | O113: =SUM(O112,-O96)+Q112 -> 21040 | P113: =SUM(O95-O113) -> 6960
B114: 21h | C114: =SUM(C113-C96)+E113 -> -49400 | D114: =SUM(C95-C114) -> 106400 | F114: 21h | G114: =SUM(G113-G96)+I113 -> 17880 | H114: =SUM(G95-G114) -> 10120 | J114: 21h | K114: =SUM(K113-K96)+M113 -> 20960 | L114: =SUM(K95-K114) -> 7040 | N114: 21h | O114: =SUM(O113-O96)+Q113 -> 20960 | P114: =SUM(O95-O114) -> 7040
B115: 22h | C115: =SUM(C114-C96)+E114 -> -50650 | D115: =SUM(C95-C115) -> 107650 | F115: 22h | G115: =SUM(G114-G96)+I114 -> 17765 | H115: =SUM(G95-G115) -> 10235 | J115: 22h | K115: =SUM(K114-K96)+M114 -> 20880 | L115: =SUM(K95-K115) -> 7120 | N115: 22h | O115: =SUM(O114-O96)+Q114 -> 20880 | P115: =SUM(O95-O115) -> 7120
B116: 23h | C116: =SUM(C115-C96)+E115 -> -51900 | D116: =SUM(C95-C116) -> 108900 | F116: 23h | G116: =SUM(G115-G96)+I115 -> 17650 | H116: =SUM(G95-G116) -> 10350 | J116: 23h | K116: =SUM(K115-K96)+M115 -> 20800 | L116: =SUM(K95-K116) -> 7200 | N116: 23h | O116: =SUM(O115-O96)+Q115 -> 20800 | P116: =SUM(O95-O116) -> 7200
D117: Diesiel | H117: 95 | L117: Diesiel excellium | P117: 98 excellium
B118: Citerne | C118: =SUM(C95) -> 57000 | D118: SAMEDI | F118: Citerne | G118: =SUM(G95) -> 28000 | J118: Citerne | K118: =SUM(K95) -> 28000 | N118: Citerne | O118: =SUM(O95) -> 28000
B119: Vente / H | C119: 600 | F119: Vente / H | G119: =SUM(G96) -> 115 | J119: Vente / H | K119: =SUM(K96) -> 80 | N119: Vente / H | O119: =SUM(O96) -> 80
C120: Stock | D120: Commande | E120: Livraison | G120: Stock | H120: Commande | I120: Livraison | K120: Stock | L120: Commande | M120: Livraison | O120: Stock | P120: Commande | Q120: Livraison
B121: 5h | C121: =SUM(C116) -> -51900 | F121: 5h | G121: =SUM(G116) -> 17650 | J121: 5h | K121: =SUM(K116) -> 20800 | N121: 5h | O121: =SUM(O116) -> 20800
B122: 6h | C122: =SUM(C121,-C119)+E121 -> -52500 | D122: =SUM(C118-C122) -> 109500 | F122: 6h | G122: =SUM(G121,-G119)+I121 -> 17535 | H122: =SUM(G118-G122) -> 10465 | J122: 6h | K122: =SUM(K121,-K119)+M121 -> 20720 | L122: =SUM(K118-K122) -> 7280 | N122: 6h | O122: =SUM(O121,-O119)+Q121 -> 20720 | P122: =SUM(O118-O122) -> 7280
B123: 7h | C123: =SUM(C122,-C119)+E122 -> -53100 | D123: =SUM(C118-C123) -> 110100 | F123: 7h | G123: =SUM(G122,-G119)+I122 -> 17420 | H123: =SUM(G118-G123) -> 10580 | J123: 7h | K123: =SUM(K122,-K119)+M122 -> 20640 | L123: =SUM(K118-K123) -> 7360 | N123: 7h | O123: =SUM(O122,-O119)+Q122 -> 20640 | P123: =SUM(O118-O123) -> 7360
B124: 8h | C124: =SUM(C123,-C119)+E123 -> -53700 | D124: =SUM(C118-C124) -> 110700 | F124: 8h | G124: =SUM(G123,-G119)+I123 -> 17305 | H124: =SUM(G118-G124) -> 10695 | J124: 8h | K124: =SUM(K123,-K119)+M123 -> 20560 | L124: =SUM(K118-K124) -> 7440 | N124: 8h | O124: =SUM(O123,-O119)+Q123 -> 20560 | P124: =SUM(O118-O124) -> 7440
B125: 9h | C125: =SUM(C124-C119+E124) -> -54300 | D125: =SUM(C118-C125) -> 111300 | F125: 9h | G125: =SUM(G124-G119+I124) -> 17190 | H125: =SUM(G118-G125) -> 10810 | J125: 9h | K125: =SUM(K124-K119+M124) -> 20480 | L125: =SUM(K118-K125) -> 7520 | N125: 9h | O125: =SUM(O124-O119+Q124) -> 20480 | P125: =SUM(O118-O125) -> 7520
B126: 10h | C126: =SUM(C125-C119+E125) -> -54900 | D126: =SUM(C118-C126) -> 111900 | F126: 10h | G126: =SUM(G125-G119+I125) -> 17075 | H126: =SUM(G118-G126) -> 10925 | J126: 10h | K126: =SUM(K125-K119+M125) -> 20400 | L126: =SUM(K118-K126) -> 7600 | N126: 10h | O126: =SUM(O125-O119+Q125) -> 20400 | P126: =SUM(O118-O126) -> 7600
B127: 11h | C127: =SUM(C126,-C119)+E126 -> -55500 | D127: =SUM(C118-C127) -> 112500 | F127: 11h | G127: =SUM(G126,-G119)+I126 -> 16960 | H127: =SUM(G118-G127) -> 11040 | J127: 11h | K127: =SUM(K126,-K119)+M126 -> 20320 | L127: =SUM(K118-K127) -> 7680 | N127: 11h | O127: =SUM(O126,-O119)+Q126 -> 20320 | P127: =SUM(O118-O127) -> 7680
B128: 12h | C128: =SUM(C127,-C119)+E127 -> -56100 | D128: =SUM(C118-C128) -> 113100 | F128: 12h | G128: =SUM(G127,-G119)+I127 -> 16845 | H128: =SUM(G118-G128) -> 11155 | J128: 12h | K128: =SUM(K127,-K119)+M127 -> 20240 | L128: =SUM(K118-K128) -> 7760 | N128: 12h | O128: =SUM(O127,-O119)+Q127 -> 20240 | P128: =SUM(O118-O128) -> 7760
B129: 13h | C129: =SUM(C128,-C119)+E128 -> -56700 | D129: =SUM(C118-C129) -> 113700 | F129: 13h | G129: =SUM(G128,-G119)+I128 -> 16730 | H129: =SUM(G118-G129) -> 11270 | J129: 13h | K129: =SUM(K128,-K119)+M128 -> 20160 | L129: =SUM(K118-K129) -> 7840 | N129: 13h | O129: =SUM(O128,-O119)+Q128 -> 20160 | P129: =SUM(O118-O129) -> 7840
B130: 14h | C130: =SUM(C129,-C119)+E129 -> -57300 | D130: =SUM(C118-C130) -> 114300 | F130: 14h | G130: =SUM(G129,-G119)+I129 -> 16615 | H130: =SUM(G118-G130) -> 11385 | J130: 14h | K130: =SUM(K129,-K119)+M129 -> 20080 | L130: =SUM(K118-K130) -> 7920 | N130: 14h | O130: =SUM(O129,-O119)+Q129 -> 20080 | P130: =SUM(O118-O130) -> 7920
B131: 15h | C131: =SUM(C130,-C119)+E130 -> -57900 | D131: =SUM(C118-C131) -> 114900 | F131: 15h | G131: =SUM(G130,-G119)+I130 -> 16500 | H131: =SUM(G118-G131) -> 11500 | J131: 15h | K131: =SUM(K130,-K119)+M130 -> 20000 | L131: =SUM(K118-K131) -> 8000 | N131: 15h | O131: =SUM(O130,-O119)+Q130 -> 20000 | P131: =SUM(O118-O131) -> 8000
B132: 16h | C132: =SUM(C131-C119)+E131 -> -58500 | D132: =SUM(C118-C132) -> 115500 | F132: 16h | G132: =SUM(G131-G119)+I131 -> 16385 | H132: =SUM(G118-G132) -> 11615 | J132: 16h | K132: =SUM(K131-K119)+M131 -> 19920 | L132: =SUM(K118-K132) -> 8080 | N132: 16h | O132: =SUM(O131-O119)+Q131 -> 19920 | P132: =SUM(O118-O132) -> 8080
B133: 17h | C133: =SUM(C132-C119)+E132 -> -59100 | D133: =SUM(C118-C133) -> 116100 | F133: 17h | G133: =SUM(G132-G119)+I132 -> 16270 | H133: =SUM(G118-G133) -> 11730 | J133: 17h | K133: =SUM(K132-K119)+M132 -> 19840 | L133: =SUM(K118-K133) -> 8160 | N133: 17h | O133: =SUM(O132-O119)+Q132 -> 19840 | P133: =SUM(O118-O133) -> 8160
B134: 18h | C134: =SUM(C133-C119)+E133 -> -59700 | D134: =SUM(C118-C134) -> 116700 | F134: 18h | G134: =SUM(G133-G119)+I133 -> 16155 | H134: =SUM(G118-G134) -> 11845 | J134: 18h | K134: =SUM(K133-K119)+M133 -> 19760 | L134: =SUM(K118-K134) -> 8240 | N134: 18h | O134: =SUM(O133-O119)+Q133 -> 19760 | P134: =SUM(O118-O134) -> 8240
B135: 19h | C135: =SUM(C134-C119)+E134 -> -60300 | D135: =SUM(C118-C135) -> 117300 | F135: 19h | G135: =SUM(G134-G119)+I134 -> 16040 | H135: =SUM(G118-G135) -> 11960 | J135: 19h | K135: =SUM(K134-K119)+M134 -> 19680 | L135: =SUM(K118-K135) -> 8320 | N135: 19h | O135: =SUM(O134-O119)+Q134 -> 19680 | P135: =SUM(O118-O135) -> 8320
B136: 20h | C136: =SUM(C135,-C119)+E135 -> -60900 | D136: =SUM(C118-C136) -> 117900 | F136: 20h | G136: =SUM(G135,-G119)+I135 -> 15925 | H136: =SUM(G118-G136) -> 12075 | J136: 20h | K136: =SUM(K135,-K119)+M135 -> 19600 | L136: =SUM(K118-K136) -> 8400 | N136: 20h | O136: =SUM(O135,-O119)+Q135 -> 19600 | P136: =SUM(O118-O136) -> 8400
B137: 21h | C137: =SUM(C136-C119)+E136 -> -61500 | D137: =SUM(C118-C137) -> 118500 | F137: 21h | G137: =SUM(G136-G119)+I136 -> 15810 | H137: =SUM(G118-G137) -> 12190 | J137: 21h | K137: =SUM(K136-K119)+M136 -> 19520 | L137: =SUM(K118-K137) -> 8480 | N137: 21h | O137: =SUM(O136-O119)+Q136 -> 19520 | P137: =SUM(O118-O137) -> 8480
B138: 22h | C138: =SUM(C137-C119)+E137 -> -62100 | D138: =SUM(C118-C138) -> 119100 | F138: 22h | G138: =SUM(G137-G119)+I137 -> 15695 | H138: =SUM(G118-G138) -> 12305 | J138: 22h | K138: =SUM(K137-K119)+M137 -> 19440 | L138: =SUM(K118-K138) -> 8560 | N138: 22h | O138: =SUM(O137-O119)+Q137 -> 19440 | P138: =SUM(O118-O138) -> 8560
B139: 23h | C139: =SUM(C138-C119)+E138 -> -62700 | D139: =SUM(C118-C139) -> 119700 | F139: 23h | G139: =SUM(G138-G119)+I138 -> 15580 | H139: =SUM(G118-G139) -> 12420 | J139: 23h | K139: =SUM(K138-K119)+M138 -> 19360 | L139: =SUM(K118-K139) -> 8640 | N139: 23h | O139: =SUM(O138-O119)+Q138 -> 19360 | P139: =SUM(O118-O139) -> 8640
D140: Diesiel | H140: 95 | L140: Diesiel excellium | P140: 98 excellium
B141: Citerne | C141: =SUM(C118) -> 57000 | D141: DIMANCHE | F141: Citerne | G141: =SUM(G118) -> 28000 | J141: Citerne | K141: =SUM(K118) -> 28000 | N141: Citerne | O141: =SUM(O118) -> 28000
B142: Vente / H | C142: 500 | F142: Vente / H | G142: =SUM(G119) -> 115 | J142: Vente / H | K142: =SUM(K119) -> 80 | N142: Vente / H | O142: =SUM(O119) -> 80
C143: Stock | D143: Commande | E143: Livraison | G143: Stock | H143: Commande | I143: Livraison | K143: Stock | L143: Commande | M143: Livraison | O143: Stock | P143: Commande | Q143: Livraison
B144: 5h | C144: =SUM(C139) -> -62700 | F144: 5h | G144: =SUM(G139) -> 15580 | J144: 5h | K144: =SUM(K139) -> 19360 | N144: 5h | O144: =SUM(O139) -> 19360
B145: 6h | C145: =SUM(C144,-C142)+E144 -> -63200 | D145: =SUM(C141-C145) -> 120200 | F145: 6h | G145: =SUM(G144,-G142)+I144 -> 15465 | H145: =SUM(G141-G145) -> 12535 | J145: 6h | K145: =SUM(K144,-K142)+M144 -> 19280 | L145: =SUM(K141-K145) -> 8720 | N145: 6h | O145: =SUM(O144,-O142)+Q144 -> 19280 | P145: =SUM(O141-O145) -> 8720
B146: 7h | C146: =SUM(C145,-C142)+E145 -> -63700 | D146: =SUM(C141-C146) -> 120700 | F146: 7h | G146: =SUM(G145,-G142)+I145 -> 15350 | H146: =SUM(G141-G146) -> 12650 | J146: 7h | K146: =SUM(K145,-K142)+M145 -> 19200 | L146: =SUM(K141-K146) -> 8800 | N146: 7h | O146: =SUM(O145,-O142)+Q145 -> 19200 | P146: =SUM(O141-O146) -> 8800
B147: 8h | C147: =SUM(C146,-C142)+E146 -> -64200 | D147: =SUM(C141-C147) -> 121200 | F147: 8h | G147: =SUM(G146,-G142)+I146 -> 15235 | H147: =SUM(G141-G147) -> 12765 | J147: 8h | K147: =SUM(K146,-K142)+M146 -> 19120 | L147: =SUM(K141-K147) -> 8880 | N147: 8h | O147: =SUM(O146,-O142)+Q146 -> 19120 | P147: =SUM(O141-O147) -> 8880
B148: 9h | C148: =SUM(C147-C142+E147) -> -64700 | D148: =SUM(C141-C148) -> 121700 | F148: 9h | G148: =SUM(G147-G142+I147) -> 15120 | H148: =SUM(G141-G148) -> 12880 | J148: 9h | K148: =SUM(K147-K142+M147) -> 19040 | L148: =SUM(K141-K148) -> 8960 | N148: 9h | O148: =SUM(O147-O142+Q147) -> 19040 | P148: =SUM(O141-O148) -> 8960
B149: 10h | C149: =SUM(C148-C142+E148) -> -65200 | D149: =SUM(C141-C149) -> 122200 | F149: 10h | G149: =SUM(G148-G142+I148) -> 15005 | H149: =SUM(G141-G149) -> 12995 | J149: 10h | K149: =SUM(K148-K142+M148) -> 18960 | L149: =SUM(K141-K149) -> 9040 | N149: 10h | O149: =SUM(O148-O142+Q148) -> 18960 | P149: =SUM(O141-O149) -> 9040
B150: 11h | C150: =SUM(C149,-C142)+E149 -> -65700 | D150: =SUM(C141-C150) -> 122700 | F150: 11h | G150: =SUM(G149,-G142)+I149 -> 14890 | H150: =SUM(G141-G150) -> 13110 | J150: 11h | K150: =SUM(K149,-K142)+M149 -> 18880 | L150: =SUM(K141-K150) -> 9120 | N150: 11h | O150: =SUM(O149,-O142)+Q149 -> 18880 | P150: =SUM(O141-O150) -> 9120
B151: 12h | C151: =SUM(C150,-C142)+E150 -> -66200 | D151: =SUM(C141-C151) -> 123200 | F151: 12h | G151: =SUM(G150,-G142)+I150 -> 14775 | H151: =SUM(G141-G151) -> 13225 | J151: 12h | K151: =SUM(K150,-K142)+M150 -> 18800 | L151: =SUM(K141-K151) -> 9200 | N151: 12h | O151: =SUM(O150,-O142)+Q150 -> 18800 | P151: =SUM(O141-O151) -> 9200
B152: 13h | C152: =SUM(C151,-C142)+E151 -> -66700 | D152: =SUM(C141-C152) -> 123700 | F152: 13h | G152: =SUM(G151,-G142)+I151 -> 14660 | H152: =SUM(G141-G152) -> 13340 | J152: 13h | K152: =SUM(K151,-K142)+M151 -> 18720 | L152: =SUM(K141-K152) -> 9280 | N152: 13h | O152: =SUM(O151,-O142)+Q151 -> 18720 | P152: =SUM(O141-O152) -> 9280
B153: 14h | C153: =SUM(C152,-C142)+E152 -> -67200 | D153: =SUM(C141-C153) -> 124200 | F153: 14h | G153: =SUM(G152,-G142)+I152 -> 14545 | H153: =SUM(G141-G153) -> 13455 | J153: 14h | K153: =SUM(K152,-K142)+M152 -> 18640 | L153: =SUM(K141-K153) -> 9360 | N153: 14h | O153: =SUM(O152,-O142)+Q152 -> 18640 | P153: =SUM(O141-O153) -> 9360
B154: 15h | C154: =SUM(C153,-C142)+E153 -> -67700 | D154: =SUM(C141-C154) -> 124700 | F154: 15h | G154: =SUM(G153,-G142)+I153 -> 14430 | H154: =SUM(G141-G154) -> 13570 | J154: 15h | K154: =SUM(K153,-K142)+M153 -> 18560 | L154: =SUM(K141-K154) -> 9440 | N154: 15h | O154: =SUM(O153,-O142)+Q153 -> 18560 | P154: =SUM(O141-O154) -> 9440
B155: 16h | C155: =SUM(C154-C142)+E154 -> -68200 | D155: =SUM(C141-C155) -> 125200 | F155: 16h | G155: =SUM(G154-G142)+I154 -> 14315 | H155: =SUM(G141-G155) -> 13685 | J155: 16h | K155: =SUM(K154-K142)+M154 -> 18480 | L155: =SUM(K141-K155) -> 9520 | N155: 16h | O155: =SUM(O154-O142)+Q154 -> 18480 | P155: =SUM(O141-O155) -> 9520
B156: 17h | C156: =SUM(C155-C142)+E155 -> -68700 | D156: =SUM(C141-C156) -> 125700 | F156: 17h | G156: =SUM(G155-G142)+I155 -> 14200 | H156: =SUM(G141-G156) -> 13800 | J156: 17h | K156: =SUM(K155-K142)+M155 -> 18400 | L156: =SUM(K141-K156) -> 9600 | N156: 17h | O156: =SUM(O155-O142)+Q155 -> 18400 | P156: =SUM(O141-O156) -> 9600
B157: 18h | C157: =SUM(C156-C142)+E156 -> -69200 | D157: =SUM(C141-C157) -> 126200 | F157: 18h | G157: =SUM(G156-G142)+I156 -> 14085 | H157: =SUM(G141-G157) -> 13915 | J157: 18h | K157: =SUM(K156-K142)+M156 -> 18320 | L157: =SUM(K141-K157) -> 9680 | N157: 18h | O157: =SUM(O156-O142)+Q156 -> 18320 | P157: =SUM(O141-O157) -> 9680
B158: 19h | C158: =SUM(C157-C142)+E157 -> -69700 | D158: =SUM(C141-C158) -> 126700 | F158: 19h | G158: =SUM(G157-G142)+I157 -> 13970 | H158: =SUM(G141-G158) -> 14030 | J158: 19h | K158: =SUM(K157-K142)+M157 -> 18240 | L158: =SUM(K141-K158) -> 9760 | N158: 19h | O158: =SUM(O157-O142)+Q157 -> 18240 | P158: =SUM(O141-O158) -> 9760
B159: 20h | C159: =SUM(C158,-C142)+E158 -> -70200 | D159: =SUM(C141-C159) -> 127200 | F159: 20h | G159: =SUM(G158,-G142)+I158 -> 13855 | H159: =SUM(G141-G159) -> 14145 | J159: 20h | K159: =SUM(K158,-K142)+M158 -> 18160 | L159: =SUM(K141-K159) -> 9840 | N159: 20h | O159: =SUM(O158,-O142)+Q158 -> 18160 | P159: =SUM(O141-O159) -> 9840
B160: 21h | C160: =SUM(C159-C142)+E159 -> -70700 | D160: =SUM(C141-C160) -> 127700 | F160: 21h | G160: =SUM(G159-G142)+I159 -> 13740 | H160: =SUM(G141-G160) -> 14260 | J160: 21h | K160: =SUM(K159-K142)+M159 -> 18080 | L160: =SUM(K141-K160) -> 9920 | N160: 21h | O160: =SUM(O159-O142)+Q159 -> 18080 | P160: =SUM(O141-O160) -> 9920
B161: 22h | C161: =SUM(C160-C142)+E160 -> -71200 | D161: =SUM(C141-C161) -> 128200 | F161: 22h | G161: =SUM(G160-G142)+I160 -> 13625 | H161: =SUM(G141-G161) -> 14375 | J161: 22h | K161: =SUM(K160-K142)+M160 -> 18000 | L161: =SUM(K141-K161) -> 10000 | N161: 22h | O161: =SUM(O160-O142)+Q160 -> 18000 | P161: =SUM(O141-O161) -> 10000
B162: 23h | C162: =SUM(C161-C142)+E161 -> -71700 | D162: =SUM(C141-C162) -> 128700 | F162: 23h | G162: =SUM(G161-G142)+I161 -> 13510 | H162: =SUM(G141-G162) -> 14490 | J162: 23h | K162: =SUM(K161-K142)+M161 -> 17920 | L162: =SUM(K141-K162) -> 10080 | N162: 23h | O162: =SUM(O161-O142)+Q161 -> 17920 | P162: =SUM(O141-O162) -> 10080
D163: Diesiel | H163: 95 | L163: Diesiel excellium | P163: 98 excellium
B164: Citerne | C164: =SUM(C141) -> 57000 | D164: LUNDI | F164: Citerne | G164: =SUM(G141) -> 28000 | J164: Citerne | K164: =SUM(K141) -> 28000 | N164: Citerne | O164: =SUM(O141) -> 28000
B165: Vente / H | C165: 1200 | F165: Vente / H | G165: =SUM(G142) -> 115 | J165: Vente / H | K165: =SUM(K142) -> 80 | N165: Vente / H | O165: =SUM(O142) -> 80
C166: Stock | D166: Commande | E166: Livraison | G166: Stock | H166: Commande | I166: Livraison | K166: Stock | L166: Commande | M166: Livraison | O166: Stock | P166: Commande | Q166: Livraison
B167: 5h | C167: =SUM(C162) -> -71700 | F167: 5h | G167: =SUM(G162) -> 13510 | J167: 5h | K167: =SUM(K162) -> 17920 | N167: 5h | O167: =SUM(O162) -> 17920
B168: 6h | C168: =SUM(C167,-C165)+E167 -> -72900 | D168: =SUM(C164-C168) -> 129900 | F168: 6h | G168: =SUM(G167,-G165)+I167 -> 13395 | H168: =SUM(G164-G168) -> 14605 | J168: 6h | K168: =SUM(K167,-K165)+M167 -> 17840 | L168: =SUM(K164-K168) -> 10160 | N168: 6h | O168: =SUM(O167,-O165)+Q167 -> 17840 | P168: =SUM(O164-O168) -> 10160
B169: 7h | C169: =SUM(C168,-C165)+E168 -> -74100 | D169: =SUM(C164-C169) -> 131100 | F169: 7h | G169: =SUM(G168,-G165)+I168 -> 13280 | H169: =SUM(G164-G169) -> 14720 | J169: 7h | K169: =SUM(K168,-K165)+M168 -> 17760 | L169: =SUM(K164-K169) -> 10240 | N169: 7h | O169: =SUM(O168,-O165)+Q168 -> 17760 | P169: =SUM(O164-O169) -> 10240
B170: 8h | C170: =SUM(C169,-C165)+E169 -> -75300 | D170: =SUM(C164-C170) -> 132300 | F170: 8h | G170: =SUM(G169,-G165)+I169 -> 13165 | H170: =SUM(G164-G170) -> 14835 | J170: 8h | K170: =SUM(K169,-K165)+M169 -> 17680 | L170: =SUM(K164-K170) -> 10320 | N170: 8h | O170: =SUM(O169,-O165)+Q169 -> 17680 | P170: =SUM(O164-O170) -> 10320
B171: 9h | C171: =SUM(C170-C165+E170) -> -76500 | D171: =SUM(C164-C171) -> 133500 | F171: 9h | G171: =SUM(G170-G165+I170) -> 13050 | H171: =SUM(G164-G171) -> 14950 | J171: 9h | K171: =SUM(K170-K165+M170) -> 17600 | L171: =SUM(K164-K171) -> 10400 | N171: 9h | O171: =SUM(O170-O165+Q170) -> 17600 | P171: =SUM(O164-O171) -> 10400
B172: 10h | C172: =SUM(C171-C165+E171) -> -77700 | D172: =SUM(C164-C172) -> 134700 | F172: 10h | G172: =SUM(G171-G165+I171) -> 12935 | H172: =SUM(G164-G172) -> 15065 | J172: 10h | K172: =SUM(K171-K165+M171) -> 17520 | L172: =SUM(K164-K172) -> 10480 | N172: 10h | O172: =SUM(O171-O165+Q171) -> 17520 | P172: =SUM(O164-O172) -> 10480
B173: 11h | C173: =SUM(C172,-C165)+E172 -> -78900 | D173: =SUM(C164-C173) -> 135900 | F173: 11h | G173: =SUM(G172,-G165)+I172 -> 12820 | H173: =SUM(G164-G173) -> 15180 | J173: 11h | K173: =SUM(K172,-K165)+M172 -> 17440 | L173: =SUM(K164-K173) -> 10560 | N173: 11h | O173: =SUM(O172,-O165)+Q172 -> 17440 | P173: =SUM(O164-O173) -> 10560
B174: 12h | C174: =SUM(C173,-C165)+E173 -> -80100 | D174: =SUM(C164-C174) -> 137100 | F174: 12h | G174: =SUM(G173,-G165)+I173 -> 12705 | H174: =SUM(G164-G174) -> 15295 | J174: 12h | K174: =SUM(K173,-K165)+M173 -> 17360 | L174: =SUM(K164-K174) -> 10640 | N174: 12h | O174: =SUM(O173,-O165)+Q173 -> 17360 | P174: =SUM(O164-O174) -> 10640
B175: 13h | C175: =SUM(C174,-C165)+E174 -> -81300 | D175: =SUM(C164-C175) -> 138300 | F175: 13h | G175: =SUM(G174,-G165)+I174 -> 12590 | H175: =SUM(G164-G175) -> 15410 | J175: 13h | K175: =SUM(K174,-K165)+M174 -> 17280 | L175: =SUM(K164-K175) -> 10720 | N175: 13h | O175: =SUM(O174,-O165)+Q174 -> 17280 | P175: =SUM(O164-O175) -> 10720
B176: 14h | C176: =SUM(C175,-C165)+E175 -> -82500 | D176: =SUM(C164-C176) -> 139500 | F176: 14h | G176: =SUM(G175,-G165)+I175 -> 12475 | H176: =SUM(G164-G176) -> 15525 | J176: 14h | K176: =SUM(K175,-K165)+M175 -> 17200 | L176: =SUM(K164-K176) -> 10800 | N176: 14h | O176: =SUM(O175,-O165)+Q175 -> 17200 | P176: =SUM(O164-O176) -> 10800
B177: 15h | C177: =SUM(C176,-C165)+E176 -> -83700 | D177: =SUM(C164-C177) -> 140700 | F177: 15h | G177: =SUM(G176,-G165)+I176 -> 12360 | H177: =SUM(G164-G177) -> 15640 | J177: 15h | K177: =SUM(K176,-K165)+M176 -> 17120 | L177: =SUM(K164-K177) -> 10880 | N177: 15h | O177: =SUM(O176,-O165)+Q176 -> 17120 | P177: =SUM(O164-O177) -> 10880
B178: 16h | C178: =SUM(C177-C165)+E177 -> -84900 | D178: =SUM(C164-C178) -> 141900 | F178: 16h | G178: =SUM(G177-G165)+I177 -> 12245 | H178: =SUM(G164-G178) -> 15755 | J178: 16h | K178: =SUM(K177-K165)+M177 -> 17040 | L178: =SUM(K164-K178) -> 10960 | N178: 16h | O178: =SUM(O177-O165)+Q177 -> 17040 | P178: =SUM(O164-O178) -> 10960
B179: 17h | C179: =SUM(C178-C165)+E178 -> -86100 | D179: =SUM(C164-C179) -> 143100 | F179: 17h | G179: =SUM(G178-G165)+I178 -> 12130 | H179: =SUM(G164-G179) -> 15870 | J179: 17h | K179: =SUM(K178-K165)+M178 -> 16960 | L179: =SUM(K164-K179) -> 11040 | N179: 17h | O179: =SUM(O178-O165)+Q178 -> 16960 | P179: =SUM(O164-O179) -> 11040
B180: 18h | C180: =SUM(C179-C165)+E179 -> -87300 | D180: =SUM(C164-C180) -> 144300 | F180: 18h | G180: =SUM(G179-G165)+I179 -> 12015 | H180: =SUM(G164-G180) -> 15985 | J180: 18h | K180: =SUM(K179-K165)+M179 -> 16880 | L180: =SUM(K164-K180) -> 11120 | N180: 18h | O180: =SUM(O179-O165)+Q179 -> 16880 | P180: =SUM(O164-O180) -> 11120
B181: 19h | C181: =SUM(C180-C165)+E180 -> -88500 | D181: =SUM(C164-C181) -> 145500 | F181: 19h | G181: =SUM(G180-G165)+I180 -> 11900 | H181: =SUM(G164-G181) -> 16100 | J181: 19h | K181: =SUM(K180-K165)+M180 -> 16800 | L181: =SUM(K164-K181) -> 11200 | N181: 19h | O181: =SUM(O180-O165)+Q180 -> 16800 | P181: =SUM(O164-O181) -> 11200
B182: 20h | C182: =SUM(C181,-C165)+E181 -> -89700 | D182: =SUM(C164-C182) -> 146700 | F182: 20h | G182: =SUM(G181,-G165)+I181 -> 11785 | H182: =SUM(G164-G182) -> 16215 | J182: 20h | K182: =SUM(K181,-K165)+M181 -> 16720 | L182: =SUM(K164-K182) -> 11280 | N182: 20h | O182: =SUM(O181,-O165)+Q181 -> 16720 | P182: =SUM(O164-O182) -> 11280
B183: 21h | C183: =SUM(C182-C165)+E182 -> -90900 | D183: =SUM(C164-C183) -> 147900 | F183: 21h | G183: =SUM(G182-G165)+I182 -> 11670 | H183: =SUM(G164-G183) -> 16330 | J183: 21h | K183: =SUM(K182-K165)+M182 -> 16640 | L183: =SUM(K164-K183) -> 11360 | N183: 21h | O183: =SUM(O182-O165)+Q182 -> 16640 | P183: =SUM(O164-O183) -> 11360
B184: 22h | C184: =SUM(C183-C165)+E183 -> -92100 | D184: =SUM(C164-C184) -> 149100 | F184: 22h | G184: =SUM(G183-G165)+I183 -> 11555 | H184: =SUM(G164-G184) -> 16445 | J184: 22h | K184: =SUM(K183-K165)+M183 -> 16560 | L184: =SUM(K164-K184) -> 11440 | N184: 22h | O184: =SUM(O183-O165)+Q183 -> 16560 | P184: =SUM(O164-O184) -> 11440
B185: 23h | C185: =SUM(C184-C165)+E184 -> -93300 | D185: =SUM(C164-C185) -> 150300 | F185: 23h | G185: =SUM(G184-G165)+I184 -> 11440 | H185: =SUM(G164-G185) -> 16560 | J185: 23h | K185: =SUM(K184-K165)+M184 -> 16480 | L185: =SUM(K164-K185) -> 11520 | N185: 23h | O185: =SUM(O184-O165)+Q184 -> 16480 | P185: =SUM(O164-O185) -> 11520

Sheet Bertrange
B1: Bertrange
D2: Diesiel | H2: 95 | L2: Diesiel excellium | P2: 98 excellium
B3: Citerne | C3: 38000 | D3: LUNDI | F3: Citerne | G3: 38000 | J3: Citerne | K3: 33000 | N3: Citerne | O3: 4750
B4: Vente / H | C4: 1250 | F4: Vente / H | G4: 220 | J4: Vente / H | K4: 280 | N4: Vente / H | O4: 85
C5: Stock | D5: Commande | E5: Livraison | G5: Stock | H5: Commande | I5: Livraison | K5: Stock | L5: Commande | M5: Livraison | O5: Stock | P5: Commande | Q5: Livraison
B6: 6h | C6: 38000 | F6: 7h | G6: 38000 | J6: 7h | K6: 33000 | N6: 7h | O6: 4750
B7: 7h | C7: =SUM(C6,-C4)+E6 -> 36750 | D7: =SUM(C3-C7) -> 1250 | F7: 8h | G7: =SUM(G6,-G4)+I6 -> 37780 | H7: =SUM(G3-G7) -> 220 | J7: 8h | K7: =SUM(K6,-K4)+M6 -> 32720 | L7: =SUM(K3-K7) -> 280 | N7: 8h | O7: =SUM(O6,-O4)+Q6 -> 4665 | P7: =SUM(O3-O7) -> 85
B8: 8h | C8: =SUM(C7,-C4)+E7 -> 35500 | D8: =SUM(C3-C8) -> 2500 | F8: 8h | G8: =SUM(G7,-G4)+I7 -> 37560 | H8: =SUM(G3-G8) -> 440 | J8: 8h | K8: =SUM(K7,-K4)+M7 -> 32440 | L8: =SUM(K3-K8) -> 560 | N8: 8h | O8: =SUM(O7,-O4)+Q7 -> 4580 | P8: =SUM(O3-O8) -> 170
B9: 9h | C9: =SUM(C8,-C4)+E8 -> 34250 | D9: =SUM(C3-C9) -> 3750 | F9: 9h | G9: =SUM(G8,-G4)+I8 -> 37340 | H9: =SUM(G3-G9) -> 660 | J9: 9h | K9: =SUM(K8,-K4)+M8 -> 32160 | L9: =SUM(K3-K9) -> 840 | N9: 9h | O9: =SUM(O8,-O4)+Q8 -> 4495 | P9: =SUM(O3-O9) -> 255
B10: 10h | C10: =SUM(C9,-C4)+E9 -> 33000 | D10: =SUM(C3-C10) -> 5000 | F10: 10h | G10: =SUM(G9,-G4)+I9 -> 37120 | H10: =SUM(G3-G10) -> 880 | J10: 10h | K10: =SUM(K9,-K4)+M9 -> 31880 | L10: =SUM(K3-K10) -> 1120 | N10: 10h | O10: =SUM(O9,-O4)+Q9 -> 4410 | P10: =SUM(O3-O10) -> 340
B11: 11h | C11: =SUM(C10-C4+E10) -> 31750 | D11: =SUM(C3-C11) -> 6250 | F11: 11h | G11: =SUM(G10-G4+I10) -> 36900 | H11: =SUM(G3-G11) -> 1100 | J11: 11h | K11: =SUM(K10-K4+M10) -> 31600 | L11: =SUM(K3-K11) -> 1400 | N11: 11h | O11: =SUM(O10-O4+Q10) -> 4325 | P11: =SUM(O3-O11) -> 425
B12: 12h | C12: =SUM(C11-C4+E11) -> 30500 | D12: =SUM(C3-C12) -> 7500 | F12: 12h | G12: =SUM(G11-G4+I11) -> 36680 | H12: =SUM(G3-G12) -> 1320 | J12: 12h | K12: =SUM(K11-K4+M11) -> 31320 | L12: =SUM(K3-K12) -> 1680 | N12: 12h | O12: =SUM(O11-O4+Q11) -> 4240 | P12: =SUM(O3-O12) -> 510
B13: 13h | C13: =SUM(C12,-C4)+E12 -> 29250 | D13: =SUM(C3-C13) -> 8750 | F13: 13h | G13: =SUM(G12,-G4)+I12 -> 36460 | H13: =SUM(G3-G13) -> 1540 | J13: 13h | K13: =SUM(K12,-K4)+M12 -> 31040 | L13: =SUM(K3-K13) -> 1960 | N13: 13h | O13: =SUM(O12,-O4)+Q12 -> 4155 | P13: =SUM(O3-O13) -> 595
B14: 14h | C14: =SUM(C13,-C4)+E13 -> 28000 | D14: =SUM(C3-C14) -> 10000 | F14: 14h | G14: =SUM(G13,-G4)+I13 -> 36240 | H14: =SUM(G3-G14) -> 1760 | J14: 14h | K14: =SUM(K13,-K4)+M13 -> 30760 | L14: =SUM(K3-K14) -> 2240 | N14: 14h | O14: =SUM(O13,-O4)+Q13 -> 4070 | P14: =SUM(O3-O14) -> 680
B15: 15h | C15: =SUM(C14,-C4)+E14 -> 26750 | D15: =SUM(C3-C15) -> 11250 | F15: 15h | G15: =SUM(G14,-G4)+I14 -> 36020 | H15: =SUM(G3-G15) -> 1980 | J15: 15h | K15: =SUM(K14,-K4)+M14 -> 30480 | L15: =SUM(K3-K15) -> 2520 | N15: 15h | O15: =SUM(O14,-O4)+Q14 -> 3985 | P15: =SUM(O3-O15) -> 765
B16: 16h | C16: =SUM(C15,-C4)+E15 -> 25500 | D16: =SUM(C3-C16) -> 12500 | F16: 16h | G16: =SUM(G15,-G4)+I15 -> 35800 | H16: =SUM(G3-G16) -> 2200 | J16: 16h | K16: =SUM(K15,-K4)+M15 -> 30200 | L16: =SUM(K3-K16) -> 2800 | N16: 16h | O16: =SUM(O15,-O4)+Q15 -> 3900 | P16: =SUM(O3-O16) -> 850
B17: 17h | C17: =SUM(C16,-C4)+E16 -> 24250 | D17: =SUM(C3-C17) -> 13750 | F17: 17h | G17: =SUM(G16,-G4)+I16 -> 35580 | H17: =SUM(G3-G17) -> 2420 | J17: 17h | K17: =SUM(K16,-K4)+M16 -> 29920 | L17: =SUM(K3-K17) -> 3080 | N17: 17h | O17: =SUM(O16,-O4)+Q16 -> 3815 | P17: =SUM(O3-O17) -> 935
B18: 18h | C18: =SUM(C17-C4)+E17 -> 23000 | D18: =SUM(C3-C18) -> 15000 | F18: 18h | G18: =SUM(G17-G4)+I17 -> 35360 | H18: =SUM(G3-G18) -> 2640 | J18: 18h | K18: =SUM(K17-K4)+M17 -> 29640 | L18: =SUM(K3-K18) -> 3360 | N18: 18h | O18: =SUM(O17-O4)+Q17 -> 3730 | P18: =SUM(O3-O18) -> 1020
B19: 19h | C19: =SUM(C18-C4)+E18 -> 21750 | D19: =SUM(C3-C19) -> 16250 | F19: 19h | G19: =SUM(G18-G4)+I18 -> 35140 | H19: =SUM(G3-G19) -> 2860 | J19: 19h | K19: =SUM(K18-K4)+M18 -> 29360 | L19: =SUM(K3-K19) -> 3640 | N19: 19h | O19: =SUM(O18-O4)+Q18 -> 3645 | P19: =SUM(O3-O19) -> 1105
B20: 20h | C20: =SUM(C19-C4)+E19 -> 20500 | D20: =SUM(C3-C20) -> 17500 | F20: 20h | G20: =SUM(G19-G4)+I19 -> 34920 | H20: =SUM(G3-G20) -> 3080 | J20: 20h | K20: =SUM(K19-K4)+M19 -> 29080 | L20: =SUM(K3-K20) -> 3920 | N20: 20h | O20: =SUM(O19-O4)+Q19 -> 3560 | P20: =SUM(O3-O20) -> 1190
B21: 21h | C21: =SUM(C20-C4)+E20 -> 19250 | D21: =SUM(C3-C21) -> 18750 | F21: 21h | G21: =SUM(G20-G4)+I20 -> 34700 | H21: =SUM(G3-G21) -> 3300 | J21: 21h | K21: =SUM(K20-K4)+M20 -> 28800 | L21: =SUM(K3-K21) -> 4200 | N21: 21h | O21: =SUM(O20-O4)+Q20 -> 3475 | P21: =SUM(O3-O21) -> 1275
B22: 22h | C22: =SUM(C21,-C4)+E21 -> 18000 | D22: =SUM(C3-C22) -> 20000 | F22: 22h | G22: =SUM(G21,-G4)+I21 -> 34480 | H22: =SUM(G3-G22) -> 3520 | J22: 22h | K22: =SUM(K21,-K4)+M21 -> 28520 | L22: =SUM(K3-K22) -> 4480 | N22: 22h | O22: =SUM(O21,-O4)+Q21 -> 3390 | P22: =SUM(O3-O22) -> 1360
D23: Diesiel | H23: 95 | L23: Diesiel excellium | P23: 98 excellium
B24: Citerne | C24: =SUM(C3) -> 38000 | D24: MARDI | F24: Citerne | G24: =SUM(G3) -> 38000 | J24: Citerne | K24: =SUM(K3) -> 33000 | N24: Citerne | O24: =SUM(O3) -> 4750
B25: Vente / H | C25: =SUM(C4) -> 1250 | F25: Vente / H | G25: =SUM(G4) -> 220 | J25: Vente / H | K25: =SUM(K4) -> 280 | N25: Vente / H | O25: =SUM(O4) -> 85
C26: Stock | D26: Commande | E26: Livraison | G26: Stock | H26: Commande | I26: Livraison | K26: Stock | L26: Commande | M26: Livraison | O26: Stock | P26: Commande | Q26: Livraison
B27: 6h | C27: =SUM(C22) -> 18000 | F27: 6h | G27: =SUM(G22) -> 34480 | J27: 6h | K27: =SUM(K22) -> 28520 | N27: 6h | O27: =SUM(O22) -> 3390
B28: 7h | C28: =SUM(C27,-C25)+E27 -> 16750 | D28: =SUM(C24-C28) -> 21250 | F28: 7h | G28: =SUM(G27,-G25)+I27 -> 34260 | H28: =SUM(G24-G28) -> 3740 | J28: 7h | K28: =SUM(K27,-K25)+M27 -> 28240 | L28: =SUM(K24-K28) -> 4760 | N28: 7h | O28: =SUM(O27,-O25)+Q27 -> 3305 | P28: =SUM(O24-O28) -> 1445
B29: 8h | C29: =SUM(C28,-C25)+E28 -> 15500 | D29: =SUM(C24-C29) -> 22500 | F29: 8h | G29: =SUM(G28,-G25)+I28 -> 34040 | H29: =SUM(G24-G29) -> 3960 | J29: 8h | K29: =SUM(K28,-K25)+M28 -> 27960 | L29: =SUM(K24-K29) -> 5040 | N29: 8h | O29: =SUM(O28,-O25)+Q28 -> 3220 | P29: =SUM(O24-O29) -> 1530
B30: 9h | C30: =SUM(C29,-C25)+E29 -> 14250 | D30: =SUM(C24-C30) -> 23750 | F30: 9h | G30: =SUM(G29,-G25)+I29 -> 33820 | H30: =SUM(G24-G30) -> 4180 | J30: 9h | K30: =SUM(K29,-K25)+M29 -> 27680 | L30: =SUM(K24-K30) -> 5320 | N30: 9h | O30: =SUM(O29,-O25)+Q29 -> 3135 | P30: =SUM(O24-O30) -> 1615
B31: 10h | C31: =SUM(C30,-C25)+E30 -> 13000 | D31: =SUM(C24-C31) -> 25000 | F31: 10h | G31: =SUM(G30,-G25)+I30 -> 33600 | H31: =SUM(G24-G31) -> 4400 | J31: 10h | K31: =SUM(K30,-K25)+M30 -> 27400 | L31: =SUM(K24-K31) -> 5600 | N31: 10h | O31: =SUM(O30,-O25)+Q30 -> 3050 | P31: =SUM(O24-O31) -> 1700
B32: 11h | C32: =SUM(C31-C25+E31) -> 11750 | D32: =SUM(C24-C32) -> 26250 | F32: 11h | G32: =SUM(G31-G25+I31) -> 33380 | H32: =SUM(G24-G32) -> 4620 | J32: 11h | K32: =SUM(K31-K25+M31) -> 27120 | L32: =SUM(K24-K32) -> 5880 | N32: 11h | O32: =SUM(O31-O25+Q31) -> 2965 | P32: =SUM(O24-O32) -> 1785
B33: 12h | C33: =SUM(C32-C25+E32) -> 10500 | D33: =SUM(C24-C33) -> 27500 | F33: 12h | G33: =SUM(G32-G25+I32) -> 33160 | H33: =SUM(G24-G33) -> 4840 | J33: 12h | K33: =SUM(K32-K25+M32) -> 26840 | L33: =SUM(K24-K33) -> 6160 | N33: 12h | O33: =SUM(O32-O25+Q32) -> 2880 | P33: =SUM(O24-O33) -> 1870
B34: 13h | C34: =SUM(C33,-C25)+E33 -> 9250 | D34: =SUM(C24-C34) -> 28750 | F34: 13h | G34: =SUM(G33,-G25)+I33 -> 32940 | H34: =SUM(G24-G34) -> 5060 | J34: 13h | K34: =SUM(K33,-K25)+M33 -> 26560 | L34: =SUM(K24-K34) -> 6440 | N34: 13h | O34: =SUM(O33,-O25)+Q33 -> 2795 | P34: =SUM(O24-O34) -> 1955
B35: 14h | C35: =SUM(C34,-C25)+E34 -> 8000 | D35: =SUM(C24-C35) -> 30000 | F35: 14h | G35: =SUM(G34,-G25)+I34 -> 32720 | H35: =SUM(G24-G35) -> 5280 | J35: 14h | K35: =SUM(K34,-K25)+M34 -> 26280 | L35: =SUM(K24-K35) -> 6720 | N35: 14h | O35: =SUM(O34,-O25)+Q34 -> 2710 | P35: =SUM(O24-O35) -> 2040
B36: 15h | C36: =SUM(C35,-C25)+E35 -> 6750 | D36: =SUM(C24-C36) -> 31250 | F36: 15h | G36: =SUM(G35,-G25)+I35 -> 32500 | H36: =SUM(G24-G36) -> 5500 | J36: 15h | K36: =SUM(K35,-K25)+M35 -> 26000 | L36: =SUM(K24-K36) -> 7000 | N36: 15h | O36: =SUM(O35,-O25)+Q35 -> 2625 | P36: =SUM(O24-O36) -> 2125
B37: 16h | C37: =SUM(C36,-C25)+E36 -> 5500 | D37: =SUM(C24-C37) -> 32500 | F37: 16h | G37: =SUM(G36,-G25)+I36 -> 32280 | H37: =SUM(G24-G37) -> 5720 | J37: 16h | K37: =SUM(K36,-K25)+M36 -> 25720 | L37: =SUM(K24-K37) -> 7280 | N37: 16h | O37: =SUM(O36,-O25)+Q36 -> 2540 | P37: =SUM(O24-O37) -> 2210
B38: 17h | C38: =SUM(C37,-C25)+E37 -> 4250 | D38: =SUM(C24-C38) -> 33750 | F38: 17h | G38: =SUM(G37,-G25)+I37 -> 32060 | H38: =SUM(G24-G38) -> 5940 | J38: 17h | K38: =SUM(K37,-K25)+M37 -> 25440 | L38: =SUM(K24-K38) -> 7560 | N38: 17h | O38: =SUM(O37,-O25)+Q37 -> 2455 | P38: =SUM(O24-O38) -> 2295
B39: 18h | C39: =SUM(C38-C25)+E38 -> 3000 | D39: =SUM(C24-C39) -> 35000 | F39: 18h | G39: =SUM(G38-G25)+I38 -> 31840 | H39: =SUM(G24-G39) -> 6160 | J39: 18h | K39: =SUM(K38-K25)+M38 -> 25160 | L39: =SUM(K24-K39) -> 7840 | N39: 18h | O39: =SUM(O38-O25)+Q38 -> 2370 | P39: =SUM(O24-O39) -> 2380
B40: 19h | C40: =SUM(C39-C25)+E39 -> 1750 | D40: =SUM(C24-C40) -> 36250 | F40: 19h | G40: =SUM(G39-G25)+I39 -> 31620 | H40: =SUM(G24-G40) -> 6380 | J40: 19h | K40: =SUM(K39-K25)+M39 -> 24880 | L40: =SUM(K24-K40) -> 8120 | N40: 19h | O40: =SUM(O39-O25)+Q39 -> 2285 | P40: =SUM(O24-O40) -> 2465
B41: 20h | C41: =SUM(C40-C25)+E40 -> 500 | D41: =SUM(C24-C41) -> 37500 | F41: 20h | G41: =SUM(G40-G25)+I40 -> 31400 | H41: =SUM(G24-G41) -> 6600 | J41: 20h | K41: =SUM(K40-K25)+M40 -> 24600 | L41: =SUM(K24-K41) -> 8400 | N41: 20h | O41: =SUM(O40-O25)+Q40 -> 2200 | P41: =SUM(O24-O41) -> 2550
B42: 21h | C42: =SUM(C41-C25)+E41 -> -750 | D42: =SUM(C24-C42) -> 38750 | F42: 21h | G42: =SUM(G41-G25)+I41 -> 31180 | H42: =SUM(G24-G42) -> 6820 | J42: 21h | K42: =SUM(K41-K25)+M41 -> 24320 | L42: =SUM(K24-K42) -> 8680 | N42: 21h | O42: =SUM(O41-O25)+Q41 -> 2115 | P42: =SUM(O24-O42) -> 2635
B43: 22h | C43: =SUM(C42,-C25)+E42 -> -2000 | D43: =SUM(C24-C43) -> 40000 | F43: 22h | G43: =SUM(G42,-G25)+I42 -> 30960 | H43: =SUM(G24-G43) -> 7040 | J43: 22h | K43: =SUM(K42,-K25)+M42 -> 24040 | L43: =SUM(K24-K43) -> 8960 | N43: 22h | O43: =SUM(O42,-O25)+Q42 -> 2030 | P43: =SUM(O24-O43) -> 2720
D44: Diesiel | H44: 95 | L44: Diesiel excellium | P44: 98 excellium
B45: Citerne | C45: =SUM(C24) -> 38000 | D45: MERCREDI | F45: Citerne | G45: =SUM(G24) -> 38000 | J45: Citerne | K45: =SUM(K24) -> 33000 | N45: Citerne | O45: =SUM(O24) -> 4750
B46: Vente / H | C46: =SUM(C25) -> 1250 | F46: Vente / H | G46: =SUM(G25) -> 220 | J46: Vente / H | K46: =SUM(K25) -> 280 | N46: Vente / H | O46: =SUM(O25) -> 85
C47: Stock | D47: Commande | E47: Livraison | G47: Stock | H47: Commande | I47: Livraison | K47: Stock | L47: Commande | M47: Livraison | O47: Stock | P47: Commande | Q47: Livraison
B48: 6h | C48: =SUM(C43) -> -2000 | F48: 6h | G48: =SUM(G43) -> 30960 | J48: 6h | K48: =SUM(K43) -> 24040 | N48: 6h | O48: =SUM(O43) -> 2030
B49: 7h | C49: =SUM(C48,-C46)+E48 -> -3250 | D49: =SUM(C45-C49) -> 41250 | F49: 7h | G49: =SUM(G48,-G46)+I48 -> 30740 | H49: =SUM(G45-G49) -> 7260 | J49: 7h | K49: =SUM(K48,-K46)+M48 -> 23760 | L49: =SUM(K45-K49) -> 9240 | N49: 7h | O49: =SUM(O48,-O46)+Q48 -> 1945 | P49: =SUM(O45-O49) -> 2805
B50: 8h | C50: =SUM(C49,-C46)+E49 -> -4500 | D50: =SUM(C45-C50) -> 42500 | F50: 8h | G50: =SUM(G49,-G46)+I49 -> 30520 | H50: =SUM(G45-G50) -> 7480 | J50: 8h | K50: =SUM(K49,-K46)+M49 -> 23480 | L50: =SUM(K45-K50) -> 9520 | N50: 8h | O50: =SUM(O49,-O46)+Q49 -> 1860 | P50: =SUM(O45-O50) -> 2890
B51: 9h | C51: =SUM(C50,-C46)+E50 -> -5750 | D51: =SUM(C45-C51) -> 43750 | F51: 9h | G51: =SUM(G50,-G46)+I50 -> 30300 | H51: =SUM(G45-G51) -> 7700 | J51: 9h | K51: =SUM(K50,-K46)+M50 -> 23200 | L51: =SUM(K45-K51) -> 9800 | N51: 9h | O51: =SUM(O50,-O46)+Q50 -> 1775 | P51: =SUM(O45-O51) -> 2975
B52: 10h | C52: =SUM(C51,-C46)+E51 -> -7000 | D52: =SUM(C45-C52) -> 45000 | F52: 10h | G52: =SUM(G51,-G46)+I51 -> 30080 | H52: =SUM(G45-G52) -> 7920 | J52: 10h | K52: =SUM(K51,-K46)+M51 -> 22920 | L52: =SUM(K45-K52) -> 10080 | N52: 10h | O52: =SUM(O51,-O46)+Q51 -> 1690 | P52: =SUM(O45-O52) -> 3060
B53: 11h | C53: =SUM(C52-C46+E52) -> -8250 | D53: =SUM(C45-C53) -> 46250 | F53: 11h | G53: =SUM(G52-G46+I52) -> 29860 | H53: =SUM(G45-G53) -> 8140 | J53: 11h | K53: =SUM(K52-K46+M52) -> 22640 | L53: =SUM(K45-K53) -> 10360 | N53: 11h | O53: =SUM(O52-O46+Q52) -> 1605 | P53: =SUM(O45-O53) -> 3145
B54: 12h | C54: =SUM(C53-C46+E53) -> -9500 | D54: =SUM(C45-C54) -> 47500 | F54: 12h | G54: =SUM(G53-G46+I53) -> 29640 | H54: =SUM(G45-G54) -> 8360 | J54: 12h | K54: =SUM(K53-K46+M53) -> 22360 | L54: =SUM(K45-K54) -> 10640 | N54: 12h | O54: =SUM(O53-O46+Q53) -> 1520 | P54: =SUM(O45-O54) -> 3230
B55: 13h | C55: =SUM(C54,-C46)+E54 -> -10750 | D55: =SUM(C45-C55) -> 48750 | F55: 13h | G55: =SUM(G54,-G46)+I54 -> 29420 | H55: =SUM(G45-G55) -> 8580 | J55: 13h | K55: =SUM(K54,-K46)+M54 -> 22080 | L55: =SUM(K45-K55) -> 10920 | N55: 13h | O55: =SUM(O54,-O46)+Q54 -> 1435 | P55: =SUM(O45-O55) -> 3315
B56: 14h | C56: =SUM(C55,-C46)+E55 -> -12000 | D56: =SUM(C45-C56) -> 50000 | F56: 14h | G56: =SUM(G55,-G46)+I55 -> 29200 | H56: =SUM(G45-G56) -> 8800 | J56: 14h | K56: =SUM(K55,-K46)+M55 -> 21800 | L56: =SUM(K45-K56) -> 11200 | N56: 14h | O56: =SUM(O55,-O46)+Q55 -> 1350 | P56: =SUM(O45-O56) -> 3400
B57: 15h | C57: =SUM(C56,-C46)+E56 -> -13250 | D57: =SUM(C45-C57) -> 51250 | F57: 15h | G57: =SUM(G56,-G46)+I56 -> 28980 | H57: =SUM(G45-G57) -> 9020 | J57: 15h | K57: =SUM(K56,-K46)+M56 -> 21520 | L57: =SUM(K45-K57) -> 11480 | N57: 15h | O57: =SUM(O56,-O46)+Q56 -> 1265 | P57: =SUM(O45-O57) -> 3485
B58: 16h | C58: =SUM(C57,-C46)+E57 -> -14500 | D58: =SUM(C45-C58) -> 52500 | F58: 16h | G58: =SUM(G57,-G46)+I57 -> 28760 | H58: =SUM(G45-G58) -> 9240 | J58: 16h | K58: =SUM(K57,-K46)+M57 -> 21240 | L58: =SUM(K45-K58) -> 11760 | N58: 16h | O58: =SUM(O57,-O46)+Q57 -> 1180 | P58: =SUM(O45-O58) -> 3570
B59: 17h | C59: =SUM(C58,-C46)+E58 -> -15750 | D59: =SUM(C45-C59) -> 53750 | F59: 17h | G59: =SUM(G58,-G46)+I58 -> 28540 | H59: =SUM(G45-G59) -> 9460 | J59: 17h | K59: =SUM(K58,-K46)+M58 -> 20960 | L59: =SUM(K45-K59) -> 12040 | N59: 17h | O59: =SUM(O58,-O46)+Q58 -> 1095 | P59: =SUM(O45-O59) -> 3655
B60: 18h | C60: =SUM(C59-C46)+E59 -> -17000 | D60: =SUM(C45-C60) -> 55000 | F60: 18h | G60: =SUM(G59-G46)+I59 -> 28320 | H60: =SUM(G45-G60) -> 9680 | J60: 18h | K60: =SUM(K59-K46)+M59 -> 20680 | L60: =SUM(K45-K60) -> 12320 | N60: 18h | O60: =SUM(O59-O46)+Q59 -> 1010 | P60: =SUM(O45-O60) -> 3740
B61: 19h | C61: =SUM(C60-C46)+E60 -> -18250 | D61: =SUM(C45-C61) -> 56250 | F61: 19h | G61: =SUM(G60-G46)+I60 -> 28100 | H61: =SUM(G45-G61) -> 9900 | J61: 19h | K61: =SUM(K60-K46)+M60 -> 20400 | L61: =SUM(K45-K61) -> 12600 | N61: 19h | O61: =SUM(O60-O46)+Q60 -> 925 | P61: =SUM(O45-O61) -> 3825
B62: 20h | C62: =SUM(C61-C46)+E61 -> -19500 | D62: =SUM(C45-C62) -> 57500 | F62: 20h | G62: =SUM(G61-G46)+I61 -> 27880 | H62: =SUM(G45-G62) -> 10120 | J62: 20h | K62: =SUM(K61-K46)+M61 -> 20120 | L62: =SUM(K45-K62) -> 12880 | N62: 20h | O62: =SUM(O61-O46)+Q61 -> 840 | P62: =SUM(O45-O62) -> 3910
B63: 21h | C63: =SUM(C62-C46)+E62 -> -20750 | D63: =SUM(C45-C63) -> 58750 | F63: 21h | G63: =SUM(G62-G46)+I62 -> 27660 | H63: =SUM(G45-G63) -> 10340 | J63: 21h | K63: =SUM(K62-K46)+M62 -> 19840 | L63: =SUM(K45-K63) -> 13160 | N63: 21h | O63: =SUM(O62-O46)+Q62 -> 755 | P63: =SUM(O45-O63) -> 3995
B64: 22h | C64: =SUM(C63,-C46)+E63 -> -22000 | D64: =SUM(C45-C64) -> 60000 | F64: 22h | G64: =SUM(G63,-G46)+I63 -> 27440 | H64: =SUM(G45-G64) -> 10560 | J64: 22h | K64: =SUM(K63,-K46)+M63 -> 19560 | L64: =SUM(K45-K64) -> 13440 | N64: 22h | O64: =SUM(O63,-O46)+Q63 -> 670 | P64: =SUM(O45-O64) -> 4080
D65: Diesiel | H65: 95 | L65: Diesiel excellium | P65: 98 excellium
B66: Citerne | C66: =SUM(C45) -> 38000 | D66: JEUDI | F66: Citerne | G66: =SUM(G45) -> 38000 | J66: Citerne | K66: =SUM(K45) -> 33000 | N66: Citerne | O66: =SUM(O45) -> 4750
B67: Vente / H | C67: =SUM(C46) -> 1250 | F67: Vente / H | G67: =SUM(G46) -> 220 | J67: Vente / H | K67: =SUM(K46) -> 280 | N67: Vente / H | O67: =SUM(O46) -> 85
C68: Stock | D68: Commande | E68: Livraison | G68: Stock | H68: Commande | I68: Livraison | K68: Stock | L68: Commande | M68: Livraison | O68: Stock | P68: Commande | Q68: Livraison
B69: 6h | C69: =SUM(C64) -> -22000 | F69: 6h | G69: =SUM(G64) -> 27440 | J69: 6h | K69: =SUM(K64) -> 19560 | N69: 6h | O69: =SUM(O64) -> 670
B70: 7h | C70: =SUM(C69,-C67)+E69 -> -23250 | D70: =SUM(C66-C70) -> 61250 | F70: 7h | G70: =SUM(G69,-G67)+I69 -> 27220 | H70: =SUM(G66-G70) -> 10780 | J70: 7h | K70: =SUM(K69,-K67)+M69 -> 19280 | L70: =SUM(K66-K70) -> 13720 | N70: 7h | O70: =SUM(O69,-O67)+Q69 -> 585 | P70: =SUM(O66-O70) -> 4165
B71: 8h | C71: =SUM(C70,-C67)+E70 -> -24500 | D71: =SUM(C66-C71) -> 62500 | F71: 8h | G71: =SUM(G70,-G67)+I70 -> 27000 | H71: =SUM(G66-G71) -> 11000 | J71: 8h | K71: =SUM(K70,-K67)+M70 -> 19000 | L71: =SUM(K66-K71) -> 14000 | N71: 8h | O71: =SUM(O70,-O67)+Q70 -> 500 | P71: =SUM(O66-O71) -> 4250
B72: 9h | C72: =SUM(C71,-C67)+E71 -> -25750 | D72: =SUM(C66-C72) -> 63750 | F72: 9h | G72: =SUM(G71,-G67)+I71 -> 26780 | H72: =SUM(G66-G72) -> 11220 | J72: 9h | K72: =SUM(K71,-K67)+M71 -> 18720 | L72: =SUM(K66-K72) -> 14280 | N72: 9h | O72: =SUM(O71,-O67)+Q71 -> 415 | P72: =SUM(O66-O72) -> 4335
B73: 10h | C73: =SUM(C72,-C67)+E72 -> -27000 | D73: =SUM(C66-C73) -> 65000 | F73: 10h | G73: =SUM(G72,-G67)+I72 -> 26560 | H73: =SUM(G66-G73) -> 11440 | J73: 10h | K73: =SUM(K72,-K67)+M72 -> 18440 | L73: =SUM(K66-K73) -> 14560 | N73: 10h | O73: =SUM(O72,-O67)+Q72 -> 330 | P73: =SUM(O66-O73) -> 4420
B74: 11h | C74: =SUM(C73-C67+E73) -> -28250 | D74: =SUM(C66-C74) -> 66250 | F74: 11h | G74: =SUM(G73-G67+I73) -> 26340 | H74: =SUM(G66-G74) -> 11660 | J74: 11h | K74: =SUM(K73-K67+M73) -> 18160 | L74: =SUM(K66-K74) -> 14840 | N74: 11h | O74: =SUM(O73-O67+Q73) -> 245 | P74: =SUM(O66-O74) -> 4505
B75: 12h | C75: =SUM(C74-C67+E74) -> -29500 | D75: =SUM(C66-C75) -> 67500 | F75: 12h | G75: =SUM(G74-G67+I74) -> 26120 | H75: =SUM(G66-G75) -> 11880 | J75: 12h | K75: =SUM(K74-K67+M74) -> 17880 | L75: =SUM(K66-K75) -> 15120 | N75: 12h | O75: =SUM(O74-O67+Q74) -> 160 | P75: =SUM(O66-O75) -> 4590
B76: 13h | C76: =SUM(C75,-C67)+E75 -> -30750 | D76: =SUM(C66-C76) -> 68750 | F76: 13h | G76: =SUM(G75,-G67)+I75 -> 25900 | H76: =SUM(G66-G76) -> 12100 | J76: 13h | K76: =SUM(K75,-K67)+M75 -> 17600 | L76: =SUM(K66-K76) -> 15400 | N76: 13h | O76: =SUM(O75,-O67)+Q75 -> 75 | P76: =SUM(O66-O76) -> 4675
B77: 14h | C77: =SUM(C76,-C67)+E76 -> -32000 | D77: =SUM(C66-C77) -> 70000 | F77: 14h | G77: =SUM(G76,-G67)+I76 -> 25680 | H77: =SUM(G66-G77) -> 12320 | J77: 14h | K77: =SUM(K76,-K67)+M76 -> 17320 | L77: =SUM(K66-K77) -> 15680 | N77: 14h | O77: =SUM(O76,-O67)+Q76 -> -10 | P77: =SUM(O66-O77) -> 4760
B78: 15h | C78: =SUM(C77,-C67)+E77 -> -33250 | D78: =SUM(C66-C78) -> 71250 | F78: 15h | G78: =SUM(G77,-G67)+I77 -> 25460 | H78: =SUM(G66-G78) -> 12540 | J78: 15h | K78: =SUM(K77,-K67)+M77 -> 17040 | L78: =SUM(K66-K78) -> 15960 | N78: 15h | O78: =SUM(O77,-O67)+Q77 -> -95 | P78: =SUM(O66-O78) -> 4845
B79: 16h | C79: =SUM(C78,-C67)+E78 -> -34500 | D79: =SUM(C66-C79) -> 72500 | F79: 16h | G79: =SUM(G78,-G67)+I78 -> 25240 | H79: =SUM(G66-G79) -> 12760 | J79: 16h | K79: =SUM(K78,-K67)+M78 -> 16760 | L79: =SUM(K66-K79) -> 16240 | N79: 16h | O79: =SUM(O78,-O67)+Q78 -> -180 | P79: =SUM(O66-O79) -> 4930
B80: 17h | C80: =SUM(C79,-C67)+E79 -> -35750 | D80: =SUM(C66-C80) -> 73750 | F80: 17h | G80: =SUM(G79,-G67)+I79 -> 25020 | H80: =SUM(G66-G80) -> 12980 | J80: 17h | K80: =SUM(K79,-K67)+M79 -> 16480 | L80: =SUM(K66-K80) -> 16520 | N80: 17h | O80: =SUM(O79,-O67)+Q79 -> -265 | P80: =SUM(O66-O80) -> 5015
B81: 18h | C81: =SUM(C80-C67)+E80 -> -37000 | D81: =SUM(C66-C81) -> 75000 | F81: 18h | G81: =SUM(G80-G67)+I80 -> 24800 | H81: =SUM(G66-G81) -> 13200 | J81: 18h | K81: =SUM(K80-K67)+M80 -> 16200 | L81: =SUM(K66-K81) -> 16800 | N81: 18h | O81: =SUM(O80-O67)+Q80 -> -350 | P81: =SUM(O66-O81) -> 5100
B82: 19h | C82: =SUM(C81-C67)+E81 -> -38250 | D82: =SUM(C66-C82) -> 76250 | F82: 19h | G82: =SUM(G81-G67)+I81 -> 24580 | H82: =SUM(G66-G82) -> 13420 | J82: 19h | K82: =SUM(K81-K67)+M81 -> 15920 | L82: =SUM(K66-K82) -> 17080 | N82: 19h | O82: =SUM(O81-O67)+Q81 -> -435 | P82: =SUM(O66-O82) -> 5185
B83: 20h | C83: =SUM(C82-C67)+E82 -> -39500 | D83: =SUM(C66-C83) -> 77500 | F83: 20h | G83: =SUM(G82-G67)+I82 -> 24360 | H83: =SUM(G66-G83) -> 13640 | J83: 20h | K83: =SUM(K82-K67)+M82 -> 15640 | L83: =SUM(K66-K83) -> 17360 | N83: 20h | O83: =SUM(O82-O67)+Q82 -> -520 | P83: =SUM(O66-O83) -> 5270
B84: 21h | C84: =SUM(C83-C67)+E83 -> -40750 | D84: =SUM(C66-C84) -> 78750 | F84: 21h | G84: =SUM(G83-G67)+I83 -> 24140 | H84: =SUM(G66-G84) -> 13860 | J84: 21h | K84: =SUM(K83-K67)+M83 -> 15360 | L84: =SUM(K66-K84) -> 17640 | N84: 21h | O84: =SUM(O83-O67)+Q83 -> -605 | P84: =SUM(O66-O84) -> 5355
B85: 22h | C85: =SUM(C84,-C67)+E84 -> -42000 | D85: =SUM(C66-C85) -> 80000 | F85: 22h | G85: =SUM(G84,-G67)+I84 -> 23920 | H85: =SUM(G66-G85) -> 14080 | J85: 22h | K85: =SUM(K84,-K67)+M84 -> 15080 | L85: =SUM(K66-K85) -> 17920 | N85: 22h | O85: =SUM(O84,-O67)+Q84 -> -690 | P85: =SUM(O66-O85) -> 5440
D86: Diesiel | H86: 95 | L86: Diesiel excellium | P86: 98 excellium
B87: Citerne | C87: =SUM(C66) -> 38000 | D87: VENDREDI | F87: Citerne | G87: =SUM(G66) -> 38000 | J87: Citerne | K87: =SUM(K66) -> 33000 | N87: Citerne | O87: =SUM(O66) -> 4750
B88: Vente / H | C88: =SUM(C67) -> 1250 | F88: Vente / H | G88: =SUM(G67) -> 220 | J88: Vente / H | K88: =SUM(K67) -> 280 | N88: Vente / H | O88: 100
C89: Stock | D89: Commande | E89: Livraison | G89: Stock | H89: Commande | I89: Livraison | K89: Stock | L89: Commande | M89: Livraison | O89: Stock | P89: Commande | Q89: Livraison
B90: 6h | C90: =SUM(C85) -> -42000 | F90: 6h | G90: =SUM(G85) -> 23920 | J90: 6h | K90: =SUM(K85) -> 15080 | N90: 6h | O90: =SUM(O85) -> -690
B91: 7h | C91: =SUM(C90,-C88)+E90 -> -43250 | D91: =SUM(C87-C91) -> 81250 | F91: 7h | G91: =SUM(G90,-G88)+I90 -> 23700 | H91: =SUM(G87-G91) -> 14300 | J91: 7h | K91: =SUM(K90,-K88)+M90 -> 14800 | L91: =SUM(K87-K91) -> 18200 | N91: 7h | O91: =SUM(O90,-O88)+Q90 -> -790 | P91: =SUM(O87-O91) -> 5540
B92: 8h | C92: =SUM(C91,-C88)+E91 -> -44500 | D92: =SUM(C87-C92) -> 82500 | F92: 8h | G92: =SUM(G91,-G88)+I91 -> 23480 | H92: =SUM(G87-G92) -> 14520 | J92: 8h | K92: =SUM(K91,-K88)+M91 -> 14520 | L92: =SUM(K87-K92) -> 18480 | N92: 8h | O92: =SUM(O91,-O88)+Q91 -> -890 | P92: =SUM(O87-O92) -> 5640
B93: 9h | C93: =SUM(C92,-C88)+E92 -> -45750 | D93: =SUM(C87-C93) -> 83750 | F93: 9h | G93: =SUM(G92,-G88)+I92 -> 23260 | H93: =SUM(G87-G93) -> 14740 | J93: 9h | K93: =SUM(K92,-K88)+M92 -> 14240 | L93: =SUM(K87-K93) -> 18760 | N93: 9h | O93: =SUM(O92,-O88)+Q92 -> -990 | P93: =SUM(O87-O93) -> 5740
B94: 10h | C94: =SUM(C93,-C88)+E93 -> -47000 | D94: =SUM(C87-C94) -> 85000 | F94: 10h | G94: =SUM(G93,-G88)+I93 -> 23040 | H94: =SUM(G87-G94) -> 14960 | J94: 10h | K94: =SUM(K93,-K88)+M93 -> 13960 | L94: =SUM(K87-K94) -> 19040 | N94: 10h | O94: =SUM(O93,-O88)+Q93 -> -1090 | P94: =SUM(O87-O94) -> 5840
B95: 11h | C95: =SUM(C94-C88+E94) -> -48250 | D95: =SUM(C87-C95) -> 86250 | F95: 11h | G95: =SUM(G94-G88+I94) -> 22820 | H95: =SUM(G87-G95) -> 15180 | J95: 11h | K95: =SUM(K94-K88+M94) -> 13680 | L95: =SUM(K87-K95) -> 19320 | N95: 11h | O95: =SUM(O94-O88+Q94) -> -1190 | P95: =SUM(O87-O95) -> 5940
B96: 12h | C96: =SUM(C95-C88+E95) -> -49500 | D96: =SUM(C87-C96) -> 87500 | F96: 12h | G96: =SUM(G95-G88+I95) -> 22600 | H96: =SUM(G87-G96) -> 15400 | J96: 12h | K96: =SUM(K95-K88+M95) -> 13400 | L96: =SUM(K87-K96) -> 19600 | N96: 12h | O96: =SUM(O95-O88+Q95) -> -1290 | P96: =SUM(O87-O96) -> 6040
B97: 13h | C97: =SUM(C96,-C88)+E96 -> -50750 | D97: =SUM(C87-C97) -> 88750 | F97: 13h | G97: =SUM(G96,-G88)+I96 -> 22380 | H97: =SUM(G87-G97) -> 15620 | J97: 13h | K97: =SUM(K96,-K88)+M96 -> 13120 | L97: =SUM(K87-K97) -> 19880 | N97: 13h | O97: =SUM(O96,-O88)+Q96 -> -1390 | P97: =SUM(O87-O97) -> 6140
B98: 14h | C98: =SUM(C97,-C88)+E97 -> -52000 | D98: =SUM(C87-C98) -> 90000 | F98: 14h | G98: =SUM(G97,-G88)+I97 -> 22160 | H98: =SUM(G87-G98) -> 15840 | J98: 14h | K98: =SUM(K97,-K88)+M97 -> 12840 | L98: =SUM(K87-K98) -> 20160 | N98: 14h | O98: =SUM(O97,-O88)+Q97 -> -1490 | P98: =SUM(O87-O98) -> 6240
B99: 15h | C99: =SUM(C98,-C88)+E98 -> -53250 | D99: =SUM(C87-C99) -> 91250 | F99: 15h | G99: =SUM(G98,-G88)+I98 -> 21940 | H99: =SUM(G87-G99) -> 16060 | J99: 15h | K99: =SUM(K98,-K88)+M98 -> 12560 | L99: =SUM(K87-K99) -> 20440 | N99: 15h | O99: =SUM(O98,-O88)+Q98 -> -1590 | P99: =SUM(O87-O99) -> 6340
B100: 16h | C100: =SUM(C99,-C88)+E99 -> -54500 | D100: =SUM(C87-C100) -> 92500 | F100: 16h | G100: =SUM(G99,-G88)+I99 -> 21720 | H100: =SUM(G87-G100) -> 16280 | J100: 16h | K100: =SUM(K99,-K88)+M99 -> 12280 | L100: =SUM(K87-K100) -> 20720 | N100: 16h | O100: =SUM(O99,-O88)+Q99 -> -1690 | P100: =SUM(O87-O100) -> 6440
B101: 17h | C101: =SUM(C100,-C88)+E100 -> -55750 | D101: =SUM(C87-C101) -> 93750 | F101: 17h | G101: =SUM(G100,-G88)+I100 -> 21500 | H101: =SUM(G87-G101) -> 16500 | J101: 17h | K101: =SUM(K100,-K88)+M100 -> 12000 | L101: =SUM(K87-K101) -> 21000 | N101: 17h | O101: =SUM(O100,-O88)+Q100 -> -1790 | P101: =SUM(O87-O101) -> 6540
B102: 18h | C102: =SUM(C101-C88)+E101 -> -57000 | D102: =SUM(C87-C102) -> 95000 | F102: 18h | G102: =SUM(G101-G88)+I101 -> 21280 | H102: =SUM(G87-G102) -> 16720 | J102: 18h | K102: =SUM(K101-K88)+M101 -> 11720 | L102: =SUM(K87-K102) -> 21280 | N102: 18h | O102: =SUM(O101-O88)+Q101 -> -1890 | P102: =SUM(O87-O102) -> 6640
B103: 19h | C103: =SUM(C102-C88)+E102 -> -58250 | D103: =SUM(C87-C103) -> 96250 | F103: 19h | G103: =SUM(G102-G88)+I102 -> 21060 | H103: =SUM(G87-G103) -> 16940 | J103: 19h | K103: =SUM(K102-K88)+M102 -> 11440 | L103: =SUM(K87-K103) -> 21560 | N103: 19h | O103: =SUM(O102-O88)+Q102 -> -1990 | P103: =SUM(O87-O103) -> 6740
B104: 20h | C104: =SUM(C103-C88)+E103 -> -59500 | D104: =SUM(C87-C104) -> 97500 | F104: 20h | G104: =SUM(G103-G88)+I103 -> 20840 | H104: =SUM(G87-G104) -> 17160 | J104: 20h | K104: =SUM(K103-K88)+M103 -> 11160 | L104: =SUM(K87-K104) -> 21840 | N104: 20h | O104: =SUM(O103-O88)+Q103 -> -2090 | P104: =SUM(O87-O104) -> 6840
B105: 21h | C105: =SUM(C104-C88)+E104 -> -60750 | D105: =SUM(C87-C105) -> 98750 | F105: 21h | G105: =SUM(G104-G88)+I104 -> 20620 | H105: =SUM(G87-G105) -> 17380 | J105: 21h | K105: =SUM(K104-K88)+M104 -> 10880 | L105: =SUM(K87-K105) -> 22120 | N105: 21h | O105: =SUM(O104-O88)+Q104 -> -2190 | P105: =SUM(O87-O105) -> 6940
B106: 22h | C106: =SUM(C105,-C88)+E105 -> -62000 | D106: =SUM(C87-C106) -> 100000 | F106: 22h | G106: =SUM(G105,-G88)+I105 -> 20400 | H106: =SUM(G87-G106) -> 17600 | J106: 22h | K106: =SUM(K105,-K88)+M105 -> 10600 | L106: =SUM(K87-K106) -> 22400 | N106: 22h | O106: =SUM(O105,-O88)+Q105 -> -2290 | P106: =SUM(O87-O106) -> 7040
D107: Diesiel | H107: 95 | L107: Diesiel excellium | P107: 98 excellium
B108: Citerne | C108: =SUM(C87) -> 38000 | D108: SAMEDI | F108: Citerne | G108: =SUM(G87) -> 38000 | J108: Citerne | K108: =SUM(K87) -> 33000 | N108: Citerne | O108: =SUM(O87) -> 4750
B109: Vente / H | C109: 850 | F109: Vente / H | G109: =SUM(G88) -> 220 | J109: Vente / H | K109: =SUM(K88) -> 280 | N109: Vente / H | O109: 80
C110: Stock | D110: Commande | E110: Livraison | G110: Stock | H110: Commande | I110: Livraison | K110: Stock | L110: Commande | M110: Livraison | O110: Stock | P110: Commande | Q110: Livraison
B111: 6h | C111: =SUM(C106) -> -62000 | F111: 6h | G111: =SUM(G106) -> 20400 | J111: 6h | K111: =SUM(K106) -> 10600 | N111: 6h | O111: =SUM(O106) -> -2290
B112: 7h | C112: =SUM(C111,-C109)+E111 -> -62850 | D112: =SUM(C108-C112) -> 100850 | F112: 7h | G112: =SUM(G111,-G109)+I111 -> 20180 | H112: =SUM(G108-G112) -> 17820 | J112: 7h | K112: =SUM(K111,-K109)+M111 -> 10320 | L112: =SUM(K108-K112) -> 22680 | N112: 7h | O112: =SUM(O111,-O109)+Q111 -> -2370 | P112: =SUM(O108-O112) -> 7120
B113: 8h | C113: =SUM(C112,-C109)+E112 -> -63700 | D113: =SUM(C108-C113) -> 101700 | F113: 8h | G113: =SUM(G112,-G109)+I112 -> 19960 | H113: =SUM(G108-G113) -> 18040 | J113: 8h | K113: =SUM(K112,-K109)+M112 -> 10040 | L113: =SUM(K108-K113) -> 22960 | N113: 8h | O113: =SUM(O112,-O109)+Q112 -> -2450 | P113: =SUM(O108-O113) -> 7200
B114: 9h | C114: =SUM(C113,-C109)+E113 -> -64550 | D114: =SUM(C108-C114) -> 102550 | F114: 9h | G114: =SUM(G113,-G109)+I113 -> 19740 | H114: =SUM(G108-G114) -> 18260 | J114: 9h | K114: =SUM(K113,-K109)+M113 -> 9760 | L114: =SUM(K108-K114) -> 23240 | N114: 9h | O114: =SUM(O113,-O109)+Q113 -> -2530 | P114: =SUM(O108-O114) -> 7280
B115: 10h | C115: =SUM(C114,-C109)+E114 -> -65400 | D115: =SUM(C108-C115) -> 103400 | F115: 10h | G115: =SUM(G114,-G109)+I114 -> 19520 | H115: =SUM(G108-G115) -> 18480 | J115: 10h | K115: =SUM(K114,-K109)+M114 -> 9480 | L115: =SUM(K108-K115) -> 23520 | N115: 10h | O115: =SUM(O114,-O109)+Q114 -> -2610 | P115: =SUM(O108-O115) -> 7360
B116: 11h | C116: =SUM(C115-C109+E115) -> -66250 | D116: =SUM(C108-C116) -> 104250 | F116: 11h | G116: =SUM(G115-G109+I115) -> 19300 | H116: =SUM(G108-G116) -> 18700 | J116: 11h | K116: =SUM(K115-K109+M115) -> 9200 | L116: =SUM(K108-K116) -> 23800 | N116: 11h | O116: =SUM(O115-O109+Q115) -> -2690 | P116: =SUM(O108-O116) -> 7440
B117: 12h | C117: =SUM(C116-C109+E116) -> -67100 | D117: =SUM(C108-C117) -> 105100 | F117: 12h | G117: =SUM(G116-G109+I116) -> 19080 | H117: =SUM(G108-G117) -> 18920 | J117: 12h | K117: =SUM(K116-K109+M116) -> 8920 | L117: =SUM(K108-K117) -> 24080 | N117: 12h | O117: =SUM(O116-O109+Q116) -> -2770 | P117: =SUM(O108-O117) -> 7520
B118: 13h | C118: =SUM(C117,-C109)+E117 -> -67950 | D118: =SUM(C108-C118) -> 105950 | F118: 13h | G118: =SUM(G117,-G109)+I117 -> 18860 | H118: =SUM(G108-G118) -> 19140 | J118: 13h | K118: =SUM(K117,-K109)+M117 -> 8640 | L118: =SUM(K108-K118) -> 24360 | N118: 13h | O118: =SUM(O117,-O109)+Q117 -> -2850 | P118: =SUM(O108-O118) -> 7600
B119: 14h | C119: =SUM(C118,-C109)+E118 -> -68800 | D119: =SUM(C108-C119) -> 106800 | F119: 14h | G119: =SUM(G118,-G109)+I118 -> 18640 | H119: =SUM(G108-G119) -> 19360 | J119: 14h | K119: =SUM(K118,-K109)+M118 -> 8360 | L119: =SUM(K108-K119) -> 24640 | N119: 14h | O119: =SUM(O118,-O109)+Q118 -> -2930 | P119: =SUM(O108-O119) -> 7680
B120: 15h | C120: =SUM(C119,-C109)+E119 -> -69650 | D120: =SUM(C108-C120) -> 107650 | F120: 15h | G120: =SUM(G119,-G109)+I119 -> 18420 | H120: =SUM(G108-G120) -> 19580 | J120: 15h | K120: =SUM(K119,-K109)+M119 -> 8080 | L120: =SUM(K108-K120) -> 24920 | N120: 15h | O120: =SUM(O119,-O109)+Q119 -> -3010 | P120: =SUM(O108-O120) -> 7760
B121: 16h | C121: =SUM(C120,-C109)+E120 -> -70500 | D121: =SUM(C108-C121) -> 108500 | F121: 16h | G121: =SUM(G120,-G109)+I120 -> 18200 | H121: =SUM(G108-G121) -> 19800 | J121: 16h | K121: =SUM(K120,-K109)+M120 -> 7800 | L121: =SUM(K108-K121) -> 25200 | N121: 16h | O121: =SUM(O120,-O109)+Q120 -> -3090 | P121: =SUM(O108-O121) -> 7840
B122: 17h | C122: =SUM(C121,-C109)+E121 -> -71350 | D122: =SUM(C108-C122) -> 109350 | F122: 17h | G122: =SUM(G121,-G109)+I121 -> 17980 | H122: =SUM(G108-G122) -> 20020 | J122: 17h | K122: =SUM(K121,-K109)+M121 -> 7520 | L122: =SUM(K108-K122) -> 25480 | N122: 17h | O122: =SUM(O121,-O109)+Q121 -> -3170 | P122: =SUM(O108-O122) -> 7920
B123: 18h | C123: =SUM(C122-C109)+E122 -> -72200 | D123: =SUM(C108-C123) -> 110200 | F123: 18h | G123: =SUM(G122-G109)+I122 -> 17760 | H123: =SUM(G108-G123) -> 20240 | J123: 18h | K123: =SUM(K122-K109)+M122 -> 7240 | L123: =SUM(K108-K123) -> 25760 | N123: 18h | O123: =SUM(O122-O109)+Q122 -> -3250 | P123: =SUM(O108-O123) -> 8000
B124: 19h | C124: =SUM(C123-C109)+E123 -> -73050 | D124: =SUM(C108-C124) -> 111050 | F124: 19h | G124: =SUM(G123-G109)+I123 -> 17540 | H124: =SUM(G108-G124) -> 20460 | J124: 19h | K124: =SUM(K123-K109)+M123 -> 6960 | L124: =SUM(K108-K124) -> 26040 | N124: 19h | O124: =SUM(O123-O109)+Q123 -> -3330 | P124: =SUM(O108-O124) -> 8080
B125: 20h | C125: =SUM(C124-C109)+E124 -> -73900 | D125: =SUM(C108-C125) -> 111900 | F125: 20h | G125: =SUM(G124-G109)+I124 -> 17320 | H125: =SUM(G108-G125) -> 20680 | J125: 20h | K125: =SUM(K124-K109)+M124 -> 6680 | L125: =SUM(K108-K125) -> 26320 | N125: 20h | O125: =SUM(O124-O109)+Q124 -> -3410 | P125: =SUM(O108-O125) -> 8160
B126: 21h | C126: =SUM(C125-C109)+E125 -> -74750 | D126: =SUM(C108-C126) -> 112750 | F126: 21h | G126: =SUM(G125-G109)+I125 -> 17100 | H126: =SUM(G108-G126) -> 20900 | J126: 21h | K126: =SUM(K125-K109)+M125 -> 6400 | L126: =SUM(K108-K126) -> 26600 | N126: 21h | O126: =SUM(O125-O109)+Q125 -> -3490 | P126: =SUM(O108-O126) -> 8240
B127: 22h | C127: =SUM(C126,-C109)+E126 -> -75600 | D127: =SUM(C108-C127) -> 113600 | F127: 22h | G127: =SUM(G126,-G109)+I126 -> 16880 | H127: =SUM(G108-G127) -> 21120 | J127: 22h | K127: =SUM(K126,-K109)+M126 -> 6120 | L127: =SUM(K108-K127) -> 26880 | N127: 22h | O127: =SUM(O126,-O109)+Q126 -> -3570 | P127: =SUM(O108-O127) -> 8320
D128: Diesiel | H128: 95 | L128: Diesiel excellium | P128: 98 excellium
B129: Citerne | C129: =SUM(C108) -> 38000 | D129: DIMANCHE | F129: Citerne | G129: =SUM(G108) -> 38000 | J129: Citerne | K129: =SUM(K108) -> 33000 | N129: Citerne | O129: =SUM(O108) -> 4750
B130: Vente / H | C130: 400 | F130: Vente / H | G130: 100 | J130: Vente / H | K130: 140 | N130: Vente / H | O130: 40
C131: Stock | D131: Commande | E131: Livraison | G131: Stock | H131: Commande | I131: Livraison | K131: Stock | L131: Commande | M131: Livraison | O131: Stock | P131: Commande | Q131: Livraison
B132: 6h | C132: =SUM(C127) -> -75600 | F132: 6h | G132: =SUM(G127) -> 16880 | J132: 6h | K132: =SUM(K127) -> 6120 | N132: 6h | O132: =SUM(O127) -> -3570
B133: 7h | C133: =SUM(C132,-C130)+E132 -> -76000 | D133: =SUM(C129-C133) -> 114000 | F133: 7h | G133: =SUM(G132,-G130)+I132 -> 16780 | H133: =SUM(G129-G133) -> 21220 | J133: 7h | K133: =SUM(K132,-K130)+M132 -> 5980 | L133: =SUM(K129-K133) -> 27020 | N133: 7h | O133: =SUM(O132,-O130)+Q132 -> -3610 | P133: =SUM(O129-O133) -> 8360
B134: 8h | C134: =SUM(C133,-C130)+E133 -> -76400 | D134: =SUM(C129-C134) -> 114400 | F134: 8h | G134: =SUM(G133,-G130)+I133 -> 16680 | H134: =SUM(G129-G134) -> 21320 | J134: 8h | K134: =SUM(K133,-K130)+M133 -> 5840 | L134: =SUM(K129-K134) -> 27160 | N134: 8h | O134: =SUM(O133,-O130)+Q133 -> -3650 | P134: =SUM(O129-O134) -> 8400
B135: 9h | C135: =SUM(C134,-C130)+E134 -> -76800 | D135: =SUM(C129-C135) -> 114800 | F135: 9h | G135: =SUM(G134,-G130)+I134 -> 16580 | H135: =SUM(G129-G135) -> 21420 | J135: 9h | K135: =SUM(K134,-K130)+M134 -> 5700 | L135: =SUM(K129-K135) -> 27300 | N135: 9h | O135: =SUM(O134,-O130)+Q134 -> -3690 | P135: =SUM(O129-O135) -> 8440
B136: 10h | C136: =SUM(C135,-C130)+E135 -> -77200 | D136: =SUM(C129-C136) -> 115200 | F136: 10h | G136: =SUM(G135,-G130)+I135 -> 16480 | H136: =SUM(G129-G136) -> 21520 | J136: 10h | K136: =SUM(K135,-K130)+M135 -> 5560 | L136: =SUM(K129-K136) -> 27440 | N136: 10h | O136: =SUM(O135,-O130)+Q135 -> -3730 | P136: =SUM(O129-O136) -> 8480
B137: 11h | C137: =SUM(C136-C130+E136) -> -77600 | D137: =SUM(C129-C137) -> 115600 | F137: 11h | G137: =SUM(G136-G130+I136) -> 16380 | H137: =SUM(G129-G137) -> 21620 | J137: 11h | K137: =SUM(K136-K130+M136) -> 5420 | L137: =SUM(K129-K137) -> 27580 | N137: 11h | O137: =SUM(O136-O130+Q136) -> -3770 | P137: =SUM(O129-O137) -> 8520
B138: 12h | C138: =SUM(C137-C130+E137) -> -78000 | D138: =SUM(C129-C138) -> 116000 | F138: 12h | G138: =SUM(G137-G130+I137) -> 16280 | H138: =SUM(G129-G138) -> 21720 | J138: 12h | K138: =SUM(K137-K130+M137) -> 5280 | L138: =SUM(K129-K138) -> 27720 | N138: 12h | O138: =SUM(O137-O130+Q137) -> -3810 | P138: =SUM(O129-O138) -> 8560
B139: 13h | C139: =SUM(C138,-C130)+E138 -> -78400 | D139: =SUM(C129-C139) -> 116400 | F139: 13h | G139: =SUM(G138,-G130)+I138 -> 16180 | H139: =SUM(G129-G139) -> 21820 | J139: 13h | K139: =SUM(K138,-K130)+M138 -> 5140 | L139: =SUM(K129-K139) -> 27860 | N139: 13h | O139: =SUM(O138,-O130)+Q138 -> -3850 | P139: =SUM(O129-O139) -> 8600
B140: 14h | C140: =SUM(C139,-C130)+E139 -> -78800 | D140: =SUM(C129-C140) -> 116800 | F140: 14h | G140: =SUM(G139,-G130)+I139 -> 16080 | H140: =SUM(G129-G140) -> 21920 | J140: 14h | K140: =SUM(K139,-K130)+M139 -> 5000 | L140: =SUM(K129-K140) -> 28000 | N140: 14h | O140: =SUM(O139,-O130)+Q139 -> -3890 | P140: =SUM(O129-O140) -> 8640
B141: 15h | C141: =SUM(C140,-C130)+E140 -> -79200 | D141: =SUM(C129-C141) -> 117200 | F141: 15h | G141: =SUM(G140,-G130)+I140 -> 15980 | H141: =SUM(G129-G141) -> 22020 | J141: 15h | K141: =SUM(K140,-K130)+M140 -> 4860 | L141: =SUM(K129-K141) -> 28140 | N141: 15h | O141: =SUM(O140,-O130)+Q140 -> -3930 | P141: =SUM(O129-O141) -> 8680
B142: 16h | C142: =SUM(C141,-C130)+E141 -> -79600 | D142: =SUM(C129-C142) -> 117600 | F142: 16h | G142: =SUM(G141,-G130)+I141 -> 15880 | H142: =SUM(G129-G142) -> 22120 | J142: 16h | K142: =SUM(K141,-K130)+M141 -> 4720 | L142: =SUM(K129-K142) -> 28280 | N142: 16h | O142: =SUM(O141,-O130)+Q141 -> -3970 | P142: =SUM(O129-O142) -> 8720
B143: 17h | C143: =SUM(C142,-C130)+E142 -> -80000 | D143: =SUM(C129-C143) -> 118000 | F143: 17h | G143: =SUM(G142,-G130)+I142 -> 15780 | H143: =SUM(G129-G143) -> 22220 | J143: 17h | K143: =SUM(K142,-K130)+M142 -> 4580 | L143: =SUM(K129-K143) -> 28420 | N143: 17h | O143: =SUM(O142,-O130)+Q142 -> -4010 | P143: =SUM(O129-O143) -> 8760
B144: 18h | C144: =SUM(C143-C130)+E143 -> -80400 | D144: =SUM(C129-C144) -> 118400 | F144: 18h | G144: =SUM(G143-G130)+I143 -> 15680 | H144: =SUM(G129-G144) -> 22320 | J144: 18h | K144: =SUM(K143-K130)+M143 -> 4440 | L144: =SUM(K129-K144) -> 28560 | N144: 18h | O144: =SUM(O143-O130)+Q143 -> -4050 | P144: =SUM(O129-O144) -> 8800
B145: 19h | C145: =SUM(C144-C130)+E144 -> -80800 | D145: =SUM(C129-C145) -> 118800 | F145: 19h | G145: =SUM(G144-G130)+I144 -> 15580 | H145: =SUM(G129-G145) -> 22420 | J145: 19h | K145: =SUM(K144-K130)+M144 -> 4300 | L145: =SUM(K129-K145) -> 28700 | N145: 19h | O145: =SUM(O144-O130)+Q144 -> -4090 | P145: =SUM(O129-O145) -> 8840
B146: 20h | C146: =SUM(C145-C130)+E145 -> -81200 | D146: =SUM(C129-C146) -> 119200 | F146: 20h | G146: =SUM(G145-G130)+I145 -> 15480 | H146: =SUM(G129-G146) -> 22520 | J146: 20h | K146: =SUM(K145-K130)+M145 -> 4160 | L146: =SUM(K129-K146) -> 28840 | N146: 20h | O146: =SUM(O145-O130)+Q145 -> -4130 | P146: =SUM(O129-O146) -> 8880
B147: 21h | C147: =SUM(C146-C130)+E146 -> -81600 | D147: =SUM(C129-C147) -> 119600 | F147: 21h | G147: =SUM(G146-G130)+I146 -> 15380 | H147: =SUM(G129-G147) -> 22620 | J147: 21h | K147: =SUM(K146-K130)+M146 -> 4020 | L147: =SUM(K129-K147) -> 28980 | N147: 21h | O147: =SUM(O146-O130)+Q146 -> -4170 | P147: =SUM(O129-O147) -> 8920
B148: 22h | C148: =SUM(C147,-C130)+E147 -> -82000 | D148: =SUM(C129-C148) -> 120000 | F148: 22h | G148: =SUM(G147,-G130)+I147 -> 15280 | H148: =SUM(G129-G148) -> 22720 | J148: 22h | K148: =SUM(K147,-K130)+M147 -> 3880 | L148: =SUM(K129-K148) -> 29120 | N148: 22h | O148: =SUM(O147,-O130)+Q147 -> -4210 | P148: =SUM(O129-O148) -> 8960
D149: Diesiel | H149: 95 | L149: Diesiel excellium | P149: 98 excellium
B150: Citerne | C150: =SUM(C129) -> 38000 | D150: LUNDI | F150: Citerne | G150: =SUM(G129) -> 38000 | J150: Citerne | K150: =SUM(K129) -> 33000 | N150: Citerne | O150: =SUM(O129) -> 4750
B151: Vente / H | C151: =SUM(C25) -> 1250 | F151: Vente / H | G151: =SUM(G25) -> 220 | J151: Vente / H | K151: =SUM(K25) -> 280 | N151: Vente / H | O151: =SUM(O25) -> 85
C152: Stock | D152: Commande | E152: Livraison | G152: Stock | H152: Commande | I152: Livraison | K152: Stock | L152: Commande | M152: Livraison | O152: Stock | P152: Commande | Q152: Livraison
B153: 6h | C153: =SUM(C148) -> -82000 | F153: 6h | G153: =SUM(G148) -> 15280 | J153: 6h | K153: =SUM(K148) -> 3880 | N153: 6h | O153: =SUM(O148) -> -4210
B154: 7h | C154: =SUM(C153,-C151)+E153 -> -83250 | D154: =SUM(C150-C154) -> 121250 | F154: 7h | G154: =SUM(G153,-G151)+I153 -> 15060 | H154: =SUM(G150-G154) -> 22940 | J154: 7h | K154: =SUM(K153,-K151)+M153 -> 3600 | L154: =SUM(K150-K154) -> 29400 | N154: 7h | O154: =SUM(O153,-O151)+Q153 -> -4295 | P154: =SUM(O150-O154) -> 9045
B155: 8h | C155: =SUM(C154,-C151)+E154 -> -84500 | D155: =SUM(C150-C155) -> 122500 | F155: 8h | G155: =SUM(G154,-G151)+I154 -> 14840 | H155: =SUM(G150-G155) -> 23160 | J155: 8h | K155: =SUM(K154,-K151)+M154 -> 3320 | L155: =SUM(K150-K155) -> 29680 | N155: 8h | O155: =SUM(O154,-O151)+Q154 -> -4380 | P155: =SUM(O150-O155) -> 9130
B156: 9h | C156: =SUM(C155,-C151)+E155 -> -85750 | D156: =SUM(C150-C156) -> 123750 | F156: 9h | G156: =SUM(G155,-G151)+I155 -> 14620 | H156: =SUM(G150-G156) -> 23380 | J156: 9h | K156: =SUM(K155,-K151)+M155 -> 3040 | L156: =SUM(K150-K156) -> 29960 | N156: 9h | O156: =SUM(O155,-O151)+Q155 -> -4465 | P156: =SUM(O150-O156) -> 9215
B157: 10h | C157: =SUM(C156,-C151)+E156 -> -87000 | D157: =SUM(C150-C157) -> 125000 | F157: 10h | G157: =SUM(G156,-G151)+I156 -> 14400 | H157: =SUM(G150-G157) -> 23600 | J157: 10h | K157: =SUM(K156,-K151)+M156 -> 2760 | L157: =SUM(K150-K157) -> 30240 | N157: 10h | O157: =SUM(O156,-O151)+Q156 -> -4550 | P157: =SUM(O150-O157) -> 9300
B158: 11h | C158: =SUM(C157-C151+E157) -> -88250 | D158: =SUM(C150-C158) -> 126250 | F158: 11h | G158: =SUM(G157-G151+I157) -> 14180 | H158: =SUM(G150-G158) -> 23820 | J158: 11h | K158: =SUM(K157-K151+M157) -> 2480 | L158: =SUM(K150-K158) -> 30520 | N158: 11h | O158: =SUM(O157-O151+Q157) -> -4635 | P158: =SUM(O150-O158) -> 9385
B159: 12h | C159: =SUM(C158-C151+E158) -> -89500 | D159: =SUM(C150-C159) -> 127500 | F159: 12h | G159: =SUM(G158-G151+I158) -> 13960 | H159: =SUM(G150-G159) -> 24040 | J159: 12h | K159: =SUM(K158-K151+M158) -> 2200 | L159: =SUM(K150-K159) -> 30800 | N159: 12h | O159: =SUM(O158-O151+Q158) -> -4720 | P159: =SUM(O150-O159) -> 9470
B160: 13h | C160: =SUM(C159,-C151)+E159 -> -90750 | D160: =SUM(C150-C160) -> 128750 | F160: 13h | G160: =SUM(G159,-G151)+I159 -> 13740 | H160: =SUM(G150-G160) -> 24260 | J160: 13h | K160: =SUM(K159,-K151)+M159 -> 1920 | L160: =SUM(K150-K160) -> 31080 | N160: 13h | O160: =SUM(O159,-O151)+Q159 -> -4805 | P160: =SUM(O150-O160) -> 9555
B161: 14h | C161: =SUM(C160,-C151)+E160 -> -92000 | D161: =SUM(C150-C161) -> 130000 | F161: 14h | G161: =SUM(G160,-G151)+I160 -> 13520 | H161: =SUM(G150-G161) -> 24480 | J161: 14h | K161: =SUM(K160,-K151)+M160 -> 1640 | L161: =SUM(K150-K161) -> 31360 | N161: 14h | O161: =SUM(O160,-O151)+Q160 -> -4890 | P161: =SUM(O150-O161) -> 9640
B162: 15h | C162: =SUM(C161,-C151)+E161 -> -93250 | D162: =SUM(C150-C162) -> 131250 | F162: 15h | G162: =SUM(G161,-G151)+I161 -> 13300 | H162: =SUM(G150-G162) -> 24700 | J162: 15h | K162: =SUM(K161,-K151)+M161 -> 1360 | L162: =SUM(K150-K162) -> 31640 | N162: 15h | O162: =SUM(O161,-O151)+Q161 -> -4975 | P162: =SUM(O150-O162) -> 9725
B163: 16h | C163: =SUM(C162,-C151)+E162 -> -94500 | D163: =SUM(C150-C163) -> 132500 | F163: 16h | G163: =SUM(G162,-G151)+I162 -> 13080 | H163: =SUM(G150-G163) -> 24920 | J163: 16h | K163: =SUM(K162,-K151)+M162 -> 1080 | L163: =SUM(K150-K163) -> 31920 | N163: 16h | O163: =SUM(O162,-O151)+Q162 -> -5060 | P163: =SUM(O150-O163) -> 9810
B164: 17h | C164: =SUM(C163,-C151)+E163 -> -95750 | D164: =SUM(C150-C164) -> 133750 | F164: 17h | G164: =SUM(G163,-G151)+I163 -> 12860 | H164: =SUM(G150-G164) -> 25140 | J164: 17h | K164: =SUM(K163,-K151)+M163 -> 800 | L164: =SUM(K150-K164) -> 32200 | N164: 17h | O164: =SUM(O163,-O151)+Q163 -> -5145 | P164: =SUM(O150-O164) -> 9895
B165: 18h | C165: =SUM(C164-C151)+E164 -> -97000 | D165: =SUM(C150-C165) -> 135000 | F165: 18h | G165: =SUM(G164-G151)+I164 -> 12640 | H165: =SUM(G150-G165) -> 25360 | J165: 18h | K165: =SUM(K164-K151)+M164 -> 520 | L165: =SUM(K150-K165) -> 32480 | N165: 18h | O165: =SUM(O164-O151)+Q164 -> -5230 | P165: =SUM(O150-O165) -> 9980
B166: 19h | C166: =SUM(C165-C151)+E165 -> -98250 | D166: =SUM(C150-C166) -> 136250 | F166: 19h | G166: =SUM(G165-G151)+I165 -> 12420 | H166: =SUM(G150-G166) -> 25580 | J166: 19h | K166: =SUM(K165-K151)+M165 -> 240 | L166: =SUM(K150-K166) -> 32760 | N166: 19h | O166: =SUM(O165-O151)+Q165 -> -5315 | P166: =SUM(O150-O166) -> 10065
B167: 20h | C167: =SUM(C166-C151)+E166 -> -99500 | D167: =SUM(C150-C167) -> 137500 | F167: 20h | G167: =SUM(G166-G151)+I166 -> 12200 | H167: =SUM(G150-G167) -> 25800 | J167: 20h | K167: =SUM(K166-K151)+M166 -> -40 | L167: =SUM(K150-K167) -> 33040 | N167: 20h | O167: =SUM(O166-O151)+Q166 -> -5400 | P167: =SUM(O150-O167) -> 10150
B168: 21h | C168: =SUM(C167-C151)+E167 -> -100750 | D168: =SUM(C150-C168) -> 138750 | F168: 21h | G168: =SUM(G167-G151)+I167 -> 11980 | H168: =SUM(G150-G168) -> 26020 | J168: 21h | K168: =SUM(K167-K151)+M167 -> -320 | L168: =SUM(K150-K168) -> 33320 | N168: 21h | O168: =SUM(O167-O151)+Q167 -> -5485 | P168: =SUM(O150-O168) -> 10235
B169: 22h | C169: =SUM(C168,-C151)+E168 -> -102000 | D169: =SUM(C150-C169) -> 140000 | F169: 22h | G169: =SUM(G168,-G151)+I168 -> 11760 | H169: =SUM(G150-G169) -> 26240 | J169: 22h | K169: =SUM(K168,-K151)+M168 -> -600 | L169: =SUM(K150-K169) -> 33600 | N169: 22h | O169: =SUM(O168,-O151)+Q168 -> -5570 | P169: =SUM(O150-O169) -> 10320

Sheet Dudelange 2
B1: Dudelange 2
D2: DIESEL EXELLIUM | H2: 95 | L2: 98 excellium | P2: DIESEL CAMION
B3: Citerne | C3: 38000 | D3: LUNDI | F3: Citerne | G3: 38000 | J3: Citerne | K3: 28200 | N3: Citerne | O3: 9000
B4: Vente / H | C4: 1400 | F4: Vente / H | G4: 500 | J4: Vente / H | K4: 100 | N4: Vente / H | O4: 25
C5: Stock | D5: Commande | E5: Livraison | G5: Stock | H5: Commande | I5: Livraison | K5: Stock | L5: Commande | M5: Livraison | O5: Stock | P5: Commande | Q5: Livraison
B6: 9h | C6: 38000 | F6: 9h | G6: 38000 | J6: 9h | K6: 27500 | N6: 9h | O6: 9000
B7: 10h | C7: =SUM(C6,-C4)+E6 -> 36600 | D7: =SUM(C3-C7) -> 1400 | F7: 10h | G7: =SUM(G6,-G4)+I6 -> 37500 | H7: =SUM(G3-G7) -> 500 | J7: 10h | K7: =SUM(K6,-K4)+M6 -> 27400 | L7: =SUM(K3-K7) -> 800 | N7: 10h | O7: =SUM(O6,-O4)+Q6 -> 8975 | P7: =SUM(O3-O7) -> 25
B8: 11h | C8: =SUM(C7,-C4)+E7 -> 35200 | D8: =SUM(C3-C8) -> 2800 | F8: 11h | G8: =SUM(G7,-G4)+I7 -> 37000 | H8: =SUM(G3-G8) -> 1000 | J8: 11h | K8: =SUM(K7,-K4)+M7 -> 27300 | L8: =SUM(K3-K8) -> 900 | N8: 11h | O8: =SUM(O7,-O4)+Q7 -> 8950 | P8: =SUM(O3-O8) -> 50
B9: 12h | C9: =SUM(C8,-C4)+E8 -> 33800 | D9: =SUM(C3-C9) -> 4200 | F9: 12h | G9: =SUM(G8,-G4)+I8 -> 36500 | H9: =SUM(G3-G9) -> 1500 | J9: 12h | K9: =SUM(K8,-K4)+M8 -> 27200 | L9: =SUM(K3-K9) -> 1000 | N9: 12h | O9: =SUM(O8,-O4)+Q8 -> 8925 | P9: =SUM(O3-O9) -> 75
B10: 13h | C10: =SUM(C9-C4+E9) -> 32400 | D10: =SUM(C3-C10) -> 5600 | F10: 13h | G10: =SUM(G9-G4+I9) -> 36000 | H10: =SUM(G3-G10) -> 2000 | J10: 13h | K10: =SUM(K9-K4+M9) -> 27100 | L10: =SUM(K3-K10) -> 1100 | N10: 13h | O10: =SUM(O9-O4+Q9) -> 8900 | P10: =SUM(O3-O10) -> 100
B11: 14h | C11: =SUM(C10-C4+E10) -> 31000 | D11: =SUM(C3-C11) -> 7000 | F11: 14h | G11: =SUM(G10-G4+I10) -> 35500 | H11: =SUM(G3-G11) -> 2500 | J11: 14h | K11: =SUM(K10-K4+M10) -> 27000 | L11: =SUM(K3-K11) -> 1200 | N11: 14h | O11: =SUM(O10-O4+Q10) -> 8875 | P11: =SUM(O3-O11) -> 125
B12: 15h | C12: =SUM(C11,-C4)+E11 -> 29600 | D12: =SUM(C3-C12) -> 8400 | F12: 15h | G12: =SUM(G11,-G4)+I11 -> 35000 | H12: =SUM(G3-G12) -> 3000 | J12: 15h | K12: =SUM(K11,-K4)+M11 -> 26900 | L12: =SUM(K3-K12) -> 1300 | N12: 15h | O12: =SUM(O11,-O4)+Q11 -> 8850 | P12: =SUM(O3-O12) -> 150
B13: 16h | C13: =SUM(C12,-C4)+E12 -> 28200 | D13: =SUM(C3-C13) -> 9800 | F13: 16h | G13: =SUM(G12,-G4)+I12 -> 34500 | H13: =SUM(G3-G13) -> 3500 | J13: 16h | K13: =SUM(K12,-K4)+M12 -> 26800 | L13: =SUM(K3-K13) -> 1400 | N13: 16h | O13: =SUM(O12,-O4)+Q12 -> 8825 | P13: =SUM(O3-O13) -> 175
B14: 17h | C14: =SUM(C13,-C4)+E13 -> 26800 | D14: =SUM(C3-C14) -> 11200 | F14: 17h | G14: =SUM(G13,-G4)+I13 -> 34000 | H14: =SUM(G3-G14) -> 4000 | J14: 17h | K14: =SUM(K13,-K4)+M13 -> 26700 | L14: =SUM(K3-K14) -> 1500 | N14: 17h | O14: =SUM(O13,-O4)+Q13 -> 8800 | P14: =SUM(O3-O14) -> 200
B15: 18h | C15: =SUM(C14,-C4)+E14 -> 25400 | D15: =SUM(C3-C15) -> 12600 | F15: 18h | G15: =SUM(G14,-G4)+I14 -> 33500 | H15: =SUM(G3-G15) -> 4500 | J15: 18h | K15: =SUM(K14,-K4)+M14 -> 26600 | L15: =SUM(K3-K15) -> 1600 | N15: 18h | O15: =SUM(O14,-O4)+Q14 -> 8775 | P15: =SUM(O3-O15) -> 225
B16: 19h | C16: =SUM(C15,-C4)+E15 -> 24000 | D16: =SUM(C3-C16) -> 14000 | F16: 19h | G16: =SUM(G15,-G4)+I15 -> 33000 | H16: =SUM(G3-G16) -> 5000 | J16: 19h | K16: =SUM(K15,-K4)+M15 -> 26500 | L16: =SUM(K3-K16) -> 1700 | N16: 19h | O16: =SUM(O15,-O4)+Q15 -> 8750 | P16: =SUM(O3-O16) -> 250
B17: 20h | C17: =SUM(C16-C4)+E16 -> 22600 | D17: =SUM(C3-C17) -> 15400 | F17: 20h | G17: =SUM(G16-G4)+I16 -> 32500 | H17: =SUM(G3-G17) -> 5500 | J17: 20h | K17: =SUM(K16-K4)+M16 -> 26400 | L17: =SUM(K3-K17) -> 1800 | N17: 20h | O17: =SUM(O16-O4)+Q16 -> 8725 | P17: =SUM(O3-O17) -> 275
B18: 21h | C18: =SUM(C17-C4)+E17 -> 21200 | D18: =SUM(C3-C18) -> 16800 | F18: 21h | G18: =SUM(G17-G4)+I17 -> 32000 | H18: =SUM(G3-G18) -> 6000 | J18: 21h | K18: =SUM(K17-K4)+M17 -> 26300 | L18: =SUM(K3-K18) -> 1900 | N18: 21h | O18: =SUM(O17-O4)+Q17 -> 8700 | P18: =SUM(O3-O18) -> 300
D19: DIESEL EXELLIUM | H19: 95 | L19: 98 excellium | P19: DIESEL CAMION
B20: Citerne | C20: =SUM(C3) -> 38000 | D20: MARDI | F20: Citerne | G20: =SUM(G3) -> 38000 | J20: Citerne | K20: =SUM(K3) -> 28200 | N20: Citerne | O20: =SUM(O3) -> 9000
B21: Vente / H | C21: =SUM(C4) -> 1400 | F21: Vente / H | G21: =SUM(G4) -> 500 | J21: Vente / H | K21: =SUM(K4) -> 100 | N21: Vente / H | O21: =SUM(O4) -> 25
C22: Stock | D22: Commande | E22: Livraison | G22: Stock | H22: Commande | I22: Livraison | K22: Stock | L22: Commande | M22: Livraison | O22: Stock | P22: Commande | Q22: Livraison
B23: 9h | C23: =SUM(C18) -> 21200 | F23: 9h | G23: =SUM(G18) -> 32000 | J23: 9h | K23: =SUM(K18) -> 26300 | N23: 9h | O23: =SUM(O18) -> 8700
B24: 10h | C24: =SUM(C23,-C21)+E23 -> 19800 | D24: =SUM(C20-C24) -> 18200 | F24: 10h | G24: =SUM(G23,-G21)+I23 -> 31500 | H24: =SUM(G20-G24) -> 6500 | J24: 10h | K24: =SUM(K23,-K21)+M23 -> 26200 | L24: =SUM(K20-K24) -> 2000 | N24: 10h | O24: =SUM(O23,-O21)+Q23 -> 8675 | P24: =SUM(O20-O24) -> 325
B25: 11h | C25: =SUM(C24,-C21)+E24 -> 18400 | D25: =SUM(C20-C25) -> 19600 | F25: 11h | G25: =SUM(G24,-G21)+I24 -> 31000 | H25: =SUM(G20-G25) -> 7000 | J25: 11h | K25: =SUM(K24,-K21)+M24 -> 26100 | L25: =SUM(K20-K25) -> 2100 | N25: 11h | O25: =SUM(O24,-O21)+Q24 -> 8650 | P25: =SUM(O20-O25) -> 350
B26: 12h | C26: =SUM(C25,-C21)+E25 -> 17000 | D26: =SUM(C20-C26) -> 21000 | F26: 12h | G26: =SUM(G25-G21+I25) -> 30500 | H26: =SUM(G20-G26) -> 7500 | J26: 12h | K26: =SUM(K25,-K21)+M25 -> 26000 | L26: =SUM(K20-K26) -> 2200 | N26: 12h | O26: =SUM(O25,-O21)+Q25 -> 8625 | P26: =SUM(O20-O26) -> 375
B27: 13h | C27: =SUM(C26-C21+E26) -> 15600 | D27: =SUM(C20-C27) -> 22400 | F27: 13h | G27: =SUM(G26-G21+I26) -> 30000 | H27: =SUM(G20-G27) -> 8000 | J27: 13h | K27: =SUM(K26-K21+M26) -> 25900 | L27: =SUM(K20-K27) -> 2300 | N27: 13h | O27: =SUM(O26-O21+Q26) -> 8600 | P27: =SUM(O20-O27) -> 400
B28: 14h | C28: =SUM(C27-C21+E27) -> 14200 | D28: =SUM(C20-C28) -> 23800 | F28: 14h | G28: =SUM(G27-G21+I27) -> 29500 | H28: =SUM(G20-G28) -> 8500 | J28: 14h | K28: =SUM(K27-K21+M27) -> 25800 | L28: =SUM(K20-K28) -> 2400 | N28: 14h | O28: =SUM(O27-O21+Q27) -> 8575 | P28: =SUM(O20-O28) -> 425
B29: 15h | C29: =SUM(C28,-C21)+E28 -> 12800 | D29: =SUM(C20-C29) -> 25200 | F29: 15h | G29: =SUM(G28,-G21)+I28 -> 29000 | H29: =SUM(G20-G29) -> 9000 | J29: 15h | K29: =SUM(K28,-K21)+M28 -> 25700 | L29: =SUM(K20-K29) -> 2500 | N29: 15h | O29: =SUM(O28,-O21)+Q28 -> 8550 | P29: =SUM(O20-O29) -> 450
B30: 16h | C30: =SUM(C29,-C21)+E29 -> 11400 | D30: =SUM(C20-C30) -> 26600 | F30: 16h | G30: =SUM(G29,-G21)+I29 -> 28500 | H30: =SUM(G20-G30) -> 9500 | J30: 16h | K30: =SUM(K29,-K21)+M29 -> 25600 | L30: =SUM(K20-K30) -> 2600 | N30: 16h | O30: =SUM(O29,-O21)+Q29 -> 8525 | P30: =SUM(O20-O30) -> 475
B31: 17h | C31: =SUM(C30,-C21)+E30 -> 10000 | D31: =SUM(C20-C31) -> 28000 | F31: 17h | G31: =SUM(G30,-G21)+I30 -> 28000 | H31: =SUM(G20-G31) -> 10000 | J31: 17h | K31: =SUM(K30,-K21)+M30 -> 25500 | L31: =SUM(K20-K31) -> 2700 | N31: 17h | O31: =SUM(O30,-O21)+Q30 -> 8500 | P31: =SUM(O20-O31) -> 500
B32: 18h | C32: =SUM(C31,-C21)+E31 -> 8600 | D32: =SUM(C20-C32) -> 29400 | F32: 18h | G32: =SUM(G31,-G21)+I31 -> 27500 | H32: =SUM(G20-G32) -> 10500 | J32: 18h | K32: =SUM(K31,-K21)+M31 -> 25400 | L32: =SUM(K20-K32) -> 2800 | N32: 18h | O32: =SUM(O31,-O21)+Q31 -> 8475 | P32: =SUM(O20-O32) -> 525
B33: 19h | C33: =SUM(C32,-C21)+E32 -> 7200 | D33: =SUM(C20-C33) -> 30800 | F33: 19h | G33: =SUM(G32,-G21)+I32 -> 27000 | H33: =SUM(G20-G33) -> 11000 | J33: 19h | K33: =SUM(K32,-K21)+M32 -> 25300 | L33: =SUM(K20-K33) -> 2900 | N33: 19h | O33: =SUM(O32,-O21)+Q32 -> 8450 | P33: =SUM(O20-O33) -> 550
B34: 20h | C34: =SUM(C33-C21)+E33 -> 5800 | D34: =SUM(C20-C34) -> 32200 | F34: 20h | G34: =SUM(G33-G21)+I33 -> 26500 | H34: =SUM(G20-G34) -> 11500 | J34: 20h | K34: =SUM(K33-K21)+M33 -> 25200 | L34: =SUM(K20-K34) -> 3000 | N34: 20h | O34: =SUM(O33-O21)+Q33 -> 8425 | P34: =SUM(O20-O34) -> 575
B35: 21h | C35: =SUM(C34-C21)+E34 -> 4400 | D35: =SUM(C20-C35) -> 33600 | F35: 21h | G35: =SUM(G34-G21)+I34 -> 26000 | H35: =SUM(G20-G35) -> 12000 | J35: 21h | K35: =SUM(K34-K21)+M34 -> 25100 | L35: =SUM(K20-K35) -> 3100 | N35: 21h | O35: =SUM(O34-O21)+Q34 -> 8400 | P35: =SUM(O20-O35) -> 600
D36: DIESEL EXELLIUM | H36: 95 | L36: 98 excellium | P36: DIESEL CAMION
B37: Citerne | C37: =SUM(C20) -> 38000 | D37: MERCREDI | F37: Citerne | G37: =SUM(G20) -> 38000 | J37: Citerne | K37: =SUM(K20) -> 28200 | N37: Citerne | O37: =SUM(O20) -> 9000
B38: Vente / H | C38: 1400 | F38: Vente / H | G38: 500 | J38: Vente / H | K38: =SUM(K21) -> 100 | N38: Vente / H | O38: =SUM(O21) -> 25
C39: Stock | D39: Commande | E39: Livraison | G39: Stock | H39: Commande | I39: Livraison | K39: Stock | L39: Commande | M39: Livraison | O39: Stock | P39: Commande | Q39: Livraison
B40: 9h | C40: =SUM(C35) -> 4400 | F40: 9h | G40: =SUM(G35) -> 26000 | J40: 9h | K40: =SUM(K35) -> 25100 | N40: 9h | O40: =SUM(O35) -> 8400
B41: 10h | C41: =SUM(C40,-C38)+E40 -> 3000 | D41: =SUM(C37-C41) -> 35000 | F41: 10h | G41: =SUM(G40,-G38)+I40 -> 25500 | H41: =SUM(G37-G41) -> 12500 | J41: 10h | K41: =SUM(K40,-K38)+M40 -> 25000 | L41: =SUM(K37-K41) -> 3200 | N41: 10h | O41: =SUM(O40,-O38)+Q40 -> 8375 | P41: =SUM(O37-O41) -> 625
B42: 11h | C42: =SUM(C41,-C38)+E41 -> 1600 | D42: =SUM(C37-C42) -> 36400 | F42: 11h | G42: =SUM(G41,-G38)+I41 -> 25000 | H42: =SUM(G37-G42) -> 13000 | J42: 11h | K42: =SUM(K41,-K38)+M41 -> 24900 | L42: =SUM(K37-K42) -> 3300 | N42: 11h | O42: =SUM(O41,-O38)+Q41 -> 8350 | P42: =SUM(O37-O42) -> 650
B43: 12h | C43: =SUM(C42,-C38)+E42 -> 200 | D43: =SUM(C37-C43) -> 37800 | F43: 12h | G43: =SUM(G42-G38+I42) -> 24500 | H43: =SUM(G37-G43) -> 13500 | J43: 12h | K43: =SUM(K42,-K38)+M42 -> 24800 | L43: =SUM(K37-K43) -> 3400 | N43: 12h | O43: =SUM(O42,-O38)+Q42 -> 8325 | P43: =SUM(O37-O43) -> 675
B44: 13h | C44: =SUM(C43-C38+E43) -> -1200 | D44: =SUM(C37-C44) -> 39200 | F44: 13h | G44: =SUM(G43-G38+I43) -> 24000 | H44: =SUM(G37-G44) -> 14000 | J44: 13h | K44: =SUM(K43-K38+M43) -> 24700 | L44: =SUM(K37-K44) -> 3500 | N44: 13h | O44: =SUM(O43-O38+Q43) -> 8300 | P44: =SUM(O37-O44) -> 700
B45: 14h | C45: =SUM(C44-C38+E44) -> -2600 | D45: =SUM(C37-C45) -> 40600 | F45: 14h | G45: =SUM(G44-G38+I44) -> 23500 | H45: =SUM(G37-G45) -> 14500 | J45: 14h | K45: =SUM(K44-K38+M44) -> 24600 | L45: =SUM(K37-K45) -> 3600 | N45: 14h | O45: =SUM(O44-O38+Q44) -> 8275 | P45: =SUM(O37-O45) -> 725
B46: 15h | C46: =SUM(C45,-C38)+E45 -> -4000 | D46: =SUM(C37-C46) -> 42000 | F46: 15h | G46: =SUM(G45,-G38)+I45 -> 23000 | H46: =SUM(G37-G46) -> 15000 | J46: 15h | K46: =SUM(K45,-K38)+M45 -> 24500 | L46: =SUM(K37-K46) -> 3700 | N46: 15h | O46: =SUM(O45,-O38)+Q45 -> 8250 | P46: =SUM(O37-O46) -> 750
B47: 16h | C47: =SUM(C46,-C38)+E46 -> -5400 | D47: =SUM(C37-C47) -> 43400 | F47: 16h | G47: =SUM(G46,-G38)+I46 -> 22500 | H47: =SUM(G37-G47) -> 15500 | J47: 16h | K47: =SUM(K46,-K38)+M46 -> 24400 | L47: =SUM(K37-K47) -> 3800 | N47: 16h | O47: =SUM(O46,-O38)+Q46 -> 8225 | P47: =SUM(O37-O47) -> 775
B48: 17h | C48: =SUM(C47,-C38)+E47 -> -6800 | D48: =SUM(C37-C48) -> 44800 | F48: 17h | G48: =SUM(G47,-G38)+I47 -> 22000 | H48: =SUM(G37-G48) -> 16000 | J48: 17h | K48: =SUM(K47,-K38)+M47 -> 24300 | L48: =SUM(K37-K48) -> 3900 | N48: 17h | O48: =SUM(O47,-O38)+Q47 -> 8200 | P48: =SUM(O37-O48) -> 800
B49: 18h | C49: =SUM(C48,-C38)+E48 -> -8200 | D49: =SUM(C37-C49) -> 46200 | F49: 18h | G49: =SUM(G48,-G38)+I48 -> 21500 | H49: =SUM(G37-G49) -> 16500 | J49: 18h | K49: =SUM(K48,-K38)+M48 -> 24200 | L49: =SUM(K37-K49) -> 4000 | N49: 18h | O49: =SUM(O48,-O38)+Q48 -> 8175 | P49: =SUM(O37-O49) -> 825
B50: 19h | C50: =SUM(C49,-C38)+E49 -> -9600 | D50: =SUM(C37-C50) -> 47600 | F50: 19h | G50: =SUM(G49,-G38)+I49 -> 21000 | H50: =SUM(G37-G50) -> 17000 | J50: 19h | K50: =SUM(K49,-K38)+M49 -> 24100 | L50: =SUM(K37-K50) -> 4100 | N50: 19h | O50: =SUM(O49,-O38)+Q49 -> 8150 | P50: =SUM(O37-O50) -> 850
B51: 20h | C51: =SUM(C50-C38)+E50 -> -11000 | D51: =SUM(C37-C51) -> 49000 | F51: 20h | G51: =SUM(G50-G38)+I50 -> 20500 | H51: =SUM(G37-G51) -> 17500 | J51: 20h | K51: =SUM(K50-K38)+M50 -> 24000 | L51: =SUM(K37-K51) -> 4200 | N51: 20h | O51: =SUM(O50-O38)+Q50 -> 8125 | P51: =SUM(O37-O51) -> 875
B52: 21h | C52: =SUM(C51-C38)+E51 -> -12400 | D52: =SUM(C37-C52) -> 50400 | F52: 21h | G52: =SUM(G51-G38)+I51 -> 20000 | H52: =SUM(G37-G52) -> 18000 | J52: 21h | K52: =SUM(K51-K38)+M51 -> 23900 | L52: =SUM(K37-K52) -> 4300 | N52: 21h | O52: =SUM(O51-O38)+Q51 -> 8100 | P52: =SUM(O37-O52) -> 900
D53: DIESEL EXELLIUM | H53: 95 | L53: 98 excellium | P53: DIESEL CAMION
B54: Citerne | C54: =SUM(C37) -> 38000 | D54: JEUDI | F54: Citerne | G54: =SUM(G37) -> 38000 | J54: Citerne | K54: =SUM(K37) -> 28200 | N54: Citerne | O54: =SUM(O37) -> 9000
B55: Vente / H | C55: =SUM(C38) -> 1400 | F55: Vente / H | G55: =SUM(G38) -> 500 | J55: Vente / H | K55: =SUM(K38) -> 100 | N55: Vente / H | O55: =SUM(O38) -> 25
C56: Stock | D56: Commande | E56: Livraison | G56: Stock | H56: Commande | I56: Livraison | K56: Stock | L56: Commande | M56: Livraison | O56: Stock | P56: Commande | Q56: Livraison
B57: 9h | C57: =SUM(C52) -> -12400 | F57: 9h | G57: =SUM(G52) -> 20000 | J57: 9h | K57: =SUM(K52) -> 23900 | N57: 9h | O57: =SUM(O52) -> 8100
B58: 10h | C58: =SUM(C57,-C55)+E57 -> -13800 | D58: =SUM(C54-C58) -> 51800 | F58: 10h | G58: =SUM(G57,-G55)+I57 -> 19500 | H58: =SUM(G54-G58) -> 18500 | J58: 10h | K58: =SUM(K57,-K55)+M57 -> 23800 | L58: =SUM(K54-K58) -> 4400 | N58: 10h | O58: =SUM(O57,-O55)+Q57 -> 8075 | P58: =SUM(O54-O58) -> 925
B59: 11h | C59: =SUM(C58,-C55)+E58 -> -15200 | D59: =SUM(C54-C59) -> 53200 | F59: 11h | G59: =SUM(G58,-G55)+I58 -> 19000 | H59: =SUM(G54-G59) -> 19000 | J59: 11h | K59: =SUM(K58,-K55)+M58 -> 23700 | L59: =SUM(K54-K59) -> 4500 | N59: 11h | O59: =SUM(O58,-O55)+Q58 -> 8050 | P59: =SUM(O54-O59) -> 950
B60: 12h | C60: =SUM(C59,-C55)+E59 -> -16600 | D60: =SUM(C54-C60) -> 54600 | F60: 12h | G60: =SUM(G59-G55+I59) -> 18500 | H60: =SUM(G54-G60) -> 19500 | J60: 12h | K60: =SUM(K59,-K55)+M59 -> 23600 | L60: =SUM(K54-K60) -> 4600 | N60: 12h | O60: =SUM(O59,-O55)+Q59 -> 8025 | P60: =SUM(O54-O60) -> 975
B61: 13h | C61: =SUM(C60-C55+E60) -> -18000 | D61: =SUM(C54-C61) -> 56000 | F61: 13h | G61: =SUM(G60-G55+I60) -> 18000 | H61: =SUM(G54-G61) -> 20000 | J61: 13h | K61: =SUM(K60-K55+M60) -> 23500 | L61: =SUM(K54-K61) -> 4700 | N61: 13h | O61: =SUM(O60-O55+Q60) -> 8000 | P61: =SUM(O54-O61) -> 1000
B62: 14h | C62: =SUM(C61-C55+E61) -> -19400 | D62: =SUM(C54-C62) -> 57400 | F62: 14h | G62: =SUM(G61-G55+I61) -> 17500 | H62: =SUM(G54-G62) -> 20500 | J62: 14h | K62: =SUM(K61-K55+M61) -> 23400 | L62: =SUM(K54-K62) -> 4800 | N62: 14h | O62: =SUM(O61-O55+Q61) -> 7975 | P62: =SUM(O54-O62) -> 1025
B63: 15h | C63: =SUM(C62,-C55)+E62 -> -20800 | D63: =SUM(C54-C63) -> 58800 | F63: 15h | G63: =SUM(G62,-G55)+I62 -> 17000 | H63: =SUM(G54-G63) -> 21000 | J63: 15h | K63: =SUM(K62,-K55)+M62 -> 23300 | L63: =SUM(K54-K63) -> 4900 | N63: 15h | O63: =SUM(O62,-O55)+Q62 -> 7950 | P63: =SUM(O54-O63) -> 1050
B64: 16h | C64: =SUM(C63,-C55)+E63 -> -22200 | D64: =SUM(C54-C64) -> 60200 | F64: 16h | G64: =SUM(G63,-G55)+I63 -> 16500 | H64: =SUM(G54-G64) -> 21500 | J64: 16h | K64: =SUM(K63,-K55)+M63 -> 23200 | L64: =SUM(K54-K64) -> 5000 | N64: 16h | O64: =SUM(O63,-O55)+Q63 -> 7925 | P64: =SUM(O54-O64) -> 1075
B65: 17h | C65: =SUM(C64,-C55)+E64 -> -23600 | D65: =SUM(C54-C65) -> 61600 | F65: 17h | G65: =SUM(G64,-G55)+I64 -> 16000 | H65: =SUM(G54-G65) -> 22000 | J65: 17h | K65: =SUM(K64,-K55)+M64 -> 23100 | L65: =SUM(K54-K65) -> 5100 | N65: 17h | O65: =SUM(O64,-O55)+Q64 -> 7900 | P65: =SUM(O54-O65) -> 1100
B66: 18h | C66: =SUM(C65,-C55)+E65 -> -25000 | D66: =SUM(C54-C66) -> 63000 | F66: 18h | G66: =SUM(G65,-G55)+I65 -> 15500 | H66: =SUM(G54-G66) -> 22500 | J66: 18h | K66: =SUM(K65,-K55)+M65 -> 23000 | L66: =SUM(K54-K66) -> 5200 | N66: 18h | O66: =SUM(O65,-O55)+Q65 -> 7875 | P66: =SUM(O54-O66) -> 1125
B67: 19h | C67: =SUM(C66,-C55)+E66 -> -26400 | D67: =SUM(C54-C67) -> 64400 | F67: 19h | G67: =SUM(G66,-G55)+I66 -> 15000 | H67: =SUM(G54-G67) -> 23000 | J67: 19h | K67: =SUM(K66,-K55)+M66 -> 22900 | L67: =SUM(K54-K67) -> 5300 | N67: 19h | O67: =SUM(O66,-O55)+Q66 -> 7850 | P67: =SUM(O54-O67) -> 1150
B68: 20h | C68: =SUM(C67-C55)+E67 -> -27800 | D68: =SUM(C54-C68) -> 65800 | F68: 20h | G68: =SUM(G67-G55)+I67 -> 14500 | H68: =SUM(G54-G68) -> 23500 | J68: 20h | K68: =SUM(K67-K55)+M67 -> 22800 | L68: =SUM(K54-K68) -> 5400 | N68: 20h | O68: =SUM(O67-O55)+Q67 -> 7825 | P68: =SUM(O54-O68) -> 1175
B69: 21h | C69: =SUM(C68-C55)+E68 -> -29200 | D69: =SUM(C54-C69) -> 67200 | F69: 21h | G69: =SUM(G68-G55)+I68 -> 14000 | H69: =SUM(G54-G69) -> 24000 | J69: 21h | K69: =SUM(K68-K55)+M68 -> 22700 | L69: =SUM(K54-K69) -> 5500 | N69: 21h | O69: =SUM(O68-O55)+Q68 -> 7800 | P69: =SUM(O54-O69) -> 1200
D70: DIESEL EXELLIUM | H70: 95 | L70: 98 excellium | P70: DIESEL CAMION
B71: Citerne | C71: =SUM(C54) -> 38000 | D71: VENDREDI | F71: Citerne | G71: =SUM(G54) -> 38000 | J71: Citerne | K71: =SUM(K54) -> 28200 | N71: Citerne | O71: =SUM(O54) -> 9000
B72: Vente / H | C72: 1500 | F72: Vente / H | G72: 600 | J72: Vente / H | K72: =SUM(K55) -> 100 | N72: Vente / H | O72: =SUM(O55) -> 25
C73: Stock | D73: Commande | E73: Livraison | G73: Stock | H73: Commande | I73: Livraison | K73: Stock | L73: Commande | M73: Livraison | O73: Stock | P73: Commande | Q73: Livraison
B74: 9h | C74: =SUM(C69) -> -29200 | F74: 9h | G74: =SUM(G69) -> 14000 | J74: 9h | K74: =SUM(K69) -> 22700 | N74: 9h | O74: =SUM(O69) -> 7800
B75: 10h | C75: =SUM(C74,-C72)+E74 -> -30700 | D75: =SUM(C71-C75) -> 68700 | F75: 10h | G75: =SUM(G74,-G72)+I74 -> 13400 | H75: =SUM(G71-G75) -> 24600 | J75: 10h | K75: =SUM(K74,-K72)+M74 -> 22600 | L75: =SUM(K71-K75) -> 5600 | N75: 10h | O75: =SUM(O74,-O72)+Q74 -> 7775 | P75: =SUM(O71-O75) -> 1225
B76: 11h | C76: =SUM(C75,-C72)+E75 -> -32200 | D76: =SUM(C71-C76) -> 70200 | F76: 11h | G76: =SUM(G75,-G72)+I75 -> 12800 | H76: =SUM(G71-G76) -> 25200 | J76: 11h | K76: =SUM(K75,-K72)+M75 -> 22500 | L76: =SUM(K71-K76) -> 5700 | N76: 11h | O76: =SUM(O75,-O72)+Q75 -> 7750 | P76: =SUM(O71-O76) -> 1250
B77: 12h | C77: =SUM(C76,-C72)+E76 -> -33700 | D77: =SUM(C71-C77) -> 71700 | F77: 12h | G77: =SUM(G76-G72+I76) -> 12200 | H77: =SUM(G71-G77) -> 25800 | J77: 12h | K77: =SUM(K76,-K72)+M76 -> 22400 | L77: =SUM(K71-K77) -> 5800 | N77: 12h | O77: =SUM(O76,-O72)+Q76 -> 7725 | P77: =SUM(O71-O77) -> 1275
B78: 13h | C78: =SUM(C77-C72+E77) -> -35200 | D78: =SUM(C71-C78) -> 73200 | F78: 13h | G78: =SUM(G77-G72+I77) -> 11600 | H78: =SUM(G71-G78) -> 26400 | J78: 13h | K78: =SUM(K77-K72+M77) -> 22300 | L78: =SUM(K71-K78) -> 5900 | N78: 13h | O78: =SUM(O77-O72+Q77) -> 7700 | P78: =SUM(O71-O78) -> 1300
B79: 14h | C79: =SUM(C78-C72+E78) -> -36700 | D79: =SUM(C71-C79) -> 74700 | F79: 14h | G79: =SUM(G78-G72+I78) -> 11000 | H79: =SUM(G71-G79) -> 27000 | J79: 14h | K79: =SUM(K78-K72+M78) -> 22200 | L79: =SUM(K71-K79) -> 6000 | N79: 14h | O79: =SUM(O78-O72+Q78) -> 7675 | P79: =SUM(O71-O79) -> 1325
B80: 15h | C80: =SUM(C79,-C72)+E79 -> -38200 | D80: =SUM(C71-C80) -> 76200 | F80: 15h | G80: =SUM(G79,-G72)+I79 -> 10400 | H80: =SUM(G71-G80) -> 27600 | J80: 15h | K80: =SUM(K79,-K72)+M79 -> 22100 | L80: =SUM(K71-K80) -> 6100 | N80: 15h | O80: =SUM(O79,-O72)+Q79 -> 7650 | P80: =SUM(O71-O80) -> 1350
B81: 16h | C81: =SUM(C80,-C72)+E80 -> -39700 | D81: =SUM(C71-C81) -> 77700 | F81: 16h | G81: =SUM(G80,-G72)+I80 -> 9800 | H81: =SUM(G71-G81) -> 28200 | J81: 16h | K81: =SUM(K80,-K72)+M80 -> 22000 | L81: =SUM(K71-K81) -> 6200 | N81: 16h | O81: =SUM(O80,-O72)+Q80 -> 7625 | P81: =SUM(O71-O81) -> 1375
B82: 17h | C82: =SUM(C81,-C72)+E81 -> -41200 | D82: =SUM(C71-C82) -> 79200 | F82: 17h | G82: =SUM(G81,-G72)+I81 -> 9200 | H82: =SUM(G71-G82) -> 28800 | J82: 17h | K82: =SUM(K81,-K72)+M81 -> 21900 | L82: =SUM(K71-K82) -> 6300 | N82: 17h | O82: =SUM(O81,-O72)+Q81 -> 7600 | P82: =SUM(O71-O82) -> 1400
B83: 18h | C83: =SUM(C82,-C72)+E82 -> -42700 | D83: =SUM(C71-C83) -> 80700 | F83: 18h | G83: =SUM(G82,-G72)+I82 -> 8600 | H83: =SUM(G71-G83) -> 29400 | J83: 18h | K83: =SUM(K82,-K72)+M82 -> 21800 | L83: =SUM(K71-K83) -> 6400 | N83: 18h | O83: =SUM(O82,-O72)+Q82 -> 7575 | P83: =SUM(O71-O83) -> 1425
B84: 19h | C84: =SUM(C83,-C72)+E83 -> -44200 | D84: =SUM(C71-C84) -> 82200 | F84: 19h | G84: =SUM(G83,-G72)+I83 -> 8000 | H84: =SUM(G71-G84) -> 30000 | J84: 19h | K84: =SUM(K83,-K72)+M83 -> 21700 | L84: =SUM(K71-K84) -> 6500 | N84: 19h | O84: =SUM(O83,-O72)+Q83 -> 7550 | P84: =SUM(O71-O84) -> 1450
B85: 20h | C85: =SUM(C84-C72)+E84 -> -45700 | D85: =SUM(C71-C85) -> 83700 | F85: 20h | G85: =SUM(G84-G72)+I84 -> 7400 | H85: =SUM(G71-G85) -> 30600 | J85: 20h | K85: =SUM(K84-K72)+M84 -> 21600 | L85: =SUM(K71-K85) -> 6600 | N85: 20h | O85: =SUM(O84-O72)+Q84 -> 7525 | P85: =SUM(O71-O85) -> 1475
B86: 21h | C86: =SUM(C85-C72)+E85 -> -47200 | D86: =SUM(C71-C86) -> 85200 | F86: 21h | G86: =SUM(G85-G72)+I85 -> 6800 | H86: =SUM(G71-G86) -> 31200 | J86: 21h | K86: =SUM(K85-K72)+M85 -> 21500 | L86: =SUM(K71-K86) -> 6700 | N86: 21h | O86: =SUM(O85-O72)+Q85 -> 7500 | P86: =SUM(O71-O86) -> 1500
D87: DIESEL EXELLIUM | H87: 95 | L87: 98 excellium | P87: DIESEL CAMION
B88: Citerne | C88: =SUM(C71) -> 38000 | D88: SAMEDI | F88: Citerne | G88: =SUM(G71) -> 38000 | J88: Citerne | K88: =SUM(K71) -> 28200 | N88: Citerne | O88: =SUM(O71) -> 9000
B89: Vente / H | C89: 1500 | F89: Vente / H | G89: =SUM(G72) -> 600 | J89: Vente / H | K89: =SUM(K72) -> 100 | N89: Vente / H | O89: =SUM(O72) -> 25
C90: Stock | D90: Commande | E90: Livraison | G90: Stock | H90: Commande | I90: Livraison | K90: Stock | L90: Commande | M90: Livraison | O90: Stock | P90: Commande | Q90: Livraison
B91: 9h | C91: =SUM(C86) -> -47200 | F91: 9h | G91: =SUM(G86) -> 6800 | J91: 9h | K91: =SUM(K86) -> 21500 | N91: 9h | O91: =SUM(O86) -> 7500
B92: 10h | C92: =SUM(C91,-C89)+E91 -> -48700 | D92: =SUM(C88-C92) -> 86700 | F92: 10h | G92: =SUM(G91,-G89)+I91 -> 6200 | H92: =SUM(G88-G92) -> 31800 | J92: 10h | K92: =SUM(K91,-K89)+M91 -> 21400 | L92: =SUM(K88-K92) -> 6800 | N92: 10h | O92: =SUM(O91,-O89)+Q91 -> 7475 | P92: =SUM(O88-O92) -> 1525
B93: 11h | C93: =SUM(C92,-C89)+E92 -> -50200 | D93: =SUM(C88-C93) -> 88200 | F93: 11h | G93: =SUM(G92,-G89)+I92 -> 5600 | H93: =SUM(G88-G93) -> 32400 | J93: 11h | K93: =SUM(K92,-K89)+M92 -> 21300 | L93: =SUM(K88-K93) -> 6900 | N93: 11h | O93: =SUM(O92,-O89)+Q92 -> 7450 | P93: =SUM(O88-O93) -> 1550
B94: 12h | C94: =SUM(C93,-C89)+E93 -> -51700 | D94: =SUM(C88-C94) -> 89700 | F94: 12h | G94: =SUM(G93-G89+I93) -> 5000 | H94: =SUM(G88-G94) -> 33000 | J94: 12h | K94: =SUM(K93,-K89)+M93 -> 21200 | L94: =SUM(K88-K94) -> 7000 | N94: 12h | O94: =SUM(O93,-O89)+Q93 -> 7425 | P94: =SUM(O88-O94) -> 1575
B95: 13h | C95: =SUM(C94-C89+E94) -> -53200 | D95: =SUM(C88-C95) -> 91200 | F95: 13h | G95: =SUM(G94-G89+I94) -> 4400 | H95: =SUM(G88-G95) -> 33600 | J95: 13h | K95: =SUM(K94-K89+M94) -> 21100 | L95: =SUM(K88-K95) -> 7100 | N95: 13h | O95: =SUM(O94-O89+Q94) -> 7400 | P95: =SUM(O88-O95) -> 1600
B96: 14h | C96: =SUM(C95-C89+E95) -> -54700 | D96: =SUM(C88-C96) -> 92700 | F96: 14h | G96: =SUM(G95-G89+I95) -> 3800 | H96: =SUM(G88-G96) -> 34200 | J96: 14h | K96: =SUM(K95-K89+M95) -> 21000 | L96: =SUM(K88-K96) -> 7200 | N96: 14h | O96: =SUM(O95-O89+Q95) -> 7375 | P96: =SUM(O88-O96) -> 1625
B97: 15h | C97: =SUM(C96,-C89)+E96 -> -56200 | D97: =SUM(C88-C97) -> 94200 | F97: 15h | G97: =SUM(G96,-G89)+I96 -> 3200 | H97: =SUM(G88-G97) -> 34800 | J97: 15h | K97: =SUM(K96,-K89)+M96 -> 20900 | L97: =SUM(K88-K97) -> 7300 | N97: 15h | O97: =SUM(O96,-O89)+Q96 -> 7350 | P97: =SUM(O88-O97) -> 1650
B98: 16h | C98: =SUM(C97,-C89)+E97 -> -57700 | D98: =SUM(C88-C98) -> 95700 | F98: 16h | G98: =SUM(G97,-G89)+I97 -> 2600 | H98: =SUM(G88-G98) -> 35400 | J98: 16h | K98: =SUM(K97,-K89)+M97 -> 20800 | L98: =SUM(K88-K98) -> 7400 | N98: 16h | O98: =SUM(O97,-O89)+Q97 -> 7325 | P98: =SUM(O88-O98) -> 1675
B99: 17h | C99: =SUM(C98,-C89)+E98 -> -59200 | D99: =SUM(C88-C99) -> 97200 | F99: 17h | G99: =SUM(G98,-G89)+I98 -> 2000 | H99: =SUM(G88-G99) -> 36000 | J99: 17h | K99: =SUM(K98,-K89)+M98 -> 20700 | L99: =SUM(K88-K99) -> 7500 | N99: 17h | O99: =SUM(O98,-O89)+Q98 -> 7300 | P99: =SUM(O88-O99) -> 1700
B100: 18h | C100: =SUM(C99,-C89)+E99 -> -60700 | D100: =SUM(C88-C100) -> 98700 | F100: 18h | G100: =SUM(G99,-G89)+I99 -> 1400 | H100: =SUM(G88-G100) -> 36600 | J100: 18h | K100: =SUM(K99,-K89)+M99 -> 20600 | L100: =SUM(K88-K100) -> 7600 | N100: 18h | O100: =SUM(O99,-O89)+Q99 -> 7275 | P100: =SUM(O88-O100) -> 1725
B101: 19h | C101: =SUM(C100,-C89)+E100 -> -62200 | D101: =SUM(C88-C101) -> 100200 | F101: 19h | G101: =SUM(G100,-G89)+I100 -> 800 | H101: =SUM(G88-G101) -> 37200 | J101: 19h | K101: =SUM(K100,-K89)+M100 -> 20500 | L101: =SUM(K88-K101) -> 7700 | N101: 19h | O101: =SUM(O100,-O89)+Q100 -> 7250 | P101: =SUM(O88-O101) -> 1750
B102: 20h | C102: =SUM(C101-C89)+E101 -> -63700 | D102: =SUM(C88-C102) -> 101700 | F102: 20h | G102: =SUM(G101-G89)+I101 -> 200 | H102: =SUM(G88-G102) -> 37800 | J102: 20h | K102: =SUM(K101-K89)+M101 -> 20400 | L102: =SUM(K88-K102) -> 7800 | N102: 20h | O102: =SUM(O101-O89)+Q101 -> 7225 | P102: =SUM(O88-O102) -> 1775
B103: 21h | C103: =SUM(C102-C89)+E102 -> -65200 | D103: =SUM(C88-C103) -> 103200 | F103: 21h | G103: =SUM(G102-G89)+I102 -> -400 | H103: =SUM(G88-G103) -> 38400 | J103: 21h | K103: =SUM(K102-K89)+M102 -> 20300 | L103: =SUM(K88-K103) -> 7900 | N103: 21h | O103: =SUM(O102-O89)+Q102 -> 7200 | P103: =SUM(O88-O103) -> 1800
D104: DIESEL EXELLIUM | H104: 95 | L104: 98 excellium | P104: DIESEL CAMION
B105: Citerne | C105: =SUM(C88) -> 38000 | D105: DIMANCHE | F105: Citerne | G105: =SUM(G88) -> 38000 | J105: Citerne | K105: =SUM(K88) -> 28200 | N105: Citerne | O105: =SUM(O88) -> 9000
B106: Vente / H | C106: =SUM(C89) -> 1500 | F106: Vente / H | G106: =SUM(G89) -> 600 | J106: Vente / H | K106: =SUM(K89) -> 100 | N106: Vente / H | O106: =SUM(O89) -> 25
C107: Stock | D107: Commande | E107: Livraison | G107: Stock | H107: Commande | I107: Livraison | K107: Stock | L107: Commande | M107: Livraison | O107: Stock | P107: Commande | Q107: Livraison
B108: 9h | C108: =SUM(C103) -> -65200 | F108: 9h | G108: =SUM(G103) -> -400 | J108: 9h | K108: =SUM(K103) -> 20300 | N108: 9h | O108: =SUM(O103) -> 7200
B109: 10h | C109: =SUM(C108,-C106)+E108 -> -66700 | D109: =SUM(C105-C109) -> 104700 | F109: 10h | G109: =SUM(G108,-G106)+I108 -> -1000 | H109: =SUM(G105-G109) -> 39000 | J109: 10h | K109: =SUM(K108,-K106)+M108 -> 20200 | L109: =SUM(K105-K109) -> 8000 | N109: 10h | O109: =SUM(O108,-O106)+Q108 -> 7175 | P109: =SUM(O105-O109) -> 1825
B110: 11h | C110: =SUM(C109,-C106)+E109 -> -68200 | D110: =SUM(C105-C110) -> 106200 | F110: 11h | G110: =SUM(G109,-G106)+I109 -> -1600 | H110: =SUM(G105-G110) -> 39600 | J110: 11h | K110: =SUM(K109,-K106)+M109 -> 20100 | L110: =SUM(K105-K110) -> 8100 | N110: 11h | O110: =SUM(O109,-O106)+Q109 -> 7150 | P110: =SUM(O105-O110) -> 1850
B111: 12h | C111: =SUM(C110,-C106)+E110 -> -69700 | D111: =SUM(C105-C111) -> 107700 | F111: 12h | G111: =SUM(G110-G106+I110) -> -2200 | H111: =SUM(G105-G111) -> 40200 | J111: 12h | K111: =SUM(K110,-K106)+M110 -> 20000 | L111: =SUM(K105-K111) -> 8200 | N111: 12h | O111: =SUM(O110,-O106)+Q110 -> 7125 | P111: =SUM(O105-O111) -> 1875
B112: 13h | C112: =SUM(C111-C106+E111) -> -71200 | D112: =SUM(C105-C112) -> 109200 | F112: 13h | G112: =SUM(G111-G106+I111) -> -2800 | H112: =SUM(G105-G112) -> 40800 | J112: 13h | K112: =SUM(K111-K106+M111) -> 19900 | L112: =SUM(K105-K112) -> 8300 | N112: 13h | O112: =SUM(O111-O106+Q111) -> 7100 | P112: =SUM(O105-O112) -> 1900
B113: 14h | C113: =SUM(C112-C106+E112) -> -72700 | D113: =SUM(C105-C113) -> 110700 | F113: 14h | G113: =SUM(G112-G106+I112) -> -3400 | H113: =SUM(G105-G113) -> 41400 | J113: 14h | K113: =SUM(K112-K106+M112) -> 19800 | L113: =SUM(K105-K113) -> 8400 | N113: 14h | O113: =SUM(O112-O106+Q112) -> 7075 | P113: =SUM(O105-O113) -> 1925
B114: 15h | C114: =SUM(C113,-C106)+E113 -> -74200 | D114: =SUM(C105-C114) -> 112200 | F114: 15h | G114: =SUM(G113,-G106)+I113 -> -4000 | H114: =SUM(G105-G114) -> 42000 | J114: 15h | K114: =SUM(K113,-K106)+M113 -> 19700 | L114: =SUM(K105-K114) -> 8500 | N114: 15h | O114: =SUM(O113,-O106)+Q113 -> 7050 | P114: =SUM(O105-O114) -> 1950
B115: 16h | C115: =SUM(C114,-C106)+E114 -> -75700 | D115: =SUM(C105-C115) -> 113700 | F115: 16h | G115: =SUM(G114,-G106)+I114 -> -4600 | H115: =SUM(G105-G115) -> 42600 | J115: 16h | K115: =SUM(K114,-K106)+M114 -> 19600 | L115: =SUM(K105-K115) -> 8600 | N115: 16h | O115: =SUM(O114,-O106)+Q114 -> 7025 | P115: =SUM(O105-O115) -> 1975
B116: 17h | C116: =SUM(C115,-C106)+E115 -> -77200 | D116: =SUM(C105-C116) -> 115200 | F116: 17h | G116: =SUM(G115,-G106)+I115 -> -5200 | H116: =SUM(G105-G116) -> 43200 | J116: 17h | K116: =SUM(K115,-K106)+M115 -> 19500 | L116: =SUM(K105-K116) -> 8700 | N116: 17h | O116: =SUM(O115,-O106)+Q115 -> 7000 | P116: =SUM(O105-O116) -> 2000
B117: 18h | C117: =SUM(C116,-C106)+E116 -> -78700 | D117: =SUM(C105-C117) -> 116700 | F117: 18h | G117: =SUM(G116,-G106)+I116 -> -5800 | H117: =SUM(G105-G117) -> 43800 | J117: 18h | K117: =SUM(K116,-K106)+M116 -> 19400 | L117: =SUM(K105-K117) -> 8800 | N117: 18h | O117: =SUM(O116,-O106)+Q116 -> 6975 | P117: =SUM(O105-O117) -> 2025
B118: 19h | C118: =SUM(C117,-C106)+E117 -> -80200 | D118: =SUM(C105-C118) -> 118200 | F118: 19h | G118: =SUM(G117,-G106)+I117 -> -6400 | H118: =SUM(G105-G118) -> 44400 | J118: 19h | K118: =SUM(K117,-K106)+M117 -> 19300 | L118: =SUM(K105-K118) -> 8900 | N118: 19h | O118: =SUM(O117,-O106)+Q117 -> 6950 | P118: =SUM(O105-O118) -> 2050
B119: 20h | C119: =SUM(C118-C106)+E118 -> -81700 | D119: =SUM(C105-C119) -> 119700 | F119: 20h | G119: =SUM(G118-G106)+I118 -> -7000 | H119: =SUM(G105-G119) -> 45000 | J119: 20h | K119: =SUM(K118-K106)+M118 -> 19200 | L119: =SUM(K105-K119) -> 9000 | N119: 20h | O119: =SUM(O118-O106)+Q118 -> 6925 | P119: =SUM(O105-O119) -> 2075
B120: 21h | C120: =SUM(C119-C106)+E119 -> -83200 | D120: =SUM(C105-C120) -> 121200 | F120: 21h | G120: =SUM(G119-G106)+I119 -> -7600 | H120: =SUM(G105-G120) -> 45600 | J120: 21h | K120: =SUM(K119-K106)+M119 -> 19100 | L120: =SUM(K105-K120) -> 9100 | N120: 21h | O120: =SUM(O119-O106)+Q119 -> 6900 | P120: =SUM(O105-O120) -> 2100
D121: DIESEL EXELLIUM | H121: 95 | L121: 98 excellium | P121: DIESEL CAMION
B122: Citerne | C122: =SUM(C105) -> 38000 | D122: LUNDI | F122: Citerne | G122: =SUM(G105) -> 38000 | J122: Citerne | K122: =SUM(K105) -> 28200 | N122: Citerne | O122: =SUM(O105) -> 9000
B123: Vente / H | C123: =SUM(C4) -> 1400 | F123: Vente / H | G123: =SUM(G4) -> 500 | J123: Vente / H | K123: =SUM(K4) -> 100 | N123: Vente / H | O123: =SUM(O4) -> 25
C124: Stock | D124: Commande | E124: Livraison | G124: Stock | H124: Commande | I124: Livraison | K124: Stock | L124: Commande | M124: Livraison | O124: Stock | P124: Commande | Q124: Livraison
B125: 9h | C125: =SUM(C120) -> -83200 | F125: 9h | G125: =SUM(G120) -> -7600 | J125: 9h | K125: =SUM(K120) -> 19100 | N125: 9h | O125: =SUM(O120) -> 6900
B126: 10h | C126: =SUM(C125,-C123)+E125 -> -84600 | D126: =SUM(C122-C126) -> 122600 | F126: 10h | G126: =SUM(G125,-G123)+I125 -> -8100 | H126: =SUM(G122-G126) -> 46100 | J126: 10h | K126: =SUM(K125,-K123)+M125 -> 19000 | L126: =SUM(K122-K126) -> 9200 | N126: 10h | O126: =SUM(O125,-O123)+Q125 -> 6875 | P126: =SUM(O122-O126) -> 2125
B127: 11h | C127: =SUM(C126,-C123)+E126 -> -86000 | D127: =SUM(C122-C127) -> 124000 | F127: 11h | G127: =SUM(G126,-G123)+I126 -> -8600 | H127: =SUM(G122-G127) -> 46600 | J127: 11h | K127: =SUM(K126,-K123)+M126 -> 18900 | L127: =SUM(K122-K127) -> 9300 | N127: 11h | O127: =SUM(O126,-O123)+Q126 -> 6850 | P127: =SUM(O122-O127) -> 2150
B128: 12h | C128: =SUM(C127,-C123)+E127 -> -87400 | D128: =SUM(C122-C128) -> 125400 | F128: 12h | G128: =SUM(G127-G123+I127) -> -9100 | H128: =SUM(G122-G128) -> 47100 | J128: 12h | K128: =SUM(K127,-K123)+M127 -> 18800 | L128: =SUM(K122-K128) -> 9400 | N128: 12h | O128: =SUM(O127,-O123)+Q127 -> 6825 | P128: =SUM(O122-O128) -> 2175
B129: 13h | C129: =SUM(C128-C123+E128) -> -88800 | D129: =SUM(C122-C129) -> 126800 | F129: 13h | G129: =SUM(G128-G123+I128) -> -9600 | H129: =SUM(G122-G129) -> 47600 | J129: 13h | K129: =SUM(K128-K123+M128) -> 18700 | L129: =SUM(K122-K129) -> 9500 | N129: 13h | O129: =SUM(O128-O123+Q128) -> 6800 | P129: =SUM(O122-O129) -> 2200
B130: 14h | C130: =SUM(C129-C123+E129) -> -90200 | D130: =SUM(C122-C130) -> 128200 | F130: 14h | G130: =SUM(G129-G123+I129) -> -10100 | H130: =SUM(G122-G130) -> 48100 | J130: 14h | K130: =SUM(K129-K123+M129) -> 18600 | L130: =SUM(K122-K130) -> 9600 | N130: 14h | O130: =SUM(O129-O123+Q129) -> 6775 | P130: =SUM(O122-O130) -> 2225
B131: 15h | C131: =SUM(C130,-C123)+E130 -> -91600 | D131: =SUM(C122-C131) -> 129600 | F131: 15h | G131: =SUM(G130,-G123)+I130 -> -10600 | H131: =SUM(G122-G131) -> 48600 | J131: 15h | K131: =SUM(K130,-K123)+M130 -> 18500 | L131: =SUM(K122-K131) -> 9700 | N131: 15h | O131: =SUM(O130,-O123)+Q130 -> 6750 | P131: =SUM(O122-O131) -> 2250
B132: 16h | C132: =SUM(C131,-C123)+E131 -> -93000 | D132: =SUM(C122-C132) -> 131000 | F132: 16h | G132: =SUM(G131,-G123)+I131 -> -11100 | H132: =SUM(G122-G132) -> 49100 | J132: 16h | K132: =SUM(K131,-K123)+M131 -> 18400 | L132: =SUM(K122-K132) -> 9800 | N132: 16h | O132: =SUM(O131,-O123)+Q131 -> 6725 | P132: =SUM(O122-O132) -> 2275
B133: 17h | C133: =SUM(C132,-C123)+E132 -> -94400 | D133: =SUM(C122-C133) -> 132400 | F133: 17h | G133: =SUM(G132,-G123)+I132 -> -11600 | H133: =SUM(G122-G133) -> 49600 | J133: 17h | K133: =SUM(K132,-K123)+M132 -> 18300 | L133: =SUM(K122-K133) -> 9900 | N133: 17h | O133: =SUM(O132,-O123)+Q132 -> 6700 | P133: =SUM(O122-O133) -> 2300
B134: 18h | C134: =SUM(C133,-C123)+E133 -> -95800 | D134: =SUM(C122-C134) -> 133800 | F134: 18h | G134: =SUM(G133,-G123)+I133 -> -12100 | H134: =SUM(G122-G134) -> 50100 | J134: 18h | K134: =SUM(K133,-K123)+M133 -> 18200 | L134: =SUM(K122-K134) -> 10000 | N134: 18h | O134: =SUM(O133,-O123)+Q133 -> 6675 | P134: =SUM(O122-O134) -> 2325
B135: 19h | C135: =SUM(C134,-C123)+E134 -> -97200 | D135: =SUM(C122-C135) -> 135200 | F135: 19h | G135: =SUM(G134,-G123)+I134 -> -12600 | H135: =SUM(G122-G135) -> 50600 | J135: 19h | K135: =SUM(K134,-K123)+M134 -> 18100 | L135: =SUM(K122-K135) -> 10100 | N135: 19h | O135: =SUM(O134,-O123)+Q134 -> 6650 | P135: =SUM(O122-O135) -> 2350
B136: 20h | C136: =SUM(C135-C123)+E135 -> -98600 | D136: =SUM(C122-C136) -> 136600 | F136: 20h | G136: =SUM(G135-G123)+I135 -> -13100 | H136: =SUM(G122-G136) -> 51100 | J136: 20h | K136: =SUM(K135-K123)+M135 -> 18000 | L136: =SUM(K122-K136) -> 10200 | N136: 20h | O136: =SUM(O135-O123)+Q135 -> 6625 | P136: =SUM(O122-O136) -> 2375
B137: 21h | C137: =SUM(C136-C123)+E136 -> -100000 | D137: =SUM(C122-C137) -> 138000 | F137: 21h | G137: =SUM(G136-G123)+I136 -> -13600 | H137: =SUM(G122-G137) -> 51600 | J137: 21h | K137: =SUM(K136-K123)+M136 -> 17900 | L137: =SUM(K122-K137) -> 10300 | N137: 21h | O137: =SUM(O136-O123)+Q136 -> 6600 | P137: =SUM(O122-O137) -> 2400
D138: DIESEL EXELLIUM | H138: 95 | L138: 98 excellium | P138: DIESEL CAMION
B139: Citerne | C139: =SUM(C122) -> 38000 | F139: Citerne | G139: =SUM(G122) -> 38000 | J139: Citerne | K139: =SUM(K122) -> 28200 | N139: Citerne | O139: =SUM(O122) -> 9000
B140: Vente / H | C140: =SUM(C21) -> 1400 | F140: Vente / H | G140: =SUM(G21) -> 500 | J140: Vente / H | K140: =SUM(K21) -> 100 | N140: Vente / H | O140: =SUM(O21) -> 25
C141: Stock | D141: Commande | E141: Livraison | G141: Stock | H141: Commande | I141: Livraison | K141: Stock | L141: Commande | M141: Livraison | O141: Stock | P141: Commande | Q141: Livraison
B142: 9h | C142: =SUM(C137) -> -100000 | F142: 9h | G142: =SUM(G137) -> -13600 | J142: 9h | K142: =SUM(K137) -> 17900 | N142: 9h | O142: =SUM(O137) -> 6600
B143: 10h | C143: =SUM(C142,-C140)+E142 -> -101400 | D143: =SUM(C139-C143) -> 139400 | F143: 10h | G143: =SUM(G142,-G140)+I142 -> -14100 | H143: =SUM(G139-G143) -> 52100 | J143: 10h | K143: =SUM(K142,-K140)+M142 -> 17800 | L143: =SUM(K139-K143) -> 10400 | N143: 10h | O143: =SUM(O142,-O140)+Q142 -> 6575 | P143: =SUM(O139-O143) -> 2425
B144: 11h | C144: =SUM(C143,-C140)+E143 -> -102800 | D144: =SUM(C139-C144) -> 140800 | F144: 11h | G144: =SUM(G143,-G140)+I143 -> -14600 | H144: =SUM(G139-G144) -> 52600 | J144: 11h | K144: =SUM(K143,-K140)+M143 -> 17700 | L144: =SUM(K139-K144) -> 10500 | N144: 11h | O144: =SUM(O143,-O140)+Q143 -> 6550 | P144: =SUM(O139-O144) -> 2450
B145: 12h | C145: =SUM(C144,-C140)+E144 -> -104200 | D145: =SUM(C139-C145) -> 142200 | F145: 12h | G145: =SUM(G144-G140+I144) -> -15100 | H145: =SUM(G139-G145) -> 53100 | J145: 12h | K145: =SUM(K144,-K140)+M144 -> 17600 | L145: =SUM(K139-K145) -> 10600 | N145: 12h | O145: =SUM(O144,-O140)+Q144 -> 6525 | P145: =SUM(O139-O145) -> 2475
B146: 13h | C146: =SUM(C145-C140+E145) -> -105600 | D146: =SUM(C139-C146) -> 143600 | F146: 13h | G146: =SUM(G145-G140+I145) -> -15600 | H146: =SUM(G139-G146) -> 53600 | J146: 13h | K146: =SUM(K145-K140+M145) -> 17500 | L146: =SUM(K139-K146) -> 10700 | N146: 13h | O146: =SUM(O145-O140+Q145) -> 6500 | P146: =SUM(O139-O146) -> 2500
B147: 14h | C147: =SUM(C146-C140+E146) -> -107000 | D147: =SUM(C139-C147) -> 145000 | F147: 14h | G147: =SUM(G146-G140+I146) -> -16100 | H147: =SUM(G139-G147) -> 54100 | J147: 14h | K147: =SUM(K146-K140+M146) -> 17400 | L147: =SUM(K139-K147) -> 10800 | N147: 14h | O147: =SUM(O146-O140+Q146) -> 6475 | P147: =SUM(O139-O147) -> 2525
B148: 15h | C148: =SUM(C147,-C140)+E147 -> -108400 | D148: =SUM(C139-C148) -> 146400 | F148: 15h | G148: =SUM(G147,-G140)+I147 -> -16600 | H148: =SUM(G139-G148) -> 54600 | J148: 15h | K148: =SUM(K147,-K140)+M147 -> 17300 | L148: =SUM(K139-K148) -> 10900 | N148: 15h | O148: =SUM(O147,-O140)+Q147 -> 6450 | P148: =SUM(O139-O148) -> 2550
B149: 16h | C149: =SUM(C148,-C140)+E148 -> -109800 | D149: =SUM(C139-C149) -> 147800 | F149: 16h | G149: =SUM(G148,-G140)+I148 -> -17100 | H149: =SUM(G139-G149) -> 55100 | J149: 16h | K149: =SUM(K148,-K140)+M148 -> 17200 | L149: =SUM(K139-K149) -> 11000 | N149: 16h | O149: =SUM(O148,-O140)+Q148 -> 6425 | P149: =SUM(O139-O149) -> 2575
B150: 17h | C150: =SUM(C149,-C140)+E149 -> -111200 | D150: =SUM(C139-C150) -> 149200 | F150: 17h | G150: =SUM(G149,-G140)+I149 -> -17600 | H150: =SUM(G139-G150) -> 55600 | J150: 17h | K150: =SUM(K149,-K140)+M149 -> 17100 | L150: =SUM(K139-K150) -> 11100 | N150: 17h | O150: =SUM(O149,-O140)+Q149 -> 6400 | P150: =SUM(O139-O150) -> 2600
B151: 18h | C151: =SUM(C150,-C140)+E150 -> -112600 | D151: =SUM(C139-C151) -> 150600 | F151: 18h | G151: =SUM(G150,-G140)+I150 -> -18100 | H151: =SUM(G139-G151) -> 56100 | J151: 18h | K151: =SUM(K150,-K140)+M150 -> 17000 | L151: =SUM(K139-K151) -> 11200 | N151: 18h | O151: =SUM(O150,-O140)+Q150 -> 6375 | P151: =SUM(O139-O151) -> 2625
B152: 19h | C152: =SUM(C151,-C140)+E151 -> -114000 | D152: =SUM(C139-C152) -> 152000 | F152: 19h | G152: =SUM(G151,-G140)+I151 -> -18600 | H152: =SUM(G139-G152) -> 56600 | J152: 19h | K152: =SUM(K151,-K140)+M151 -> 16900 | L152: =SUM(K139-K152) -> 11300 | N152: 19h | O152: =SUM(O151,-O140)+Q151 -> 6350 | P152: =SUM(O139-O152) -> 2650
B153: 20h | C153: =SUM(C152-C140)+E152 -> -115400 | D153: =SUM(C139-C153) -> 153400 | F153: 20h | G153: =SUM(G152-G140)+I152 -> -19100 | H153: =SUM(G139-G153) -> 57100 | J153: 20h | K153: =SUM(K152-K140)+M152 -> 16800 | L153: =SUM(K139-K153) -> 11400 | N153: 20h | O153: =SUM(O152-O140)+Q152 -> 6325 | P153: =SUM(O139-O153) -> 2675
B154: 21h | C154: =SUM(C153-C140)+E153 -> -116800 | D154: =SUM(C139-C154) -> 154800 | F154: 21h | G154: =SUM(G153-G140)+I153 -> -19600 | H154: =SUM(G139-G154) -> 57600 | J154: 21h | K154: =SUM(K153-K140)+M153 -> 16700 | L154: =SUM(K139-K154) -> 11500 | N154: 21h | O154: =SUM(O153-O140)+Q153 -> 6300 | P154: =SUM(O139-O154) -> 2700
D155: DIESEL EXELLIUM | H155: 95 | L155: 98 excellium | P155: DIESEL CAMION
B156: Citerne | C156: =SUM(C139) -> 38000 | F156: Citerne | G156: =SUM(G139) -> 38000 | J156: Citerne | K156: =SUM(K139) -> 28200 | N156: Citerne | O156: =SUM(O139) -> 9000
B157: Vente / H | C157: =SUM(C38) -> 1400 | F157: Vente / H | G157: =SUM(G38) -> 500 | J157: Vente / H | K157: =SUM(K38) -> 100 | N157: Vente / H | O157: =SUM(O38) -> 25
C158: Stock | D158: Commande | E158: Livraison | G158: Stock | H158: Commande | I158: Livraison | K158: Stock | L158: Commande | M158: Livraison | O158: Stock | P158: Commande | Q158: Livraison
B159: 9h | C159: =SUM(C154) -> -116800 | F159: 9h | G159: =SUM(G154) -> -19600 | J159: 9h | K159: =SUM(K154) -> 16700 | N159: 9h | O159: =SUM(O154) -> 6300
B160: 10h | C160: =SUM(C159,-C157)+E159 -> -118200 | D160: =SUM(C156-C160) -> 156200 | F160: 10h | G160: =SUM(G159,-G157)+I159 -> -20100 | H160: =SUM(G156-G160) -> 58100 | J160: 10h | K160: =SUM(K159,-K157)+M159 -> 16600 | L160: =SUM(K156-K160) -> 11600 | N160: 10h | O160: =SUM(O159,-O157)+Q159 -> 6275 | P160: =SUM(O156-O160) -> 2725
B161: 11h | C161: =SUM(C160,-C157)+E160 -> -119600 | D161: =SUM(C156-C161) -> 157600 | F161: 11h | G161: =SUM(G160,-G157)+I160 -> -20600 | H161: =SUM(G156-G161) -> 58600 | J161: 11h | K161: =SUM(K160,-K157)+M160 -> 16500 | L161: =SUM(K156-K161) -> 11700 | N161: 11h | O161: =SUM(O160,-O157)+Q160 -> 6250 | P161: =SUM(O156-O161) -> 2750
B162: 12h | C162: =SUM(C161,-C157)+E161 -> -121000 | D162: =SUM(C156-C162) -> 159000 | F162: 12h | G162: =SUM(G161-G157+I161) -> -21100 | H162: =SUM(G156-G162) -> 59100 | J162: 12h | K162: =SUM(K161,-K157)+M161 -> 16400 | L162: =SUM(K156-K162) -> 11800 | N162: 12h | O162: =SUM(O161,-O157)+Q161 -> 6225 | P162: =SUM(O156-O162) -> 2775
B163: 13h | C163: =SUM(C162-C157+E162) -> -122400 | D163: =SUM(C156-C163) -> 160400 | F163: 13h | G163: =SUM(G162-G157+I162) -> -21600 | H163: =SUM(G156-G163) -> 59600 | J163: 13h | K163: =SUM(K162-K157+M162) -> 16300 | L163: =SUM(K156-K163) -> 11900 | N163: 13h | O163: =SUM(O162-O157+Q162) -> 6200 | P163: =SUM(O156-O163) -> 2800
B164: 14h | C164: =SUM(C163-C157+E163) -> -123800 | D164: =SUM(C156-C164) -> 161800 | F164: 14h | G164: =SUM(G163-G157+I163) -> -22100 | H164: =SUM(G156-G164) -> 60100 | J164: 14h | K164: =SUM(K163-K157+M163) -> 16200 | L164: =SUM(K156-K164) -> 12000 | N164: 14h | O164: =SUM(O163-O157+Q163) -> 6175 | P164: =SUM(O156-O164) -> 2825
B165: 15h | C165: =SUM(C164,-C157)+E164 -> -125200 | D165: =SUM(C156-C165) -> 163200 | F165: 15h | G165: =SUM(G164,-G157)+I164 -> -22600 | H165: =SUM(G156-G165) -> 60600 | J165: 15h | K165: =SUM(K164,-K157)+M164 -> 16100 | L165: =SUM(K156-K165) -> 12100 | N165: 15h | O165: =SUM(O164,-O157)+Q164 -> 6150 | P165: =SUM(O156-O165) -> 2850
B166: 16h | C166: =SUM(C165,-C157)+E165 -> -126600 | D166: =SUM(C156-C166) -> 164600 | F166: 16h | G166: =SUM(G165,-G157)+I165 -> -23100 | H166: =SUM(G156-G166) -> 61100 | J166: 16h | K166: =SUM(K165,-K157)+M165 -> 16000 | L166: =SUM(K156-K166) -> 12200 | N166: 16h | O166: =SUM(O165,-O157)+Q165 -> 6125 | P166: =SUM(O156-O166) -> 2875
B167: 17h | C167: =SUM(C166,-C157)+E166 -> -128000 | D167: =SUM(C156-C167) -> 166000 | F167: 17h | G167: =SUM(G166,-G157)+I166 -> -23600 | H167: =SUM(G156-G167) -> 61600 | J167: 17h | K167: =SUM(K166,-K157)+M166 -> 15900 | L167: =SUM(K156-K167) -> 12300 | N167: 17h | O167: =SUM(O166,-O157)+Q166 -> 6100 | P167: =SUM(O156-O167) -> 2900
B168: 18h | C168: =SUM(C167,-C157)+E167 -> -129400 | D168: =SUM(C156-C168) -> 167400 | F168: 18h | G168: =SUM(G167,-G157)+I167 -> -24100 | H168: =SUM(G156-G168) -> 62100 | J168: 18h | K168: =SUM(K167,-K157)+M167 -> 15800 | L168: =SUM(K156-K168) -> 12400 | N168: 18h | O168: =SUM(O167,-O157)+Q167 -> 6075 | P168: =SUM(O156-O168) -> 2925
B169: 19h | C169: =SUM(C168,-C157)+E168 -> -130800 | D169: =SUM(C156-C169) -> 168800 | F169: 19h | G169: =SUM(G168,-G157)+I168 -> -24600 | H169: =SUM(G156-G169) -> 62600 | J169: 19h | K169: =SUM(K168,-K157)+M168 -> 15700 | L169: =SUM(K156-K169) -> 12500 | N169: 19h | O169: =SUM(O168,-O157)+Q168 -> 6050 | P169: =SUM(O156-O169) -> 2950
B170: 20h | C170: =SUM(C169-C157)+E169 -> -132200 | D170: =SUM(C156-C170) -> 170200 | F170: 20h | G170: =SUM(G169-G157)+I169 -> -25100 | H170: =SUM(G156-G170) -> 63100 | J170: 20h | K170: =SUM(K169-K157)+M169 -> 15600 | L170: =SUM(K156-K170) -> 12600 | N170: 20h | O170: =SUM(O169-O157)+Q169 -> 6025 | P170: =SUM(O156-O170) -> 2975
B171: 21h | C171: =SUM(C170-C157)+E170 -> -133600 | D171: =SUM(C156-C171) -> 171600 | F171: 21h | G171: =SUM(G170-G157)+I170 -> -25600 | H171: =SUM(G156-G171) -> 63600 | J171: 21h | K171: =SUM(K170-K157)+M170 -> 15500 | L171: =SUM(K156-K171) -> 12700 | N171: 21h | O171: =SUM(O170-O157)+Q170 -> 6000 | P171: =SUM(O156-O171) -> 3000

Sheet Dudelange 1
B1: Dudelange 1
D2: Diesiel | H2: 95 | L2: Diesiel excellium | P2: 98 excellium
B3: Citerne | C3: 38000 | D3: LUNDI | F3: Citerne | G3: 38000 | J3: Citerne | K3: 38000 | N3: Citerne | O3: 38000
B4: Vente / H | C4: 2400 | F4: Vente / H | G4: 600 | J4: Vente / H | K4: 130 | N4: Vente / H | O4: 130
C5: Stock | D5: Commande | E5: Livraison | G5: Stock | H5: Commande | I5: Livraison | K5: Stock | L5: Commande | M5: Livraison | O5: Stock | P5: Commande | Q5: Livraison
B6: 6h | C6: 38000 | F6: 6h | G6: 38000 | J6: 6h | K6: 38000 | N6: 6h | O6: 38000
B7: 7h | C7: =SUM(C6,-C4)+E6 -> 35600 | D7: =SUM(C3-C7) -> 2400 | F7: 7h | G7: =SUM(G6,-G4)+I6 -> 37400 | H7: =SUM(G3-G7) -> 600 | J7: 7h | K7: =SUM(K6,-K4)+M6 -> 37870 | L7: =SUM(K3-K7) -> 130 | N7: 7h | O7: =SUM(O6,-O4)+Q6 -> 37870 | P7: =SUM(O3-O7) -> 130
B8: 8h | C8: =SUM(C7,-C4)+E7 -> 33200 | D8: =SUM(C3-C8) -> 4800 | F8: 8h | G8: =SUM(G7,-G4)+I7 -> 36800 | H8: =SUM(G3-G8) -> 1200 | J8: 8h | K8: =SUM(K7,-K4)+M7 -> 37740 | L8: =SUM(K3-K8) -> 260 | N8: 8h | O8: =SUM(O7,-O4)+Q7 -> 37740 | P8: =SUM(O3-O8) -> 260
B9: 9h | C9: =SUM(C8,-C4)+E8 -> 30800 | D9: =SUM(C3-C9) -> 7200 | F9: 9h | G9: =SUM(G8,-G4)+I8 -> 36200 | H9: =SUM(G3-G9) -> 1800 | J9: 9h | K9: =SUM(K8,-K4)+M8 -> 37610 | L9: =SUM(K3-K9) -> 390 | N9: 9h | O9: =SUM(O8,-O4)+Q8 -> 37610 | P9: =SUM(O3-O9) -> 390
B10: 10h | C10: =SUM(C9-C4+E9) -> 28400 | D10: =SUM(C3-C10) -> 9600 | F10: 10h | G10: =SUM(G9-G4+I9) -> 35600 | H10: =SUM(G3-G10) -> 2400 | J10: 10h | K10: =SUM(K9-K4+M9) -> 37480 | L10: =SUM(K3-K10) -> 520 | N10: 10h | O10: =SUM(O9-O4+Q9) -> 37480 | P10: =SUM(O3-O10) -> 520
B11: 11h | C11: =SUM(C10-C4+E10) -> 26000 | D11: =SUM(C3-C11) -> 12000 | F11: 11h | G11: =SUM(G10-G4+I10) -> 35000 | H11: =SUM(G3-G11) -> 3000 | J11: 11h | K11: =SUM(K10-K4+M10) -> 37350 | L11: =SUM(K3-K11) -> 650 | N11: 11h | O11: =SUM(O10-O4+Q10) -> 37350 | P11: =SUM(O3-O11) -> 650
B12: 12h | C12: =SUM(C11,-C4)+E11 -> 23600 | D12: =SUM(C3-C12) -> 14400 | F12: 12h | G12: =SUM(G11,-G4)+I11 -> 34400 | H12: =SUM(G3-G12) -> 3600 | J12: 12h | K12: =SUM(K11,-K4)+M11 -> 37220 | L12: =SUM(K3-K12) -> 780 | N12: 12h | O12: =SUM(O11,-O4)+Q11 -> 37220 | P12: =SUM(O3-O12) -> 780
B13: 13h | C13: =SUM(C12,-C4)+E12 -> 21200 | D13: =SUM(C3-C13) -> 16800 | F13: 13h | G13: =SUM(G12,-G4)+I12 -> 33800 | H13: =SUM(G3-G13) -> 4200 | J13: 13h | K13: =SUM(K12,-K4)+M12 -> 37090 | L13: =SUM(K3-K13) -> 910 | N13: 13h | O13: =SUM(O12,-O4)+Q12 -> 37090 | P13: =SUM(O3-O13) -> 910
B14: 14h | C14: =SUM(C13,-C4)+E13 -> 18800 | D14: =SUM(C3-C14) -> 19200 | F14: 14h | G14: =SUM(G13,-G4)+I13 -> 33200 | H14: =SUM(G3-G14) -> 4800 | J14: 14h | K14: =SUM(K13,-K4)+M13 -> 36960 | L14: =SUM(K3-K14) -> 1040 | N14: 14h | O14: =SUM(O13,-O4)+Q13 -> 36960 | P14: =SUM(O3-O14) -> 1040
B15: 15h | C15: =SUM(C14,-C4)+E14 -> 16400 | D15: =SUM(C3-C15) -> 21600 | F15: 15h | G15: =SUM(G14,-G4)+I14 -> 32600 | H15: =SUM(G3-G15) -> 5400 | J15: 15h | K15: =SUM(K14,-K4)+M14 -> 36830 | L15: =SUM(K3-K15) -> 1170 | N15: 15h | O15: =SUM(O14,-O4)+Q14 -> 36830 | P15: =SUM(O3-O15) -> 1170
B16: 16h | C16: =SUM(C15,-C4)+E15 -> 14000 | D16: =SUM(C3-C16) -> 24000 | F16: 16h | G16: =SUM(G15,-G4)+I15 -> 32000 | H16: =SUM(G3-G16) -> 6000 | J16: 16h | K16: =SUM(K15,-K4)+M15 -> 36700 | L16: =SUM(K3-K16) -> 1300 | N16: 16h | O16: =SUM(O15,-O4)+Q15 -> 36700 | P16: =SUM(O3-O16) -> 1300
B17: 17h | C17: =SUM(C16-C4)+E16 -> 11600 | D17: =SUM(C3-C17) -> 26400 | F17: 17h | G17: =SUM(G16-G4)+I16 -> 31400 | H17: =SUM(G3-G17) -> 6600 | J17: 17h | K17: =SUM(K16-K4)+M16 -> 36570 | L17: =SUM(K3-K17) -> 1430 | N17: 17h | O17: =SUM(O16-O4)+Q16 -> 36570 | P17: =SUM(O3-O17) -> 1430
B18: 18h | C18: =SUM(C17-C4)+E17 -> 9200 | D18: =SUM(C3-C18) -> 28800 | F18: 18h | G18: =SUM(G17-G4)+I17 -> 30800 | H18: =SUM(G3-G18) -> 7200 | J18: 18h | K18: =SUM(K17-K4)+M17 -> 36440 | L18: =SUM(K3-K18) -> 1560 | N18: 18h | O18: =SUM(O17-O4)+Q17 -> 36440 | P18: =SUM(O3-O18) -> 1560
B19: 19h | C19: =SUM(C18-C4)+E18 -> 6800 | D19: =SUM(C3-C19) -> 31200 | F19: 19h | G19: =SUM(G18-G4)+I18 -> 30200 | H19: =SUM(G3-G19) -> 7800 | J19: 19h | K19: =SUM(K18-K4)+M18 -> 36310 | L19: =SUM(K3-K19) -> 1690 | N19: 19h | O19: =SUM(O18-O4)+Q18 -> 36310 | P19: =SUM(O3-O19) -> 1690
B20: 20h | C20: =SUM(C19-C4)+E19 -> 4400 | D20: =SUM(C3-C20) -> 33600 | F20: 20h | G20: =SUM(G19-G4)+I19 -> 29600 | H20: =SUM(G3-G20) -> 8400 | J20: 20h | K20: =SUM(K19-K4)+M19 -> 36180 | L20: =SUM(K3-K20) -> 1820 | N20: 20h | O20: =SUM(O19-O4)+Q19 -> 36180 | P20: =SUM(O3-O20) -> 1820
B21: 21h | C21: =SUM(C20,-C4)+E20 -> 2000 | D21: =SUM(C3-C21) -> 36000 | F21: 21h | G21: =SUM(G20,-G4)+I20 -> 29000 | H21: =SUM(G3-G21) -> 9000 | J21: 21h | K21: =SUM(K20,-K4)+M20 -> 36050 | L21: =SUM(K3-K21) -> 1950 | N21: 21h | O21: =SUM(O20,-O4)+Q20 -> 36050 | P21: =SUM(O3-O21) -> 1950
B22: 22h | C22: =SUM(C21-C4)+E21 -> -400 | D22: =SUM(C3-C22) -> 38400 | F22: 22h | G22: =SUM(G21-G4)+I21 -> 28400 | H22: =SUM(G3-G22) -> 9600 | J22: 22h | K22: =SUM(K21-K4)+M21 -> 35920 | L22: =SUM(K3-K22) -> 2080 | N22: 22h | O22: =SUM(O21-O4)+Q21 -> 35920 | P22: =SUM(O3-O22) -> 2080
D23: Diesiel | H23: 95 | L23: Diesiel excellium | P23: 98 excellium
B24: Citerne | C24: =SUM(C3) -> 38000 | D24: MARDI | F24: Citerne | G24: =SUM(G3) -> 38000 | J24: Citerne | K24: =SUM(K3) -> 38000 | N24: Citerne | O24: =SUM(O3) -> 38000
B25: Vente / H | C25: =SUM(C4) -> 2400 | F25: Vente / H | G25: =SUM(G4) -> 600 | J25: Vente / H | K25: =SUM(K4) -> 130 | N25: Vente / H | O25: =SUM(O4) -> 130
C26: Stock | D26: Commande | E26: Livraison | G26: Stock | H26: Commande | I26: Livraison | K26: Stock | L26: Commande | M26: Livraison | O26: Stock | P26: Commande | Q26: Livraison
B27: 6h | C27: =SUM(C22) -> -400 | F27: 6h | G27: =SUM(G22) -> 28400 | J27: 6h | K27: =SUM(K22) -> 35920 | N27: 6h | O27: =SUM(O22) -> 35920
B28: 7h | C28: =SUM(C27,-C25)+E27 -> -2800 | D28: =SUM(C24-C28) -> 40800 | F28: 7h | G28: =SUM(G27,-G25)+I27 -> 27800 | H28: =SUM(G24-G28) -> 10200 | J28: 7h | K28: =SUM(K27,-K25)+M27 -> 35790 | L28: =SUM(K24-K28) -> 2210 | N28: 7h | O28: =SUM(O27,-O25)+Q27 -> 35790 | P28: =SUM(O24-O28) -> 2210
B29: 8h | C29: =SUM(C28,-C25)+E28 -> -5200 | D29: =SUM(C24-C29) -> 43200 | F29: 8h | G29: =SUM(G28,-G25)+I28 -> 27200 | H29: =SUM(G24-G29) -> 10800 | J29: 8h | K29: =SUM(K28,-K25)+M28 -> 35660 | L29: =SUM(K24-K29) -> 2340 | N29: 8h | O29: =SUM(O28,-O25)+Q28 -> 35660 | P29: =SUM(O24-O29) -> 2340
B30: 9h | C30: =SUM(C29,-C25)+E29 -> -7600 | D30: =SUM(C24-C30) -> 45600 | F30: 9h | G30: =SUM(G29,-G25)+I29 -> 26600 | H30: =SUM(G24-G30) -> 11400 | J30: 9h | K30: =SUM(K29,-K25)+M29 -> 35530 | L30: =SUM(K24-K30) -> 2470 | N30: 9h | O30: =SUM(O29,-O25)+Q29 -> 35530 | P30: =SUM(O24-O30) -> 2470
B31: 10h | C31: =SUM(C30-C25+E30) -> -10000 | D31: =SUM(C24-C31) -> 48000 | F31: 10h | G31: =SUM(G30-G25+I30) -> 26000 | H31: =SUM(G24-G31) -> 12000 | J31: 10h | K31: =SUM(K30-K25+M30) -> 35400 | L31: =SUM(K24-K31) -> 2600 | N31: 10h | O31: =SUM(O30-O25+Q30) -> 35400 | P31: =SUM(O24-O31) -> 2600
B32: 11h | C32: =SUM(C31-C25+E31) -> -12400 | D32: =SUM(C24-C32) -> 50400 | F32: 11h | G32: =SUM(G31-G25+I31) -> 25400 | H32: =SUM(G24-G32) -> 12600 | J32: 11h | K32: =SUM(K31-K25+M31) -> 35270 | L32: =SUM(K24-K32) -> 2730 | N32: 11h | O32: =SUM(O31-O25+Q31) -> 35270 | P32: =SUM(O24-O32) -> 2730
B33: 12h | C33: =SUM(C32,-C25)+E32 -> -14800 | D33: =SUM(C24-C33) -> 52800 | F33: 12h | G33: =SUM(G32,-G25)+I32 -> 24800 | H33: =SUM(G24-G33) -> 13200 | J33: 12h | K33: =SUM(K32,-K25)+M32 -> 35140 | L33: =SUM(K24-K33) -> 2860 | N33: 12h | O33: =SUM(O32,-O25)+Q32 -> 35140 | P33: =SUM(O24-O33) -> 2860
B34: 13h | C34: =SUM(C33,-C25)+E33 -> -17200 | D34: =SUM(C24-C34) -> 55200 | F34: 13h | G34: =SUM(G33,-G25)+I33 -> 24200 | H34: =SUM(G24-G34) -> 13800 | J34: 13h | K34: =SUM(K33,-K25)+M33 -> 35010 | L34: =SUM(K24-K34) -> 2990 | N34: 13h | O34: =SUM(O33,-O25)+Q33 -> 35010 | P34: =SUM(O24-O34) -> 2990
B35: 14h | C35: =SUM(C34,-C25)+E34 -> -19600 | D35: =SUM(C24-C35) -> 57600 | F35: 14h | G35: =SUM(G34,-G25)+I34 -> 23600 | H35: =SUM(G24-G35) -> 14400 | J35: 14h | K35: =SUM(K34,-K25)+M34 -> 34880 | L35: =SUM(K24-K35) -> 3120 | N35: 14h | O35: =SUM(O34,-O25)+Q34 -> 34880 | P35: =SUM(O24-O35) -> 3120
B36: 15h | C36: =SUM(C35,-C25)+E35 -> -22000 | D36: =SUM(C24-C36) -> 60000 | F36: 15h | G36: =SUM(G35,-G25)+I35 -> 23000 | H36: =SUM(G24-G36) -> 15000 | J36: 15h | K36: =SUM(K35,-K25)+M35 -> 34750 | L36: =SUM(K24-K36) -> 3250 | N36: 15h | O36: =SUM(O35,-O25)+Q35 -> 34750 | P36: =SUM(O24-O36) -> 3250
B37: 16h | C37: =SUM(C36,-C25)+E36 -> -24400 | D37: =SUM(C24-C37) -> 62400 | F37: 16h | G37: =SUM(G36,-G25)+I36 -> 22400 | H37: =SUM(G24-G37) -> 15600 | J37: 16h | K37: =SUM(K36,-K25)+M36 -> 34620 | L37: =SUM(K24-K37) -> 3380 | N37: 16h | O37: =SUM(O36,-O25)+Q36 -> 34620 | P37: =SUM(O24-O37) -> 3380
B38: 17h | C38: =SUM(C37-C25)+E37 -> -26800 | D38: =SUM(C24-C38) -> 64800 | F38: 17h | G38: =SUM(G37-G25)+I37 -> 21800 | H38: =SUM(G24-G38) -> 16200 | J38: 17h | K38: =SUM(K37-K25)+M37 -> 34490 | L38: =SUM(K24-K38) -> 3510 | N38: 17h | O38: =SUM(O37-O25)+Q37 -> 34490 | P38: =SUM(O24-O38) -> 3510
B39: 18h | C39: =SUM(C38-C25)+E38 -> -29200 | D39: =SUM(C24-C39) -> 67200 | F39: 18h | G39: =SUM(G38-G25)+I38 -> 21200 | H39: =SUM(G24-G39) -> 16800 | J39: 18h | K39: =SUM(K38-K25)+M38 -> 34360 | L39: =SUM(K24-K39) -> 3640 | N39: 18h | O39: =SUM(O38-O25)+Q38 -> 34360 | P39: =SUM(O24-O39) -> 3640
B40: 19h | C40: =SUM(C39-C25)+E39 -> -31600 | D40: =SUM(C24-C40) -> 69600 | F40: 19h | G40: =SUM(G39-G25)+I39 -> 20600 | H40: =SUM(G24-G40) -> 17400 | J40: 19h | K40: =SUM(K39-K25)+M39 -> 34230 | L40: =SUM(K24-K40) -> 3770 | N40: 19h | O40: =SUM(O39-O25)+Q39 -> 34230 | P40: =SUM(O24-O40) -> 3770
B41: 20h | C41: =SUM(C40-C25)+E40 -> -34000 | D41: =SUM(C24-C41) -> 72000 | F41: 20h | G41: =SUM(G40-G25)+I40 -> 20000 | H41: =SUM(G24-G41) -> 18000 | J41: 20h | K41: =SUM(K40-K25)+M40 -> 34100 | L41: =SUM(K24-K41) -> 3900 | N41: 20h | O41: =SUM(O40-O25)+Q40 -> 34100 | P41: =SUM(O24-O41) -> 3900
B42: 21h | C42: =SUM(C41,-C25)+E41 -> -36400 | D42: =SUM(C24-C42) -> 74400 | F42: 21h | G42: =SUM(G41,-G25)+I41 -> 19400 | H42: =SUM(G24-G42) -> 18600 | J42: 21h | K42: =SUM(K41,-K25)+M41 -> 33970 | L42: =SUM(K24-K42) -> 4030 | N42: 21h | O42: =SUM(O41,-O25)+Q41 -> 33970 | P42: =SUM(O24-O42) -> 4030
B43: 22h | C43: =SUM(C42-C25)+E42 -> -38800 | D43: =SUM(C24-C43) -> 76800 | F43: 22h | G43: =SUM(G42-G25)+I42 -> 18800 | H43: =SUM(G24-G43) -> 19200 | J43: 22h | K43: =SUM(K42-K25)+M42 -> 33840 | L43: =SUM(K24-K43) -> 4160 | N43: 22h | O43: =SUM(O42-O25)+Q42 -> 33840 | P43: =SUM(O24-O43) -> 4160
D44: Diesiel | H44: 95 | L44: Diesiel excellium | P44: 98 excellium
B45: Citerne | C45: =SUM(C24) -> 38000 | D45: MERCREDI | F45: Citerne | G45: =SUM(G24) -> 38000 | J45: Citerne | K45: =SUM(K24) -> 38000 | N45: Citerne | O45: =SUM(O24) -> 38000
B46: Vente / H | C46: 2400 | F46: Vente / H | G46: 600 | J46: Vente / H | K46: =SUM(K25) -> 130 | N46: Vente / H | O46: =SUM(O25) -> 130
C47: Stock | D47: Commande | E47: Livraison | G47: Stock | H47: Commande | I47: Livraison | K47: Stock | L47: Commande | M47: Livraison | O47: Stock | P47: Commande | Q47: Livraison
B48: 6h | C48: =SUM(C43) -> -38800 | F48: 6h | G48: =SUM(G43) -> 18800 | J48: 6h | K48: =SUM(K43) -> 33840 | N48: 6h | O48: =SUM(O43) -> 33840
B49: 7h | C49: =SUM(C48,-C46)+E48 -> -41200 | D49: =SUM(C45-C49) -> 79200 | F49: 7h | G49: =SUM(G48,-G46)+I48 -> 18200 | H49: =SUM(G45-G49) -> 19800 | J49: 7h | K49: =SUM(K48,-K46)+M48 -> 33710 | L49: =SUM(K45-K49) -> 4290 | N49: 7h | O49: =SUM(O48,-O46)+Q48 -> 33710 | P49: =SUM(O45-O49) -> 4290
B50: 8h | C50: =SUM(C49,-C46)+E49 -> -43600 | D50: =SUM(C45-C50) -> 81600 | F50: 8h | G50: =SUM(G49,-G46)+I49 -> 17600 | H50: =SUM(G45-G50) -> 20400 | J50: 8h | K50: =SUM(K49,-K46)+M49 -> 33580 | L50: =SUM(K45-K50) -> 4420 | N50: 8h | O50: =SUM(O49,-O46)+Q49 -> 33580 | P50: =SUM(O45-O50) -> 4420
B51: 9h | C51: =SUM(C50,-C46)+E50 -> -46000 | D51: =SUM(C45-C51) -> 84000 | F51: 9h | G51: =SUM(G50,-G46)+I50 -> 17000 | H51: =SUM(G45-G51) -> 21000 | J51: 9h | K51: =SUM(K50,-K46)+M50 -> 33450 | L51: =SUM(K45-K51) -> 4550 | N51: 9h | O51: =SUM(O50,-O46)+Q50 -> 33450 | P51: =SUM(O45-O51) -> 4550
B52: 10h | C52: =SUM(C51-C46+E51) -> -48400 | D52: =SUM(C45-C52) -> 86400 | F52: 10h | G52: =SUM(G51-G46+I51) -> 16400 | H52: =SUM(G45-G52) -> 21600 | J52: 10h | K52: =SUM(K51-K46+M51) -> 33320 | L52: =SUM(K45-K52) -> 4680 | N52: 10h | O52: =SUM(O51-O46+Q51) -> 33320 | P52: =SUM(O45-O52) -> 4680
B53: 11h | C53: =SUM(C52-C46+E52) -> -50800 | D53: =SUM(C45-C53) -> 88800 | F53: 11h | G53: =SUM(G52-G46+I52) -> 15800 | H53: =SUM(G45-G53) -> 22200 | J53: 11h | K53: =SUM(K52-K46+M52) -> 33190 | L53: =SUM(K45-K53) -> 4810 | N53: 11h | O53: =SUM(O52-O46+Q52) -> 33190 | P53: =SUM(O45-O53) -> 4810
B54: 12h | C54: =SUM(C53,-C46)+E53 -> -53200 | D54: =SUM(C45-C54) -> 91200 | F54: 12h | G54: =SUM(G53,-G46)+I53 -> 15200 | H54: =SUM(G45-G54) -> 22800 | J54: 12h | K54: =SUM(K53,-K46)+M53 -> 33060 | L54: =SUM(K45-K54) -> 4940 | N54: 12h | O54: =SUM(O53,-O46)+Q53 -> 33060 | P54: =SUM(O45-O54) -> 4940
B55: 13h | C55: =SUM(C54,-C46)+E54 -> -55600 | D55: =SUM(C45-C55) -> 93600 | F55: 13h | G55: =SUM(G54,-G46)+I54 -> 14600 | H55: =SUM(G45-G55) -> 23400 | J55: 13h | K55: =SUM(K54,-K46)+M54 -> 32930 | L55: =SUM(K45-K55) -> 5070 | N55: 13h | O55: =SUM(O54,-O46)+Q54 -> 32930 | P55: =SUM(O45-O55) -> 5070
B56: 14h | C56: =SUM(C55,-C46)+E55 -> -58000 | D56: =SUM(C45-C56) -> 96000 | F56: 14h | G56: =SUM(G55,-G46)+I55 -> 14000 | H56: =SUM(G45-G56) -> 24000 | J56: 14h | K56: =SUM(K55,-K46)+M55 -> 32800 | L56: =SUM(K45-K56) -> 5200 | N56: 14h | O56: =SUM(O55,-O46)+Q55 -> 32800 | P56: =SUM(O45-O56) -> 5200
B57: 15h | C57: =SUM(C56,-C46)+E56 -> -60400 | D57: =SUM(C45-C57) -> 98400 | F57: 15h | G57: =SUM(G56,-G46)+I56 -> 13400 | H57: =SUM(G45-G57) -> 24600 | J57: 15h | K57: =SUM(K56,-K46)+M56 -> 32670 | L57: =SUM(K45-K57) -> 5330 | N57: 15h | O57: =SUM(O56,-O46)+Q56 -> 32670 | P57: =SUM(O45-O57) -> 5330
B58: 16h | C58: =SUM(C57,-C46)+E57 -> -62800 | D58: =SUM(C45-C58) -> 100800 | F58: 16h | G58: =SUM(G57,-G46)+I57 -> 12800 | H58: =SUM(G45-G58) -> 25200 | J58: 16h | K58: =SUM(K57,-K46)+M57 -> 32540 | L58: =SUM(K45-K58) -> 5460 | N58: 16h | O58: =SUM(O57,-O46)+Q57 -> 32540 | P58: =SUM(O45-O58) -> 5460
B59: 17h | C59: =SUM(C58-C46)+E58 -> -65200 | D59: =SUM(C45-C59) -> 103200 | F59: 17h | G59: =SUM(G58-G46)+I58 -> 12200 | H59: =SUM(G45-G59) -> 25800 | J59: 17h | K59: =SUM(K58-K46)+M58 -> 32410 | L59: =SUM(K45-K59) -> 5590 | N59: 17h | O59: =SUM(O58-O46)+Q58 -> 32410 | P59: =SUM(O45-O59) -> 5590
B60: 18h | C60: =SUM(C59-C46)+E59 -> -67600 | D60: =SUM(C45-C60) -> 105600 | F60: 18h | G60: =SUM(G59-G46)+I59 -> 11600 | H60: =SUM(G45-G60) -> 26400 | J60: 18h | K60: =SUM(K59-K46)+M59 -> 32280 | L60: =SUM(K45-K60) -> 5720 | N60: 18h | O60: =SUM(O59-O46)+Q59 -> 32280 | P60: =SUM(O45-O60) -> 5720
B61: 19h | C61: =SUM(C60-C46)+E60 -> -70000 | D61: =SUM(C45-C61) -> 108000 | F61: 19h | G61: =SUM(G60-G46)+I60 -> 11000 | H61: =SUM(G45-G61) -> 27000 | J61: 19h | K61: =SUM(K60-K46)+M60 -> 32150 | L61: =SUM(K45-K61) -> 5850 | N61: 19h | O61: =SUM(O60-O46)+Q60 -> 32150 | P61: =SUM(O45-O61) -> 5850
B62: 20h | C62: =SUM(C61-C46)+E61 -> -72400 | D62: =SUM(C45-C62) -> 110400 | F62: 20h | G62: =SUM(G61-G46)+I61 -> 10400 | H62: =SUM(G45-G62) -> 27600 | J62: 20h | K62: =SUM(K61-K46)+M61 -> 32020 | L62: =SUM(K45-K62) -> 5980 | N62: 20h | O62: =SUM(O61-O46)+Q61 -> 32020 | P62: =SUM(O45-O62) -> 5980
B63: 21h | C63: =SUM(C62,-C46)+E62 -> -74800 | D63: =SUM(C45-C63) -> 112800 | F63: 21h | G63: =SUM(G62,-G46)+I62 -> 9800 | H63: =SUM(G45-G63) -> 28200 | J63: 21h | K63: =SUM(K62,-K46)+M62 -> 31890 | L63: =SUM(K45-K63) -> 6110 | N63: 21h | O63: =SUM(O62,-O46)+Q62 -> 31890 | P63: =SUM(O45-O63) -> 6110
B64: 22h | C64: =SUM(C63-C46)+E63 -> -77200 | D64: =SUM(C45-C64) -> 115200 | F64: 22h | G64: =SUM(G63-G46)+I63 -> 9200 | H64: =SUM(G45-G64) -> 28800 | J64: 22h | K64: =SUM(K63-K46)+M63 -> 31760 | L64: =SUM(K45-K64) -> 6240 | N64: 22h | O64: =SUM(O63-O46)+Q63 -> 31760 | P64: =SUM(O45-O64) -> 6240
D65: Diesiel | H65: 95 | L65: Diesiel excellium | P65: 98 excellium
B66: Citerne | C66: =SUM(C45) -> 38000 | D66: JEUDI | F66: Citerne | G66: =SUM(G45) -> 38000 | J66: Citerne | K66: =SUM(K45) -> 38000 | N66: Citerne | O66: =SUM(O45) -> 38000
B67: Vente / H | C67: =SUM(C46) -> 2400 | F67: Vente / H | G67: =SUM(G46) -> 600 | J67: Vente / H | K67: =SUM(K46) -> 130 | N67: Vente / H | O67: =SUM(O46) -> 130
C68: Stock | D68: Commande | E68: Livraison | G68: Stock | H68: Commande | I68: Livraison | K68: Stock | L68: Commande | M68: Livraison | O68: Stock | P68: Commande | Q68: Livraison
B69: 6h | C69: =SUM(C64) -> -77200 | F69: 6h | G69: =SUM(G64) -> 9200 | J69: 6h | K69: =SUM(K64) -> 31760 | N69: 6h | O69: =SUM(O64) -> 31760
B70: 7h | C70: =SUM(C69,-C67)+E69 -> -79600 | D70: =SUM(C66-C70) -> 117600 | F70: 7h | G70: =SUM(G69,-G67)+I69 -> 8600 | H70: =SUM(G66-G70) -> 29400 | J70: 7h | K70: =SUM(K69,-K67)+M69 -> 31630 | L70: =SUM(K66-K70) -> 6370 | N70: 7h | O70: =SUM(O69,-O67)+Q69 -> 31630 | P70: =SUM(O66-O70) -> 6370
B71: 8h | C71: =SUM(C70,-C67)+E70 -> -82000 | D71: =SUM(C66-C71) -> 120000 | F71: 8h | G71: =SUM(G70,-G67)+I70 -> 8000 | H71: =SUM(G66-G71) -> 30000 | J71: 8h | K71: =SUM(K70,-K67)+M70 -> 31500 | L71: =SUM(K66-K71) -> 6500 | N71: 8h | O71: =SUM(O70,-O67)+Q70 -> 31500 | P71: =SUM(O66-O71) -> 6500
B72: 9h | C72: =SUM(C71,-C67)+E71 -> -84400 | D72: =SUM(C66-C72) -> 122400 | F72: 9h | G72: =SUM(G71,-G67)+I71 -> 7400 | H72: =SUM(G66-G72) -> 30600 | J72: 9h | K72: =SUM(K71,-K67)+M71 -> 31370 | L72: =SUM(K66-K72) -> 6630 | N72: 9h | O72: =SUM(O71,-O67)+Q71 -> 31370 | P72: =SUM(O66-O72) -> 6630
B73: 10h | C73: =SUM(C72-C67+E72) -> -86800 | D73: =SUM(C66-C73) -> 124800 | F73: 10h | G73: =SUM(G72-G67+I72) -> 6800 | H73: =SUM(G66-G73) -> 31200 | J73: 10h | K73: =SUM(K72-K67+M72) -> 31240 | L73: =SUM(K66-K73) -> 6760 | N73: 10h | O73: =SUM(O72-O67+Q72) -> 31240 | P73: =SUM(O66-O73) -> 6760
B74: 11h | C74: =SUM(C73-C67+E73) -> -89200 | D74: =SUM(C66-C74) -> 127200 | F74: 11h | G74: =SUM(G73-G67+I73) -> 6200 | H74: =SUM(G66-G74) -> 31800 | J74: 11h | K74: =SUM(K73-K67+M73) -> 31110 | L74: =SUM(K66-K74) -> 6890 | N74: 11h | O74: =SUM(O73-O67+Q73) -> 31110 | P74: =SUM(O66-O74) -> 6890
B75: 12h | C75: =SUM(C74,-C67)+E74 -> -91600 | D75: =SUM(C66-C75) -> 129600 | F75: 12h | G75: =SUM(G74,-G67)+I74 -> 5600 | H75: =SUM(G66-G75) -> 32400 | J75: 12h | K75: =SUM(K74,-K67)+M74 -> 30980 | L75: =SUM(K66-K75) -> 7020 | N75: 12h | O75: =SUM(O74,-O67)+Q74 -> 30980 | P75: =SUM(O66-O75) -> 7020
B76: 13h | C76: =SUM(C75,-C67)+E75 -> -94000 | D76: =SUM(C66-C76) -> 132000 | F76: 13h | G76: =SUM(G75,-G67)+I75 -> 5000 | H76: =SUM(G66-G76) -> 33000 | J76: 13h | K76: =SUM(K75,-K67)+M75 -> 30850 | L76: =SUM(K66-K76) -> 7150 | N76: 13h | O76: =SUM(O75,-O67)+Q75 -> 30850 | P76: =SUM(O66-O76) -> 7150
B77: 14h | C77: =SUM(C76,-C67)+E76 -> -96400 | D77: =SUM(C66-C77) -> 134400 | F77: 14h | G77: =SUM(G76,-G67)+I76 -> 4400 | H77: =SUM(G66-G77) -> 33600 | J77: 14h | K77: =SUM(K76,-K67)+M76 -> 30720 | L77: =SUM(K66-K77) -> 7280 | N77: 14h | O77: =SUM(O76,-O67)+Q76 -> 30720 | P77: =SUM(O66-O77) -> 7280
B78: 15h | C78: =SUM(C77,-C67)+E77 -> -98800 | D78: =SUM(C66-C78) -> 136800 | F78: 15h | G78: =SUM(G77,-G67)+I77 -> 3800 | H78: =SUM(G66-G78) -> 34200 | J78: 15h | K78: =SUM(K77,-K67)+M77 -> 30590 | L78: =SUM(K66-K78) -> 7410 | N78: 15h | O78: =SUM(O77,-O67)+Q77 -> 30590 | P78: =SUM(O66-O78) -> 7410
B79: 16h | C79: =SUM(C78,-C67)+E78 -> -101200 | D79: =SUM(C66-C79) -> 139200 | F79: 16h | G79: =SUM(G78,-G67)+I78 -> 3200 | H79: =SUM(G66-G79) -> 34800 | J79: 16h | K79: =SUM(K78,-K67)+M78 -> 30460 | L79: =SUM(K66-K79) -> 7540 | N79: 16h | O79: =SUM(O78,-O67)+Q78 -> 30460 | P79: =SUM(O66-O79) -> 7540
B80: 17h | C80: =SUM(C79-C67)+E79 -> -103600 | D80: =SUM(C66-C80) -> 141600 | F80: 17h | G80: =SUM(G79-G67)+I79 -> 2600 | H80: =SUM(G66-G80) -> 35400 | J80: 17h | K80: =SUM(K79-K67)+M79 -> 30330 | L80: =SUM(K66-K80) -> 7670 | N80: 17h | O80: =SUM(O79-O67)+Q79 -> 30330 | P80: =SUM(O66-O80) -> 7670
B81: 18h | C81: =SUM(C80-C67)+E80 -> -106000 | D81: =SUM(C66-C81) -> 144000 | F81: 18h | G81: =SUM(G80-G67)+I80 -> 2000 | H81: =SUM(G66-G81) -> 36000 | J81: 18h | K81: =SUM(K80-K67)+M80 -> 30200 | L81: =SUM(K66-K81) -> 7800 | N81: 18h | O81: =SUM(O80-O67)+Q80 -> 30200 | P81: =SUM(O66-O81) -> 7800
B82: 19h | C82: =SUM(C81-C67)+E81 -> -108400 | D82: =SUM(C66-C82) -> 146400 | F82: 19h | G82: =SUM(G81-G67)+I81 -> 1400 | H82: =SUM(G66-G82) -> 36600 | J82: 19h | K82: =SUM(K81-K67)+M81 -> 30070 | L82: =SUM(K66-K82) -> 7930 | N82: 19h | O82: =SUM(O81-O67)+Q81 -> 30070 | P82: =SUM(O66-O82) -> 7930
B83: 20h | C83: =SUM(C82-C67)+E82 -> -110800 | D83: =SUM(C66-C83) -> 148800 | F83: 20h | G83: =SUM(G82-G67)+I82 -> 800 | H83: =SUM(G66-G83) -> 37200 | J83: 20h | K83: =SUM(K82-K67)+M82 -> 29940 | L83: =SUM(K66-K83) -> 8060 | N83: 20h | O83: =SUM(O82-O67)+Q82 -> 29940 | P83: =SUM(O66-O83) -> 8060
B84: 21h | C84: =SUM(C83,-C67)+E83 -> -113200 | D84: =SUM(C66-C84) -> 151200 | F84: 21h | G84: =SUM(G83,-G67)+I83 -> 200 | H84: =SUM(G66-G84) -> 37800 | J84: 21h | K84: =SUM(K83,-K67)+M83 -> 29810 | L84: =SUM(K66-K84) -> 8190 | N84: 21h | O84: =SUM(O83,-O67)+Q83 -> 29810 | P84: =SUM(O66-O84) -> 8190
B85: 22h | C85: =SUM(C84-C67)+E84 -> -115600 | D85: =SUM(C66-C85) -> 153600 | F85: 22h | G85: =SUM(G84-G67)+I84 -> -400 | H85: =SUM(G66-G85) -> 38400 | J85: 22h | K85: =SUM(K84-K67)+M84 -> 29680 | L85: =SUM(K66-K85) -> 8320 | N85: 22h | O85: =SUM(O84-O67)+Q84 -> 29680 | P85: =SUM(O66-O85) -> 8320
D86: Diesiel | H86: 95 | L86: Diesiel excellium | P86: 98 excellium
B87: Citerne | C87: =SUM(C66) -> 38000 | D87: VENDREDI | F87: Citerne | G87: =SUM(G66) -> 38000 | J87: Citerne | K87: =SUM(K66) -> 38000 | N87: Citerne | O87: =SUM(O66) -> 38000
B88: Vente / H | C88: 2400 | F88: Vente / H | G88: 900 | J88: Vente / H | K88: =SUM(K67) -> 130 | N88: Vente / H | O88: =SUM(O67) -> 130
C89: Stock | D89: Commande | E89: Livraison | G89: Stock | H89: Commande | I89: Livraison | K89: Stock | L89: Commande | M89: Livraison | O89: Stock | P89: Commande | Q89: Livraison
B90: 6h | C90: =SUM(C85) -> -115600 | F90: 6h | G90: =SUM(G85) -> -400 | J90: 6h | K90: =SUM(K85) -> 29680 | N90: 6h | O90: =SUM(O85) -> 29680
B91: 7h | C91: =SUM(C90,-C88)+E90 -> -118000 | D91: =SUM(C87-C91) -> 156000 | F91: 7h | G91: =SUM(G90,-G88)+I90 -> -1300 | H91: =SUM(G87-G91) -> 39300 | J91: 7h | K91: =SUM(K90,-K88)+M90 -> 29550 | L91: =SUM(K87-K91) -> 8450 | N91: 7h | O91: =SUM(O90,-O88)+Q90 -> 29550 | P91: =SUM(O87-O91) -> 8450
B92: 8h | C92: =SUM(C91,-C88)+E91 -> -120400 | D92: =SUM(C87-C92) -> 158400 | F92: 8h | G92: =SUM(G91,-G88)+I91 -> -2200 | H92: =SUM(G87-G92) -> 40200 | J92: 8h | K92: =SUM(K91,-K88)+M91 -> 29420 | L92: =SUM(K87-K92) -> 8580 | N92: 8h | O92: =SUM(O91,-O88)+Q91 -> 29420 | P92: =SUM(O87-O92) -> 8580
B93: 9h | C93: =SUM(C92,-C88)+E92 -> -122800 | D93: =SUM(C87-C93) -> 160800 | F93: 9h | G93: =SUM(G92,-G88)+I92 -> -3100 | H93: =SUM(G87-G93) -> 41100 | J93: 9h | K93: =SUM(K92,-K88)+M92 -> 29290 | L93: =SUM(K87-K93) -> 8710 | N93: 9h | O93: =SUM(O92,-O88)+Q92 -> 29290 | P93: =SUM(O87-O93) -> 8710
B94: 10h | C94: =SUM(C93-C88+E93) -> -125200 | D94: =SUM(C87-C94) -> 163200 | F94: 10h | G94: =SUM(G93-G88+I93) -> -4000 | H94: =SUM(G87-G94) -> 42000 | J94: 10h | K94: =SUM(K93-K88+M93) -> 29160 | L94: =SUM(K87-K94) -> 8840 | N94: 10h | O94: =SUM(O93-O88+Q93) -> 29160 | P94: =SUM(O87-O94) -> 8840
B95: 11h | C95: =SUM(C94-C88+E94) -> -127600 | D95: =SUM(C87-C95) -> 165600 | F95: 11h | G95: =SUM(G94-G88+I94) -> -4900 | H95: =SUM(G87-G95) -> 42900 | J95: 11h | K95: =SUM(K94-K88+M94) -> 29030 | L95: =SUM(K87-K95) -> 8970 | N95: 11h | O95: =SUM(O94-O88+Q94) -> 29030 | P95: =SUM(O87-O95) -> 8970
B96: 12h | C96: =SUM(C95,-C88)+E95 -> -130000 | D96: =SUM(C87-C96) -> 168000 | F96: 12h | G96: =SUM(G95,-G88)+I95 -> -5800 | H96: =SUM(G87-G96) -> 43800 | J96: 12h | K96: =SUM(K95,-K88)+M95 -> 28900 | L96: =SUM(K87-K96) -> 9100 | N96: 12h | O96: =SUM(O95,-O88)+Q95 -> 28900 | P96: =SUM(O87-O96) -> 9100
B97: 13h | C97: =SUM(C96,-C88)+E96 -> -132400 | D97: =SUM(C87-C97) -> 170400 | F97: 13h | G97: =SUM(G96,-G88)+I96 -> -6700 | H97: =SUM(G87-G97) -> 44700 | J97: 13h | K97: =SUM(K96,-K88)+M96 -> 28770 | L97: =SUM(K87-K97) -> 9230 | N97: 13h | O97: =SUM(O96,-O88)+Q96 -> 28770 | P97: =SUM(O87-O97) -> 9230
B98: 14h | C98: =SUM(C97,-C88)+E97 -> -134800 | D98: =SUM(C87-C98) -> 172800 | F98: 14h | G98: =SUM(G97,-G88)+I97 -> -7600 | H98: =SUM(G87-G98) -> 45600 | J98: 14h | K98: =SUM(K97,-K88)+M97 -> 28640 | L98: =SUM(K87-K98) -> 9360 | N98: 14h | O98: =SUM(O97,-O88)+Q97 -> 28640 | P98: =SUM(O87-O98) -> 9360
B99: 15h | C99: =SUM(C98,-C88)+E98 -> -137200 | D99: =SUM(C87-C99) -> 175200 | F99: 15h | G99: =SUM(G98,-G88)+I98 -> -8500 | H99: =SUM(G87-G99) -> 46500 | J99: 15h | K99: =SUM(K98,-K88)+M98 -> 28510 | L99: =SUM(K87-K99) -> 9490 | N99: 15h | O99: =SUM(O98,-O88)+Q98 -> 28510 | P99: =SUM(O87-O99) -> 9490
B100: 16h | C100: =SUM(C99,-C88)+E99 -> -139600 | D100: =SUM(C87-C100) -> 177600 | F100: 16h | G100: =SUM(G99,-G88)+I99 -> -9400 | H100: =SUM(G87-G100) -> 47400 | J100: 16h | K100: =SUM(K99,-K88)+M99 -> 28380 | L100: =SUM(K87-K100) -> 9620 | N100: 16h | O100: =SUM(O99,-O88)+Q99 -> 28380 | P100: =SUM(O87-O100) -> 9620
B101: 17h | C101: =SUM(C100-C88)+E100 -> -142000 | D101: =SUM(C87-C101) -> 180000 | F101: 17h | G101: =SUM(G100-G88)+I100 -> -10300 | H101: =SUM(G87-G101) -> 48300 | J101: 17h | K101: =SUM(K100-K88)+M100 -> 28250 | L101: =SUM(K87-K101) -> 9750 | N101: 17h | O101: =SUM(O100-O88)+Q100 -> 28250 | P101: =SUM(O87-O101) -> 9750
B102: 18h | C102: =SUM(C101-C88)+E101 -> -144400 | D102: =SUM(C87-C102) -> 182400 | F102: 18h | G102: =SUM(G101-G88)+I101 -> -11200 | H102: =SUM(G87-G102) -> 49200 | J102: 18h | K102: =SUM(K101-K88)+M101 -> 28120 | L102: =SUM(K87-K102) -> 9880 | N102: 18h | O102: =SUM(O101-O88)+Q101 -> 28120 | P102: =SUM(O87-O102) -> 9880
B103: 19h | C103: =SUM(C102-C88)+E102 -> -146800 | D103: =SUM(C87-C103) -> 184800 | F103: 19h | G103: =SUM(G102-G88)+I102 -> -12100 | H103: =SUM(G87-G103) -> 50100 | J103: 19h | K103: =SUM(K102-K88)+M102 -> 27990 | L103: =SUM(K87-K103) -> 10010 | N103: 19h | O103: =SUM(O102-O88)+Q102 -> 27990 | P103: =SUM(O87-O103) -> 10010
B104: 20h | C104: =SUM(C103-C88)+E103 -> -149200 | D104: =SUM(C87-C104) -> 187200 | F104: 20h | G104: =SUM(G103-G88)+I103 -> -13000 | H104: =SUM(G87-G104) -> 51000 | J104: 20h | K104: =SUM(K103-K88)+M103 -> 27860 | L104: =SUM(K87-K104) -> 10140 | N104: 20h | O104: =SUM(O103-O88)+Q103 -> 27860 | P104: =SUM(O87-O104) -> 10140
B105: 21h | C105: =SUM(C104,-C88)+E104 -> -151600 | D105: =SUM(C87-C105) -> 189600 | F105: 21h | G105: =SUM(G104,-G88)+I104 -> -13900 | H105: =SUM(G87-G105) -> 51900 | J105: 21h | K105: =SUM(K104,-K88)+M104 -> 27730 | L105: =SUM(K87-K105) -> 10270 | N105: 21h | O105: =SUM(O104,-O88)+Q104 -> 27730 | P105: =SUM(O87-O105) -> 10270
B106: 22h | C106: =SUM(C105-C88)+E105 -> -154000 | D106: =SUM(C87-C106) -> 192000 | F106: 22h | G106: =SUM(G105-G88)+I105 -> -14800 | H106: =SUM(G87-G106) -> 52800 | J106: 22h | K106: =SUM(K105-K88)+M105 -> 27600 | L106: =SUM(K87-K106) -> 10400 | N106: 22h | O106: =SUM(O105-O88)+Q105 -> 27600 | P106: =SUM(O87-O106) -> 10400
D107: Diesiel | H107: 95 | L107: Diesiel excellium | P107: 98 excellium
B108: Citerne | C108: =SUM(C87) -> 38000 | D108: SAMEDI | F108: Citerne | G108: =SUM(G87) -> 38000 | J108: Citerne | K108: =SUM(K87) -> 38000 | N108: Citerne | O108: =SUM(O87) -> 38000
B109: Vente / H | C109: 2400 | F109: Vente / H | G109: 600 | J109: Vente / H | K109: =SUM(K88) -> 130 | N109: Vente / H | O109: =SUM(O88) -> 130
C110: Stock | D110: Commande | E110: Livraison | G110: Stock | H110: Commande | I110: Livraison | K110: Stock | L110: Commande | M110: Livraison | O110: Stock | P110: Commande | Q110: Livraison
B111: 6h | C111: =SUM(C106) -> -154000 | F111: 6h | G111: =SUM(G106) -> -14800 | J111: 6h | K111: =SUM(K106) -> 27600 | N111: 6h | O111: =SUM(O106) -> 27600
B112: 7h | C112: =SUM(C111,-C109)+E111 -> -156400 | D112: =SUM(C108-C112) -> 194400 | F112: 7h | G112: =SUM(G111,-G109)+I111 -> -15400 | H112: =SUM(G108-G112) -> 53400 | J112: 7h | K112: =SUM(K111,-K109)+M111 -> 27470 | L112: =SUM(K108-K112) -> 10530 | N112: 7h | O112: =SUM(O111,-O109)+Q111 -> 27470 | P112: =SUM(O108-O112) -> 10530
B113: 8h | C113: =SUM(C112,-C109)+E112 -> -158800 | D113: =SUM(C108-C113) -> 196800 | F113: 8h | G113: =SUM(G112,-G109)+I112 -> -16000 | H113: =SUM(G108-G113) -> 54000 | J113: 8h | K113: =SUM(K112,-K109)+M112 -> 27340 | L113: =SUM(K108-K113) -> 10660 | N113: 8h | O113: =SUM(O112,-O109)+Q112 -> 27340 | P113: =SUM(O108-O113) -> 10660
B114: 9h | C114: =SUM(C113,-C109)+E113 -> -161200 | D114: =SUM(C108-C114) -> 199200 | F114: 9h | G114: =SUM(G113,-G109)+I113 -> -16600 | H114: =SUM(G108-G114) -> 54600 | J114: 9h | K114: =SUM(K113,-K109)+M113 -> 27210 | L114: =SUM(K108-K114) -> 10790 | N114: 9h | O114: =SUM(O113,-O109)+Q113 -> 27210 | P114: =SUM(O108-O114) -> 10790
B115: 10h | C115: =SUM(C114-C109+E114) -> -163600 | D115: =SUM(C108-C115) -> 201600 | F115: 10h | G115: =SUM(G114-G109+I114) -> -17200 | H115: =SUM(G108-G115) -> 55200 | J115: 10h | K115: =SUM(K114-K109+M114) -> 27080 | L115: =SUM(K108-K115) -> 10920 | N115: 10h | O115: =SUM(O114-O109+Q114) -> 27080 | P115: =SUM(O108-O115) -> 10920
B116: 11h | C116: =SUM(C115-C109+E115) -> -166000 | D116: =SUM(C108-C116) -> 204000 | F116: 11h | G116: =SUM(G115-G109+I115) -> -17800 | H116: =SUM(G108-G116) -> 55800 | J116: 11h | K116: =SUM(K115-K109+M115) -> 26950 | L116: =SUM(K108-K116) -> 11050 | N116: 11h | O116: =SUM(O115-O109+Q115) -> 26950 | P116: =SUM(O108-O116) -> 11050
B117: 12h | C117: =SUM(C116,-C109)+E116 -> -168400 | D117: =SUM(C108-C117) -> 206400 | F117: 12h | G117: =SUM(G116,-G109)+I116 -> -18400 | H117: =SUM(G108-G117) -> 56400 | J117: 12h | K117: =SUM(K116,-K109)+M116 -> 26820 | L117: =SUM(K108-K117) -> 11180 | N117: 12h | O117: =SUM(O116,-O109)+Q116 -> 26820 | P117: =SUM(O108-O117) -> 11180
B118: 13h | C118: =SUM(C117,-C109)+E117 -> -170800 | D118: =SUM(C108-C118) -> 208800 | F118: 13h | G118: =SUM(G117,-G109)+I117 -> -19000 | H118: =SUM(G108-G118) -> 57000 | J118: 13h | K118: =SUM(K117,-K109)+M117 -> 26690 | L118: =SUM(K108-K118) -> 11310 | N118: 13h | O118: =SUM(O117,-O109)+Q117 -> 26690 | P118: =SUM(O108-O118) -> 11310
B119: 14h | C119: =SUM(C118,-C109)+E118 -> -173200 | D119: =SUM(C108-C119) -> 211200 | F119: 14h | G119: =SUM(G118,-G109)+I118 -> -19600 | H119: =SUM(G108-G119) -> 57600 | J119: 14h | K119: =SUM(K118,-K109)+M118 -> 26560 | L119: =SUM(K108-K119) -> 11440 | N119: 14h | O119: =SUM(O118,-O109)+Q118 -> 26560 | P119: =SUM(O108-O119) -> 11440
